Workbook

Sheet Instructions - Read first
B3: Update Timeseries from Logical Invest Server
C7: 1) | D7: You may need to load the Solver add-in for the portfolio calculations to work (see instructions below).
C8: 2) | D8: You need to allow editing and allow macros to run in order for the sheet to download data from our site.
C9: 3) | D9: Yellow cells are input cells.
C10: 4) | D10: Refresh quotes (above) to download the latest return data for our strategies.
C11: 5) | D11: To manually input weights, go to the 'Input' tab, select 'Use Manual Input' from the dropdown menu then type desired weights under column D.
C12: 6) | D12: To find weights using the Solver, go to the "Solver " tab.
D13: Follow the three steps:
D14: a. Pick which strategies to include in the optimization.
D15: b. Pick from the dropdown menu what type of portfolio optimization you wish to perform (ie, minimum vloatility, max sharpe with constraints, etc).
D16: c. Run the optimization.
D17: Then go back to the "Input" tab and on the top dropdown meny choose "Custom Solver Solution (Get weights from the Solver)" to automatically populate the weights from the optimazation run.the silver
C20: *Note: This is an Excel template to help you analyse our strategies. It will download the latest data from our strategies and can do some basic
D21: calculations and visualizations. You can save it locally and even unprotect and modify it to suit your needs.
D26: How to load the Solver Add-in
D28: Which version do I have?
D30: The Solver add-in is a Microsoft Excel add-in program that is available when you install Microsoft Office or Excel. To use it in Excel, however, you need to load it first.
D32: 1. Click the File tab, and then click Options.
D34: 2. Click Add-Ins, and then in the Manage box, select Excel Add-ins.
D36: 3. Click Go.
D38: 4. In the Add-Ins available box, select the Solver Add-in check box, and then click OK.
D39: a. Tip If Solver Add-in is not listed in the Add-Ins available box, click Browse to locate the add-in.
D41: b. If you get prompted that the Solver add-in is not currently installed on your computer, click Yes to install it.
D43: 5. After you load the Solver add-in, the Solver command is available in the Analysis group on the Data tab.
D45: For more information about using the Solver add-in, see Define and solve a problem by using Solver.
D47: You may need to quit Excel and reopen it to see if the Sover has loaded.

Sheet Input
B2: Select manual Input or input from the Solver | AB2: =+Portfolios -> Use Manual Input (Column D)
A3: Menu-> | B3: Maximum Sharpe | F3: <-Menu | AB3: Use Solver Solution
AB4: Maximum Sharpe
AB5: Minimum Volatility
C6: HideGraph | D6: Manual Input | E6: Portfolio Weights | F6: TotalReturn | G6: CAGR | H6: Volatility | I6: Sharpe Ratio | J6: Sortino Ratio | K6: MaxDrawDown | L6: Avg Duration | M6: Max Duration | AB6: Max CAGR, Vol <25%
B7: =TRANSPOSE(StratNames) -> BRS | C7: FALSE | D7: 0.6 | E7: =+TRANSPOSE(OFFSET([0]!Portfolios,MATCH(B3,Portfolios,0)-1,2,1,22)) -> 0.3169768395 | F7: =+TRANSPOSE(TotalReturn) -> 1.299265726 | G7: =+TRANSPOSE(CAGR) -> 0.1404507115 | H7: =+TRANSPOSE(Volatility) -> 0.07090335099 | I7: =+(G7)/H7 -> 1.98087551 | J7: =+TRANSPOSE(CAGR)/TRANSPOSE(DownsideRisk) -> 1.855208284 | K7: =+TRANSPOSE(MaxDD) -> -0.09665124899 | L7: =+TRANSPOSE(AvgDuration) -> 43.2422611 | M7: =+TRANSPOSE(MaxDuration) -> 289 | AB7: Max CAGR, Vol <20%
B8: BUGST | C8: FALSE | D8: 0 | E8: 0.04366131852 | F8: 0.9226567775 | G8: 0.1086989463 | H8: 0.06768175312 | I8: =+(G8)/H8 -> 1.606030301 | J8: 1.527062207 | K8: -0.09839919723 | L8: 48.52384063 | M8: 299 | AB8: Max CAGR, Vol <15%
B9: BUGLEV | C9: FALSE | D9: 0 | E9: 0.06963104459 | F9: 1.44267269 | G9: 0.15139458 | H9: 0.07971703153 | I9: 1.899149744 | J9: 1.853325542 | K9: -0.1014838667 | L9: 48.81233596 | M9: 297 | AB9: Max CAGR, Vol <10%
B10: WTOP4 | C10: FALSE | D10: 0 | E10: 0 | F10: 1.946604234 | G10: 0.1859927115 | H10: 0.1305358551 | I10: 1.424840028 | J10: 1.355116979 | K10: -0.1653289316 | L10: 69.83789062 | M10: 310 | AB10: Max CAGR, Vol <7%
B11: GSRlv | C11: FALSE | D11: 0.2 | E11: 0.04891009849 | F11: 3.039766483 | G11: 0.2465588424 | H11: 0.1388593565 | I11: 1.775601217 | J11: 1.731828926 | K11: -0.1671661455 | L11: 51.15709571 | M11: 319 | AB11: Max CAGR, Sharpe >1.5
B12: GMRS | C12: FALSE | D12: 0 | E12: 0 | F12: 4.820282588 | G12: 0.3205222555 | H12: 0.207467508 | I12: 1.544927486 | J12: 1.553606935 | K12: -0.2366407709 | L12: 92.52354049 | M12: 460 | AB12: Min DrawDown
B13: GMRSE | C13: FALSE | D13: 0 | E13: 0 | F13: 5.795294215 | G13: 0.3532041368 | H13: 0.2396274075 | I13: 1.473972199 | J13: 1.454765554 | K13: -0.2574761758 | L13: 92.4764268 | M13: 494 | AB13: Max CAGR, MaxDD <15%
B14: MYRS | C14: FALSE | D14: 0 | E14: 0.09051976604 | F14: 5.927322766 | G14: 0.3573207443 | H14: 0.2110297458 | I14: 1.69322454 | J14: 1.484274825 | K14: -0.2062408801 | L14: 26.57993197 | M14: 156 | AB14: Max CAGR, MaxDD <10%
B15: UIS | C15: FALSE | D15: 0.2 | E15: 0.06463159526 | F15: 1.856020664 | G15: 0.1801616919 | H15: 0.09095286667 | I15: 1.980824778 | J15: 1.957302723 | K15: -0.109684337 | L15: 35.69418133 | M15: 254 | AB15: Max CAGR, MaxDD <7%
B16: UIS-SPXL-TMF | C16: FALSE | D16: 0 | E16: 0.01033078581 | F16: 13.53855481 | G16: 0.5258186493 | H16: 0.2710640191 | I16: 1.939831967 | J16: 1.901845856 | K16: -0.3137018621 | L16: 51.28057554 | M16: 320 | AB16: Lev 2: Maximum Sharpe
B17: SPY | C17: FALSE | D17: 0 | E17: 0 | F17: 1.76359439 | G17: 0.1740492531 | H17: 0.1610406431 | I17: 1.080778428 | J17: 1.023030586 | K17: -0.1860546851 | L17: 40.29144737 | M17: 192 | AB17: Lev 2: Minimum Volatility
B18: TLT | C18: FALSE | D18: 0 | E18: 0 | F18: 0.7907660364 | G18: 0.09633164984 | H18: 0.1526855199 | I18: 0.6309154259 | J18: 0.6113478118 | K18: -0.2065879677 | L18: 165.7089337 | M18: 597 | AB18: Lev 2: Max CAGR, Vol <15%
B19: AGG | C19: FALSE | D19: 0 | E19: 0 | F19: 0.370503921 | G19: 0.05100898288 | H19: 0.03558297798 | I19: 1.433522032 | J19: 1.376816932 | K19: -0.05142976725 | L19: 55.55646688 | M19: 259 | AB19: Lev 2: Max CAGR, MaxDD <15%
B20: SHY | C20: FALSE | D20: 0 | E20: 0 | F20: 0.07377936507 | G20: 0.01129978077 | H20: 0.009827528114 | I20: 1.14980905 | J20: 1.064503056 | K20: -0.0108324555 | L20: 26.29584665 | M20: 122 | AB20: Lev 2: Minimum DrawDown
B21: GLD | C21: FALSE | D21: 0 | E21: 0 | F21: 0.4545141502 | G21: 0.06092548108 | H21: 0.1748009272 | I21: 0.3485420932 | J21: 0.3353138345 | K21: -0.4555501263 | L21: 445.6801406 | M21: 1222 | AB21: 0
B22: NASDAQ100 | C22: FALSE | D22: 0 | E22: 0.1050059083 | F22: 9.3447402 | G22: 0.4460142171 | H22: 0.2417779471 | I22: =+(G22-3%)/H22 -> 1.720645832 | J22: 1.943831757 | K22: -0.1943151563 | L22: 36.40625 | M22: 184 | AB22: 0
B23: GLD-USD | C23: FALSE | D23: 0 | E23: 0.2503326435 | F23: 2.234185446 | G23: 0.2035549632 | H23: 0.1240775536 | I23: 1.398761969 | J23: 1.685977813 | K23: -0.1374708465 | L23: 47.93532338 | M23: 261 | AB23: 0
B24: empty | C24: FALSE | E24: 0 | F24: 0 | G24: 0 | H24: 0 | K24: 0 | M24: 0 | AB24: 0
B25: empty | C25: FALSE | E25: 0 | F25: 0 | G25: 0 | H25: 0 | K25: 0 | M25: 0 | AB25: 0
B26: empty | C26: FALSE | E26: 0 | F26: 0 | G26: 0 | H26: 0 | K26: 0 | M26: 0 | AB26: 0
B27: empty | C27: FALSE | E27: 0 | F27: 0 | G27: 0 | H27: 0 | K27: 0 | M27: 0 | AB27: 0
B28: empty | C28: FALSE | E28: 0 | F28: 0 | G28: 0 | H28: 0 | K28: 0 | M28: 0 | AB28: 0
B29: Custom Portfolio | C29: FALSE | D29: =SUM(D7:D28) -> 1 | E29: =SUM(StratWeights) -> 1 | F29: 2.586111846 | G29: 0.2233391277 | H29: 0.07803317166 | I29: =+(G29)/H29 -> 2.86210496 | J29: 2.792862845 | K29: -0.05496910376 | L29: 23.70779221 | M29: 176 | AB29: 0
B30: Portfolio | AB30: 0
AB31: 0
AB32: 0
AB33: 0
AB34: 0
AB35: 0
AB36: 0
AB37: 0
AB38: 0
AB39: 0
AB40: 0
B72: Correlation Matrix
E73: =+StratNames -> BRS | F73: BUGST | G73: BUGLEV | H73: WTOP4 | I73: GSRlv | J73: GMRS | K73: GMRSE | L73: MYRS | M73: UIS | N73: UIS-SPXL-TMF | O73: SPY | P73: TLT | Q73: AGG | R73: SHY | S73: GLD | T73: NASDAQ100 | U73: GLD-USD | V73: empty | W73: empty | X73: empty | Y73: empty | Z73: empty
E74: 1 | F74: 2 | G74: 3 | H74: 4 | I74: 5 | J74: 6 | K74: 7 | L74: 8 | M74: 9 | N74: 10 | O74: 11 | P74: 12 | Q74: 13 | R74: 14 | S74: 15 | T74: 16 | U74: 17 | V74: 18 | W74: 19 | X74: 20 | Y74: 21 | Z74: 22
B75: =+TRANSPOSE(StratNames) -> BRS | C75: 1 | E75: =+CORREL(OFFSET(ReturnData!$B$1:$B$1805,0,Input!E$74-1),OFFSET(ReturnData!$B$1:$B$1805,0,Input!$C75-1)) -> 1 | F75: =+CORREL(OFFSET(ReturnData!$B$1:$B$1805,0,Input!F$74-1),OFFSET(ReturnData!$B$1:$B$1805,0,Input!$C75-1)) -> 0.5643192903 | G75: =+CORREL(OFFSET(ReturnData!$B$1:$B$1805,0,Input!G$74-1),OFFSET(ReturnData!$B$1:$B$1805,0,Input!$C75-1)) -> 0.5728150194 | H75: =+CORREL(OFFSET(ReturnData!$B$1:$B$1805,0,Input!H$74-1),OFFSET(ReturnData!$B$1:$B$1805,0,Input!$C75-1)) -> 0.5002730859 | I75: =+CORREL(OFFSET(ReturnData!$B$1:$B$1805,0,Input!I$74-1),OFFSET(ReturnData!$B$1:$B$1805,0,Input!$C75-1)) -> 0.5799048528 | J75: =+CORREL(OFFSET(ReturnData!$B$1:$B$1805,0,Input!J$74-1),OFFSET(ReturnData!$B$1:$B$1805,0,Input!$C75-1)) -> 0.6281008038 | K75: =+CORREL(OFFSET(ReturnData!$B$1:$B$1805,0,Input!K$74-1),OFFSET(ReturnData!$B$1:$B$1805,0,Input!$C75-1)) -> 0.6209006093 | L75: =+CORREL(OFFSET(ReturnData!$B$1:$B$1805,0,Input!L$74-1),OFFSET(ReturnData!$B$1:$B$1805,0,Input!$C75-1)) -> 0.4244646426 | M75: =+CORREL(OFFSET(ReturnData!$B$1:$B$1805,0,Input!M$74-1),OFFSET(ReturnData!$B$1:$B$1805,0,Input!$C75-1)) -> 0.5863318143 | N75: =+CORREL(OFFSET(ReturnData!$B$1:$B$1805,0,Input!N$74-1),OFFSET(ReturnData!$B$1:$B$1805,0,Input!$C75-1)) -> 0.5746365794 | O75: =+CORREL(OFFSET(ReturnData!$B$1:$B$1805,0,Input!O$74-1),OFFSET(ReturnData!$B$1:$B$1805,0,Input!$C75-1)) -> 0.2080894465 | P75: =+CORREL(OFFSET(ReturnData!$B$1:$B$1805,0,Input!P$74-1),OFFSET(ReturnData!$B$1:$B$1805,0,Input!$C75-1)) -> 0.196988241 | Q75: =+CORREL(OFFSET(ReturnData!$B$1:$B$1805,0,Input!Q$74-1),OFFSET(ReturnData!$B$1:$B$1805,0,Input!$C75-1)) -> 0.2395353748 | R75: =+CORREL(OFFSET(ReturnData!$B$1:$B$1805,0,Input!R$74-1),OFFSET(ReturnData!$B$1:$B$1805,0,Input!$C75-1)) -> 0.05063715349 | S75: =+CORREL(OFFSET(ReturnData!$B$1:$B$1805,0,Input!S$74-1),OFFSET(ReturnData!$B$1:$B$1805,0,Input!$C75-1)) -> 0.1711603599 | T75: =+CORREL(OFFSET(ReturnData!$B$1:$B$1805,0,Input!T$74-1),OFFSET(ReturnData!$B$1:$B$1805,0,Input!$C75-1)) -> 0.435349731 | U75: =+CORREL(OFFSET(ReturnData!$B$1:$B$1805,0,Input!U$74-1),OFFSET(ReturnData!$B$1:$B$1805,0,Input!$C75-1)) -> 0.1032038786 | V75: =+CORREL(OFFSET(ReturnData!$B$1:$B$1805,0,Input!V$74-1),OFFSET(ReturnData!$B$1:$B$1805,0,Input!$C75-1)) ->  | W75: =+CORREL(OFFSET(ReturnData!$B$1:$B$1805,0,Input!W$74-1),OFFSET(ReturnData!$B$1:$B$1805,0,Input!$C75-1)) ->  | X75: =+CORREL(OFFSET(ReturnData!$B$1:$B$1805,0,Input!X$74-1),OFFSET(ReturnData!$B$1:$B$1805,0,Input!$C75-1)) ->  | Y75: =+CORREL(OFFSET(ReturnData!$B$1:$B$1805,0,Input!Y$74-1),OFFSET(ReturnData!$B$1:$B$1805,0,Input!$C75-1)) ->  | Z75: =+CORREL(OFFSET(ReturnData!$B$1:$B$1805,0,Input!Z$74-1),OFFSET(ReturnData!$B$1:$B$1805,0,Input!$C75-1)) -> 
B76: BUGST | C76: 2 | E76: =+CORREL(OFFSET(ReturnData!$B$1:$B$1805,0,Input!E$74-1),OFFSET(ReturnData!$B$1:$B$1805,0,Input!$C76-1)) -> 0.5643192903 | F76: =+CORREL(OFFSET(ReturnData!$B$1:$B$1805,0,Input!F$74-1),OFFSET(ReturnData!$B$1:$B$1805,0,Input!$C76-1)) -> 1 | G76: =+CORREL(OFFSET(ReturnData!$B$1:$B$1805,0,Input!G$74-1),OFFSET(ReturnData!$B$1:$B$1805,0,Input!$C76-1)) -> 0.9045044394 | H76: =+CORREL(OFFSET(ReturnData!$B$1:$B$1805,0,Input!H$74-1),OFFSET(ReturnData!$B$1:$B$1805,0,Input!$C76-1)) -> 0.5494239757 | I76: =+CORREL(OFFSET(ReturnData!$B$1:$B$1805,0,Input!I$74-1),OFFSET(ReturnData!$B$1:$B$1805,0,Input!$C76-1)) -> 0.5232557199 | J76: =+CORREL(OFFSET(ReturnData!$B$1:$B$1805,0,Input!J$74-1),OFFSET(ReturnData!$B$1:$B$1805,0,Input!$C76-1)) -> 0.5225232528 | K76: =+CORREL(OFFSET(ReturnData!$B$1:$B$1805,0,Input!K$74-1),OFFSET(ReturnData!$B$1:$B$1805,0,Input!$C76-1)) -> 0.564058763 | L76: =+CORREL(OFFSET(ReturnData!$B$1:$B$1805,0,Input!L$74-1),OFFSET(ReturnData!$B$1:$B$1805,0,Input!$C76-1)) -> 0.4236994267 | M76: =+CORREL(OFFSET(ReturnData!$B$1:$B$1805,0,Input!M$74-1),OFFSET(ReturnData!$B$1:$B$1805,0,Input!$C76-1)) -> 0.6115787692 | N76: =+CORREL(OFFSET(ReturnData!$B$1:$B$1805,0,Input!N$74-1),OFFSET(ReturnData!$B$1:$B$1805,0,Input!$C76-1)) -> 0.6192984194 | O76: =+CORREL(OFFSET(ReturnData!$B$1:$B$1805,0,Input!O$74-1),OFFSET(ReturnData!$B$1:$B$1805,0,Input!$C76-1)) -> 0.3165978702 | P76: =+CORREL(OFFSET(ReturnData!$B$1:$B$1805,0,Input!P$74-1),OFFSET(ReturnData!$B$1:$B$1805,0,Input!$C76-1)) -> 0.2113221959 | Q76: =+CORREL(OFFSET(ReturnData!$B$1:$B$1805,0,Input!Q$74-1),OFFSET(ReturnData!$B$1:$B$1805,0,Input!$C76-1)) -> 0.2543704076 | R76: =+CORREL(OFFSET(ReturnData!$B$1:$B$1805,0,Input!R$74-1),OFFSET(ReturnData!$B$1:$B$1805,0,Input!$C76-1)) -> 0.05693700664 | S76: =+CORREL(OFFSET(ReturnData!$B$1:$B$1805,0,Input!S$74-1),OFFSET(ReturnData!$B$1:$B$1805,0,Input!$C76-1)) -> 0.4404632741 | T76: =+CORREL(OFFSET(ReturnData!$B$1:$B$1805,0,Input!T$74-1),OFFSET(ReturnData!$B$1:$B$1805,0,Input!$C76-1)) -> 0.395617857 | U76: =+CORREL(OFFSET(ReturnData!$B$1:$B$1805,0,Input!U$74-1),OFFSET(ReturnData!$B$1:$B$1805,0,Input!$C76-1)) -> 0.2855055995 | V76: =+CORREL(OFFSET(ReturnData!$B$1:$B$1805,0,Input!V$74-1),OFFSET(ReturnData!$B$1:$B$1805,0,Input!$C76-1)) ->  | W76: =+CORREL(OFFSET(ReturnData!$B$1:$B$1805,0,Input!W$74-1),OFFSET(ReturnData!$B$1:$B$1805,0,Input!$C76-1)) ->  | X76: =+CORREL(OFFSET(ReturnData!$B$1:$B$1805,0,Input!X$74-1),OFFSET(ReturnData!$B$1:$B$1805,0,Input!$C76-1)) ->  | Y76: =+CORREL(OFFSET(ReturnData!$B$1:$B$1805,0,Input!Y$74-1),OFFSET(ReturnData!$B$1:$B$1805,0,Input!$C76-1)) ->  | Z76: =+CORREL(OFFSET(ReturnData!$B$1:$B$1805,0,Input!Z$74-1),OFFSET(ReturnData!$B$1:$B$1805,0,Input!$C76-1)) -> 
B77: BUGLEV | C77: 3 | E77: =+CORREL(OFFSET(ReturnData!$B$1:$B$1805,0,Input!E$74-1),OFFSET(ReturnData!$B$1:$B$1805,0,Input!$C77-1)) -> 0.5728150194 | F77: =+CORREL(OFFSET(ReturnData!$B$1:$B$1805,0,Input!F$74-1),OFFSET(ReturnData!$B$1:$B$1805,0,Input!$C77-1)) -> 0.9045044394 | G77: =+CORREL(OFFSET(ReturnData!$B$1:$B$1805,0,Input!G$74-1),OFFSET(ReturnData!$B$1:$B$1805,0,Input!$C77-1)) -> 1 | H77: =+CORREL(OFFSET(ReturnData!$B$1:$B$1805,0,Input!H$74-1),OFFSET(ReturnData!$B$1:$B$1805,0,Input!$C77-1)) -> 0.6295218213 | I77: =+CORREL(OFFSET(ReturnData!$B$1:$B$1805,0,Input!I$74-1),OFFSET(ReturnData!$B$1:$B$1805,0,Input!$C77-1)) -> 0.5403623389 | J77: =+CORREL(OFFSET(ReturnData!$B$1:$B$1805,0,Input!J$74-1),OFFSET(ReturnData!$B$1:$B$1805,0,Input!$C77-1)) -> 0.494921923 | K77: =+CORREL(OFFSET(ReturnData!$B$1:$B$1805,0,Input!K$74-1),OFFSET(ReturnData!$B$1:$B$1805,0,Input!$C77-1)) -> 0.5298533012 | L77: =+CORREL(OFFSET(ReturnData!$B$1:$B$1805,0,Input!L$74-1),OFFSET(ReturnData!$B$1:$B$1805,0,Input!$C77-1)) -> 0.3945555299 | M77: =+CORREL(OFFSET(ReturnData!$B$1:$B$1805,0,Input!M$74-1),OFFSET(ReturnData!$B$1:$B$1805,0,Input!$C77-1)) -> 0.6722870768 | N77: =+CORREL(OFFSET(ReturnData!$B$1:$B$1805,0,Input!N$74-1),OFFSET(ReturnData!$B$1:$B$1805,0,Input!$C77-1)) -> 0.6712250895 | O77: =+CORREL(OFFSET(ReturnData!$B$1:$B$1805,0,Input!O$74-1),OFFSET(ReturnData!$B$1:$B$1805,0,Input!$C77-1)) -> 0.429936141 | P77: =+CORREL(OFFSET(ReturnData!$B$1:$B$1805,0,Input!P$74-1),OFFSET(ReturnData!$B$1:$B$1805,0,Input!$C77-1)) -> 0.2000170816 | Q77: =+CORREL(OFFSET(ReturnData!$B$1:$B$1805,0,Input!Q$74-1),OFFSET(ReturnData!$B$1:$B$1805,0,Input!$C77-1)) -> 0.2985335022 | R77: =+CORREL(OFFSET(ReturnData!$B$1:$B$1805,0,Input!R$74-1),OFFSET(ReturnData!$B$1:$B$1805,0,Input!$C77-1)) -> 0.1272365851 | S77: =+CORREL(OFFSET(ReturnData!$B$1:$B$1805,0,Input!S$74-1),OFFSET(ReturnData!$B$1:$B$1805,0,Input!$C77-1)) -> 0.4430120269 | T77: =+CORREL(OFFSET(ReturnData!$B$1:$B$1805,0,Input!T$74-1),OFFSET(ReturnData!$B$1:$B$1805,0,Input!$C77-1)) -> 0.4338547927 | U77: =+CORREL(OFFSET(ReturnData!$B$1:$B$1805,0,Input!U$74-1),OFFSET(ReturnData!$B$1:$B$1805,0,Input!$C77-1)) -> 0.2347768928 | V77: =+CORREL(OFFSET(ReturnData!$B$1:$B$1805,0,Input!V$74-1),OFFSET(ReturnData!$B$1:$B$1805,0,Input!$C77-1)) ->  | W77: =+CORREL(OFFSET(ReturnData!$B$1:$B$1805,0,Input!W$74-1),OFFSET(ReturnData!$B$1:$B$1805,0,Input!$C77-1)) ->  | X77: =+CORREL(OFFSET(ReturnData!$B$1:$B$1805,0,Input!X$74-1),OFFSET(ReturnData!$B$1:$B$1805,0,Input!$C77-1)) ->  | Y77: =+CORREL(OFFSET(ReturnData!$B$1:$B$1805,0,Input!Y$74-1),OFFSET(ReturnData!$B$1:$B$1805,0,Input!$C77-1)) ->  | Z77: =+CORREL(OFFSET(ReturnData!$B$1:$B$1805,0,Input!Z$74-1),OFFSET(ReturnData!$B$1:$B$1805,0,Input!$C77-1)) -> 
B78: WTOP4 | C78: 4 | E78: =+CORREL(OFFSET(ReturnData!$B$1:$B$1805,0,Input!E$74-1),OFFSET(ReturnData!$B$1:$B$1805,0,Input!$C78-1)) -> 0.5002730859 | F78: =+CORREL(OFFSET(ReturnData!$B$1:$B$1805,0,Input!F$74-1),OFFSET(ReturnData!$B$1:$B$1805,0,Input!$C78-1)) -> 0.5494239757 | G78: =+CORREL(OFFSET(ReturnData!$B$1:$B$1805,0,Input!G$74-1),OFFSET(ReturnData!$B$1:$B$1805,0,Input!$C78-1)) -> 0.6295218213 | H78: =+CORREL(OFFSET(ReturnData!$B$1:$B$1805,0,Input!H$74-1),OFFSET(ReturnData!$B$1:$B$1805,0,Input!$C78-1)) -> 1 | I78: =+CORREL(OFFSET(ReturnData!$B$1:$B$1805,0,Input!I$74-1),OFFSET(ReturnData!$B$1:$B$1805,0,Input!$C78-1)) -> 0.491643989 | J78: =+CORREL(OFFSET(ReturnData!$B$1:$B$1805,0,Input!J$74-1),OFFSET(ReturnData!$B$1:$B$1805,0,Input!$C78-1)) -> 0.5219779516 | K78: =+CORREL(OFFSET(ReturnData!$B$1:$B$1805,0,Input!K$74-1),OFFSET(ReturnData!$B$1:$B$1805,0,Input!$C78-1)) -> 0.4709335193 | L78: =+CORREL(OFFSET(ReturnData!$B$1:$B$1805,0,Input!L$74-1),OFFSET(ReturnData!$B$1:$B$1805,0,Input!$C78-1)) -> 0.3701315856 | M78: =+CORREL(OFFSET(ReturnData!$B$1:$B$1805,0,Input!M$74-1),OFFSET(ReturnData!$B$1:$B$1805,0,Input!$C78-1)) -> 0.6727687886 | N78: =+CORREL(OFFSET(ReturnData!$B$1:$B$1805,0,Input!N$74-1),OFFSET(ReturnData!$B$1:$B$1805,0,Input!$C78-1)) -> 0.6784785495 | O78: =+CORREL(OFFSET(ReturnData!$B$1:$B$1805,0,Input!O$74-1),OFFSET(ReturnData!$B$1:$B$1805,0,Input!$C78-1)) -> 0.3780796526 | P78: =+CORREL(OFFSET(ReturnData!$B$1:$B$1805,0,Input!P$74-1),OFFSET(ReturnData!$B$1:$B$1805,0,Input!$C78-1)) -> 0.21483022 | Q78: =+CORREL(OFFSET(ReturnData!$B$1:$B$1805,0,Input!Q$74-1),OFFSET(ReturnData!$B$1:$B$1805,0,Input!$C78-1)) -> 0.2545636722 | R78: =+CORREL(OFFSET(ReturnData!$B$1:$B$1805,0,Input!R$74-1),OFFSET(ReturnData!$B$1:$B$1805,0,Input!$C78-1)) -> 0.0978615171 | S78: =+CORREL(OFFSET(ReturnData!$B$1:$B$1805,0,Input!S$74-1),OFFSET(ReturnData!$B$1:$B$1805,0,Input!$C78-1)) -> 0.2331399929 | T78: =+CORREL(OFFSET(ReturnData!$B$1:$B$1805,0,Input!T$74-1),OFFSET(ReturnData!$B$1:$B$1805,0,Input!$C78-1)) -> 0.4523050997 | U78: =+CORREL(OFFSET(ReturnData!$B$1:$B$1805,0,Input!U$74-1),OFFSET(ReturnData!$B$1:$B$1805,0,Input!$C78-1)) -> 0.04380697604 | V78: =+CORREL(OFFSET(ReturnData!$B$1:$B$1805,0,Input!V$74-1),OFFSET(ReturnData!$B$1:$B$1805,0,Input!$C78-1)) ->  | W78: =+CORREL(OFFSET(ReturnData!$B$1:$B$1805,0,Input!W$74-1),OFFSET(ReturnData!$B$1:$B$1805,0,Input!$C78-1)) ->  | X78: =+CORREL(OFFSET(ReturnData!$B$1:$B$1805,0,Input!X$74-1),OFFSET(ReturnData!$B$1:$B$1805,0,Input!$C78-1)) ->  | Y78: =+CORREL(OFFSET(ReturnData!$B$1:$B$1805,0,Input!Y$74-1),OFFSET(ReturnData!$B$1:$B$1805,0,Input!$C78-1)) ->  | Z78: =+CORREL(OFFSET(ReturnData!$B$1:$B$1805,0,Input!Z$74-1),OFFSET(ReturnData!$B$1:$B$1805,0,Input!$C78-1)) -> 
B79: GSRlv | C79: 5 | E79: =+CORREL(OFFSET(ReturnData!$B$1:$B$1805,0,Input!E$74-1),OFFSET(ReturnData!$B$1:$B$1805,0,Input!$C79-1)) -> 0.5799048528 | F79: =+CORREL(OFFSET(ReturnData!$B$1:$B$1805,0,Input!F$74-1),OFFSET(ReturnData!$B$1:$B$1805,0,Input!$C79-1)) -> 0.5232557199 | G79: =+CORREL(OFFSET(ReturnData!$B$1:$B$1805,0,Input!G$74-1),OFFSET(ReturnData!$B$1:$B$1805,0,Input!$C79-1)) -> 0.5403623389 | H79: =+CORREL(OFFSET(ReturnData!$B$1:$B$1805,0,Input!H$74-1),OFFSET(ReturnData!$B$1:$B$1805,0,Input!$C79-1)) -> 0.491643989 | I79: =+CORREL(OFFSET(ReturnData!$B$1:$B$1805,0,Input!I$74-1),OFFSET(ReturnData!$B$1:$B$1805,0,Input!$C79-1)) -> 1 | J79: =+CORREL(OFFSET(ReturnData!$B$1:$B$1805,0,Input!J$74-1),OFFSET(ReturnData!$B$1:$B$1805,0,Input!$C79-1)) -> 0.6887796004 | K79: =+CORREL(OFFSET(ReturnData!$B$1:$B$1805,0,Input!K$74-1),OFFSET(ReturnData!$B$1:$B$1805,0,Input!$C79-1)) -> 0.6462064639 | L79: =+CORREL(OFFSET(ReturnData!$B$1:$B$1805,0,Input!L$74-1),OFFSET(ReturnData!$B$1:$B$1805,0,Input!$C79-1)) -> 0.395420872 | M79: =+CORREL(OFFSET(ReturnData!$B$1:$B$1805,0,Input!M$74-1),OFFSET(ReturnData!$B$1:$B$1805,0,Input!$C79-1)) -> 0.6412040662 | N79: =+CORREL(OFFSET(ReturnData!$B$1:$B$1805,0,Input!N$74-1),OFFSET(ReturnData!$B$1:$B$1805,0,Input!$C79-1)) -> 0.6518519517 | O79: =+CORREL(OFFSET(ReturnData!$B$1:$B$1805,0,Input!O$74-1),OFFSET(ReturnData!$B$1:$B$1805,0,Input!$C79-1)) -> 0.5167414509 | P79: =+CORREL(OFFSET(ReturnData!$B$1:$B$1805,0,Input!P$74-1),OFFSET(ReturnData!$B$1:$B$1805,0,Input!$C79-1)) -> -0.05760828591 | Q79: =+CORREL(OFFSET(ReturnData!$B$1:$B$1805,0,Input!Q$74-1),OFFSET(ReturnData!$B$1:$B$1805,0,Input!$C79-1)) -> 0.01274126166 | R79: =+CORREL(OFFSET(ReturnData!$B$1:$B$1805,0,Input!R$74-1),OFFSET(ReturnData!$B$1:$B$1805,0,Input!$C79-1)) -> -0.1010768361 | S79: =+CORREL(OFFSET(ReturnData!$B$1:$B$1805,0,Input!S$74-1),OFFSET(ReturnData!$B$1:$B$1805,0,Input!$C79-1)) -> 0.1688057993 | T79: =+CORREL(OFFSET(ReturnData!$B$1:$B$1805,0,Input!T$74-1),OFFSET(ReturnData!$B$1:$B$1805,0,Input!$C79-1)) -> 0.4623191677 | U79: =+CORREL(OFFSET(ReturnData!$B$1:$B$1805,0,Input!U$74-1),OFFSET(ReturnData!$B$1:$B$1805,0,Input!$C79-1)) -> 0.06948012593 | V79: =+CORREL(OFFSET(ReturnData!$B$1:$B$1805,0,Input!V$74-1),OFFSET(ReturnData!$B$1:$B$1805,0,Input!$C79-1)) ->  | W79: =+CORREL(OFFSET(ReturnData!$B$1:$B$1805,0,Input!W$74-1),OFFSET(ReturnData!$B$1:$B$1805,0,Input!$C79-1)) ->  | X79: =+CORREL(OFFSET(ReturnData!$B$1:$B$1805,0,Input!X$74-1),OFFSET(ReturnData!$B$1:$B$1805,0,Input!$C79-1)) ->  | Y79: =+CORREL(OFFSET(ReturnData!$B$1:$B$1805,0,Input!Y$74-1),OFFSET(ReturnData!$B$1:$B$1805,0,Input!$C79-1)) ->  | Z79: =+CORREL(OFFSET(ReturnData!$B$1:$B$1805,0,Input!Z$74-1),OFFSET(ReturnData!$B$1:$B$1805,0,Input!$C79-1)) -> 
B80: GMRS | C80: 6 | E80: =+CORREL(OFFSET(ReturnData!$B$1:$B$1805,0,Input!E$74-1),OFFSET(ReturnData!$B$1:$B$1805,0,Input!$C80-1)) -> 0.6281008038 | F80: =+CORREL(OFFSET(ReturnData!$B$1:$B$1805,0,Input!F$74-1),OFFSET(ReturnData!$B$1:$B$1805,0,Input!$C80-1)) -> 0.5225232528 | G80: =+CORREL(OFFSET(ReturnData!$B$1:$B$1805,0,Input!G$74-1),OFFSET(ReturnData!$B$1:$B$1805,0,Input!$C80-1)) -> 0.494921923 | H80: =+CORREL(OFFSET(ReturnData!$B$1:$B$1805,0,Input!H$74-1),OFFSET(ReturnData!$B$1:$B$1805,0,Input!$C80-1)) -> 0.5219779516 | I80: =+CORREL(OFFSET(ReturnData!$B$1:$B$1805,0,Input!I$74-1),OFFSET(ReturnData!$B$1:$B$1805,0,Input!$C80-1)) -> 0.6887796004 | J80: =+CORREL(OFFSET(ReturnData!$B$1:$B$1805,0,Input!J$74-1),OFFSET(ReturnData!$B$1:$B$1805,0,Input!$C80-1)) -> 1 | K80: =+CORREL(OFFSET(ReturnData!$B$1:$B$1805,0,Input!K$74-1),OFFSET(ReturnData!$B$1:$B$1805,0,Input!$C80-1)) -> 0.7217345098 | L80: =+CORREL(OFFSET(ReturnData!$B$1:$B$1805,0,Input!L$74-1),OFFSET(ReturnData!$B$1:$B$1805,0,Input!$C80-1)) -> 0.4819853959 | M80: =+CORREL(OFFSET(ReturnData!$B$1:$B$1805,0,Input!M$74-1),OFFSET(ReturnData!$B$1:$B$1805,0,Input!$C80-1)) -> 0.6284945703 | N80: =+CORREL(OFFSET(ReturnData!$B$1:$B$1805,0,Input!N$74-1),OFFSET(ReturnData!$B$1:$B$1805,0,Input!$C80-1)) -> 0.6475899133 | O80: =+CORREL(OFFSET(ReturnData!$B$1:$B$1805,0,Input!O$74-1),OFFSET(ReturnData!$B$1:$B$1805,0,Input!$C80-1)) -> 0.2653775998 | P80: =+CORREL(OFFSET(ReturnData!$B$1:$B$1805,0,Input!P$74-1),OFFSET(ReturnData!$B$1:$B$1805,0,Input!$C80-1)) -> 0.1361878294 | Q80: =+CORREL(OFFSET(ReturnData!$B$1:$B$1805,0,Input!Q$74-1),OFFSET(ReturnData!$B$1:$B$1805,0,Input!$C80-1)) -> 0.1338470816 | R80: =+CORREL(OFFSET(ReturnData!$B$1:$B$1805,0,Input!R$74-1),OFFSET(ReturnData!$B$1:$B$1805,0,Input!$C80-1)) -> -0.03150842131 | S80: =+CORREL(OFFSET(ReturnData!$B$1:$B$1805,0,Input!S$74-1),OFFSET(ReturnData!$B$1:$B$1805,0,Input!$C80-1)) -> 0.1882019067 | T80: =+CORREL(OFFSET(ReturnData!$B$1:$B$1805,0,Input!T$74-1),OFFSET(ReturnData!$B$1:$B$1805,0,Input!$C80-1)) -> 0.3543501593 | U80: =+CORREL(OFFSET(ReturnData!$B$1:$B$1805,0,Input!U$74-1),OFFSET(ReturnData!$B$1:$B$1805,0,Input!$C80-1)) -> 0.1216511708 | V80: =+CORREL(OFFSET(ReturnData!$B$1:$B$1805,0,Input!V$74-1),OFFSET(ReturnData!$B$1:$B$1805,0,Input!$C80-1)) ->  | W80: =+CORREL(OFFSET(ReturnData!$B$1:$B$1805,0,Input!W$74-1),OFFSET(ReturnData!$B$1:$B$1805,0,Input!$C80-1)) ->  | X80: =+CORREL(OFFSET(ReturnData!$B$1:$B$1805,0,Input!X$74-1),OFFSET(ReturnData!$B$1:$B$1805,0,Input!$C80-1)) ->  | Y80: =+CORREL(OFFSET(ReturnData!$B$1:$B$1805,0,Input!Y$74-1),OFFSET(ReturnData!$B$1:$B$1805,0,Input!$C80-1)) ->  | Z80: =+CORREL(OFFSET(ReturnData!$B$1:$B$1805,0,Input!Z$74-1),OFFSET(ReturnData!$B$1:$B$1805,0,Input!$C80-1)) -> 
B81: GMRSE | C81: 7 | E81: =+CORREL(OFFSET(ReturnData!$B$1:$B$1805,0,Input!E$74-1),OFFSET(ReturnData!$B$1:$B$1805,0,Input!$C81-1)) -> 0.6209006093 | F81: =+CORREL(OFFSET(ReturnData!$B$1:$B$1805,0,Input!F$74-1),OFFSET(ReturnData!$B$1:$B$1805,0,Input!$C81-1)) -> 0.564058763 | G81: =+CORREL(OFFSET(ReturnData!$B$1:$B$1805,0,Input!G$74-1),OFFSET(ReturnData!$B$1:$B$1805,0,Input!$C81-1)) -> 0.5298533012 | H81: =+CORREL(OFFSET(ReturnData!$B$1:$B$1805,0,Input!H$74-1),OFFSET(ReturnData!$B$1:$B$1805,0,Input!$C81-1)) -> 0.4709335193 | I81: =+CORREL(OFFSET(ReturnData!$B$1:$B$1805,0,Input!I$74-1),OFFSET(ReturnData!$B$1:$B$1805,0,Input!$C81-1)) -> 0.6462064639 | J81: =+CORREL(OFFSET(ReturnData!$B$1:$B$1805,0,Input!J$74-1),OFFSET(ReturnData!$B$1:$B$1805,0,Input!$C81-1)) -> 0.7217345098 | K81: =+CORREL(OFFSET(ReturnData!$B$1:$B$1805,0,Input!K$74-1),OFFSET(ReturnData!$B$1:$B$1805,0,Input!$C81-1)) -> 1 | L81: =+CORREL(OFFSET(ReturnData!$B$1:$B$1805,0,Input!L$74-1),OFFSET(ReturnData!$B$1:$B$1805,0,Input!$C81-1)) -> 0.7177110138 | M81: =+CORREL(OFFSET(ReturnData!$B$1:$B$1805,0,Input!M$74-1),OFFSET(ReturnData!$B$1:$B$1805,0,Input!$C81-1)) -> 0.615269791 | N81: =+CORREL(OFFSET(ReturnData!$B$1:$B$1805,0,Input!N$74-1),OFFSET(ReturnData!$B$1:$B$1805,0,Input!$C81-1)) -> 0.6185808658 | O81: =+CORREL(OFFSET(ReturnData!$B$1:$B$1805,0,Input!O$74-1),OFFSET(ReturnData!$B$1:$B$1805,0,Input!$C81-1)) -> 0.2118050043 | P81: =+CORREL(OFFSET(ReturnData!$B$1:$B$1805,0,Input!P$74-1),OFFSET(ReturnData!$B$1:$B$1805,0,Input!$C81-1)) -> 0.1734701637 | Q81: =+CORREL(OFFSET(ReturnData!$B$1:$B$1805,0,Input!Q$74-1),OFFSET(ReturnData!$B$1:$B$1805,0,Input!$C81-1)) -> 0.147696529 | R81: =+CORREL(OFFSET(ReturnData!$B$1:$B$1805,0,Input!R$74-1),OFFSET(ReturnData!$B$1:$B$1805,0,Input!$C81-1)) -> -0.03115999044 | S81: =+CORREL(OFFSET(ReturnData!$B$1:$B$1805,0,Input!S$74-1),OFFSET(ReturnData!$B$1:$B$1805,0,Input!$C81-1)) -> 0.1795562141 | T81: =+CORREL(OFFSET(ReturnData!$B$1:$B$1805,0,Input!T$74-1),OFFSET(ReturnData!$B$1:$B$1805,0,Input!$C81-1)) -> 0.4044597238 | U81: =+CORREL(OFFSET(ReturnData!$B$1:$B$1805,0,Input!U$74-1),OFFSET(ReturnData!$B$1:$B$1805,0,Input!$C81-1)) -> 0.1456375114 | V81: =+CORREL(OFFSET(ReturnData!$B$1:$B$1805,0,Input!V$74-1),OFFSET(ReturnData!$B$1:$B$1805,0,Input!$C81-1)) ->  | W81: =+CORREL(OFFSET(ReturnData!$B$1:$B$1805,0,Input!W$74-1),OFFSET(ReturnData!$B$1:$B$1805,0,Input!$C81-1)) ->  | X81: =+CORREL(OFFSET(ReturnData!$B$1:$B$1805,0,Input!X$74-1),OFFSET(ReturnData!$B$1:$B$1805,0,Input!$C81-1)) ->  | Y81: =+CORREL(OFFSET(ReturnData!$B$1:$B$1805,0,Input!Y$74-1),OFFSET(ReturnData!$B$1:$B$1805,0,Input!$C81-1)) ->  | Z81: =+CORREL(OFFSET(ReturnData!$B$1:$B$1805,0,Input!Z$74-1),OFFSET(ReturnData!$B$1:$B$1805,0,Input!$C81-1)) -> 
B82: MYRS | C82: 8 | E82: =+CORREL(OFFSET(ReturnData!$B$1:$B$1805,0,Input!E$74-1),OFFSET(ReturnData!$B$1:$B$1805,0,Input!$C82-1)) -> 0.4244646426 | F82: =+CORREL(OFFSET(ReturnData!$B$1:$B$1805,0,Input!F$74-1),OFFSET(ReturnData!$B$1:$B$1805,0,Input!$C82-1)) -> 0.4236994267 | G82: =+CORREL(OFFSET(ReturnData!$B$1:$B$1805,0,Input!G$74-1),OFFSET(ReturnData!$B$1:$B$1805,0,Input!$C82-1)) -> 0.3945555299 | H82: =+CORREL(OFFSET(ReturnData!$B$1:$B$1805,0,Input!H$74-1),OFFSET(ReturnData!$B$1:$B$1805,0,Input!$C82-1)) -> 0.3701315856 | I82: =+CORREL(OFFSET(ReturnData!$B$1:$B$1805,0,Input!I$74-1),OFFSET(ReturnData!$B$1:$B$1805,0,Input!$C82-1)) -> 0.395420872 | J82: =+CORREL(OFFSET(ReturnData!$B$1:$B$1805,0,Input!J$74-1),OFFSET(ReturnData!$B$1:$B$1805,0,Input!$C82-1)) -> 0.4819853959 | K82: =+CORREL(OFFSET(ReturnData!$B$1:$B$1805,0,Input!K$74-1),OFFSET(ReturnData!$B$1:$B$1805,0,Input!$C82-1)) -> 0.7177110138 | L82: =+CORREL(OFFSET(ReturnData!$B$1:$B$1805,0,Input!L$74-1),OFFSET(ReturnData!$B$1:$B$1805,0,Input!$C82-1)) -> 1 | M82: =+CORREL(OFFSET(ReturnData!$B$1:$B$1805,0,Input!M$74-1),OFFSET(ReturnData!$B$1:$B$1805,0,Input!$C82-1)) -> 0.4414729176 | N82: =+CORREL(OFFSET(ReturnData!$B$1:$B$1805,0,Input!N$74-1),OFFSET(ReturnData!$B$1:$B$1805,0,Input!$C82-1)) -> 0.4712878182 | O82: =+CORREL(OFFSET(ReturnData!$B$1:$B$1805,0,Input!O$74-1),OFFSET(ReturnData!$B$1:$B$1805,0,Input!$C82-1)) -> 0.1250835458 | P82: =+CORREL(OFFSET(ReturnData!$B$1:$B$1805,0,Input!P$74-1),OFFSET(ReturnData!$B$1:$B$1805,0,Input!$C82-1)) -> 0.185276272 | Q82: =+CORREL(OFFSET(ReturnData!$B$1:$B$1805,0,Input!Q$74-1),OFFSET(ReturnData!$B$1:$B$1805,0,Input!$C82-1)) -> 0.1700240105 | R82: =+CORREL(OFFSET(ReturnData!$B$1:$B$1805,0,Input!R$74-1),OFFSET(ReturnData!$B$1:$B$1805,0,Input!$C82-1)) -> 0.02638195266 | S82: =+CORREL(OFFSET(ReturnData!$B$1:$B$1805,0,Input!S$74-1),OFFSET(ReturnData!$B$1:$B$1805,0,Input!$C82-1)) -> 0.1008392647 | T82: =+CORREL(OFFSET(ReturnData!$B$1:$B$1805,0,Input!T$74-1),OFFSET(ReturnData!$B$1:$B$1805,0,Input!$C82-1)) -> 0.2831197849 | U82: =+CORREL(OFFSET(ReturnData!$B$1:$B$1805,0,Input!U$74-1),OFFSET(ReturnData!$B$1:$B$1805,0,Input!$C82-1)) -> 0.09342155495 | V82: =+CORREL(OFFSET(ReturnData!$B$1:$B$1805,0,Input!V$74-1),OFFSET(ReturnData!$B$1:$B$1805,0,Input!$C82-1)) ->  | W82: =+CORREL(OFFSET(ReturnData!$B$1:$B$1805,0,Input!W$74-1),OFFSET(ReturnData!$B$1:$B$1805,0,Input!$C82-1)) ->  | X82: =+CORREL(OFFSET(ReturnData!$B$1:$B$1805,0,Input!X$74-1),OFFSET(ReturnData!$B$1:$B$1805,0,Input!$C82-1)) ->  | Y82: =+CORREL(OFFSET(ReturnData!$B$1:$B$1805,0,Input!Y$74-1),OFFSET(ReturnData!$B$1:$B$1805,0,Input!$C82-1)) ->  | Z82: =+CORREL(OFFSET(ReturnData!$B$1:$B$1805,0,Input!Z$74-1),OFFSET(ReturnData!$B$1:$B$1805,0,Input!$C82-1)) -> 
B83: UIS | C83: 9 | E83: =+CORREL(OFFSET(ReturnData!$B$1:$B$1805,0,Input!E$74-1),OFFSET(ReturnData!$B$1:$B$1805,0,Input!$C83-1)) -> 0.5863318143 | F83: =+CORREL(OFFSET(ReturnData!$B$1:$B$1805,0,Input!F$74-1),OFFSET(ReturnData!$B$1:$B$1805,0,Input!$C83-1)) -> 0.6115787692 | G83: =+CORREL(OFFSET(ReturnData!$B$1:$B$1805,0,Input!G$74-1),OFFSET(ReturnData!$B$1:$B$1805,0,Input!$C83-1)) -> 0.6722870768 | H83: =+CORREL(OFFSET(ReturnData!$B$1:$B$1805,0,Input!H$74-1),OFFSET(ReturnData!$B$1:$B$1805,0,Input!$C83-1)) -> 0.6727687886 | I83: =+CORREL(OFFSET(ReturnData!$B$1:$B$1805,0,Input!I$74-1),OFFSET(ReturnData!$B$1:$B$1805,0,Input!$C83-1)) -> 0.6412040662 | J83: =+CORREL(OFFSET(ReturnData!$B$1:$B$1805,0,Input!J$74-1),OFFSET(ReturnData!$B$1:$B$1805,0,Input!$C83-1)) -> 0.6284945703 | K83: =+CORREL(OFFSET(ReturnData!$B$1:$B$1805,0,Input!K$74-1),OFFSET(ReturnData!$B$1:$B$1805,0,Input!$C83-1)) -> 0.615269791 | L83: =+CORREL(OFFSET(ReturnData!$B$1:$B$1805,0,Input!L$74-1),OFFSET(ReturnData!$B$1:$B$1805,0,Input!$C83-1)) -> 0.4414729176 | M83: =+CORREL(OFFSET(ReturnData!$B$1:$B$1805,0,Input!M$74-1),OFFSET(ReturnData!$B$1:$B$1805,0,Input!$C83-1)) -> 1 | N83: =+CORREL(OFFSET(ReturnData!$B$1:$B$1805,0,Input!N$74-1),OFFSET(ReturnData!$B$1:$B$1805,0,Input!$C83-1)) -> 0.9806349588 | O83: =+CORREL(OFFSET(ReturnData!$B$1:$B$1805,0,Input!O$74-1),OFFSET(ReturnData!$B$1:$B$1805,0,Input!$C83-1)) -> 0.4646270032 | P83: =+CORREL(OFFSET(ReturnData!$B$1:$B$1805,0,Input!P$74-1),OFFSET(ReturnData!$B$1:$B$1805,0,Input!$C83-1)) -> 0.3342974553 | Q83: =+CORREL(OFFSET(ReturnData!$B$1:$B$1805,0,Input!Q$74-1),OFFSET(ReturnData!$B$1:$B$1805,0,Input!$C83-1)) -> 0.3522568032 | R83: =+CORREL(OFFSET(ReturnData!$B$1:$B$1805,0,Input!R$74-1),OFFSET(ReturnData!$B$1:$B$1805,0,Input!$C83-1)) -> 0.1130524797 | S83: =+CORREL(OFFSET(ReturnData!$B$1:$B$1805,0,Input!S$74-1),OFFSET(ReturnData!$B$1:$B$1805,0,Input!$C83-1)) -> 0.1867092501 | T83: =+CORREL(OFFSET(ReturnData!$B$1:$B$1805,0,Input!T$74-1),OFFSET(ReturnData!$B$1:$B$1805,0,Input!$C83-1)) -> 0.4563727282 | U83: =+CORREL(OFFSET(ReturnData!$B$1:$B$1805,0,Input!U$74-1),OFFSET(ReturnData!$B$1:$B$1805,0,Input!$C83-1)) -> 0.04577984566 | V83: =+CORREL(OFFSET(ReturnData!$B$1:$B$1805,0,Input!V$74-1),OFFSET(ReturnData!$B$1:$B$1805,0,Input!$C83-1)) ->  | W83: =+CORREL(OFFSET(ReturnData!$B$1:$B$1805,0,Input!W$74-1),OFFSET(ReturnData!$B$1:$B$1805,0,Input!$C83-1)) ->  | X83: =+CORREL(OFFSET(ReturnData!$B$1:$B$1805,0,Input!X$74-1),OFFSET(ReturnData!$B$1:$B$1805,0,Input!$C83-1)) ->  | Y83: =+CORREL(OFFSET(ReturnData!$B$1:$B$1805,0,Input!Y$74-1),OFFSET(ReturnData!$B$1:$B$1805,0,Input!$C83-1)) ->  | Z83: =+CORREL(OFFSET(ReturnData!$B$1:$B$1805,0,Input!Z$74-1),OFFSET(ReturnData!$B$1:$B$1805,0,Input!$C83-1)) -> 
B84: UIS-SPXL-TMF | C84: 10 | E84: =+CORREL(OFFSET(ReturnData!$B$1:$B$1805,0,Input!E$74-1),OFFSET(ReturnData!$B$1:$B$1805,0,Input!$C84-1)) -> 0.5746365794 | F84: =+CORREL(OFFSET(ReturnData!$B$1:$B$1805,0,Input!F$74-1),OFFSET(ReturnData!$B$1:$B$1805,0,Input!$C84-1)) -> 0.6192984194 | G84: =+CORREL(OFFSET(ReturnData!$B$1:$B$1805,0,Input!G$74-1),OFFSET(ReturnData!$B$1:$B$1805,0,Input!$C84-1)) -> 0.6712250895 | H84: =+CORREL(OFFSET(ReturnData!$B$1:$B$1805,0,Input!H$74-1),OFFSET(ReturnData!$B$1:$B$1805,0,Input!$C84-1)) -> 0.6784785495 | I84: =+CORREL(OFFSET(ReturnData!$B$1:$B$1805,0,Input!I$74-1),OFFSET(ReturnData!$B$1:$B$1805,0,Input!$C84-1)) -> 0.6518519517 | J84: =+CORREL(OFFSET(ReturnData!$B$1:$B$1805,0,Input!J$74-1),OFFSET(ReturnData!$B$1:$B$1805,0,Input!$C84-1)) -> 0.6475899133 | K84: =+CORREL(OFFSET(ReturnData!$B$1:$B$1805,0,Input!K$74-1),OFFSET(ReturnData!$B$1:$B$1805,0,Input!$C84-1)) -> 0.6185808658 | L84: =+CORREL(OFFSET(ReturnData!$B$1:$B$1805,0,Input!L$74-1),OFFSET(ReturnData!$B$1:$B$1805,0,Input!$C84-1)) -> 0.4712878182 | M84: =+CORREL(OFFSET(ReturnData!$B$1:$B$1805,0,Input!M$74-1),OFFSET(ReturnData!$B$1:$B$1805,0,Input!$C84-1)) -> 0.9806349588 | N84: =+CORREL(OFFSET(ReturnData!$B$1:$B$1805,0,Input!N$74-1),OFFSET(ReturnData!$B$1:$B$1805,0,Input!$C84-1)) -> 1 | O84: =+CORREL(OFFSET(ReturnData!$B$1:$B$1805,0,Input!O$74-1),OFFSET(ReturnData!$B$1:$B$1805,0,Input!$C84-1)) -> 0.4497195846 | P84: =+CORREL(OFFSET(ReturnData!$B$1:$B$1805,0,Input!P$74-1),OFFSET(ReturnData!$B$1:$B$1805,0,Input!$C84-1)) -> 0.3423079619 | Q84: =+CORREL(OFFSET(ReturnData!$B$1:$B$1805,0,Input!Q$74-1),OFFSET(ReturnData!$B$1:$B$1805,0,Input!$C84-1)) -> 0.3541351249 | R84: =+CORREL(OFFSET(ReturnData!$B$1:$B$1805,0,Input!R$74-1),OFFSET(ReturnData!$B$1:$B$1805,0,Input!$C84-1)) -> 0.1169825987 | S84: =+CORREL(OFFSET(ReturnData!$B$1:$B$1805,0,Input!S$74-1),OFFSET(ReturnData!$B$1:$B$1805,0,Input!$C84-1)) -> 0.2013346932 | T84: =+CORREL(OFFSET(ReturnData!$B$1:$B$1805,0,Input!T$74-1),OFFSET(ReturnData!$B$1:$B$1805,0,Input!$C84-1)) -> 0.4460549498 | U84: =+CORREL(OFFSET(ReturnData!$B$1:$B$1805,0,Input!U$74-1),OFFSET(ReturnData!$B$1:$B$1805,0,Input!$C84-1)) -> 0.05099129205 | V84: =+CORREL(OFFSET(ReturnData!$B$1:$B$1805,0,Input!V$74-1),OFFSET(ReturnData!$B$1:$B$1805,0,Input!$C84-1)) ->  | W84: =+CORREL(OFFSET(ReturnData!$B$1:$B$1805,0,Input!W$74-1),OFFSET(ReturnData!$B$1:$B$1805,0,Input!$C84-1)) ->  | X84: =+CORREL(OFFSET(ReturnData!$B$1:$B$1805,0,Input!X$74-1),OFFSET(ReturnData!$B$1:$B$1805,0,Input!$C84-1)) ->  | Y84: =+CORREL(OFFSET(ReturnData!$B$1:$B$1805,0,Input!Y$74-1),OFFSET(ReturnData!$B$1:$B$1805,0,Input!$C84-1)) ->  | Z84: =+CORREL(OFFSET(ReturnData!$B$1:$B$1805,0,Input!Z$74-1),OFFSET(ReturnData!$B$1:$B$1805,0,Input!$C84-1)) -> 
B85: SPY | C85: 11 | E85: =+CORREL(OFFSET(ReturnData!$B$1:$B$1805,0,Input!E$74-1),OFFSET(ReturnData!$B$1:$B$1805,0,Input!$C85-1)) -> 0.2080894465 | F85: =+CORREL(OFFSET(ReturnData!$B$1:$B$1805,0,Input!F$74-1),OFFSET(ReturnData!$B$1:$B$1805,0,Input!$C85-1)) -> 0.3165978702 | G85: =+CORREL(OFFSET(ReturnData!$B$1:$B$1805,0,Input!G$74-1),OFFSET(ReturnData!$B$1:$B$1805,0,Input!$C85-1)) -> 0.429936141 | H85: =+CORREL(OFFSET(ReturnData!$B$1:$B$1805,0,Input!H$74-1),OFFSET(ReturnData!$B$1:$B$1805,0,Input!$C85-1)) -> 0.3780796526 | I85: =+CORREL(OFFSET(ReturnData!$B$1:$B$1805,0,Input!I$74-1),OFFSET(ReturnData!$B$1:$B$1805,0,Input!$C85-1)) -> 0.5167414509 | J85: =+CORREL(OFFSET(ReturnData!$B$1:$B$1805,0,Input!J$74-1),OFFSET(ReturnData!$B$1:$B$1805,0,Input!$C85-1)) -> 0.2653775998 | K85: =+CORREL(OFFSET(ReturnData!$B$1:$B$1805,0,Input!K$74-1),OFFSET(ReturnData!$B$1:$B$1805,0,Input!$C85-1)) -> 0.2118050043 | L85: =+CORREL(OFFSET(ReturnData!$B$1:$B$1805,0,Input!L$74-1),OFFSET(ReturnData!$B$1:$B$1805,0,Input!$C85-1)) -> 0.1250835458 | M85: =+CORREL(OFFSET(ReturnData!$B$1:$B$1805,0,Input!M$74-1),OFFSET(ReturnData!$B$1:$B$1805,0,Input!$C85-1)) -> 0.4646270032 | N85: =+CORREL(OFFSET(ReturnData!$B$1:$B$1805,0,Input!N$74-1),OFFSET(ReturnData!$B$1:$B$1805,0,Input!$C85-1)) -> 0.4497195846 | O85: =+CORREL(OFFSET(ReturnData!$B$1:$B$1805,0,Input!O$74-1),OFFSET(ReturnData!$B$1:$B$1805,0,Input!$C85-1)) -> 1 | P85: =+CORREL(OFFSET(ReturnData!$B$1:$B$1805,0,Input!P$74-1),OFFSET(ReturnData!$B$1:$B$1805,0,Input!$C85-1)) -> -0.5129050736 | Q85: =+CORREL(OFFSET(ReturnData!$B$1:$B$1805,0,Input!Q$74-1),OFFSET(ReturnData!$B$1:$B$1805,0,Input!$C85-1)) -> -0.2986411252 | R85: =+CORREL(OFFSET(ReturnData!$B$1:$B$1805,0,Input!R$74-1),OFFSET(ReturnData!$B$1:$B$1805,0,Input!$C85-1)) -> -0.3002825743 | S85: =+CORREL(OFFSET(ReturnData!$B$1:$B$1805,0,Input!S$74-1),OFFSET(ReturnData!$B$1:$B$1805,0,Input!$C85-1)) -> 0.05136514224 | T85: =+CORREL(OFFSET(ReturnData!$B$1:$B$1805,0,Input!T$74-1),OFFSET(ReturnData!$B$1:$B$1805,0,Input!$C85-1)) -> 0.4227494689 | U85: =+CORREL(OFFSET(ReturnData!$B$1:$B$1805,0,Input!U$74-1),OFFSET(ReturnData!$B$1:$B$1805,0,Input!$C85-1)) -> -0.08960043088 | V85: =+CORREL(OFFSET(ReturnData!$B$1:$B$1805,0,Input!V$74-1),OFFSET(ReturnData!$B$1:$B$1805,0,Input!$C85-1)) ->  | W85: =+CORREL(OFFSET(ReturnData!$B$1:$B$1805,0,Input!W$74-1),OFFSET(ReturnData!$B$1:$B$1805,0,Input!$C85-1)) ->  | X85: =+CORREL(OFFSET(ReturnData!$B$1:$B$1805,0,Input!X$74-1),OFFSET(ReturnData!$B$1:$B$1805,0,Input!$C85-1)) ->  | Y85: =+CORREL(OFFSET(ReturnData!$B$1:$B$1805,0,Input!Y$74-1),OFFSET(ReturnData!$B$1:$B$1805,0,Input!$C85-1)) ->  | Z85: =+CORREL(OFFSET(ReturnData!$B$1:$B$1805,0,Input!Z$74-1),OFFSET(ReturnData!$B$1:$B$1805,0,Input!$C85-1)) -> 
B86: TLT | C86: 12 | E86: =+CORREL(OFFSET(ReturnData!$B$1:$B$1805,0,Input!E$74-1),OFFSET(ReturnData!$B$1:$B$1805,0,Input!$C86-1)) -> 0.196988241 | F86: =+CORREL(OFFSET(ReturnData!$B$1:$B$1805,0,Input!F$74-1),OFFSET(ReturnData!$B$1:$B$1805,0,Input!$C86-1)) -> 0.2113221959 | G86: =+CORREL(OFFSET(ReturnData!$B$1:$B$1805,0,Input!G$74-1),OFFSET(ReturnData!$B$1:$B$1805,0,Input!$C86-1)) -> 0.2000170816 | H86: =+CORREL(OFFSET(ReturnData!$B$1:$B$1805,0,Input!H$74-1),OFFSET(ReturnData!$B$1:$B$1805,0,Input!$C86-1)) -> 0.21483022 | I86: =+CORREL(OFFSET(ReturnData!$B$1:$B$1805,0,Input!I$74-1),OFFSET(ReturnData!$B$1:$B$1805,0,Input!$C86-1)) -> -0.05760828591 | J86: =+CORREL(OFFSET(ReturnData!$B$1:$B$1805,0,Input!J$74-1),OFFSET(ReturnData!$B$1:$B$1805,0,Input!$C86-1)) -> 0.1361878294 | K86: =+CORREL(OFFSET(ReturnData!$B$1:$B$1805,0,Input!K$74-1),OFFSET(ReturnData!$B$1:$B$1805,0,Input!$C86-1)) -> 0.1734701637 | L86: =+CORREL(OFFSET(ReturnData!$B$1:$B$1805,0,Input!L$74-1),OFFSET(ReturnData!$B$1:$B$1805,0,Input!$C86-1)) -> 0.185276272 | M86: =+CORREL(OFFSET(ReturnData!$B$1:$B$1805,0,Input!M$74-1),OFFSET(ReturnData!$B$1:$B$1805,0,Input!$C86-1)) -> 0.3342974553 | N86: =+CORREL(OFFSET(ReturnData!$B$1:$B$1805,0,Input!N$74-1),OFFSET(ReturnData!$B$1:$B$1805,0,Input!$C86-1)) -> 0.3423079619 | O86: =+CORREL(OFFSET(ReturnData!$B$1:$B$1805,0,Input!O$74-1),OFFSET(ReturnData!$B$1:$B$1805,0,Input!$C86-1)) -> -0.5129050736 | P86: =+CORREL(OFFSET(ReturnData!$B$1:$B$1805,0,Input!P$74-1),OFFSET(ReturnData!$B$1:$B$1805,0,Input!$C86-1)) -> 1 | Q86: =+CORREL(OFFSET(ReturnData!$B$1:$B$1805,0,Input!Q$74-1),OFFSET(ReturnData!$B$1:$B$1805,0,Input!$C86-1)) -> 0.832707252 | R86: =+CORREL(OFFSET(ReturnData!$B$1:$B$1805,0,Input!R$74-1),OFFSET(ReturnData!$B$1:$B$1805,0,Input!$C86-1)) -> 0.5571990019 | S86: =+CORREL(OFFSET(ReturnData!$B$1:$B$1805,0,Input!S$74-1),OFFSET(ReturnData!$B$1:$B$1805,0,Input!$C86-1)) -> 0.1265584495 | T86: =+CORREL(OFFSET(ReturnData!$B$1:$B$1805,0,Input!T$74-1),OFFSET(ReturnData!$B$1:$B$1805,0,Input!$C86-1)) -> -0.02684290038 | U86: =+CORREL(OFFSET(ReturnData!$B$1:$B$1805,0,Input!U$74-1),OFFSET(ReturnData!$B$1:$B$1805,0,Input!$C86-1)) -> 0.05153404603 | V86: =+CORREL(OFFSET(ReturnData!$B$1:$B$1805,0,Input!V$74-1),OFFSET(ReturnData!$B$1:$B$1805,0,Input!$C86-1)) ->  | W86: =+CORREL(OFFSET(ReturnData!$B$1:$B$1805,0,Input!W$74-1),OFFSET(ReturnData!$B$1:$B$1805,0,Input!$C86-1)) ->  | X86: =+CORREL(OFFSET(ReturnData!$B$1:$B$1805,0,Input!X$74-1),OFFSET(ReturnData!$B$1:$B$1805,0,Input!$C86-1)) ->  | Y86: =+CORREL(OFFSET(ReturnData!$B$1:$B$1805,0,Input!Y$74-1),OFFSET(ReturnData!$B$1:$B$1805,0,Input!$C86-1)) ->  | Z86: =+CORREL(OFFSET(ReturnData!$B$1:$B$1805,0,Input!Z$74-1),OFFSET(ReturnData!$B$1:$B$1805,0,Input!$C86-1)) -> 
B87: AGG | C87: 13 | E87: =+CORREL(OFFSET(ReturnData!$B$1:$B$1805,0,Input!E$74-1),OFFSET(ReturnData!$B$1:$B$1805,0,Input!$C87-1)) -> 0.2395353748 | F87: =+CORREL(OFFSET(ReturnData!$B$1:$B$1805,0,Input!F$74-1),OFFSET(ReturnData!$B$1:$B$1805,0,Input!$C87-1)) -> 0.2543704076 | G87: =+CORREL(OFFSET(ReturnData!$B$1:$B$1805,0,Input!G$74-1),OFFSET(ReturnData!$B$1:$B$1805,0,Input!$C87-1)) -> 0.2985335022 | H87: =+CORREL(OFFSET(ReturnData!$B$1:$B$1805,0,Input!H$74-1),OFFSET(ReturnData!$B$1:$B$1805,0,Input!$C87-1)) -> 0.2545636722 | I87: =+CORREL(OFFSET(ReturnData!$B$1:$B$1805,0,Input!I$74-1),OFFSET(ReturnData!$B$1:$B$1805,0,Input!$C87-1)) -> 0.01274126166 | J87: =+CORREL(OFFSET(ReturnData!$B$1:$B$1805,0,Input!J$74-1),OFFSET(ReturnData!$B$1:$B$1805,0,Input!$C87-1)) -> 0.1338470816 | K87: =+CORREL(OFFSET(ReturnData!$B$1:$B$1805,0,Input!K$74-1),OFFSET(ReturnData!$B$1:$B$1805,0,Input!$C87-1)) -> 0.147696529 | L87: =+CORREL(OFFSET(ReturnData!$B$1:$B$1805,0,Input!L$74-1),OFFSET(ReturnData!$B$1:$B$1805,0,Input!$C87-1)) -> 0.1700240105 | M87: =+CORREL(OFFSET(ReturnData!$B$1:$B$1805,0,Input!M$74-1),OFFSET(ReturnData!$B$1:$B$1805,0,Input!$C87-1)) -> 0.3522568032 | N87: =+CORREL(OFFSET(ReturnData!$B$1:$B$1805,0,Input!N$74-1),OFFSET(ReturnData!$B$1:$B$1805,0,Input!$C87-1)) -> 0.3541351249 | O87: =+CORREL(OFFSET(ReturnData!$B$1:$B$1805,0,Input!O$74-1),OFFSET(ReturnData!$B$1:$B$1805,0,Input!$C87-1)) -> -0.2986411252 | P87: =+CORREL(OFFSET(ReturnData!$B$1:$B$1805,0,Input!P$74-1),OFFSET(ReturnData!$B$1:$B$1805,0,Input!$C87-1)) -> 0.832707252 | Q87: =+CORREL(OFFSET(ReturnData!$B$1:$B$1805,0,Input!Q$74-1),OFFSET(ReturnData!$B$1:$B$1805,0,Input!$C87-1)) -> 1 | R87: =+CORREL(OFFSET(ReturnData!$B$1:$B$1805,0,Input!R$74-1),OFFSET(ReturnData!$B$1:$B$1805,0,Input!$C87-1)) -> 0.675160444 | S87: =+CORREL(OFFSET(ReturnData!$B$1:$B$1805,0,Input!S$74-1),OFFSET(ReturnData!$B$1:$B$1805,0,Input!$C87-1)) -> 0.1930757632 | T87: =+CORREL(OFFSET(ReturnData!$B$1:$B$1805,0,Input!T$74-1),OFFSET(ReturnData!$B$1:$B$1805,0,Input!$C87-1)) -> 0.0315608837 | U87: =+CORREL(OFFSET(ReturnData!$B$1:$B$1805,0,Input!U$74-1),OFFSET(ReturnData!$B$1:$B$1805,0,Input!$C87-1)) -> -0.006776146617 | V87: =+CORREL(OFFSET(ReturnData!$B$1:$B$1805,0,Input!V$74-1),OFFSET(ReturnData!$B$1:$B$1805,0,Input!$C87-1)) ->  | W87: =+CORREL(OFFSET(ReturnData!$B$1:$B$1805,0,Input!W$74-1),OFFSET(ReturnData!$B$1:$B$1805,0,Input!$C87-1)) ->  | X87: =+CORREL(OFFSET(ReturnData!$B$1:$B$1805,0,Input!X$74-1),OFFSET(ReturnData!$B$1:$B$1805,0,Input!$C87-1)) ->  | Y87: =+CORREL(OFFSET(ReturnData!$B$1:$B$1805,0,Input!Y$74-1),OFFSET(ReturnData!$B$1:$B$1805,0,Input!$C87-1)) ->  | Z87: =+CORREL(OFFSET(ReturnData!$B$1:$B$1805,0,Input!Z$74-1),OFFSET(ReturnData!$B$1:$B$1805,0,Input!$C87-1)) -> 
B88: SHY | C88: 14 | E88: =+CORREL(OFFSET(ReturnData!$B$1:$B$1805,0,Input!E$74-1),OFFSET(ReturnData!$B$1:$B$1805,0,Input!$C88-1)) -> 0.05063715349 | F88: =+CORREL(OFFSET(ReturnData!$B$1:$B$1805,0,Input!F$74-1),OFFSET(ReturnData!$B$1:$B$1805,0,Input!$C88-1)) -> 0.05693700664 | G88: =+CORREL(OFFSET(ReturnData!$B$1:$B$1805,0,Input!G$74-1),OFFSET(ReturnData!$B$1:$B$1805,0,Input!$C88-1)) -> 0.1272365851 | H88: =+CORREL(OFFSET(ReturnData!$B$1:$B$1805,0,Input!H$74-1),OFFSET(ReturnData!$B$1:$B$1805,0,Input!$C88-1)) -> 0.0978615171 | I88: =+CORREL(OFFSET(ReturnData!$B$1:$B$1805,0,Input!I$74-1),OFFSET(ReturnData!$B$1:$B$1805,0,Input!$C88-1)) -> -0.1010768361 | J88: =+CORREL(OFFSET(ReturnData!$B$1:$B$1805,0,Input!J$74-1),OFFSET(ReturnData!$B$1:$B$1805,0,Input!$C88-1)) -> -0.03150842131 | K88: =+CORREL(OFFSET(ReturnData!$B$1:$B$1805,0,Input!K$74-1),OFFSET(ReturnData!$B$1:$B$1805,0,Input!$C88-1)) -> -0.03115999044 | L88: =+CORREL(OFFSET(ReturnData!$B$1:$B$1805,0,Input!L$74-1),OFFSET(ReturnData!$B$1:$B$1805,0,Input!$C88-1)) -> 0.02638195266 | M88: =+CORREL(OFFSET(ReturnData!$B$1:$B$1805,0,Input!M$74-1),OFFSET(ReturnData!$B$1:$B$1805,0,Input!$C88-1)) -> 0.1130524797 | N88: =+CORREL(OFFSET(ReturnData!$B$1:$B$1805,0,Input!N$74-1),OFFSET(ReturnData!$B$1:$B$1805,0,Input!$C88-1)) -> 0.1169825987 | O88: =+CORREL(OFFSET(ReturnData!$B$1:$B$1805,0,Input!O$74-1),OFFSET(ReturnData!$B$1:$B$1805,0,Input!$C88-1)) -> -0.3002825743 | P88: =+CORREL(OFFSET(ReturnData!$B$1:$B$1805,0,Input!P$74-1),OFFSET(ReturnData!$B$1:$B$1805,0,Input!$C88-1)) -> 0.5571990019 | Q88: =+CORREL(OFFSET(ReturnData!$B$1:$B$1805,0,Input!Q$74-1),OFFSET(ReturnData!$B$1:$B$1805,0,Input!$C88-1)) -> 0.675160444 | R88: =+CORREL(OFFSET(ReturnData!$B$1:$B$1805,0,Input!R$74-1),OFFSET(ReturnData!$B$1:$B$1805,0,Input!$C88-1)) -> 1 | S88: =+CORREL(OFFSET(ReturnData!$B$1:$B$1805,0,Input!S$74-1),OFFSET(ReturnData!$B$1:$B$1805,0,Input!$C88-1)) -> 0.2041503176 | T88: =+CORREL(OFFSET(ReturnData!$B$1:$B$1805,0,Input!T$74-1),OFFSET(ReturnData!$B$1:$B$1805,0,Input!$C88-1)) -> -0.07735325624 | U88: =+CORREL(OFFSET(ReturnData!$B$1:$B$1805,0,Input!U$74-1),OFFSET(ReturnData!$B$1:$B$1805,0,Input!$C88-1)) -> 0.01699377433 | V88: =+CORREL(OFFSET(ReturnData!$B$1:$B$1805,0,Input!V$74-1),OFFSET(ReturnData!$B$1:$B$1805,0,Input!$C88-1)) ->  | W88: =+CORREL(OFFSET(ReturnData!$B$1:$B$1805,0,Input!W$74-1),OFFSET(ReturnData!$B$1:$B$1805,0,Input!$C88-1)) ->  | X88: =+CORREL(OFFSET(ReturnData!$B$1:$B$1805,0,Input!X$74-1),OFFSET(ReturnData!$B$1:$B$1805,0,Input!$C88-1)) ->  | Y88: =+CORREL(OFFSET(ReturnData!$B$1:$B$1805,0,Input!Y$74-1),OFFSET(ReturnData!$B$1:$B$1805,0,Input!$C88-1)) ->  | Z88: =+CORREL(OFFSET(ReturnData!$B$1:$B$1805,0,Input!Z$74-1),OFFSET(ReturnData!$B$1:$B$1805,0,Input!$C88-1)) -> 
B89: GLD | C89: 15 | E89: =+CORREL(OFFSET(ReturnData!$B$1:$B$1805,0,Input!E$74-1),OFFSET(ReturnData!$B$1:$B$1805,0,Input!$C89-1)) -> 0.1711603599 | F89: =+CORREL(OFFSET(ReturnData!$B$1:$B$1805,0,Input!F$74-1),OFFSET(ReturnData!$B$1:$B$1805,0,Input!$C89-1)) -> 0.4404632741 | G89: =+CORREL(OFFSET(ReturnData!$B$1:$B$1805,0,Input!G$74-1),OFFSET(ReturnData!$B$1:$B$1805,0,Input!$C89-1)) -> 0.4430120269 | H89: =+CORREL(OFFSET(ReturnData!$B$1:$B$1805,0,Input!H$74-1),OFFSET(ReturnData!$B$1:$B$1805,0,Input!$C89-1)) -> 0.2331399929 | I89: =+CORREL(OFFSET(ReturnData!$B$1:$B$1805,0,Input!I$74-1),OFFSET(ReturnData!$B$1:$B$1805,0,Input!$C89-1)) -> 0.1688057993 | J89: =+CORREL(OFFSET(ReturnData!$B$1:$B$1805,0,Input!J$74-1),OFFSET(ReturnData!$B$1:$B$1805,0,Input!$C89-1)) -> 0.1882019067 | K89: =+CORREL(OFFSET(ReturnData!$B$1:$B$1805,0,Input!K$74-1),OFFSET(ReturnData!$B$1:$B$1805,0,Input!$C89-1)) -> 0.1795562141 | L89: =+CORREL(OFFSET(ReturnData!$B$1:$B$1805,0,Input!L$74-1),OFFSET(ReturnData!$B$1:$B$1805,0,Input!$C89-1)) -> 0.1008392647 | M89: =+CORREL(OFFSET(ReturnData!$B$1:$B$1805,0,Input!M$74-1),OFFSET(ReturnData!$B$1:$B$1805,0,Input!$C89-1)) -> 0.1867092501 | N89: =+CORREL(OFFSET(ReturnData!$B$1:$B$1805,0,Input!N$74-1),OFFSET(ReturnData!$B$1:$B$1805,0,Input!$C89-1)) -> 0.2013346932 | O89: =+CORREL(OFFSET(ReturnData!$B$1:$B$1805,0,Input!O$74-1),OFFSET(ReturnData!$B$1:$B$1805,0,Input!$C89-1)) -> 0.05136514224 | P89: =+CORREL(OFFSET(ReturnData!$B$1:$B$1805,0,Input!P$74-1),OFFSET(ReturnData!$B$1:$B$1805,0,Input!$C89-1)) -> 0.1265584495 | Q89: =+CORREL(OFFSET(ReturnData!$B$1:$B$1805,0,Input!Q$74-1),OFFSET(ReturnData!$B$1:$B$1805,0,Input!$C89-1)) -> 0.1930757632 | R89: =+CORREL(OFFSET(ReturnData!$B$1:$B$1805,0,Input!R$74-1),OFFSET(ReturnData!$B$1:$B$1805,0,Input!$C89-1)) -> 0.2041503176 | S89: =+CORREL(OFFSET(ReturnData!$B$1:$B$1805,0,Input!S$74-1),OFFSET(ReturnData!$B$1:$B$1805,0,Input!$C89-1)) -> 1 | T89: =+CORREL(OFFSET(ReturnData!$B$1:$B$1805,0,Input!T$74-1),OFFSET(ReturnData!$B$1:$B$1805,0,Input!$C89-1)) -> 0.004750424414 | U89: =+CORREL(OFFSET(ReturnData!$B$1:$B$1805,0,Input!U$74-1),OFFSET(ReturnData!$B$1:$B$1805,0,Input!$C89-1)) -> 0.4713156815 | V89: =+CORREL(OFFSET(ReturnData!$B$1:$B$1805,0,Input!V$74-1),OFFSET(ReturnData!$B$1:$B$1805,0,Input!$C89-1)) ->  | W89: =+CORREL(OFFSET(ReturnData!$B$1:$B$1805,0,Input!W$74-1),OFFSET(ReturnData!$B$1:$B$1805,0,Input!$C89-1)) ->  | X89: =+CORREL(OFFSET(ReturnData!$B$1:$B$1805,0,Input!X$74-1),OFFSET(ReturnData!$B$1:$B$1805,0,Input!$C89-1)) ->  | Y89: =+CORREL(OFFSET(ReturnData!$B$1:$B$1805,0,Input!Y$74-1),OFFSET(ReturnData!$B$1:$B$1805,0,Input!$C89-1)) ->  | Z89: =+CORREL(OFFSET(ReturnData!$B$1:$B$1805,0,Input!Z$74-1),OFFSET(ReturnData!$B$1:$B$1805,0,Input!$C89-1)) -> 
B90: NASDAQ100 | C90: 16 | E90: =+CORREL(OFFSET(ReturnData!$B$1:$B$1805,0,Input!E$74-1),OFFSET(ReturnData!$B$1:$B$1805,0,Input!$C90-1)) -> 0.435349731 | F90: =+CORREL(OFFSET(ReturnData!$B$1:$B$1805,0,Input!F$74-1),OFFSET(ReturnData!$B$1:$B$1805,0,Input!$C90-1)) -> 0.395617857 | G90: =+CORREL(OFFSET(ReturnData!$B$1:$B$1805,0,Input!G$74-1),OFFSET(ReturnData!$B$1:$B$1805,0,Input!$C90-1)) -> 0.4338547927 | H90: =+CORREL(OFFSET(ReturnData!$B$1:$B$1805,0,Input!H$74-1),OFFSET(ReturnData!$B$1:$B$1805,0,Input!$C90-1)) -> 0.4523050997 | I90: =+CORREL(OFFSET(ReturnData!$B$1:$B$1805,0,Input!I$74-1),OFFSET(ReturnData!$B$1:$B$1805,0,Input!$C90-1)) -> 0.4623191677 | J90: =+CORREL(OFFSET(ReturnData!$B$1:$B$1805,0,Input!J$74-1),OFFSET(ReturnData!$B$1:$B$1805,0,Input!$C90-1)) -> 0.3543501593 | K90: =+CORREL(OFFSET(ReturnData!$B$1:$B$1805,0,Input!K$74-1),OFFSET(ReturnData!$B$1:$B$1805,0,Input!$C90-1)) -> 0.4044597238 | L90: =+CORREL(OFFSET(ReturnData!$B$1:$B$1805,0,Input!L$74-1),OFFSET(ReturnData!$B$1:$B$1805,0,Input!$C90-1)) -> 0.2831197849 | M90: =+CORREL(OFFSET(ReturnData!$B$1:$B$1805,0,Input!M$74-1),OFFSET(ReturnData!$B$1:$B$1805,0,Input!$C90-1)) -> 0.4563727282 | N90: =+CORREL(OFFSET(ReturnData!$B$1:$B$1805,0,Input!N$74-1),OFFSET(ReturnData!$B$1:$B$1805,0,Input!$C90-1)) -> 0.4460549498 | O90: =+CORREL(OFFSET(ReturnData!$B$1:$B$1805,0,Input!O$74-1),OFFSET(ReturnData!$B$1:$B$1805,0,Input!$C90-1)) -> 0.4227494689 | P90: =+CORREL(OFFSET(ReturnData!$B$1:$B$1805,0,Input!P$74-1),OFFSET(ReturnData!$B$1:$B$1805,0,Input!$C90-1)) -> -0.02684290038 | Q90: =+CORREL(OFFSET(ReturnData!$B$1:$B$1805,0,Input!Q$74-1),OFFSET(ReturnData!$B$1:$B$1805,0,Input!$C90-1)) -> 0.0315608837 | R90: =+CORREL(OFFSET(ReturnData!$B$1:$B$1805,0,Input!R$74-1),OFFSET(ReturnData!$B$1:$B$1805,0,Input!$C90-1)) -> -0.07735325624 | S90: =+CORREL(OFFSET(ReturnData!$B$1:$B$1805,0,Input!S$74-1),OFFSET(ReturnData!$B$1:$B$1805,0,Input!$C90-1)) -> 0.004750424414 | T90: =+CORREL(OFFSET(ReturnData!$B$1:$B$1805,0,Input!T$74-1),OFFSET(ReturnData!$B$1:$B$1805,0,Input!$C90-1)) -> 1 | U90: =+CORREL(OFFSET(ReturnData!$B$1:$B$1805,0,Input!U$74-1),OFFSET(ReturnData!$B$1:$B$1805,0,Input!$C90-1)) -> 0.03725647884 | V90: =+CORREL(OFFSET(ReturnData!$B$1:$B$1805,0,Input!V$74-1),OFFSET(ReturnData!$B$1:$B$1805,0,Input!$C90-1)) ->  | W90: =+CORREL(OFFSET(ReturnData!$B$1:$B$1805,0,Input!W$74-1),OFFSET(ReturnData!$B$1:$B$1805,0,Input!$C90-1)) ->  | X90: =+CORREL(OFFSET(ReturnData!$B$1:$B$1805,0,Input!X$74-1),OFFSET(ReturnData!$B$1:$B$1805,0,Input!$C90-1)) ->  | Y90: =+CORREL(OFFSET(ReturnData!$B$1:$B$1805,0,Input!Y$74-1),OFFSET(ReturnData!$B$1:$B$1805,0,Input!$C90-1)) ->  | Z90: =+CORREL(OFFSET(ReturnData!$B$1:$B$1805,0,Input!Z$74-1),OFFSET(ReturnData!$B$1:$B$1805,0,Input!$C90-1)) -> 
B91: GLD-USD | C91: 17 | E91: =+CORREL(OFFSET(ReturnData!$B$1:$B$1805,0,Input!E$74-1),OFFSET(ReturnData!$B$1:$B$1805,0,Input!$C91-1)) -> 0.1032038786 | F91: =+CORREL(OFFSET(ReturnData!$B$1:$B$1805,0,Input!F$74-1),OFFSET(ReturnData!$B$1:$B$1805,0,Input!$C91-1)) -> 0.2855055995 | G91: =+CORREL(OFFSET(ReturnData!$B$1:$B$1805,0,Input!G$74-1),OFFSET(ReturnData!$B$1:$B$1805,0,Input!$C91-1)) -> 0.2347768928 | H91: =+CORREL(OFFSET(ReturnData!$B$1:$B$1805,0,Input!H$74-1),OFFSET(ReturnData!$B$1:$B$1805,0,Input!$C91-1)) -> 0.04380697604 | I91: =+CORREL(OFFSET(ReturnData!$B$1:$B$1805,0,Input!I$74-1),OFFSET(ReturnData!$B$1:$B$1805,0,Input!$C91-1)) -> 0.06948012593 | J91: =+CORREL(OFFSET(ReturnData!$B$1:$B$1805,0,Input!J$74-1),OFFSET(ReturnData!$B$1:$B$1805,0,Input!$C91-1)) -> 0.1216511708 | K91: =+CORREL(OFFSET(ReturnData!$B$1:$B$1805,0,Input!K$74-1),OFFSET(ReturnData!$B$1:$B$1805,0,Input!$C91-1)) -> 0.1456375114 | L91: =+CORREL(OFFSET(ReturnData!$B$1:$B$1805,0,Input!L$74-1),OFFSET(ReturnData!$B$1:$B$1805,0,Input!$C91-1)) -> 0.09342155495 | M91: =+CORREL(OFFSET(ReturnData!$B$1:$B$1805,0,Input!M$74-1),OFFSET(ReturnData!$B$1:$B$1805,0,Input!$C91-1)) -> 0.04577984566 | N91: =+CORREL(OFFSET(ReturnData!$B$1:$B$1805,0,Input!N$74-1),OFFSET(ReturnData!$B$1:$B$1805,0,Input!$C91-1)) -> 0.05099129205 | O91: =+CORREL(OFFSET(ReturnData!$B$1:$B$1805,0,Input!O$74-1),OFFSET(ReturnData!$B$1:$B$1805,0,Input!$C91-1)) -> -0.08960043088 | P91: =+CORREL(OFFSET(ReturnData!$B$1:$B$1805,0,Input!P$74-1),OFFSET(ReturnData!$B$1:$B$1805,0,Input!$C91-1)) -> 0.05153404603 | Q91: =+CORREL(OFFSET(ReturnData!$B$1:$B$1805,0,Input!Q$74-1),OFFSET(ReturnData!$B$1:$B$1805,0,Input!$C91-1)) -> -0.006776146617 | R91: =+CORREL(OFFSET(ReturnData!$B$1:$B$1805,0,Input!R$74-1),OFFSET(ReturnData!$B$1:$B$1805,0,Input!$C91-1)) -> 0.01699377433 | S91: =+CORREL(OFFSET(ReturnData!$B$1:$B$1805,0,Input!S$74-1),OFFSET(ReturnData!$B$1:$B$1805,0,Input!$C91-1)) -> 0.4713156815 | T91: =+CORREL(OFFSET(ReturnData!$B$1:$B$1805,0,Input!T$74-1),OFFSET(ReturnData!$B$1:$B$1805,0,Input!$C91-1)) -> 0.03725647884 | U91: =+CORREL(OFFSET(ReturnData!$B$1:$B$1805,0,Input!U$74-1),OFFSET(ReturnData!$B$1:$B$1805,0,Input!$C91-1)) -> 1 | V91: =+CORREL(OFFSET(ReturnData!$B$1:$B$1805,0,Input!V$74-1),OFFSET(ReturnData!$B$1:$B$1805,0,Input!$C91-1)) ->  | W91: =+CORREL(OFFSET(ReturnData!$B$1:$B$1805,0,Input!W$74-1),OFFSET(ReturnData!$B$1:$B$1805,0,Input!$C91-1)) ->  | X91: =+CORREL(OFFSET(ReturnData!$B$1:$B$1805,0,Input!X$74-1),OFFSET(ReturnData!$B$1:$B$1805,0,Input!$C91-1)) ->  | Y91: =+CORREL(OFFSET(ReturnData!$B$1:$B$1805,0,Input!Y$74-1),OFFSET(ReturnData!$B$1:$B$1805,0,Input!$C91-1)) ->  | Z91: =+CORREL(OFFSET(ReturnData!$B$1:$B$1805,0,Input!Z$74-1),OFFSET(ReturnData!$B$1:$B$1805,0,Input!$C91-1)) -> 
B92: empty | C92: 18 | E92: =+CORREL(OFFSET(ReturnData!$B$1:$B$1805,0,Input!E$74-1),OFFSET(ReturnData!$B$1:$B$1805,0,Input!$C92-1)) ->  | F92: =+CORREL(OFFSET(ReturnData!$B$1:$B$1805,0,Input!F$74-1),OFFSET(ReturnData!$B$1:$B$1805,0,Input!$C92-1)) ->  | G92: =+CORREL(OFFSET(ReturnData!$B$1:$B$1805,0,Input!G$74-1),OFFSET(ReturnData!$B$1:$B$1805,0,Input!$C92-1)) ->  | H92: =+CORREL(OFFSET(ReturnData!$B$1:$B$1805,0,Input!H$74-1),OFFSET(ReturnData!$B$1:$B$1805,0,Input!$C92-1)) ->  | I92: =+CORREL(OFFSET(ReturnData!$B$1:$B$1805,0,Input!I$74-1),OFFSET(ReturnData!$B$1:$B$1805,0,Input!$C92-1)) ->  | J92: =+CORREL(OFFSET(ReturnData!$B$1:$B$1805,0,Input!J$74-1),OFFSET(ReturnData!$B$1:$B$1805,0,Input!$C92-1)) ->  | K92: =+CORREL(OFFSET(ReturnData!$B$1:$B$1805,0,Input!K$74-1),OFFSET(ReturnData!$B$1:$B$1805,0,Input!$C92-1)) ->  | L92: =+CORREL(OFFSET(ReturnData!$B$1:$B$1805,0,Input!L$74-1),OFFSET(ReturnData!$B$1:$B$1805,0,Input!$C92-1)) ->  | M92: =+CORREL(OFFSET(ReturnData!$B$1:$B$1805,0,Input!M$74-1),OFFSET(ReturnData!$B$1:$B$1805,0,Input!$C92-1)) ->  | N92: =+CORREL(OFFSET(ReturnData!$B$1:$B$1805,0,Input!N$74-1),OFFSET(ReturnData!$B$1:$B$1805,0,Input!$C92-1)) ->  | O92: =+CORREL(OFFSET(ReturnData!$B$1:$B$1805,0,Input!O$74-1),OFFSET(ReturnData!$B$1:$B$1805,0,Input!$C92-1)) ->  | P92: =+CORREL(OFFSET(ReturnData!$B$1:$B$1805,0,Input!P$74-1),OFFSET(ReturnData!$B$1:$B$1805,0,Input!$C92-1)) ->  | Q92: =+CORREL(OFFSET(ReturnData!$B$1:$B$1805,0,Input!Q$74-1),OFFSET(ReturnData!$B$1:$B$1805,0,Input!$C92-1)) ->  | R92: =+CORREL(OFFSET(ReturnData!$B$1:$B$1805,0,Input!R$74-1),OFFSET(ReturnData!$B$1:$B$1805,0,Input!$C92-1)) ->  | S92: =+CORREL(OFFSET(ReturnData!$B$1:$B$1805,0,Input!S$74-1),OFFSET(ReturnData!$B$1:$B$1805,0,Input!$C92-1)) ->  | T92: =+CORREL(OFFSET(ReturnData!$B$1:$B$1805,0,Input!T$74-1),OFFSET(ReturnData!$B$1:$B$1805,0,Input!$C92-1)) ->  | U92: =+CORREL(OFFSET(ReturnData!$B$1:$B$1805,0,Input!U$74-1),OFFSET(ReturnData!$B$1:$B$1805,0,Input!$C92-1)) ->  | V92: =+CORREL(OFFSET(ReturnData!$B$1:$B$1805,0,Input!V$74-1),OFFSET(ReturnData!$B$1:$B$1805,0,Input!$C92-1)) ->  | W92: =+CORREL(OFFSET(ReturnData!$B$1:$B$1805,0,Input!W$74-1),OFFSET(ReturnData!$B$1:$B$1805,0,Input!$C92-1)) ->  | X92: =+CORREL(OFFSET(ReturnData!$B$1:$B$1805,0,Input!X$74-1),OFFSET(ReturnData!$B$1:$B$1805,0,Input!$C92-1)) ->  | Y92: =+CORREL(OFFSET(ReturnData!$B$1:$B$1805,0,Input!Y$74-1),OFFSET(ReturnData!$B$1:$B$1805,0,Input!$C92-1)) ->  | Z92: =+CORREL(OFFSET(ReturnData!$B$1:$B$1805,0,Input!Z$74-1),OFFSET(ReturnData!$B$1:$B$1805,0,Input!$C92-1)) -> 
B93: empty | C93: 19 | E93: =+CORREL(OFFSET(ReturnData!$B$1:$B$1805,0,Input!E$74-1),OFFSET(ReturnData!$B$1:$B$1805,0,Input!$C93-1)) ->  | F93: =+CORREL(OFFSET(ReturnData!$B$1:$B$1805,0,Input!F$74-1),OFFSET(ReturnData!$B$1:$B$1805,0,Input!$C93-1)) ->  | G93: =+CORREL(OFFSET(ReturnData!$B$1:$B$1805,0,Input!G$74-1),OFFSET(ReturnData!$B$1:$B$1805,0,Input!$C93-1)) ->  | H93: =+CORREL(OFFSET(ReturnData!$B$1:$B$1805,0,Input!H$74-1),OFFSET(ReturnData!$B$1:$B$1805,0,Input!$C93-1)) ->  | I93: =+CORREL(OFFSET(ReturnData!$B$1:$B$1805,0,Input!I$74-1),OFFSET(ReturnData!$B$1:$B$1805,0,Input!$C93-1)) ->  | J93: =+CORREL(OFFSET(ReturnData!$B$1:$B$1805,0,Input!J$74-1),OFFSET(ReturnData!$B$1:$B$1805,0,Input!$C93-1)) ->  | K93: =+CORREL(OFFSET(ReturnData!$B$1:$B$1805,0,Input!K$74-1),OFFSET(ReturnData!$B$1:$B$1805,0,Input!$C93-1)) ->  | L93: =+CORREL(OFFSET(ReturnData!$B$1:$B$1805,0,Input!L$74-1),OFFSET(ReturnData!$B$1:$B$1805,0,Input!$C93-1)) ->  | M93: =+CORREL(OFFSET(ReturnData!$B$1:$B$1805,0,Input!M$74-1),OFFSET(ReturnData!$B$1:$B$1805,0,Input!$C93-1)) ->  | N93: =+CORREL(OFFSET(ReturnData!$B$1:$B$1805,0,Input!N$74-1),OFFSET(ReturnData!$B$1:$B$1805,0,Input!$C93-1)) ->  | O93: =+CORREL(OFFSET(ReturnData!$B$1:$B$1805,0,Input!O$74-1),OFFSET(ReturnData!$B$1:$B$1805,0,Input!$C93-1)) ->  | P93: =+CORREL(OFFSET(ReturnData!$B$1:$B$1805,0,Input!P$74-1),OFFSET(ReturnData!$B$1:$B$1805,0,Input!$C93-1)) ->  | Q93: =+CORREL(OFFSET(ReturnData!$B$1:$B$1805,0,Input!Q$74-1),OFFSET(ReturnData!$B$1:$B$1805,0,Input!$C93-1)) ->  | R93: =+CORREL(OFFSET(ReturnData!$B$1:$B$1805,0,Input!R$74-1),OFFSET(ReturnData!$B$1:$B$1805,0,Input!$C93-1)) ->  | S93: =+CORREL(OFFSET(ReturnData!$B$1:$B$1805,0,Input!S$74-1),OFFSET(ReturnData!$B$1:$B$1805,0,Input!$C93-1)) ->  | T93: =+CORREL(OFFSET(ReturnData!$B$1:$B$1805,0,Input!T$74-1),OFFSET(ReturnData!$B$1:$B$1805,0,Input!$C93-1)) ->  | U93: =+CORREL(OFFSET(ReturnData!$B$1:$B$1805,0,Input!U$74-1),OFFSET(ReturnData!$B$1:$B$1805,0,Input!$C93-1)) ->  | V93: =+CORREL(OFFSET(ReturnData!$B$1:$B$1805,0,Input!V$74-1),OFFSET(ReturnData!$B$1:$B$1805,0,Input!$C93-1)) ->  | W93: =+CORREL(OFFSET(ReturnData!$B$1:$B$1805,0,Input!W$74-1),OFFSET(ReturnData!$B$1:$B$1805,0,Input!$C93-1)) ->  | X93: =+CORREL(OFFSET(ReturnData!$B$1:$B$1805,0,Input!X$74-1),OFFSET(ReturnData!$B$1:$B$1805,0,Input!$C93-1)) ->  | Y93: =+CORREL(OFFSET(ReturnData!$B$1:$B$1805,0,Input!Y$74-1),OFFSET(ReturnData!$B$1:$B$1805,0,Input!$C93-1)) ->  | Z93: =+CORREL(OFFSET(ReturnData!$B$1:$B$1805,0,Input!Z$74-1),OFFSET(ReturnData!$B$1:$B$1805,0,Input!$C93-1)) -> 
B94: empty | C94: 20 | E94: =+CORREL(OFFSET(ReturnData!$B$1:$B$1805,0,Input!E$74-1),OFFSET(ReturnData!$B$1:$B$1805,0,Input!$C94-1)) ->  | F94: =+CORREL(OFFSET(ReturnData!$B$1:$B$1805,0,Input!F$74-1),OFFSET(ReturnData!$B$1:$B$1805,0,Input!$C94-1)) ->  | G94: =+CORREL(OFFSET(ReturnData!$B$1:$B$1805,0,Input!G$74-1),OFFSET(ReturnData!$B$1:$B$1805,0,Input!$C94-1)) ->  | H94: =+CORREL(OFFSET(ReturnData!$B$1:$B$1805,0,Input!H$74-1),OFFSET(ReturnData!$B$1:$B$1805,0,Input!$C94-1)) ->  | I94: =+CORREL(OFFSET(ReturnData!$B$1:$B$1805,0,Input!I$74-1),OFFSET(ReturnData!$B$1:$B$1805,0,Input!$C94-1)) ->  | J94: =+CORREL(OFFSET(ReturnData!$B$1:$B$1805,0,Input!J$74-1),OFFSET(ReturnData!$B$1:$B$1805,0,Input!$C94-1)) ->  | K94: =+CORREL(OFFSET(ReturnData!$B$1:$B$1805,0,Input!K$74-1),OFFSET(ReturnData!$B$1:$B$1805,0,Input!$C94-1)) ->  | L94: =+CORREL(OFFSET(ReturnData!$B$1:$B$1805,0,Input!L$74-1),OFFSET(ReturnData!$B$1:$B$1805,0,Input!$C94-1)) ->  | M94: =+CORREL(OFFSET(ReturnData!$B$1:$B$1805,0,Input!M$74-1),OFFSET(ReturnData!$B$1:$B$1805,0,Input!$C94-1)) ->  | N94: =+CORREL(OFFSET(ReturnData!$B$1:$B$1805,0,Input!N$74-1),OFFSET(ReturnData!$B$1:$B$1805,0,Input!$C94-1)) ->  | O94: =+CORREL(OFFSET(ReturnData!$B$1:$B$1805,0,Input!O$74-1),OFFSET(ReturnData!$B$1:$B$1805,0,Input!$C94-1)) ->  | P94: =+CORREL(OFFSET(ReturnData!$B$1:$B$1805,0,Input!P$74-1),OFFSET(ReturnData!$B$1:$B$1805,0,Input!$C94-1)) ->  | Q94: =+CORREL(OFFSET(ReturnData!$B$1:$B$1805,0,Input!Q$74-1),OFFSET(ReturnData!$B$1:$B$1805,0,Input!$C94-1)) ->  | R94: =+CORREL(OFFSET(ReturnData!$B$1:$B$1805,0,Input!R$74-1),OFFSET(ReturnData!$B$1:$B$1805,0,Input!$C94-1)) ->  | S94: =+CORREL(OFFSET(ReturnData!$B$1:$B$1805,0,Input!S$74-1),OFFSET(ReturnData!$B$1:$B$1805,0,Input!$C94-1)) ->  | T94: =+CORREL(OFFSET(ReturnData!$B$1:$B$1805,0,Input!T$74-1),OFFSET(ReturnData!$B$1:$B$1805,0,Input!$C94-1)) ->  | U94: =+CORREL(OFFSET(ReturnData!$B$1:$B$1805,0,Input!U$74-1),OFFSET(ReturnData!$B$1:$B$1805,0,Input!$C94-1)) ->  | V94: =+CORREL(OFFSET(ReturnData!$B$1:$B$1805,0,Input!V$74-1),OFFSET(ReturnData!$B$1:$B$1805,0,Input!$C94-1)) ->  | W94: =+CORREL(OFFSET(ReturnData!$B$1:$B$1805,0,Input!W$74-1),OFFSET(ReturnData!$B$1:$B$1805,0,Input!$C94-1)) ->  | X94: =+CORREL(OFFSET(ReturnData!$B$1:$B$1805,0,Input!X$74-1),OFFSET(ReturnData!$B$1:$B$1805,0,Input!$C94-1)) ->  | Y94: =+CORREL(OFFSET(ReturnData!$B$1:$B$1805,0,Input!Y$74-1),OFFSET(ReturnData!$B$1:$B$1805,0,Input!$C94-1)) ->  | Z94: =+CORREL(OFFSET(ReturnData!$B$1:$B$1805,0,Input!Z$74-1),OFFSET(ReturnData!$B$1:$B$1805,0,Input!$C94-1)) -> 
B95: empty | C95: 21 | E95: =+CORREL(OFFSET(ReturnData!$B$1:$B$1805,0,Input!E$74-1),OFFSET(ReturnData!$B$1:$B$1805,0,Input!$C95-1)) ->  | F95: =+CORREL(OFFSET(ReturnData!$B$1:$B$1805,0,Input!F$74-1),OFFSET(ReturnData!$B$1:$B$1805,0,Input!$C95-1)) ->  | G95: =+CORREL(OFFSET(ReturnData!$B$1:$B$1805,0,Input!G$74-1),OFFSET(ReturnData!$B$1:$B$1805,0,Input!$C95-1)) ->  | H95: =+CORREL(OFFSET(ReturnData!$B$1:$B$1805,0,Input!H$74-1),OFFSET(ReturnData!$B$1:$B$1805,0,Input!$C95-1)) ->  | I95: =+CORREL(OFFSET(ReturnData!$B$1:$B$1805,0,Input!I$74-1),OFFSET(ReturnData!$B$1:$B$1805,0,Input!$C95-1)) ->  | J95: =+CORREL(OFFSET(ReturnData!$B$1:$B$1805,0,Input!J$74-1),OFFSET(ReturnData!$B$1:$B$1805,0,Input!$C95-1)) ->  | K95: =+CORREL(OFFSET(ReturnData!$B$1:$B$1805,0,Input!K$74-1),OFFSET(ReturnData!$B$1:$B$1805,0,Input!$C95-1)) ->  | L95: =+CORREL(OFFSET(ReturnData!$B$1:$B$1805,0,Input!L$74-1),OFFSET(ReturnData!$B$1:$B$1805,0,Input!$C95-1)) ->  | M95: =+CORREL(OFFSET(ReturnData!$B$1:$B$1805,0,Input!M$74-1),OFFSET(ReturnData!$B$1:$B$1805,0,Input!$C95-1)) ->  | N95: =+CORREL(OFFSET(ReturnData!$B$1:$B$1805,0,Input!N$74-1),OFFSET(ReturnData!$B$1:$B$1805,0,Input!$C95-1)) ->  | O95: =+CORREL(OFFSET(ReturnData!$B$1:$B$1805,0,Input!O$74-1),OFFSET(ReturnData!$B$1:$B$1805,0,Input!$C95-1)) ->  | P95: =+CORREL(OFFSET(ReturnData!$B$1:$B$1805,0,Input!P$74-1),OFFSET(ReturnData!$B$1:$B$1805,0,Input!$C95-1)) ->  | Q95: =+CORREL(OFFSET(ReturnData!$B$1:$B$1805,0,Input!Q$74-1),OFFSET(ReturnData!$B$1:$B$1805,0,Input!$C95-1)) ->  | R95: =+CORREL(OFFSET(ReturnData!$B$1:$B$1805,0,Input!R$74-1),OFFSET(ReturnData!$B$1:$B$1805,0,Input!$C95-1)) ->  | S95: =+CORREL(OFFSET(ReturnData!$B$1:$B$1805,0,Input!S$74-1),OFFSET(ReturnData!$B$1:$B$1805,0,Input!$C95-1)) ->  | T95: =+CORREL(OFFSET(ReturnData!$B$1:$B$1805,0,Input!T$74-1),OFFSET(ReturnData!$B$1:$B$1805,0,Input!$C95-1)) ->  | U95: =+CORREL(OFFSET(ReturnData!$B$1:$B$1805,0,Input!U$74-1),OFFSET(ReturnData!$B$1:$B$1805,0,Input!$C95-1)) ->  | V95: =+CORREL(OFFSET(ReturnData!$B$1:$B$1805,0,Input!V$74-1),OFFSET(ReturnData!$B$1:$B$1805,0,Input!$C95-1)) ->  | W95: =+CORREL(OFFSET(ReturnData!$B$1:$B$1805,0,Input!W$74-1),OFFSET(ReturnData!$B$1:$B$1805,0,Input!$C95-1)) ->  | X95: =+CORREL(OFFSET(ReturnData!$B$1:$B$1805,0,Input!X$74-1),OFFSET(ReturnData!$B$1:$B$1805,0,Input!$C95-1)) ->  | Y95: =+CORREL(OFFSET(ReturnData!$B$1:$B$1805,0,Input!Y$74-1),OFFSET(ReturnData!$B$1:$B$1805,0,Input!$C95-1)) ->  | Z95: =+CORREL(OFFSET(ReturnData!$B$1:$B$1805,0,Input!Z$74-1),OFFSET(ReturnData!$B$1:$B$1805,0,Input!$C95-1)) -> 
B96: empty | C96: 22 | E96: =+CORREL(OFFSET(ReturnData!$B$1:$B$1805,0,Input!E$74-1),OFFSET(ReturnData!$B$1:$B$1805,0,Input!$C96-1)) ->  | F96: =+CORREL(OFFSET(ReturnData!$B$1:$B$1805,0,Input!F$74-1),OFFSET(ReturnData!$B$1:$B$1805,0,Input!$C96-1)) ->  | G96: =+CORREL(OFFSET(ReturnData!$B$1:$B$1805,0,Input!G$74-1),OFFSET(ReturnData!$B$1:$B$1805,0,Input!$C96-1)) ->  | H96: =+CORREL(OFFSET(ReturnData!$B$1:$B$1805,0,Input!H$74-1),OFFSET(ReturnData!$B$1:$B$1805,0,Input!$C96-1)) ->  | I96: =+CORREL(OFFSET(ReturnData!$B$1:$B$1805,0,Input!I$74-1),OFFSET(ReturnData!$B$1:$B$1805,0,Input!$C96-1)) ->  | J96: =+CORREL(OFFSET(ReturnData!$B$1:$B$1805,0,Input!J$74-1),OFFSET(ReturnData!$B$1:$B$1805,0,Input!$C96-1)) ->  | K96: =+CORREL(OFFSET(ReturnData!$B$1:$B$1805,0,Input!K$74-1),OFFSET(ReturnData!$B$1:$B$1805,0,Input!$C96-1)) ->  | L96: =+CORREL(OFFSET(ReturnData!$B$1:$B$1805,0,Input!L$74-1),OFFSET(ReturnData!$B$1:$B$1805,0,Input!$C96-1)) ->  | M96: =+CORREL(OFFSET(ReturnData!$B$1:$B$1805,0,Input!M$74-1),OFFSET(ReturnData!$B$1:$B$1805,0,Input!$C96-1)) ->  | N96: =+CORREL(OFFSET(ReturnData!$B$1:$B$1805,0,Input!N$74-1),OFFSET(ReturnData!$B$1:$B$1805,0,Input!$C96-1)) ->  | O96: =+CORREL(OFFSET(ReturnData!$B$1:$B$1805,0,Input!O$74-1),OFFSET(ReturnData!$B$1:$B$1805,0,Input!$C96-1)) ->  | P96: =+CORREL(OFFSET(ReturnData!$B$1:$B$1805,0,Input!P$74-1),OFFSET(ReturnData!$B$1:$B$1805,0,Input!$C96-1)) ->  | Q96: =+CORREL(OFFSET(ReturnData!$B$1:$B$1805,0,Input!Q$74-1),OFFSET(ReturnData!$B$1:$B$1805,0,Input!$C96-1)) ->  | R96: =+CORREL(OFFSET(ReturnData!$B$1:$B$1805,0,Input!R$74-1),OFFSET(ReturnData!$B$1:$B$1805,0,Input!$C96-1)) ->  | S96: =+CORREL(OFFSET(ReturnData!$B$1:$B$1805,0,Input!S$74-1),OFFSET(ReturnData!$B$1:$B$1805,0,Input!$C96-1)) ->  | T96: =+CORREL(OFFSET(ReturnData!$B$1:$B$1805,0,Input!T$74-1),OFFSET(ReturnData!$B$1:$B$1805,0,Input!$C96-1)) ->  | U96: =+CORREL(OFFSET(ReturnData!$B$1:$B$1805,0,Input!U$74-1),OFFSET(ReturnData!$B$1:$B$1805,0,Input!$C96-1)) ->  | V96: =+CORREL(OFFSET(ReturnData!$B$1:$B$1805,0,Input!V$74-1),OFFSET(ReturnData!$B$1:$B$1805,0,Input!$C96-1)) ->  | W96: =+CORREL(OFFSET(ReturnData!$B$1:$B$1805,0,Input!W$74-1),OFFSET(ReturnData!$B$1:$B$1805,0,Input!$C96-1)) ->  | X96: =+CORREL(OFFSET(ReturnData!$B$1:$B$1805,0,Input!X$74-1),OFFSET(ReturnData!$B$1:$B$1805,0,Input!$C96-1)) ->  | Y96: =+CORREL(OFFSET(ReturnData!$B$1:$B$1805,0,Input!Y$74-1),OFFSET(ReturnData!$B$1:$B$1805,0,Input!$C96-1)) ->  | Z96: =+CORREL(OFFSET(ReturnData!$B$1:$B$1805,0,Input!Z$74-1),OFFSET(ReturnData!$B$1:$B$1805,0,Input!$C96-1)) -> 
C112: =StratNames -> BUGST

Sheet Solver
B2: Solver input | D2: 1) Set which strategies to in/exclude in optimization | H2: 2) Select Scenario from list or set custom input:
D4: Strategies | E4: Exclude from Portfolio? | F4: Weighting | I4: Pre-configured Scenarios (drop-down list):
D5: =+TRANSPOSE(StratNames) -> BRS | E5: FALSE | F5: =+TRANSPOSE(Weights) -> -9.439140556e-06 | I5: =OFFSET(B62,I6-1,0,1,1) -> Max CAGR, Sharpe >1.5
D6: BUGST | E6: FALSE | F6: -9.565934344e-06 | I6: 9
D7: BUGLEV | E7: FALSE | F7: -9.395438627e-06 | J7: Custom | K7: Selected
D8: WTOP4 | E8: FALSE | F8: -9.257278458e-06 | H8: Risk Free Rate | J8: 0 | K8: =+SolRiskFree -> 0
D9: GSRlv | E9: FALSE | F9: -9.015420777e-06 | H9: Minimize Target: | K9: =+TRANSPOSE(OFFSET($D$62,MATCH(I5,SolScenarios,0)-1,0,1,8)) -> -0.1740683274 | L9: (invert if target is to maximize)
D10: GMRS | E10: FALSE | F10: -8.720063981e-06 | H10: Constraint Max : | K10: 1.081155134 | L10: (select Concept, leave empty to ignore)
D11: GMRSE | E11: TRUE | F11: -8.589555979e-06 | H11: - Value | K11: 1.5 | L11: (set to -99 to ignore)
D12: MYRS | E12: FALSE | F12: -8.573117132e-06 | H12: Constraint Min: | K12: 0 | L12: (select Concept, leave empty to ignore)
D13: UIS | E13: FALSE | F13: -9.280563423e-06 | H13: - Value | K13: 0 | L13: (set to 99 to ignore)
D14: UIS-SPXL-TMF | E14: FALSE | F14: 6.518564142e-05 | H14: Min Weight: | K14: 0 | L14: (set to 0 to ignore, or -1 to allow shorting)
D15: SPY | E15: TRUE | F15: 1.00000997 | H15: Max Weight: | K15: 1 | L15: (set to 1 to ignore, or >1 to allow leverage)
D16: TLT | E16: TRUE | F16: 0 | H16: Max Portfolio Weight: | K16: 1 | L16: (set to 1 to ignore, or >1 to allow leverage)
D17: AGG | E17: TRUE | F17: 0
D18: SHY | E18: TRUE | F18: 0 | H18: Portfolio Statistics:
D19: GLD | E19: TRUE | F19: 0 | J19: Expected CAGR: | L19: =SolCAGR -> 0.1740683274
D20: NASDAQ100 | E20: FALSE | F20: 0 | J20: Expected Volatility: | L20: =+SolVolatility -> 0.1610021743
D21: GLD-USD | E21: FALSE | F21: 6.680681466e-06 | J21: Expected Sharpe: | L21: =+(SolCAGR-SolRiskFree)/SolVolatility -> 1.081155134
D22: empty | E22: TRUE | F22: 0 | J22: MaxDrawDown: | L22: =+DrawDown!X1806 -> -0.05496910376
D23: empty | E23: TRUE | F23: 0
D24: empty | E24: TRUE | F24: 0 | H24: 3) Run Solver Optimization
D25: empty | E25: TRUE | F25: 0
D26: empty | E26: TRUE | F26: 0
B29: Solver Calculations - do not change below here
D30: =+StratNames -> BRS | E30: BUGST | F30: BUGLEV | G30: WTOP4 | H30: GSRlv | I30: GMRS | J30: GMRSE | K30: MYRS | L30: UIS | M30: UIS-SPXL-TMF | N30: SPY | O30: TLT | P30: AGG | Q30: SHY | R30: GLD | S30: NASDAQ100 | T30: GLD-USD | U30: empty | V30: empty | W30: empty | X30: empty | Y30: empty
D31: 1 | E31: 2 | F31: 3 | G31: 4 | H31: 5 | I31: 6 | J31: 7 | K31: 8 | L31: 9 | M31: 10 | N31: 11 | O31: 12 | P31: 13 | Q31: 14 | R31: 15 | S31: 16 | T31: 17 | U31: 18 | V31: 19 | W31: 20 | X31: 21 | Y31: 22
B32: =+TRANSPOSE(StratNames) -> BRS | C32: 1 | D32: =+_xlfn.COVARIANCE.P(OFFSET(ReturnData!$B$1:$B$1805,0,Input!E$74-1),OFFSET(ReturnData!$B$1:$B$1805,0,Solver!$C32-1)) -> 1.993848587e-05 | E32: =+_xlfn.COVARIANCE.P(OFFSET(ReturnData!$B$1:$B$1805,0,Input!F$74-1),OFFSET(ReturnData!$B$1:$B$1805,0,Solver!$C32-1)) -> 1.074043595e-05 | F32: =+_xlfn.COVARIANCE.P(OFFSET(ReturnData!$B$1:$B$1805,0,Input!G$74-1),OFFSET(ReturnData!$B$1:$B$1805,0,Solver!$C32-1)) -> 1.284076591e-05 | G32: =+_xlfn.COVARIANCE.P(OFFSET(ReturnData!$B$1:$B$1805,0,Input!H$74-1),OFFSET(ReturnData!$B$1:$B$1805,0,Solver!$C32-1)) -> 1.836379226e-05 | H32: =+_xlfn.COVARIANCE.P(OFFSET(ReturnData!$B$1:$B$1805,0,Input!I$74-1),OFFSET(ReturnData!$B$1:$B$1805,0,Solver!$C32-1)) -> 2.264421685e-05 | I32: =+_xlfn.COVARIANCE.P(OFFSET(ReturnData!$B$1:$B$1805,0,Input!J$74-1),OFFSET(ReturnData!$B$1:$B$1805,0,Solver!$C32-1)) -> 3.664416697e-05 | J32: =+_xlfn.COVARIANCE.P(OFFSET(ReturnData!$B$1:$B$1805,0,Input!K$74-1),OFFSET(ReturnData!$B$1:$B$1805,0,Solver!$C32-1)) -> 4.183925946e-05 | K32: =+_xlfn.COVARIANCE.P(OFFSET(ReturnData!$B$1:$B$1805,0,Input!L$74-1),OFFSET(ReturnData!$B$1:$B$1805,0,Solver!$C32-1)) -> 2.518898162e-05 | L32: =+_xlfn.COVARIANCE.P(OFFSET(ReturnData!$B$1:$B$1805,0,Input!M$74-1),OFFSET(ReturnData!$B$1:$B$1805,0,Solver!$C32-1)) -> 1.499633955e-05 | M32: =+_xlfn.COVARIANCE.P(OFFSET(ReturnData!$B$1:$B$1805,0,Input!N$74-1),OFFSET(ReturnData!$B$1:$B$1805,0,Solver!$C32-1)) -> 4.380165855e-05 | N32: =+_xlfn.COVARIANCE.P(OFFSET(ReturnData!$B$1:$B$1805,0,Input!O$74-1),OFFSET(ReturnData!$B$1:$B$1805,0,Solver!$C32-1)) -> 9.423472445e-06 | O32: =+_xlfn.COVARIANCE.P(OFFSET(ReturnData!$B$1:$B$1805,0,Input!P$74-1),OFFSET(ReturnData!$B$1:$B$1805,0,Solver!$C32-1)) -> 8.457919911e-06 | P32: =+_xlfn.COVARIANCE.P(OFFSET(ReturnData!$B$1:$B$1805,0,Input!Q$74-1),OFFSET(ReturnData!$B$1:$B$1805,0,Solver!$C32-1)) -> 2.396830735e-06 | Q32: =+_xlfn.COVARIANCE.P(OFFSET(ReturnData!$B$1:$B$1805,0,Input!R$74-1),OFFSET(ReturnData!$B$1:$B$1805,0,Solver!$C32-1)) -> 1.399390731e-07 | R32: =+_xlfn.COVARIANCE.P(OFFSET(ReturnData!$B$1:$B$1805,0,Input!S$74-1),OFFSET(ReturnData!$B$1:$B$1805,0,Solver!$C32-1)) -> 8.413415494e-06 | S32: =+_xlfn.COVARIANCE.P(OFFSET(ReturnData!$B$1:$B$1805,0,Input!T$74-1),OFFSET(ReturnData!$B$1:$B$1805,0,Solver!$C32-1)) -> 2.960743491e-05 | T32: =+_xlfn.COVARIANCE.P(OFFSET(ReturnData!$B$1:$B$1805,0,Input!U$74-1),OFFSET(ReturnData!$B$1:$B$1805,0,Solver!$C32-1)) -> 3.601928257e-06 | U32: =+_xlfn.COVARIANCE.P(OFFSET(ReturnData!$B$1:$B$1805,0,Input!V$74-1),OFFSET(ReturnData!$B$1:$B$1805,0,Solver!$C32-1)) -> 0 | V32: =+_xlfn.COVARIANCE.P(OFFSET(ReturnData!$B$1:$B$1805,0,Input!W$74-1),OFFSET(ReturnData!$B$1:$B$1805,0,Solver!$C32-1)) -> 0 | W32: =+_xlfn.COVARIANCE.P(OFFSET(ReturnData!$B$1:$B$1805,0,Input!X$74-1),OFFSET(ReturnData!$B$1:$B$1805,0,Solver!$C32-1)) -> 0 | X32: =+_xlfn.COVARIANCE.P(OFFSET(ReturnData!$B$1:$B$1805,0,Input!Y$74-1),OFFSET(ReturnData!$B$1:$B$1805,0,Solver!$C32-1)) -> 0 | Y32: =+_xlfn.COVARIANCE.P(OFFSET(ReturnData!$B$1:$B$1805,0,Input!Z$74-1),OFFSET(ReturnData!$B$1:$B$1805,0,Solver!$C32-1)) -> 0
B33: BUGST | C33: 2 | D33: =+_xlfn.COVARIANCE.P(OFFSET(ReturnData!$B$1:$B$1805,0,Input!E$74-1),OFFSET(ReturnData!$B$1:$B$1805,0,Solver!$C33-1)) -> 1.074043595e-05 | E33: =+_xlfn.COVARIANCE.P(OFFSET(ReturnData!$B$1:$B$1805,0,Input!F$74-1),OFFSET(ReturnData!$B$1:$B$1805,0,Solver!$C33-1)) -> 1.816777955e-05 | F33: =+_xlfn.COVARIANCE.P(OFFSET(ReturnData!$B$1:$B$1805,0,Input!G$74-1),OFFSET(ReturnData!$B$1:$B$1805,0,Solver!$C33-1)) -> 1.935495086e-05 | G33: =+_xlfn.COVARIANCE.P(OFFSET(ReturnData!$B$1:$B$1805,0,Input!H$74-1),OFFSET(ReturnData!$B$1:$B$1805,0,Solver!$C33-1)) -> 1.92516376e-05 | H33: =+_xlfn.COVARIANCE.P(OFFSET(ReturnData!$B$1:$B$1805,0,Input!I$74-1),OFFSET(ReturnData!$B$1:$B$1805,0,Solver!$C33-1)) -> 1.950380674e-05 | I33: =+_xlfn.COVARIANCE.P(OFFSET(ReturnData!$B$1:$B$1805,0,Input!J$74-1),OFFSET(ReturnData!$B$1:$B$1805,0,Solver!$C33-1)) -> 2.909952931e-05 | J33: =+_xlfn.COVARIANCE.P(OFFSET(ReturnData!$B$1:$B$1805,0,Input!K$74-1),OFFSET(ReturnData!$B$1:$B$1805,0,Solver!$C33-1)) -> 3.62819894e-05 | K33: =+_xlfn.COVARIANCE.P(OFFSET(ReturnData!$B$1:$B$1805,0,Input!L$74-1),OFFSET(ReturnData!$B$1:$B$1805,0,Solver!$C33-1)) -> 2.400113636e-05 | L33: =+_xlfn.COVARIANCE.P(OFFSET(ReturnData!$B$1:$B$1805,0,Input!M$74-1),OFFSET(ReturnData!$B$1:$B$1805,0,Solver!$C33-1)) -> 1.493134893e-05 | M33: =+_xlfn.COVARIANCE.P(OFFSET(ReturnData!$B$1:$B$1805,0,Input!N$74-1),OFFSET(ReturnData!$B$1:$B$1805,0,Solver!$C33-1)) -> 4.506113194e-05 | N33: =+_xlfn.COVARIANCE.P(OFFSET(ReturnData!$B$1:$B$1805,0,Input!O$74-1),OFFSET(ReturnData!$B$1:$B$1805,0,Solver!$C33-1)) -> 1.368591182e-05 | O33: =+_xlfn.COVARIANCE.P(OFFSET(ReturnData!$B$1:$B$1805,0,Input!P$74-1),OFFSET(ReturnData!$B$1:$B$1805,0,Solver!$C33-1)) -> 8.661103319e-06 | P33: =+_xlfn.COVARIANCE.P(OFFSET(ReturnData!$B$1:$B$1805,0,Input!Q$74-1),OFFSET(ReturnData!$B$1:$B$1805,0,Solver!$C33-1)) -> 2.429624341e-06 | Q33: =+_xlfn.COVARIANCE.P(OFFSET(ReturnData!$B$1:$B$1805,0,Input!R$74-1),OFFSET(ReturnData!$B$1:$B$1805,0,Solver!$C33-1)) -> 1.501997391e-07 | R33: =+_xlfn.COVARIANCE.P(OFFSET(ReturnData!$B$1:$B$1805,0,Input!S$74-1),OFFSET(ReturnData!$B$1:$B$1805,0,Solver!$C33-1)) -> 2.06672973e-05 | S33: =+_xlfn.COVARIANCE.P(OFFSET(ReturnData!$B$1:$B$1805,0,Input!T$74-1),OFFSET(ReturnData!$B$1:$B$1805,0,Solver!$C33-1)) -> 2.568285071e-05 | T33: =+_xlfn.COVARIANCE.P(OFFSET(ReturnData!$B$1:$B$1805,0,Input!U$74-1),OFFSET(ReturnData!$B$1:$B$1805,0,Solver!$C33-1)) -> 9.511707965e-06 | U33: =+_xlfn.COVARIANCE.P(OFFSET(ReturnData!$B$1:$B$1805,0,Input!V$74-1),OFFSET(ReturnData!$B$1:$B$1805,0,Solver!$C33-1)) -> 0 | V33: =+_xlfn.COVARIANCE.P(OFFSET(ReturnData!$B$1:$B$1805,0,Input!W$74-1),OFFSET(ReturnData!$B$1:$B$1805,0,Solver!$C33-1)) -> 0 | W33: =+_xlfn.COVARIANCE.P(OFFSET(ReturnData!$B$1:$B$1805,0,Input!X$74-1),OFFSET(ReturnData!$B$1:$B$1805,0,Solver!$C33-1)) -> 0 | X33: =+_xlfn.COVARIANCE.P(OFFSET(ReturnData!$B$1:$B$1805,0,Input!Y$74-1),OFFSET(ReturnData!$B$1:$B$1805,0,Solver!$C33-1)) -> 0 | Y33: =+_xlfn.COVARIANCE.P(OFFSET(ReturnData!$B$1:$B$1805,0,Input!Z$74-1),OFFSET(ReturnData!$B$1:$B$1805,0,Solver!$C33-1)) -> 0
B34: BUGLEV | C34: 3 | D34: =+_xlfn.COVARIANCE.P(OFFSET(ReturnData!$B$1:$B$1805,0,Input!E$74-1),OFFSET(ReturnData!$B$1:$B$1805,0,Solver!$C34-1)) -> 1.284076591e-05 | E34: =+_xlfn.COVARIANCE.P(OFFSET(ReturnData!$B$1:$B$1805,0,Input!F$74-1),OFFSET(ReturnData!$B$1:$B$1805,0,Solver!$C34-1)) -> 1.935495086e-05 | F34: =+_xlfn.COVARIANCE.P(OFFSET(ReturnData!$B$1:$B$1805,0,Input!G$74-1),OFFSET(ReturnData!$B$1:$B$1805,0,Solver!$C34-1)) -> 2.520350197e-05 | G34: =+_xlfn.COVARIANCE.P(OFFSET(ReturnData!$B$1:$B$1805,0,Input!H$74-1),OFFSET(ReturnData!$B$1:$B$1805,0,Solver!$C34-1)) -> 2.598067189e-05 | H34: =+_xlfn.COVARIANCE.P(OFFSET(ReturnData!$B$1:$B$1805,0,Input!I$74-1),OFFSET(ReturnData!$B$1:$B$1805,0,Solver!$C34-1)) -> 2.372302094e-05 | I34: =+_xlfn.COVARIANCE.P(OFFSET(ReturnData!$B$1:$B$1805,0,Input!J$74-1),OFFSET(ReturnData!$B$1:$B$1805,0,Solver!$C34-1)) -> 3.246359062e-05 | J34: =+_xlfn.COVARIANCE.P(OFFSET(ReturnData!$B$1:$B$1805,0,Input!K$74-1),OFFSET(ReturnData!$B$1:$B$1805,0,Solver!$C34-1)) -> 4.014226788e-05 | K34: =+_xlfn.COVARIANCE.P(OFFSET(ReturnData!$B$1:$B$1805,0,Input!L$74-1),OFFSET(ReturnData!$B$1:$B$1805,0,Solver!$C34-1)) -> 2.632458792e-05 | L34: =+_xlfn.COVARIANCE.P(OFFSET(ReturnData!$B$1:$B$1805,0,Input!M$74-1),OFFSET(ReturnData!$B$1:$B$1805,0,Solver!$C34-1)) -> 1.933218425e-05 | M34: =+_xlfn.COVARIANCE.P(OFFSET(ReturnData!$B$1:$B$1805,0,Input!N$74-1),OFFSET(ReturnData!$B$1:$B$1805,0,Solver!$C34-1)) -> 5.75240991e-05 | N34: =+_xlfn.COVARIANCE.P(OFFSET(ReturnData!$B$1:$B$1805,0,Input!O$74-1),OFFSET(ReturnData!$B$1:$B$1805,0,Solver!$C34-1)) -> 2.189017438e-05 | O34: =+_xlfn.COVARIANCE.P(OFFSET(ReturnData!$B$1:$B$1805,0,Input!P$74-1),OFFSET(ReturnData!$B$1:$B$1805,0,Solver!$C34-1)) -> 9.655498699e-06 | P34: =+_xlfn.COVARIANCE.P(OFFSET(ReturnData!$B$1:$B$1805,0,Input!Q$74-1),OFFSET(ReturnData!$B$1:$B$1805,0,Solver!$C34-1)) -> 3.358498345e-06 | Q34: =+_xlfn.COVARIANCE.P(OFFSET(ReturnData!$B$1:$B$1805,0,Input!R$74-1),OFFSET(ReturnData!$B$1:$B$1805,0,Solver!$C34-1)) -> 3.95335733e-07 | R34: =+_xlfn.COVARIANCE.P(OFFSET(ReturnData!$B$1:$B$1805,0,Input!S$74-1),OFFSET(ReturnData!$B$1:$B$1805,0,Solver!$C34-1)) -> 2.448324732e-05 | S34: =+_xlfn.COVARIANCE.P(OFFSET(ReturnData!$B$1:$B$1805,0,Input!T$74-1),OFFSET(ReturnData!$B$1:$B$1805,0,Solver!$C34-1)) -> 3.317349731e-05 | T34: =+_xlfn.COVARIANCE.P(OFFSET(ReturnData!$B$1:$B$1805,0,Input!U$74-1),OFFSET(ReturnData!$B$1:$B$1805,0,Solver!$C34-1)) -> 9.212526431e-06 | U34: =+_xlfn.COVARIANCE.P(OFFSET(ReturnData!$B$1:$B$1805,0,Input!V$74-1),OFFSET(ReturnData!$B$1:$B$1805,0,Solver!$C34-1)) -> 0 | V34: =+_xlfn.COVARIANCE.P(OFFSET(ReturnData!$B$1:$B$1805,0,Input!W$74-1),OFFSET(ReturnData!$B$1:$B$1805,0,Solver!$C34-1)) -> 0 | W34: =+_xlfn.COVARIANCE.P(OFFSET(ReturnData!$B$1:$B$1805,0,Input!X$74-1),OFFSET(ReturnData!$B$1:$B$1805,0,Solver!$C34-1)) -> 0 | X34: =+_xlfn.COVARIANCE.P(OFFSET(ReturnData!$B$1:$B$1805,0,Input!Y$74-1),OFFSET(ReturnData!$B$1:$B$1805,0,Solver!$C34-1)) -> 0 | Y34: =+_xlfn.COVARIANCE.P(OFFSET(ReturnData!$B$1:$B$1805,0,Input!Z$74-1),OFFSET(ReturnData!$B$1:$B$1805,0,Solver!$C34-1)) -> 0
B35: WTOP4 | C35: 4 | D35: =+_xlfn.COVARIANCE.P(OFFSET(ReturnData!$B$1:$B$1805,0,Input!E$74-1),OFFSET(ReturnData!$B$1:$B$1805,0,Solver!$C35-1)) -> 1.836379226e-05 | E35: =+_xlfn.COVARIANCE.P(OFFSET(ReturnData!$B$1:$B$1805,0,Input!F$74-1),OFFSET(ReturnData!$B$1:$B$1805,0,Solver!$C35-1)) -> 1.92516376e-05 | F35: =+_xlfn.COVARIANCE.P(OFFSET(ReturnData!$B$1:$B$1805,0,Input!G$74-1),OFFSET(ReturnData!$B$1:$B$1805,0,Solver!$C35-1)) -> 2.598067189e-05 | G35: =+_xlfn.COVARIANCE.P(OFFSET(ReturnData!$B$1:$B$1805,0,Input!H$74-1),OFFSET(ReturnData!$B$1:$B$1805,0,Solver!$C35-1)) -> 6.758001592e-05 | H35: =+_xlfn.COVARIANCE.P(OFFSET(ReturnData!$B$1:$B$1805,0,Input!I$74-1),OFFSET(ReturnData!$B$1:$B$1805,0,Solver!$C35-1)) -> 3.534389052e-05 | I35: =+_xlfn.COVARIANCE.P(OFFSET(ReturnData!$B$1:$B$1805,0,Input!J$74-1),OFFSET(ReturnData!$B$1:$B$1805,0,Solver!$C35-1)) -> 5.606485721e-05 | J35: =+_xlfn.COVARIANCE.P(OFFSET(ReturnData!$B$1:$B$1805,0,Input!K$74-1),OFFSET(ReturnData!$B$1:$B$1805,0,Solver!$C35-1)) -> 5.842309543e-05 | K35: =+_xlfn.COVARIANCE.P(OFFSET(ReturnData!$B$1:$B$1805,0,Input!L$74-1),OFFSET(ReturnData!$B$1:$B$1805,0,Solver!$C35-1)) -> 4.043787215e-05 | L35: =+_xlfn.COVARIANCE.P(OFFSET(ReturnData!$B$1:$B$1805,0,Input!M$74-1),OFFSET(ReturnData!$B$1:$B$1805,0,Solver!$C35-1)) -> 3.167894415e-05 | M35: =+_xlfn.COVARIANCE.P(OFFSET(ReturnData!$B$1:$B$1805,0,Input!N$74-1),OFFSET(ReturnData!$B$1:$B$1805,0,Solver!$C35-1)) -> 9.521304758e-05 | N35: =+_xlfn.COVARIANCE.P(OFFSET(ReturnData!$B$1:$B$1805,0,Input!O$74-1),OFFSET(ReturnData!$B$1:$B$1805,0,Solver!$C35-1)) -> 3.15215288e-05 | O35: =+_xlfn.COVARIANCE.P(OFFSET(ReturnData!$B$1:$B$1805,0,Input!P$74-1),OFFSET(ReturnData!$B$1:$B$1805,0,Solver!$C35-1)) -> 1.698172082e-05 | P35: =+_xlfn.COVARIANCE.P(OFFSET(ReturnData!$B$1:$B$1805,0,Input!Q$74-1),OFFSET(ReturnData!$B$1:$B$1805,0,Solver!$C35-1)) -> 4.68950702e-06 | Q35: =+_xlfn.COVARIANCE.P(OFFSET(ReturnData!$B$1:$B$1805,0,Input!R$74-1),OFFSET(ReturnData!$B$1:$B$1805,0,Solver!$C35-1)) -> 4.979029625e-07 | R35: =+_xlfn.COVARIANCE.P(OFFSET(ReturnData!$B$1:$B$1805,0,Input!S$74-1),OFFSET(ReturnData!$B$1:$B$1805,0,Solver!$C35-1)) -> 2.109837379e-05 | S35: =+_xlfn.COVARIANCE.P(OFFSET(ReturnData!$B$1:$B$1805,0,Input!T$74-1),OFFSET(ReturnData!$B$1:$B$1805,0,Solver!$C35-1)) -> 5.663136696e-05 | T35: =+_xlfn.COVARIANCE.P(OFFSET(ReturnData!$B$1:$B$1805,0,Input!U$74-1),OFFSET(ReturnData!$B$1:$B$1805,0,Solver!$C35-1)) -> 2.814785932e-06 | U35: =+_xlfn.COVARIANCE.P(OFFSET(ReturnData!$B$1:$B$1805,0,Input!V$74-1),OFFSET(ReturnData!$B$1:$B$1805,0,Solver!$C35-1)) -> 0 | V35: =+_xlfn.COVARIANCE.P(OFFSET(ReturnData!$B$1:$B$1805,0,Input!W$74-1),OFFSET(ReturnData!$B$1:$B$1805,0,Solver!$C35-1)) -> 0 | W35: =+_xlfn.COVARIANCE.P(OFFSET(ReturnData!$B$1:$B$1805,0,Input!X$74-1),OFFSET(ReturnData!$B$1:$B$1805,0,Solver!$C35-1)) -> 0 | X35: =+_xlfn.COVARIANCE.P(OFFSET(ReturnData!$B$1:$B$1805,0,Input!Y$74-1),OFFSET(ReturnData!$B$1:$B$1805,0,Solver!$C35-1)) -> 0 | Y35: =+_xlfn.COVARIANCE.P(OFFSET(ReturnData!$B$1:$B$1805,0,Input!Z$74-1),OFFSET(ReturnData!$B$1:$B$1805,0,Solver!$C35-1)) -> 0
B36: GSRlv | C36: 5 | D36: =+_xlfn.COVARIANCE.P(OFFSET(ReturnData!$B$1:$B$1805,0,Input!E$74-1),OFFSET(ReturnData!$B$1:$B$1805,0,Solver!$C36-1)) -> 2.264421685e-05 | E36: =+_xlfn.COVARIANCE.P(OFFSET(ReturnData!$B$1:$B$1805,0,Input!F$74-1),OFFSET(ReturnData!$B$1:$B$1805,0,Solver!$C36-1)) -> 1.950380674e-05 | F36: =+_xlfn.COVARIANCE.P(OFFSET(ReturnData!$B$1:$B$1805,0,Input!G$74-1),OFFSET(ReturnData!$B$1:$B$1805,0,Solver!$C36-1)) -> 2.372302094e-05 | G36: =+_xlfn.COVARIANCE.P(OFFSET(ReturnData!$B$1:$B$1805,0,Input!H$74-1),OFFSET(ReturnData!$B$1:$B$1805,0,Solver!$C36-1)) -> 3.534389052e-05 | H36: =+_xlfn.COVARIANCE.P(OFFSET(ReturnData!$B$1:$B$1805,0,Input!I$74-1),OFFSET(ReturnData!$B$1:$B$1805,0,Solver!$C36-1)) -> 7.64731447e-05 | I36: =+_xlfn.COVARIANCE.P(OFFSET(ReturnData!$B$1:$B$1805,0,Input!J$74-1),OFFSET(ReturnData!$B$1:$B$1805,0,Solver!$C36-1)) -> 7.869808555e-05 | J36: =+_xlfn.COVARIANCE.P(OFFSET(ReturnData!$B$1:$B$1805,0,Input!K$74-1),OFFSET(ReturnData!$B$1:$B$1805,0,Solver!$C36-1)) -> 8.527889969e-05 | K36: =+_xlfn.COVARIANCE.P(OFFSET(ReturnData!$B$1:$B$1805,0,Input!L$74-1),OFFSET(ReturnData!$B$1:$B$1805,0,Solver!$C36-1)) -> 4.595545458e-05 | L36: =+_xlfn.COVARIANCE.P(OFFSET(ReturnData!$B$1:$B$1805,0,Input!M$74-1),OFFSET(ReturnData!$B$1:$B$1805,0,Solver!$C36-1)) -> 3.211784965e-05 | M36: =+_xlfn.COVARIANCE.P(OFFSET(ReturnData!$B$1:$B$1805,0,Input!N$74-1),OFFSET(ReturnData!$B$1:$B$1805,0,Solver!$C36-1)) -> 9.730936635e-05 | N36: =+_xlfn.COVARIANCE.P(OFFSET(ReturnData!$B$1:$B$1805,0,Input!O$74-1),OFFSET(ReturnData!$B$1:$B$1805,0,Solver!$C36-1)) -> 4.582923392e-05 | O36: =+_xlfn.COVARIANCE.P(OFFSET(ReturnData!$B$1:$B$1805,0,Input!P$74-1),OFFSET(ReturnData!$B$1:$B$1805,0,Solver!$C36-1)) -> -4.844139114e-06 | P36: =+_xlfn.COVARIANCE.P(OFFSET(ReturnData!$B$1:$B$1805,0,Input!Q$74-1),OFFSET(ReturnData!$B$1:$B$1805,0,Solver!$C36-1)) -> 2.496827434e-07 | Q36: =+_xlfn.COVARIANCE.P(OFFSET(ReturnData!$B$1:$B$1805,0,Input!R$74-1),OFFSET(ReturnData!$B$1:$B$1805,0,Solver!$C36-1)) -> -5.470534173e-07 | R36: =+_xlfn.COVARIANCE.P(OFFSET(ReturnData!$B$1:$B$1805,0,Input!S$74-1),OFFSET(ReturnData!$B$1:$B$1805,0,Solver!$C36-1)) -> 1.625043144e-05 | S36: =+_xlfn.COVARIANCE.P(OFFSET(ReturnData!$B$1:$B$1805,0,Input!T$74-1),OFFSET(ReturnData!$B$1:$B$1805,0,Solver!$C36-1)) -> 6.157618662e-05 | T36: =+_xlfn.COVARIANCE.P(OFFSET(ReturnData!$B$1:$B$1805,0,Input!U$74-1),OFFSET(ReturnData!$B$1:$B$1805,0,Solver!$C36-1)) -> 4.749064012e-06 | U36: =+_xlfn.COVARIANCE.P(OFFSET(ReturnData!$B$1:$B$1805,0,Input!V$74-1),OFFSET(ReturnData!$B$1:$B$1805,0,Solver!$C36-1)) -> 0 | V36: =+_xlfn.COVARIANCE.P(OFFSET(ReturnData!$B$1:$B$1805,0,Input!W$74-1),OFFSET(ReturnData!$B$1:$B$1805,0,Solver!$C36-1)) -> 0 | W36: =+_xlfn.COVARIANCE.P(OFFSET(ReturnData!$B$1:$B$1805,0,Input!X$74-1),OFFSET(ReturnData!$B$1:$B$1805,0,Solver!$C36-1)) -> 0 | X36: =+_xlfn.COVARIANCE.P(OFFSET(ReturnData!$B$1:$B$1805,0,Input!Y$74-1),OFFSET(ReturnData!$B$1:$B$1805,0,Solver!$C36-1)) -> 0 | Y36: =+_xlfn.COVARIANCE.P(OFFSET(ReturnData!$B$1:$B$1805,0,Input!Z$74-1),OFFSET(ReturnData!$B$1:$B$1805,0,Solver!$C36-1)) -> 0
B37: GMRS | C37: 6 | D37: =+_xlfn.COVARIANCE.P(OFFSET(ReturnData!$B$1:$B$1805,0,Input!E$74-1),OFFSET(ReturnData!$B$1:$B$1805,0,Solver!$C37-1)) -> 3.664416697e-05 | E37: =+_xlfn.COVARIANCE.P(OFFSET(ReturnData!$B$1:$B$1805,0,Input!F$74-1),OFFSET(ReturnData!$B$1:$B$1805,0,Solver!$C37-1)) -> 2.909952931e-05 | F37: =+_xlfn.COVARIANCE.P(OFFSET(ReturnData!$B$1:$B$1805,0,Input!G$74-1),OFFSET(ReturnData!$B$1:$B$1805,0,Solver!$C37-1)) -> 3.246359062e-05 | G37: =+_xlfn.COVARIANCE.P(OFFSET(ReturnData!$B$1:$B$1805,0,Input!H$74-1),OFFSET(ReturnData!$B$1:$B$1805,0,Solver!$C37-1)) -> 5.606485721e-05 | H37: =+_xlfn.COVARIANCE.P(OFFSET(ReturnData!$B$1:$B$1805,0,Input!I$74-1),OFFSET(ReturnData!$B$1:$B$1805,0,Solver!$C37-1)) -> 7.869808555e-05 | I37: =+_xlfn.COVARIANCE.P(OFFSET(ReturnData!$B$1:$B$1805,0,Input!J$74-1),OFFSET(ReturnData!$B$1:$B$1805,0,Solver!$C37-1)) -> 0.0001707099494 | J37: =+_xlfn.COVARIANCE.P(OFFSET(ReturnData!$B$1:$B$1805,0,Input!K$74-1),OFFSET(ReturnData!$B$1:$B$1805,0,Solver!$C37-1)) -> 0.0001423058337 | K37: =+_xlfn.COVARIANCE.P(OFFSET(ReturnData!$B$1:$B$1805,0,Input!L$74-1),OFFSET(ReturnData!$B$1:$B$1805,0,Solver!$C37-1)) -> 8.369245326e-05 | L37: =+_xlfn.COVARIANCE.P(OFFSET(ReturnData!$B$1:$B$1805,0,Input!M$74-1),OFFSET(ReturnData!$B$1:$B$1805,0,Solver!$C37-1)) -> 4.703559747e-05 | M37: =+_xlfn.COVARIANCE.P(OFFSET(ReturnData!$B$1:$B$1805,0,Input!N$74-1),OFFSET(ReturnData!$B$1:$B$1805,0,Solver!$C37-1)) -> 0.0001444377426 | N37: =+_xlfn.COVARIANCE.P(OFFSET(ReturnData!$B$1:$B$1805,0,Input!O$74-1),OFFSET(ReturnData!$B$1:$B$1805,0,Solver!$C37-1)) -> 3.51648283e-05 | O37: =+_xlfn.COVARIANCE.P(OFFSET(ReturnData!$B$1:$B$1805,0,Input!P$74-1),OFFSET(ReturnData!$B$1:$B$1805,0,Solver!$C37-1)) -> 1.710979844e-05 | P37: =+_xlfn.COVARIANCE.P(OFFSET(ReturnData!$B$1:$B$1805,0,Input!Q$74-1),OFFSET(ReturnData!$B$1:$B$1805,0,Solver!$C37-1)) -> 3.918861737e-06 | Q37: =+_xlfn.COVARIANCE.P(OFFSET(ReturnData!$B$1:$B$1805,0,Input!R$74-1),OFFSET(ReturnData!$B$1:$B$1805,0,Solver!$C37-1)) -> -2.547884179e-07 | R37: =+_xlfn.COVARIANCE.P(OFFSET(ReturnData!$B$1:$B$1805,0,Input!S$74-1),OFFSET(ReturnData!$B$1:$B$1805,0,Solver!$C37-1)) -> 2.706926689e-05 | S37: =+_xlfn.COVARIANCE.P(OFFSET(ReturnData!$B$1:$B$1805,0,Input!T$74-1),OFFSET(ReturnData!$B$1:$B$1805,0,Solver!$C37-1)) -> 7.051450547e-05 | T37: =+_xlfn.COVARIANCE.P(OFFSET(ReturnData!$B$1:$B$1805,0,Input!U$74-1),OFFSET(ReturnData!$B$1:$B$1805,0,Solver!$C37-1)) -> 1.242334831e-05 | U37: =+_xlfn.COVARIANCE.P(OFFSET(ReturnData!$B$1:$B$1805,0,Input!V$74-1),OFFSET(ReturnData!$B$1:$B$1805,0,Solver!$C37-1)) -> 0 | V37: =+_xlfn.COVARIANCE.P(OFFSET(ReturnData!$B$1:$B$1805,0,Input!W$74-1),OFFSET(ReturnData!$B$1:$B$1805,0,Solver!$C37-1)) -> 0 | W37: =+_xlfn.COVARIANCE.P(OFFSET(ReturnData!$B$1:$B$1805,0,Input!X$74-1),OFFSET(ReturnData!$B$1:$B$1805,0,Solver!$C37-1)) -> 0 | X37: =+_xlfn.COVARIANCE.P(OFFSET(ReturnData!$B$1:$B$1805,0,Input!Y$74-1),OFFSET(ReturnData!$B$1:$B$1805,0,Solver!$C37-1)) -> 0 | Y37: =+_xlfn.COVARIANCE.P(OFFSET(ReturnData!$B$1:$B$1805,0,Input!Z$74-1),OFFSET(ReturnData!$B$1:$B$1805,0,Solver!$C37-1)) -> 0
B38: GMRSE | C38: 7 | D38: =+_xlfn.COVARIANCE.P(OFFSET(ReturnData!$B$1:$B$1805,0,Input!E$74-1),OFFSET(ReturnData!$B$1:$B$1805,0,Solver!$C38-1)) -> 4.183925946e-05 | E38: =+_xlfn.COVARIANCE.P(OFFSET(ReturnData!$B$1:$B$1805,0,Input!F$74-1),OFFSET(ReturnData!$B$1:$B$1805,0,Solver!$C38-1)) -> 3.62819894e-05 | F38: =+_xlfn.COVARIANCE.P(OFFSET(ReturnData!$B$1:$B$1805,0,Input!G$74-1),OFFSET(ReturnData!$B$1:$B$1805,0,Solver!$C38-1)) -> 4.014226788e-05 | G38: =+_xlfn.COVARIANCE.P(OFFSET(ReturnData!$B$1:$B$1805,0,Input!H$74-1),OFFSET(ReturnData!$B$1:$B$1805,0,Solver!$C38-1)) -> 5.842309543e-05 | H38: =+_xlfn.COVARIANCE.P(OFFSET(ReturnData!$B$1:$B$1805,0,Input!I$74-1),OFFSET(ReturnData!$B$1:$B$1805,0,Solver!$C38-1)) -> 8.527889969e-05 | I38: =+_xlfn.COVARIANCE.P(OFFSET(ReturnData!$B$1:$B$1805,0,Input!J$74-1),OFFSET(ReturnData!$B$1:$B$1805,0,Solver!$C38-1)) -> 0.0001423058337 | J38: =+_xlfn.COVARIANCE.P(OFFSET(ReturnData!$B$1:$B$1805,0,Input!K$74-1),OFFSET(ReturnData!$B$1:$B$1805,0,Solver!$C38-1)) -> 0.00022773597 | K38: =+_xlfn.COVARIANCE.P(OFFSET(ReturnData!$B$1:$B$1805,0,Input!L$74-1),OFFSET(ReturnData!$B$1:$B$1805,0,Solver!$C38-1)) -> 0.000143942297 | L38: =+_xlfn.COVARIANCE.P(OFFSET(ReturnData!$B$1:$B$1805,0,Input!M$74-1),OFFSET(ReturnData!$B$1:$B$1805,0,Solver!$C38-1)) -> 5.318352587e-05 | M38: =+_xlfn.COVARIANCE.P(OFFSET(ReturnData!$B$1:$B$1805,0,Input!N$74-1),OFFSET(ReturnData!$B$1:$B$1805,0,Solver!$C38-1)) -> 0.0001593541937 | N38: =+_xlfn.COVARIANCE.P(OFFSET(ReturnData!$B$1:$B$1805,0,Input!O$74-1),OFFSET(ReturnData!$B$1:$B$1805,0,Solver!$C38-1)) -> 3.241655469e-05 | O38: =+_xlfn.COVARIANCE.P(OFFSET(ReturnData!$B$1:$B$1805,0,Input!P$74-1),OFFSET(ReturnData!$B$1:$B$1805,0,Solver!$C38-1)) -> 2.517200345e-05 | P38: =+_xlfn.COVARIANCE.P(OFFSET(ReturnData!$B$1:$B$1805,0,Input!Q$74-1),OFFSET(ReturnData!$B$1:$B$1805,0,Solver!$C38-1)) -> 4.994680621e-06 | Q38: =+_xlfn.COVARIANCE.P(OFFSET(ReturnData!$B$1:$B$1805,0,Input!R$74-1),OFFSET(ReturnData!$B$1:$B$1805,0,Solver!$C38-1)) -> -2.910293254e-07 | R38: =+_xlfn.COVARIANCE.P(OFFSET(ReturnData!$B$1:$B$1805,0,Input!S$74-1),OFFSET(ReturnData!$B$1:$B$1805,0,Solver!$C38-1)) -> 2.982904257e-05 | S38: =+_xlfn.COVARIANCE.P(OFFSET(ReturnData!$B$1:$B$1805,0,Input!T$74-1),OFFSET(ReturnData!$B$1:$B$1805,0,Solver!$C38-1)) -> 9.296243952e-05 | T38: =+_xlfn.COVARIANCE.P(OFFSET(ReturnData!$B$1:$B$1805,0,Input!U$74-1),OFFSET(ReturnData!$B$1:$B$1805,0,Solver!$C38-1)) -> 1.717837253e-05 | U38: =+_xlfn.COVARIANCE.P(OFFSET(ReturnData!$B$1:$B$1805,0,Input!V$74-1),OFFSET(ReturnData!$B$1:$B$1805,0,Solver!$C38-1)) -> 0 | V38: =+_xlfn.COVARIANCE.P(OFFSET(ReturnData!$B$1:$B$1805,0,Input!W$74-1),OFFSET(ReturnData!$B$1:$B$1805,0,Solver!$C38-1)) -> 0 | W38: =+_xlfn.COVARIANCE.P(OFFSET(ReturnData!$B$1:$B$1805,0,Input!X$74-1),OFFSET(ReturnData!$B$1:$B$1805,0,Solver!$C38-1)) -> 0 | X38: =+_xlfn.COVARIANCE.P(OFFSET(ReturnData!$B$1:$B$1805,0,Input!Y$74-1),OFFSET(ReturnData!$B$1:$B$1805,0,Solver!$C38-1)) -> 0 | Y38: =+_xlfn.COVARIANCE.P(OFFSET(ReturnData!$B$1:$B$1805,0,Input!Z$74-1),OFFSET(ReturnData!$B$1:$B$1805,0,Solver!$C38-1)) -> 0
B39: MYRS | C39: 8 | D39: =+_xlfn.COVARIANCE.P(OFFSET(ReturnData!$B$1:$B$1805,0,Input!E$74-1),OFFSET(ReturnData!$B$1:$B$1805,0,Solver!$C39-1)) -> 2.518898162e-05 | E39: =+_xlfn.COVARIANCE.P(OFFSET(ReturnData!$B$1:$B$1805,0,Input!F$74-1),OFFSET(ReturnData!$B$1:$B$1805,0,Solver!$C39-1)) -> 2.400113636e-05 | F39: =+_xlfn.COVARIANCE.P(OFFSET(ReturnData!$B$1:$B$1805,0,Input!G$74-1),OFFSET(ReturnData!$B$1:$B$1805,0,Solver!$C39-1)) -> 2.632458792e-05 | G39: =+_xlfn.COVARIANCE.P(OFFSET(ReturnData!$B$1:$B$1805,0,Input!H$74-1),OFFSET(ReturnData!$B$1:$B$1805,0,Solver!$C39-1)) -> 4.043787215e-05 | H39: =+_xlfn.COVARIANCE.P(OFFSET(ReturnData!$B$1:$B$1805,0,Input!I$74-1),OFFSET(ReturnData!$B$1:$B$1805,0,Solver!$C39-1)) -> 4.595545458e-05 | I39: =+_xlfn.COVARIANCE.P(OFFSET(ReturnData!$B$1:$B$1805,0,Input!J$74-1),OFFSET(ReturnData!$B$1:$B$1805,0,Solver!$C39-1)) -> 8.369245326e-05 | J39: =+_xlfn.COVARIANCE.P(OFFSET(ReturnData!$B$1:$B$1805,0,Input!K$74-1),OFFSET(ReturnData!$B$1:$B$1805,0,Solver!$C39-1)) -> 0.000143942297 | K39: =+_xlfn.COVARIANCE.P(OFFSET(ReturnData!$B$1:$B$1805,0,Input!L$74-1),OFFSET(ReturnData!$B$1:$B$1805,0,Solver!$C39-1)) -> 0.0001766224906 | L39: =+_xlfn.COVARIANCE.P(OFFSET(ReturnData!$B$1:$B$1805,0,Input!M$74-1),OFFSET(ReturnData!$B$1:$B$1805,0,Solver!$C39-1)) -> 3.36064615e-05 | M39: =+_xlfn.COVARIANCE.P(OFFSET(ReturnData!$B$1:$B$1805,0,Input!N$74-1),OFFSET(ReturnData!$B$1:$B$1805,0,Solver!$C39-1)) -> 0.000106920361 | N39: =+_xlfn.COVARIANCE.P(OFFSET(ReturnData!$B$1:$B$1805,0,Input!O$74-1),OFFSET(ReturnData!$B$1:$B$1805,0,Solver!$C39-1)) -> 1.685924061e-05 | O39: =+_xlfn.COVARIANCE.P(OFFSET(ReturnData!$B$1:$B$1805,0,Input!P$74-1),OFFSET(ReturnData!$B$1:$B$1805,0,Solver!$C39-1)) -> 2.36766353e-05 | P39: =+_xlfn.COVARIANCE.P(OFFSET(ReturnData!$B$1:$B$1805,0,Input!Q$74-1),OFFSET(ReturnData!$B$1:$B$1805,0,Solver!$C39-1)) -> 5.063547362e-06 | Q39: =+_xlfn.COVARIANCE.P(OFFSET(ReturnData!$B$1:$B$1805,0,Input!R$74-1),OFFSET(ReturnData!$B$1:$B$1805,0,Solver!$C39-1)) -> 2.169969153e-07 | R39: =+_xlfn.COVARIANCE.P(OFFSET(ReturnData!$B$1:$B$1805,0,Input!S$74-1),OFFSET(ReturnData!$B$1:$B$1805,0,Solver!$C39-1)) -> 1.475284334e-05 | S39: =+_xlfn.COVARIANCE.P(OFFSET(ReturnData!$B$1:$B$1805,0,Input!T$74-1),OFFSET(ReturnData!$B$1:$B$1805,0,Solver!$C39-1)) -> 5.730725909e-05 | T39: =+_xlfn.COVARIANCE.P(OFFSET(ReturnData!$B$1:$B$1805,0,Input!U$74-1),OFFSET(ReturnData!$B$1:$B$1805,0,Solver!$C39-1)) -> 9.704273893e-06 | U39: =+_xlfn.COVARIANCE.P(OFFSET(ReturnData!$B$1:$B$1805,0,Input!V$74-1),OFFSET(ReturnData!$B$1:$B$1805,0,Solver!$C39-1)) -> 0 | V39: =+_xlfn.COVARIANCE.P(OFFSET(ReturnData!$B$1:$B$1805,0,Input!W$74-1),OFFSET(ReturnData!$B$1:$B$1805,0,Solver!$C39-1)) -> 0 | W39: =+_xlfn.COVARIANCE.P(OFFSET(ReturnData!$B$1:$B$1805,0,Input!X$74-1),OFFSET(ReturnData!$B$1:$B$1805,0,Solver!$C39-1)) -> 0 | X39: =+_xlfn.COVARIANCE.P(OFFSET(ReturnData!$B$1:$B$1805,0,Input!Y$74-1),OFFSET(ReturnData!$B$1:$B$1805,0,Solver!$C39-1)) -> 0 | Y39: =+_xlfn.COVARIANCE.P(OFFSET(ReturnData!$B$1:$B$1805,0,Input!Z$74-1),OFFSET(ReturnData!$B$1:$B$1805,0,Solver!$C39-1)) -> 0
B40: UIS | C40: 9 | D40: =+_xlfn.COVARIANCE.P(OFFSET(ReturnData!$B$1:$B$1805,0,Input!E$74-1),OFFSET(ReturnData!$B$1:$B$1805,0,Solver!$C40-1)) -> 1.499633955e-05 | E40: =+_xlfn.COVARIANCE.P(OFFSET(ReturnData!$B$1:$B$1805,0,Input!F$74-1),OFFSET(ReturnData!$B$1:$B$1805,0,Solver!$C40-1)) -> 1.493134893e-05 | F40: =+_xlfn.COVARIANCE.P(OFFSET(ReturnData!$B$1:$B$1805,0,Input!G$74-1),OFFSET(ReturnData!$B$1:$B$1805,0,Solver!$C40-1)) -> 1.933218425e-05 | G40: =+_xlfn.COVARIANCE.P(OFFSET(ReturnData!$B$1:$B$1805,0,Input!H$74-1),OFFSET(ReturnData!$B$1:$B$1805,0,Solver!$C40-1)) -> 3.167894415e-05 | H40: =+_xlfn.COVARIANCE.P(OFFSET(ReturnData!$B$1:$B$1805,0,Input!I$74-1),OFFSET(ReturnData!$B$1:$B$1805,0,Solver!$C40-1)) -> 3.211784965e-05 | I40: =+_xlfn.COVARIANCE.P(OFFSET(ReturnData!$B$1:$B$1805,0,Input!J$74-1),OFFSET(ReturnData!$B$1:$B$1805,0,Solver!$C40-1)) -> 4.703559747e-05 | J40: =+_xlfn.COVARIANCE.P(OFFSET(ReturnData!$B$1:$B$1805,0,Input!K$74-1),OFFSET(ReturnData!$B$1:$B$1805,0,Solver!$C40-1)) -> 5.318352587e-05 | K40: =+_xlfn.COVARIANCE.P(OFFSET(ReturnData!$B$1:$B$1805,0,Input!L$74-1),OFFSET(ReturnData!$B$1:$B$1805,0,Solver!$C40-1)) -> 3.36064615e-05 | L40: =+_xlfn.COVARIANCE.P(OFFSET(ReturnData!$B$1:$B$1805,0,Input!M$74-1),OFFSET(ReturnData!$B$1:$B$1805,0,Solver!$C40-1)) -> 3.280888236e-05 | M40: =+_xlfn.COVARIANCE.P(OFFSET(ReturnData!$B$1:$B$1805,0,Input!N$74-1),OFFSET(ReturnData!$B$1:$B$1805,0,Solver!$C40-1)) -> 9.58857985e-05 | N40: =+_xlfn.COVARIANCE.P(OFFSET(ReturnData!$B$1:$B$1805,0,Input!O$74-1),OFFSET(ReturnData!$B$1:$B$1805,0,Solver!$C40-1)) -> 2.699075215e-05 | O40: =+_xlfn.COVARIANCE.P(OFFSET(ReturnData!$B$1:$B$1805,0,Input!P$74-1),OFFSET(ReturnData!$B$1:$B$1805,0,Solver!$C40-1)) -> 1.841221203e-05 | P40: =+_xlfn.COVARIANCE.P(OFFSET(ReturnData!$B$1:$B$1805,0,Input!Q$74-1),OFFSET(ReturnData!$B$1:$B$1805,0,Solver!$C40-1)) -> 4.521439519e-06 | Q40: =+_xlfn.COVARIANCE.P(OFFSET(ReturnData!$B$1:$B$1805,0,Input!R$74-1),OFFSET(ReturnData!$B$1:$B$1805,0,Solver!$C40-1)) -> 4.007739013e-07 | R40: =+_xlfn.COVARIANCE.P(OFFSET(ReturnData!$B$1:$B$1805,0,Input!S$74-1),OFFSET(ReturnData!$B$1:$B$1805,0,Solver!$C40-1)) -> 1.177293134e-05 | S40: =+_xlfn.COVARIANCE.P(OFFSET(ReturnData!$B$1:$B$1805,0,Input!T$74-1),OFFSET(ReturnData!$B$1:$B$1805,0,Solver!$C40-1)) -> 3.981363381e-05 | T40: =+_xlfn.COVARIANCE.P(OFFSET(ReturnData!$B$1:$B$1805,0,Input!U$74-1),OFFSET(ReturnData!$B$1:$B$1805,0,Solver!$C40-1)) -> 2.049571126e-06 | U40: =+_xlfn.COVARIANCE.P(OFFSET(ReturnData!$B$1:$B$1805,0,Input!V$74-1),OFFSET(ReturnData!$B$1:$B$1805,0,Solver!$C40-1)) -> 0 | V40: =+_xlfn.COVARIANCE.P(OFFSET(ReturnData!$B$1:$B$1805,0,Input!W$74-1),OFFSET(ReturnData!$B$1:$B$1805,0,Solver!$C40-1)) -> 0 | W40: =+_xlfn.COVARIANCE.P(OFFSET(ReturnData!$B$1:$B$1805,0,Input!X$74-1),OFFSET(ReturnData!$B$1:$B$1805,0,Solver!$C40-1)) -> 0 | X40: =+_xlfn.COVARIANCE.P(OFFSET(ReturnData!$B$1:$B$1805,0,Input!Y$74-1),OFFSET(ReturnData!$B$1:$B$1805,0,Solver!$C40-1)) -> 0 | Y40: =+_xlfn.COVARIANCE.P(OFFSET(ReturnData!$B$1:$B$1805,0,Input!Z$74-1),OFFSET(ReturnData!$B$1:$B$1805,0,Solver!$C40-1)) -> 0
B41: UIS-SPXL-TMF | C41: 10 | D41: =+_xlfn.COVARIANCE.P(OFFSET(ReturnData!$B$1:$B$1805,0,Input!E$74-1),OFFSET(ReturnData!$B$1:$B$1805,0,Solver!$C41-1)) -> 4.380165855e-05 | E41: =+_xlfn.COVARIANCE.P(OFFSET(ReturnData!$B$1:$B$1805,0,Input!F$74-1),OFFSET(ReturnData!$B$1:$B$1805,0,Solver!$C41-1)) -> 4.506113194e-05 | F41: =+_xlfn.COVARIANCE.P(OFFSET(ReturnData!$B$1:$B$1805,0,Input!G$74-1),OFFSET(ReturnData!$B$1:$B$1805,0,Solver!$C41-1)) -> 5.75240991e-05 | G41: =+_xlfn.COVARIANCE.P(OFFSET(ReturnData!$B$1:$B$1805,0,Input!H$74-1),OFFSET(ReturnData!$B$1:$B$1805,0,Solver!$C41-1)) -> 9.521304758e-05 | H41: =+_xlfn.COVARIANCE.P(OFFSET(ReturnData!$B$1:$B$1805,0,Input!I$74-1),OFFSET(ReturnData!$B$1:$B$1805,0,Solver!$C41-1)) -> 9.730936635e-05 | I41: =+_xlfn.COVARIANCE.P(OFFSET(ReturnData!$B$1:$B$1805,0,Input!J$74-1),OFFSET(ReturnData!$B$1:$B$1805,0,Solver!$C41-1)) -> 0.0001444377426 | J41: =+_xlfn.COVARIANCE.P(OFFSET(ReturnData!$B$1:$B$1805,0,Input!K$74-1),OFFSET(ReturnData!$B$1:$B$1805,0,Solver!$C41-1)) -> 0.0001593541937 | K41: =+_xlfn.COVARIANCE.P(OFFSET(ReturnData!$B$1:$B$1805,0,Input!L$74-1),OFFSET(ReturnData!$B$1:$B$1805,0,Solver!$C41-1)) -> 0.000106920361 | L41: =+_xlfn.COVARIANCE.P(OFFSET(ReturnData!$B$1:$B$1805,0,Input!M$74-1),OFFSET(ReturnData!$B$1:$B$1805,0,Solver!$C41-1)) -> 9.58857985e-05 | M41: =+_xlfn.COVARIANCE.P(OFFSET(ReturnData!$B$1:$B$1805,0,Input!N$74-1),OFFSET(ReturnData!$B$1:$B$1805,0,Solver!$C41-1)) -> 0.0002914086234 | N41: =+_xlfn.COVARIANCE.P(OFFSET(ReturnData!$B$1:$B$1805,0,Input!O$74-1),OFFSET(ReturnData!$B$1:$B$1805,0,Solver!$C41-1)) -> 7.785882103e-05 | O41: =+_xlfn.COVARIANCE.P(OFFSET(ReturnData!$B$1:$B$1805,0,Input!P$74-1),OFFSET(ReturnData!$B$1:$B$1805,0,Solver!$C41-1)) -> 5.618823357e-05 | P41: =+_xlfn.COVARIANCE.P(OFFSET(ReturnData!$B$1:$B$1805,0,Input!Q$74-1),OFFSET(ReturnData!$B$1:$B$1805,0,Solver!$C41-1)) -> 1.354695918e-05 | Q41: =+_xlfn.COVARIANCE.P(OFFSET(ReturnData!$B$1:$B$1805,0,Input!R$74-1),OFFSET(ReturnData!$B$1:$B$1805,0,Solver!$C41-1)) -> 1.235936294e-06 | R41: =+_xlfn.COVARIANCE.P(OFFSET(ReturnData!$B$1:$B$1805,0,Input!S$74-1),OFFSET(ReturnData!$B$1:$B$1805,0,Solver!$C41-1)) -> 3.783492482e-05 | S41: =+_xlfn.COVARIANCE.P(OFFSET(ReturnData!$B$1:$B$1805,0,Input!T$74-1),OFFSET(ReturnData!$B$1:$B$1805,0,Solver!$C41-1)) -> 0.0001159727561 | T41: =+_xlfn.COVARIANCE.P(OFFSET(ReturnData!$B$1:$B$1805,0,Input!U$74-1),OFFSET(ReturnData!$B$1:$B$1805,0,Solver!$C41-1)) -> 6.803621861e-06 | U41: =+_xlfn.COVARIANCE.P(OFFSET(ReturnData!$B$1:$B$1805,0,Input!V$74-1),OFFSET(ReturnData!$B$1:$B$1805,0,Solver!$C41-1)) -> 0 | V41: =+_xlfn.COVARIANCE.P(OFFSET(ReturnData!$B$1:$B$1805,0,Input!W$74-1),OFFSET(ReturnData!$B$1:$B$1805,0,Solver!$C41-1)) -> 0 | W41: =+_xlfn.COVARIANCE.P(OFFSET(ReturnData!$B$1:$B$1805,0,Input!X$74-1),OFFSET(ReturnData!$B$1:$B$1805,0,Solver!$C41-1)) -> 0 | X41: =+_xlfn.COVARIANCE.P(OFFSET(ReturnData!$B$1:$B$1805,0,Input!Y$74-1),OFFSET(ReturnData!$B$1:$B$1805,0,Solver!$C41-1)) -> 0 | Y41: =+_xlfn.COVARIANCE.P(OFFSET(ReturnData!$B$1:$B$1805,0,Input!Z$74-1),OFFSET(ReturnData!$B$1:$B$1805,0,Solver!$C41-1)) -> 0
B42: SPY | C42: 11 | D42: =+_xlfn.COVARIANCE.P(OFFSET(ReturnData!$B$1:$B$1805,0,Input!E$74-1),OFFSET(ReturnData!$B$1:$B$1805,0,Solver!$C42-1)) -> 9.423472445e-06 | E42: =+_xlfn.COVARIANCE.P(OFFSET(ReturnData!$B$1:$B$1805,0,Input!F$74-1),OFFSET(ReturnData!$B$1:$B$1805,0,Solver!$C42-1)) -> 1.368591182e-05 | F42: =+_xlfn.COVARIANCE.P(OFFSET(ReturnData!$B$1:$B$1805,0,Input!G$74-1),OFFSET(ReturnData!$B$1:$B$1805,0,Solver!$C42-1)) -> 2.189017438e-05 | G42: =+_xlfn.COVARIANCE.P(OFFSET(ReturnData!$B$1:$B$1805,0,Input!H$74-1),OFFSET(ReturnData!$B$1:$B$1805,0,Solver!$C42-1)) -> 3.15215288e-05 | H42: =+_xlfn.COVARIANCE.P(OFFSET(ReturnData!$B$1:$B$1805,0,Input!I$74-1),OFFSET(ReturnData!$B$1:$B$1805,0,Solver!$C42-1)) -> 4.582923392e-05 | I42: =+_xlfn.COVARIANCE.P(OFFSET(ReturnData!$B$1:$B$1805,0,Input!J$74-1),OFFSET(ReturnData!$B$1:$B$1805,0,Solver!$C42-1)) -> 3.51648283e-05 | J42: =+_xlfn.COVARIANCE.P(OFFSET(ReturnData!$B$1:$B$1805,0,Input!K$74-1),OFFSET(ReturnData!$B$1:$B$1805,0,Solver!$C42-1)) -> 3.241655469e-05 | K42: =+_xlfn.COVARIANCE.P(OFFSET(ReturnData!$B$1:$B$1805,0,Input!L$74-1),OFFSET(ReturnData!$B$1:$B$1805,0,Solver!$C42-1)) -> 1.685924061e-05 | L42: =+_xlfn.COVARIANCE.P(OFFSET(ReturnData!$B$1:$B$1805,0,Input!M$74-1),OFFSET(ReturnData!$B$1:$B$1805,0,Solver!$C42-1)) -> 2.699075215e-05 | M42: =+_xlfn.COVARIANCE.P(OFFSET(ReturnData!$B$1:$B$1805,0,Input!N$74-1),OFFSET(ReturnData!$B$1:$B$1805,0,Solver!$C42-1)) -> 7.785882103e-05 | N42: =+_xlfn.COVARIANCE.P(OFFSET(ReturnData!$B$1:$B$1805,0,Input!O$74-1),OFFSET(ReturnData!$B$1:$B$1805,0,Solver!$C42-1)) -> 0.0001028560034 | O42: =+_xlfn.COVARIANCE.P(OFFSET(ReturnData!$B$1:$B$1805,0,Input!P$74-1),OFFSET(ReturnData!$B$1:$B$1805,0,Solver!$C42-1)) -> -5.001830799e-05 | P42: =+_xlfn.COVARIANCE.P(OFFSET(ReturnData!$B$1:$B$1805,0,Input!Q$74-1),OFFSET(ReturnData!$B$1:$B$1805,0,Solver!$C42-1)) -> -6.787128222e-06 | Q42: =+_xlfn.COVARIANCE.P(OFFSET(ReturnData!$B$1:$B$1805,0,Input!R$74-1),OFFSET(ReturnData!$B$1:$B$1805,0,Solver!$C42-1)) -> -1.884814327e-06 | R42: =+_xlfn.COVARIANCE.P(OFFSET(ReturnData!$B$1:$B$1805,0,Input!S$74-1),OFFSET(ReturnData!$B$1:$B$1805,0,Solver!$C42-1)) -> 5.734642858e-06 | S42: =+_xlfn.COVARIANCE.P(OFFSET(ReturnData!$B$1:$B$1805,0,Input!T$74-1),OFFSET(ReturnData!$B$1:$B$1805,0,Solver!$C42-1)) -> 6.530016951e-05 | T42: =+_xlfn.COVARIANCE.P(OFFSET(ReturnData!$B$1:$B$1805,0,Input!U$74-1),OFFSET(ReturnData!$B$1:$B$1805,0,Solver!$C42-1)) -> -7.102608429e-06 | U42: =+_xlfn.COVARIANCE.P(OFFSET(ReturnData!$B$1:$B$1805,0,Input!V$74-1),OFFSET(ReturnData!$B$1:$B$1805,0,Solver!$C42-1)) -> 0 | V42: =+_xlfn.COVARIANCE.P(OFFSET(ReturnData!$B$1:$B$1805,0,Input!W$74-1),OFFSET(ReturnData!$B$1:$B$1805,0,Solver!$C42-1)) -> 0 | W42: =+_xlfn.COVARIANCE.P(OFFSET(ReturnData!$B$1:$B$1805,0,Input!X$74-1),OFFSET(ReturnData!$B$1:$B$1805,0,Solver!$C42-1)) -> 0 | X42: =+_xlfn.COVARIANCE.P(OFFSET(ReturnData!$B$1:$B$1805,0,Input!Y$74-1),OFFSET(ReturnData!$B$1:$B$1805,0,Solver!$C42-1)) -> 0 | Y42: =+_xlfn.COVARIANCE.P(OFFSET(ReturnData!$B$1:$B$1805,0,Input!Z$74-1),OFFSET(ReturnData!$B$1:$B$1805,0,Solver!$C42-1)) -> 0
B43: TLT | C43: 12 | D43: =+_xlfn.COVARIANCE.P(OFFSET(ReturnData!$B$1:$B$1805,0,Input!E$74-1),OFFSET(ReturnData!$B$1:$B$1805,0,Solver!$C43-1)) -> 8.457919911e-06 | E43: =+_xlfn.COVARIANCE.P(OFFSET(ReturnData!$B$1:$B$1805,0,Input!F$74-1),OFFSET(ReturnData!$B$1:$B$1805,0,Solver!$C43-1)) -> 8.661103319e-06 | F43: =+_xlfn.COVARIANCE.P(OFFSET(ReturnData!$B$1:$B$1805,0,Input!G$74-1),OFFSET(ReturnData!$B$1:$B$1805,0,Solver!$C43-1)) -> 9.655498699e-06 | G43: =+_xlfn.COVARIANCE.P(OFFSET(ReturnData!$B$1:$B$1805,0,Input!H$74-1),OFFSET(ReturnData!$B$1:$B$1805,0,Solver!$C43-1)) -> 1.698172082e-05 | H43: =+_xlfn.COVARIANCE.P(OFFSET(ReturnData!$B$1:$B$1805,0,Input!I$74-1),OFFSET(ReturnData!$B$1:$B$1805,0,Solver!$C43-1)) -> -4.844139114e-06 | I43: =+_xlfn.COVARIANCE.P(OFFSET(ReturnData!$B$1:$B$1805,0,Input!J$74-1),OFFSET(ReturnData!$B$1:$B$1805,0,Solver!$C43-1)) -> 1.710979844e-05 | J43: =+_xlfn.COVARIANCE.P(OFFSET(ReturnData!$B$1:$B$1805,0,Input!K$74-1),OFFSET(ReturnData!$B$1:$B$1805,0,Solver!$C43-1)) -> 2.517200345e-05 | K43: =+_xlfn.COVARIANCE.P(OFFSET(ReturnData!$B$1:$B$1805,0,Input!L$74-1),OFFSET(ReturnData!$B$1:$B$1805,0,Solver!$C43-1)) -> 2.36766353e-05 | L43: =+_xlfn.COVARIANCE.P(OFFSET(ReturnData!$B$1:$B$1805,0,Input!M$74-1),OFFSET(ReturnData!$B$1:$B$1805,0,Solver!$C43-1)) -> 1.841221203e-05 | M43: =+_xlfn.COVARIANCE.P(OFFSET(ReturnData!$B$1:$B$1805,0,Input!N$74-1),OFFSET(ReturnData!$B$1:$B$1805,0,Solver!$C43-1)) -> 5.618823357e-05 | N43: =+_xlfn.COVARIANCE.P(OFFSET(ReturnData!$B$1:$B$1805,0,Input!O$74-1),OFFSET(ReturnData!$B$1:$B$1805,0,Solver!$C43-1)) -> -5.001830799e-05 | O43: =+_xlfn.COVARIANCE.P(OFFSET(ReturnData!$B$1:$B$1805,0,Input!P$74-1),OFFSET(ReturnData!$B$1:$B$1805,0,Solver!$C43-1)) -> 9.246009971e-05 | P43: =+_xlfn.COVARIANCE.P(OFFSET(ReturnData!$B$1:$B$1805,0,Input!Q$74-1),OFFSET(ReturnData!$B$1:$B$1805,0,Solver!$C43-1)) -> 1.794283832e-05 | Q43: =+_xlfn.COVARIANCE.P(OFFSET(ReturnData!$B$1:$B$1805,0,Input!R$74-1),OFFSET(ReturnData!$B$1:$B$1805,0,Solver!$C43-1)) -> 3.3159741e-06 | R43: =+_xlfn.COVARIANCE.P(OFFSET(ReturnData!$B$1:$B$1805,0,Input!S$74-1),OFFSET(ReturnData!$B$1:$B$1805,0,Solver!$C43-1)) -> 1.339650106e-05 | S43: =+_xlfn.COVARIANCE.P(OFFSET(ReturnData!$B$1:$B$1805,0,Input!T$74-1),OFFSET(ReturnData!$B$1:$B$1805,0,Solver!$C43-1)) -> -3.931180942e-06 | T43: =+_xlfn.COVARIANCE.P(OFFSET(ReturnData!$B$1:$B$1805,0,Input!U$74-1),OFFSET(ReturnData!$B$1:$B$1805,0,Solver!$C43-1)) -> 3.873150488e-06 | U43: =+_xlfn.COVARIANCE.P(OFFSET(ReturnData!$B$1:$B$1805,0,Input!V$74-1),OFFSET(ReturnData!$B$1:$B$1805,0,Solver!$C43-1)) -> 0 | V43: =+_xlfn.COVARIANCE.P(OFFSET(ReturnData!$B$1:$B$1805,0,Input!W$74-1),OFFSET(ReturnData!$B$1:$B$1805,0,Solver!$C43-1)) -> 0 | W43: =+_xlfn.COVARIANCE.P(OFFSET(ReturnData!$B$1:$B$1805,0,Input!X$74-1),OFFSET(ReturnData!$B$1:$B$1805,0,Solver!$C43-1)) -> 0 | X43: =+_xlfn.COVARIANCE.P(OFFSET(ReturnData!$B$1:$B$1805,0,Input!Y$74-1),OFFSET(ReturnData!$B$1:$B$1805,0,Solver!$C43-1)) -> 0 | Y43: =+_xlfn.COVARIANCE.P(OFFSET(ReturnData!$B$1:$B$1805,0,Input!Z$74-1),OFFSET(ReturnData!$B$1:$B$1805,0,Solver!$C43-1)) -> 0
B44: AGG | C44: 13 | D44: =+_xlfn.COVARIANCE.P(OFFSET(ReturnData!$B$1:$B$1805,0,Input!E$74-1),OFFSET(ReturnData!$B$1:$B$1805,0,Solver!$C44-1)) -> 2.396830735e-06 | E44: =+_xlfn.COVARIANCE.P(OFFSET(ReturnData!$B$1:$B$1805,0,Input!F$74-1),OFFSET(ReturnData!$B$1:$B$1805,0,Solver!$C44-1)) -> 2.429624341e-06 | F44: =+_xlfn.COVARIANCE.P(OFFSET(ReturnData!$B$1:$B$1805,0,Input!G$74-1),OFFSET(ReturnData!$B$1:$B$1805,0,Solver!$C44-1)) -> 3.358498345e-06 | G44: =+_xlfn.COVARIANCE.P(OFFSET(ReturnData!$B$1:$B$1805,0,Input!H$74-1),OFFSET(ReturnData!$B$1:$B$1805,0,Solver!$C44-1)) -> 4.68950702e-06 | H44: =+_xlfn.COVARIANCE.P(OFFSET(ReturnData!$B$1:$B$1805,0,Input!I$74-1),OFFSET(ReturnData!$B$1:$B$1805,0,Solver!$C44-1)) -> 2.496827434e-07 | I44: =+_xlfn.COVARIANCE.P(OFFSET(ReturnData!$B$1:$B$1805,0,Input!J$74-1),OFFSET(ReturnData!$B$1:$B$1805,0,Solver!$C44-1)) -> 3.918861737e-06 | J44: =+_xlfn.COVARIANCE.P(OFFSET(ReturnData!$B$1:$B$1805,0,Input!K$74-1),OFFSET(ReturnData!$B$1:$B$1805,0,Solver!$C44-1)) -> 4.994680621e-06 | K44: =+_xlfn.COVARIANCE.P(OFFSET(ReturnData!$B$1:$B$1805,0,Input!L$74-1),OFFSET(ReturnData!$B$1:$B$1805,0,Solver!$C44-1)) -> 5.063547362e-06 | L44: =+_xlfn.COVARIANCE.P(OFFSET(ReturnData!$B$1:$B$1805,0,Input!M$74-1),OFFSET(ReturnData!$B$1:$B$1805,0,Solver!$C44-1)) -> 4.521439519e-06 | M44: =+_xlfn.COVARIANCE.P(OFFSET(ReturnData!$B$1:$B$1805,0,Input!N$74-1),OFFSET(ReturnData!$B$1:$B$1805,0,Solver!$C44-1)) -> 1.354695918e-05 | N44: =+_xlfn.COVARIANCE.P(OFFSET(ReturnData!$B$1:$B$1805,0,Input!O$74-1),OFFSET(ReturnData!$B$1:$B$1805,0,Solver!$C44-1)) -> -6.787128222e-06 | O44: =+_xlfn.COVARIANCE.P(OFFSET(ReturnData!$B$1:$B$1805,0,Input!P$74-1),OFFSET(ReturnData!$B$1:$B$1805,0,Solver!$C44-1)) -> 1.794283832e-05 | P44: =+_xlfn.COVARIANCE.P(OFFSET(ReturnData!$B$1:$B$1805,0,Input!Q$74-1),OFFSET(ReturnData!$B$1:$B$1805,0,Solver!$C44-1)) -> 5.021612958e-06 | Q44: =+_xlfn.COVARIANCE.P(OFFSET(ReturnData!$B$1:$B$1805,0,Input!R$74-1),OFFSET(ReturnData!$B$1:$B$1805,0,Solver!$C44-1)) -> 9.363802166e-07 | R44: =+_xlfn.COVARIANCE.P(OFFSET(ReturnData!$B$1:$B$1805,0,Input!S$74-1),OFFSET(ReturnData!$B$1:$B$1805,0,Solver!$C44-1)) -> 4.762910676e-06 | S44: =+_xlfn.COVARIANCE.P(OFFSET(ReturnData!$B$1:$B$1805,0,Input!T$74-1),OFFSET(ReturnData!$B$1:$B$1805,0,Solver!$C44-1)) -> 1.07717729e-06 | T44: =+_xlfn.COVARIANCE.P(OFFSET(ReturnData!$B$1:$B$1805,0,Input!U$74-1),OFFSET(ReturnData!$B$1:$B$1805,0,Solver!$C44-1)) -> -1.186854182e-07 | U44: =+_xlfn.COVARIANCE.P(OFFSET(ReturnData!$B$1:$B$1805,0,Input!V$74-1),OFFSET(ReturnData!$B$1:$B$1805,0,Solver!$C44-1)) -> 0 | V44: =+_xlfn.COVARIANCE.P(OFFSET(ReturnData!$B$1:$B$1805,0,Input!W$74-1),OFFSET(ReturnData!$B$1:$B$1805,0,Solver!$C44-1)) -> 0 | W44: =+_xlfn.COVARIANCE.P(OFFSET(ReturnData!$B$1:$B$1805,0,Input!X$74-1),OFFSET(ReturnData!$B$1:$B$1805,0,Solver!$C44-1)) -> 0 | X44: =+_xlfn.COVARIANCE.P(OFFSET(ReturnData!$B$1:$B$1805,0,Input!Y$74-1),OFFSET(ReturnData!$B$1:$B$1805,0,Solver!$C44-1)) -> 0 | Y44: =+_xlfn.COVARIANCE.P(OFFSET(ReturnData!$B$1:$B$1805,0,Input!Z$74-1),OFFSET(ReturnData!$B$1:$B$1805,0,Solver!$C44-1)) -> 0
B45: SHY | C45: 14 | D45: =+_xlfn.COVARIANCE.P(OFFSET(ReturnData!$B$1:$B$1805,0,Input!E$74-1),OFFSET(ReturnData!$B$1:$B$1805,0,Solver!$C45-1)) -> 1.399390731e-07 | E45: =+_xlfn.COVARIANCE.P(OFFSET(ReturnData!$B$1:$B$1805,0,Input!F$74-1),OFFSET(ReturnData!$B$1:$B$1805,0,Solver!$C45-1)) -> 1.501997391e-07 | F45: =+_xlfn.COVARIANCE.P(OFFSET(ReturnData!$B$1:$B$1805,0,Input!G$74-1),OFFSET(ReturnData!$B$1:$B$1805,0,Solver!$C45-1)) -> 3.95335733e-07 | G45: =+_xlfn.COVARIANCE.P(OFFSET(ReturnData!$B$1:$B$1805,0,Input!H$74-1),OFFSET(ReturnData!$B$1:$B$1805,0,Solver!$C45-1)) -> 4.979029625e-07 | H45: =+_xlfn.COVARIANCE.P(OFFSET(ReturnData!$B$1:$B$1805,0,Input!I$74-1),OFFSET(ReturnData!$B$1:$B$1805,0,Solver!$C45-1)) -> -5.470534173e-07 | I45: =+_xlfn.COVARIANCE.P(OFFSET(ReturnData!$B$1:$B$1805,0,Input!J$74-1),OFFSET(ReturnData!$B$1:$B$1805,0,Solver!$C45-1)) -> -2.547884179e-07 | J45: =+_xlfn.COVARIANCE.P(OFFSET(ReturnData!$B$1:$B$1805,0,Input!K$74-1),OFFSET(ReturnData!$B$1:$B$1805,0,Solver!$C45-1)) -> -2.910293254e-07 | K45: =+_xlfn.COVARIANCE.P(OFFSET(ReturnData!$B$1:$B$1805,0,Input!L$74-1),OFFSET(ReturnData!$B$1:$B$1805,0,Solver!$C45-1)) -> 2.169969153e-07 | L45: =+_xlfn.COVARIANCE.P(OFFSET(ReturnData!$B$1:$B$1805,0,Input!M$74-1),OFFSET(ReturnData!$B$1:$B$1805,0,Solver!$C45-1)) -> 4.007739013e-07 | M45: =+_xlfn.COVARIANCE.P(OFFSET(ReturnData!$B$1:$B$1805,0,Input!N$74-1),OFFSET(ReturnData!$B$1:$B$1805,0,Solver!$C45-1)) -> 1.235936294e-06 | N45: =+_xlfn.COVARIANCE.P(OFFSET(ReturnData!$B$1:$B$1805,0,Input!O$74-1),OFFSET(ReturnData!$B$1:$B$1805,0,Solver!$C45-1)) -> -1.884814327e-06 | O45: =+_xlfn.COVARIANCE.P(OFFSET(ReturnData!$B$1:$B$1805,0,Input!P$74-1),OFFSET(ReturnData!$B$1:$B$1805,0,Solver!$C45-1)) -> 3.3159741e-06 | P45: =+_xlfn.COVARIANCE.P(OFFSET(ReturnData!$B$1:$B$1805,0,Input!Q$74-1),OFFSET(ReturnData!$B$1:$B$1805,0,Solver!$C45-1)) -> 9.363802166e-07 | Q45: =+_xlfn.COVARIANCE.P(OFFSET(ReturnData!$B$1:$B$1805,0,Input!R$74-1),OFFSET(ReturnData!$B$1:$B$1805,0,Solver!$C45-1)) -> 3.830427464e-07 | R45: =+_xlfn.COVARIANCE.P(OFFSET(ReturnData!$B$1:$B$1805,0,Input!S$74-1),OFFSET(ReturnData!$B$1:$B$1805,0,Solver!$C45-1)) -> 1.390902666e-06 | S45: =+_xlfn.COVARIANCE.P(OFFSET(ReturnData!$B$1:$B$1805,0,Input!T$74-1),OFFSET(ReturnData!$B$1:$B$1805,0,Solver!$C45-1)) -> -7.291529498e-07 | T45: =+_xlfn.COVARIANCE.P(OFFSET(ReturnData!$B$1:$B$1805,0,Input!U$74-1),OFFSET(ReturnData!$B$1:$B$1805,0,Solver!$C45-1)) -> 8.22065495e-08 | U45: =+_xlfn.COVARIANCE.P(OFFSET(ReturnData!$B$1:$B$1805,0,Input!V$74-1),OFFSET(ReturnData!$B$1:$B$1805,0,Solver!$C45-1)) -> 0 | V45: =+_xlfn.COVARIANCE.P(OFFSET(ReturnData!$B$1:$B$1805,0,Input!W$74-1),OFFSET(ReturnData!$B$1:$B$1805,0,Solver!$C45-1)) -> 0 | W45: =+_xlfn.COVARIANCE.P(OFFSET(ReturnData!$B$1:$B$1805,0,Input!X$74-1),OFFSET(ReturnData!$B$1:$B$1805,0,Solver!$C45-1)) -> 0 | X45: =+_xlfn.COVARIANCE.P(OFFSET(ReturnData!$B$1:$B$1805,0,Input!Y$74-1),OFFSET(ReturnData!$B$1:$B$1805,0,Solver!$C45-1)) -> 0 | Y45: =+_xlfn.COVARIANCE.P(OFFSET(ReturnData!$B$1:$B$1805,0,Input!Z$74-1),OFFSET(ReturnData!$B$1:$B$1805,0,Solver!$C45-1)) -> 0
B46: GLD | C46: 15 | D46: =+_xlfn.COVARIANCE.P(OFFSET(ReturnData!$B$1:$B$1805,0,Input!E$74-1),OFFSET(ReturnData!$B$1:$B$1805,0,Solver!$C46-1)) -> 8.413415494e-06 | E46: =+_xlfn.COVARIANCE.P(OFFSET(ReturnData!$B$1:$B$1805,0,Input!F$74-1),OFFSET(ReturnData!$B$1:$B$1805,0,Solver!$C46-1)) -> 2.06672973e-05 | F46: =+_xlfn.COVARIANCE.P(OFFSET(ReturnData!$B$1:$B$1805,0,Input!G$74-1),OFFSET(ReturnData!$B$1:$B$1805,0,Solver!$C46-1)) -> 2.448324732e-05 | G46: =+_xlfn.COVARIANCE.P(OFFSET(ReturnData!$B$1:$B$1805,0,Input!H$74-1),OFFSET(ReturnData!$B$1:$B$1805,0,Solver!$C46-1)) -> 2.109837379e-05 | H46: =+_xlfn.COVARIANCE.P(OFFSET(ReturnData!$B$1:$B$1805,0,Input!I$74-1),OFFSET(ReturnData!$B$1:$B$1805,0,Solver!$C46-1)) -> 1.625043144e-05 | I46: =+_xlfn.COVARIANCE.P(OFFSET(ReturnData!$B$1:$B$1805,0,Input!J$74-1),OFFSET(ReturnData!$B$1:$B$1805,0,Solver!$C46-1)) -> 2.706926689e-05 | J46: =+_xlfn.COVARIANCE.P(OFFSET(ReturnData!$B$1:$B$1805,0,Input!K$74-1),OFFSET(ReturnData!$B$1:$B$1805,0,Solver!$C46-1)) -> 2.982904257e-05 | K46: =+_xlfn.COVARIANCE.P(OFFSET(ReturnData!$B$1:$B$1805,0,Input!L$74-1),OFFSET(ReturnData!$B$1:$B$1805,0,Solver!$C46-1)) -> 1.475284334e-05 | L46: =+_xlfn.COVARIANCE.P(OFFSET(ReturnData!$B$1:$B$1805,0,Input!M$74-1),OFFSET(ReturnData!$B$1:$B$1805,0,Solver!$C46-1)) -> 1.177293134e-05 | M46: =+_xlfn.COVARIANCE.P(OFFSET(ReturnData!$B$1:$B$1805,0,Input!N$74-1),OFFSET(ReturnData!$B$1:$B$1805,0,Solver!$C46-1)) -> 3.783492482e-05 | N46: =+_xlfn.COVARIANCE.P(OFFSET(ReturnData!$B$1:$B$1805,0,Input!O$74-1),OFFSET(ReturnData!$B$1:$B$1805,0,Solver!$C46-1)) -> 5.734642858e-06 | O46: =+_xlfn.COVARIANCE.P(OFFSET(ReturnData!$B$1:$B$1805,0,Input!P$74-1),OFFSET(ReturnData!$B$1:$B$1805,0,Solver!$C46-1)) -> 1.339650106e-05 | P46: =+_xlfn.COVARIANCE.P(OFFSET(ReturnData!$B$1:$B$1805,0,Input!Q$74-1),OFFSET(ReturnData!$B$1:$B$1805,0,Solver!$C46-1)) -> 4.762910676e-06 | Q46: =+_xlfn.COVARIANCE.P(OFFSET(ReturnData!$B$1:$B$1805,0,Input!R$74-1),OFFSET(ReturnData!$B$1:$B$1805,0,Solver!$C46-1)) -> 1.390902666e-06 | R46: =+_xlfn.COVARIANCE.P(OFFSET(ReturnData!$B$1:$B$1805,0,Input!S$74-1),OFFSET(ReturnData!$B$1:$B$1805,0,Solver!$C46-1)) -> 0.0001211842325 | S46: =+_xlfn.COVARIANCE.P(OFFSET(ReturnData!$B$1:$B$1805,0,Input!T$74-1),OFFSET(ReturnData!$B$1:$B$1805,0,Solver!$C46-1)) -> 7.964745187e-07 | T46: =+_xlfn.COVARIANCE.P(OFFSET(ReturnData!$B$1:$B$1805,0,Input!U$74-1),OFFSET(ReturnData!$B$1:$B$1805,0,Solver!$C46-1)) -> 4.055345869e-05 | U46: =+_xlfn.COVARIANCE.P(OFFSET(ReturnData!$B$1:$B$1805,0,Input!V$74-1),OFFSET(ReturnData!$B$1:$B$1805,0,Solver!$C46-1)) -> 0 | V46: =+_xlfn.COVARIANCE.P(OFFSET(ReturnData!$B$1:$B$1805,0,Input!W$74-1),OFFSET(ReturnData!$B$1:$B$1805,0,Solver!$C46-1)) -> 0 | W46: =+_xlfn.COVARIANCE.P(OFFSET(ReturnData!$B$1:$B$1805,0,Input!X$74-1),OFFSET(ReturnData!$B$1:$B$1805,0,Solver!$C46-1)) -> 0 | X46: =+_xlfn.COVARIANCE.P(OFFSET(ReturnData!$B$1:$B$1805,0,Input!Y$74-1),OFFSET(ReturnData!$B$1:$B$1805,0,Solver!$C46-1)) -> 0 | Y46: =+_xlfn.COVARIANCE.P(OFFSET(ReturnData!$B$1:$B$1805,0,Input!Z$74-1),OFFSET(ReturnData!$B$1:$B$1805,0,Solver!$C46-1)) -> 0
B47: NASDAQ100 | C47: 16 | D47: =+_xlfn.COVARIANCE.P(OFFSET(ReturnData!$B$1:$B$1805,0,Input!E$74-1),OFFSET(ReturnData!$B$1:$B$1805,0,Solver!$C47-1)) -> 2.960743491e-05 | E47: =+_xlfn.COVARIANCE.P(OFFSET(ReturnData!$B$1:$B$1805,0,Input!F$74-1),OFFSET(ReturnData!$B$1:$B$1805,0,Solver!$C47-1)) -> 2.568285071e-05 | F47: =+_xlfn.COVARIANCE.P(OFFSET(ReturnData!$B$1:$B$1805,0,Input!G$74-1),OFFSET(ReturnData!$B$1:$B$1805,0,Solver!$C47-1)) -> 3.317349731e-05 | G47: =+_xlfn.COVARIANCE.P(OFFSET(ReturnData!$B$1:$B$1805,0,Input!H$74-1),OFFSET(ReturnData!$B$1:$B$1805,0,Solver!$C47-1)) -> 5.663136696e-05 | H47: =+_xlfn.COVARIANCE.P(OFFSET(ReturnData!$B$1:$B$1805,0,Input!I$74-1),OFFSET(ReturnData!$B$1:$B$1805,0,Solver!$C47-1)) -> 6.157618662e-05 | I47: =+_xlfn.COVARIANCE.P(OFFSET(ReturnData!$B$1:$B$1805,0,Input!J$74-1),OFFSET(ReturnData!$B$1:$B$1805,0,Solver!$C47-1)) -> 7.051450547e-05 | J47: =+_xlfn.COVARIANCE.P(OFFSET(ReturnData!$B$1:$B$1805,0,Input!K$74-1),OFFSET(ReturnData!$B$1:$B$1805,0,Solver!$C47-1)) -> 9.296243952e-05 | K47: =+_xlfn.COVARIANCE.P(OFFSET(ReturnData!$B$1:$B$1805,0,Input!L$74-1),OFFSET(ReturnData!$B$1:$B$1805,0,Solver!$C47-1)) -> 5.730725909e-05 | L47: =+_xlfn.COVARIANCE.P(OFFSET(ReturnData!$B$1:$B$1805,0,Input!M$74-1),OFFSET(ReturnData!$B$1:$B$1805,0,Solver!$C47-1)) -> 3.981363381e-05 | M47: =+_xlfn.COVARIANCE.P(OFFSET(ReturnData!$B$1:$B$1805,0,Input!N$74-1),OFFSET(ReturnData!$B$1:$B$1805,0,Solver!$C47-1)) -> 0.0001159727561 | N47: =+_xlfn.COVARIANCE.P(OFFSET(ReturnData!$B$1:$B$1805,0,Input!O$74-1),OFFSET(ReturnData!$B$1:$B$1805,0,Solver!$C47-1)) -> 6.530016951e-05 | O47: =+_xlfn.COVARIANCE.P(OFFSET(ReturnData!$B$1:$B$1805,0,Input!P$74-1),OFFSET(ReturnData!$B$1:$B$1805,0,Solver!$C47-1)) -> -3.931180942e-06 | P47: =+_xlfn.COVARIANCE.P(OFFSET(ReturnData!$B$1:$B$1805,0,Input!Q$74-1),OFFSET(ReturnData!$B$1:$B$1805,0,Solver!$C47-1)) -> 1.07717729e-06 | Q47: =+_xlfn.COVARIANCE.P(OFFSET(ReturnData!$B$1:$B$1805,0,Input!R$74-1),OFFSET(ReturnData!$B$1:$B$1805,0,Solver!$C47-1)) -> -7.291529498e-07 | R47: =+_xlfn.COVARIANCE.P(OFFSET(ReturnData!$B$1:$B$1805,0,Input!S$74-1),OFFSET(ReturnData!$B$1:$B$1805,0,Solver!$C47-1)) -> 7.964745187e-07 | S47: =+_xlfn.COVARIANCE.P(OFFSET(ReturnData!$B$1:$B$1805,0,Input!T$74-1),OFFSET(ReturnData!$B$1:$B$1805,0,Solver!$C47-1)) -> 0.0002319705386 | T47: =+_xlfn.COVARIANCE.P(OFFSET(ReturnData!$B$1:$B$1805,0,Input!U$74-1),OFFSET(ReturnData!$B$1:$B$1805,0,Solver!$C47-1)) -> 4.435179221e-06 | U47: =+_xlfn.COVARIANCE.P(OFFSET(ReturnData!$B$1:$B$1805,0,Input!V$74-1),OFFSET(ReturnData!$B$1:$B$1805,0,Solver!$C47-1)) -> 0 | V47: =+_xlfn.COVARIANCE.P(OFFSET(ReturnData!$B$1:$B$1805,0,Input!W$74-1),OFFSET(ReturnData!$B$1:$B$1805,0,Solver!$C47-1)) -> 0 | W47: =+_xlfn.COVARIANCE.P(OFFSET(ReturnData!$B$1:$B$1805,0,Input!X$74-1),OFFSET(ReturnData!$B$1:$B$1805,0,Solver!$C47-1)) -> 0 | X47: =+_xlfn.COVARIANCE.P(OFFSET(ReturnData!$B$1:$B$1805,0,Input!Y$74-1),OFFSET(ReturnData!$B$1:$B$1805,0,Solver!$C47-1)) -> 0 | Y47: =+_xlfn.COVARIANCE.P(OFFSET(ReturnData!$B$1:$B$1805,0,Input!Z$74-1),OFFSET(ReturnData!$B$1:$B$1805,0,Solver!$C47-1)) -> 0
B48: GLD-USD | C48: 17 | D48: =+_xlfn.COVARIANCE.P(OFFSET(ReturnData!$B$1:$B$1805,0,Input!E$74-1),OFFSET(ReturnData!$B$1:$B$1805,0,Solver!$C48-1)) -> 3.601928257e-06 | E48: =+_xlfn.COVARIANCE.P(OFFSET(ReturnData!$B$1:$B$1805,0,Input!F$74-1),OFFSET(ReturnData!$B$1:$B$1805,0,Solver!$C48-1)) -> 9.511707965e-06 | F48: =+_xlfn.COVARIANCE.P(OFFSET(ReturnData!$B$1:$B$1805,0,Input!G$74-1),OFFSET(ReturnData!$B$1:$B$1805,0,Solver!$C48-1)) -> 9.212526431e-06 | G48: =+_xlfn.COVARIANCE.P(OFFSET(ReturnData!$B$1:$B$1805,0,Input!H$74-1),OFFSET(ReturnData!$B$1:$B$1805,0,Solver!$C48-1)) -> 2.814785932e-06 | H48: =+_xlfn.COVARIANCE.P(OFFSET(ReturnData!$B$1:$B$1805,0,Input!I$74-1),OFFSET(ReturnData!$B$1:$B$1805,0,Solver!$C48-1)) -> 4.749064012e-06 | I48: =+_xlfn.COVARIANCE.P(OFFSET(ReturnData!$B$1:$B$1805,0,Input!J$74-1),OFFSET(ReturnData!$B$1:$B$1805,0,Solver!$C48-1)) -> 1.242334831e-05 | J48: =+_xlfn.COVARIANCE.P(OFFSET(ReturnData!$B$1:$B$1805,0,Input!K$74-1),OFFSET(ReturnData!$B$1:$B$1805,0,Solver!$C48-1)) -> 1.717837253e-05 | K48: =+_xlfn.COVARIANCE.P(OFFSET(ReturnData!$B$1:$B$1805,0,Input!L$74-1),OFFSET(ReturnData!$B$1:$B$1805,0,Solver!$C48-1)) -> 9.704273893e-06 | L48: =+_xlfn.COVARIANCE.P(OFFSET(ReturnData!$B$1:$B$1805,0,Input!M$74-1),OFFSET(ReturnData!$B$1:$B$1805,0,Solver!$C48-1)) -> 2.049571126e-06 | M48: =+_xlfn.COVARIANCE.P(OFFSET(ReturnData!$B$1:$B$1805,0,Input!N$74-1),OFFSET(ReturnData!$B$1:$B$1805,0,Solver!$C48-1)) -> 6.803621861e-06 | N48: =+_xlfn.COVARIANCE.P(OFFSET(ReturnData!$B$1:$B$1805,0,Input!O$74-1),OFFSET(ReturnData!$B$1:$B$1805,0,Solver!$C48-1)) -> -7.102608429e-06 | O48: =+_xlfn.COVARIANCE.P(OFFSET(ReturnData!$B$1:$B$1805,0,Input!P$74-1),OFFSET(ReturnData!$B$1:$B$1805,0,Solver!$C48-1)) -> 3.873150488e-06 | P48: =+_xlfn.COVARIANCE.P(OFFSET(ReturnData!$B$1:$B$1805,0,Input!Q$74-1),OFFSET(ReturnData!$B$1:$B$1805,0,Solver!$C48-1)) -> -1.186854182e-07 | Q48: =+_xlfn.COVARIANCE.P(OFFSET(ReturnData!$B$1:$B$1805,0,Input!R$74-1),OFFSET(ReturnData!$B$1:$B$1805,0,Solver!$C48-1)) -> 8.22065495e-08 | R48: =+_xlfn.COVARIANCE.P(OFFSET(ReturnData!$B$1:$B$1805,0,Input!S$74-1),OFFSET(ReturnData!$B$1:$B$1805,0,Solver!$C48-1)) -> 4.055345869e-05 | S48: =+_xlfn.COVARIANCE.P(OFFSET(ReturnData!$B$1:$B$1805,0,Input!T$74-1),OFFSET(ReturnData!$B$1:$B$1805,0,Solver!$C48-1)) -> 4.435179221e-06 | T48: =+_xlfn.COVARIANCE.P(OFFSET(ReturnData!$B$1:$B$1805,0,Input!U$74-1),OFFSET(ReturnData!$B$1:$B$1805,0,Solver!$C48-1)) -> 6.109221949e-05 | U48: =+_xlfn.COVARIANCE.P(OFFSET(ReturnData!$B$1:$B$1805,0,Input!V$74-1),OFFSET(ReturnData!$B$1:$B$1805,0,Solver!$C48-1)) -> 0 | V48: =+_xlfn.COVARIANCE.P(OFFSET(ReturnData!$B$1:$B$1805,0,Input!W$74-1),OFFSET(ReturnData!$B$1:$B$1805,0,Solver!$C48-1)) -> 0 | W48: =+_xlfn.COVARIANCE.P(OFFSET(ReturnData!$B$1:$B$1805,0,Input!X$74-1),OFFSET(ReturnData!$B$1:$B$1805,0,Solver!$C48-1)) -> 0 | X48: =+_xlfn.COVARIANCE.P(OFFSET(ReturnData!$B$1:$B$1805,0,Input!Y$74-1),OFFSET(ReturnData!$B$1:$B$1805,0,Solver!$C48-1)) -> 0 | Y48: =+_xlfn.COVARIANCE.P(OFFSET(ReturnData!$B$1:$B$1805,0,Input!Z$74-1),OFFSET(ReturnData!$B$1:$B$1805,0,Solver!$C48-1)) -> 0
B49: empty | C49: 18 | D49: =+_xlfn.COVARIANCE.P(OFFSET(ReturnData!$B$1:$B$1805,0,Input!E$74-1),OFFSET(ReturnData!$B$1:$B$1805,0,Solver!$C49-1)) -> 0 | E49: =+_xlfn.COVARIANCE.P(OFFSET(ReturnData!$B$1:$B$1805,0,Input!F$74-1),OFFSET(ReturnData!$B$1:$B$1805,0,Solver!$C49-1)) -> 0 | F49: =+_xlfn.COVARIANCE.P(OFFSET(ReturnData!$B$1:$B$1805,0,Input!G$74-1),OFFSET(ReturnData!$B$1:$B$1805,0,Solver!$C49-1)) -> 0 | G49: =+_xlfn.COVARIANCE.P(OFFSET(ReturnData!$B$1:$B$1805,0,Input!H$74-1),OFFSET(ReturnData!$B$1:$B$1805,0,Solver!$C49-1)) -> 0 | H49: =+_xlfn.COVARIANCE.P(OFFSET(ReturnData!$B$1:$B$1805,0,Input!I$74-1),OFFSET(ReturnData!$B$1:$B$1805,0,Solver!$C49-1)) -> 0 | I49: =+_xlfn.COVARIANCE.P(OFFSET(ReturnData!$B$1:$B$1805,0,Input!J$74-1),OFFSET(ReturnData!$B$1:$B$1805,0,Solver!$C49-1)) -> 0 | J49: =+_xlfn.COVARIANCE.P(OFFSET(ReturnData!$B$1:$B$1805,0,Input!K$74-1),OFFSET(ReturnData!$B$1:$B$1805,0,Solver!$C49-1)) -> 0 | K49: =+_xlfn.COVARIANCE.P(OFFSET(ReturnData!$B$1:$B$1805,0,Input!L$74-1),OFFSET(ReturnData!$B$1:$B$1805,0,Solver!$C49-1)) -> 0 | L49: =+_xlfn.COVARIANCE.P(OFFSET(ReturnData!$B$1:$B$1805,0,Input!M$74-1),OFFSET(ReturnData!$B$1:$B$1805,0,Solver!$C49-1)) -> 0 | M49: =+_xlfn.COVARIANCE.P(OFFSET(ReturnData!$B$1:$B$1805,0,Input!N$74-1),OFFSET(ReturnData!$B$1:$B$1805,0,Solver!$C49-1)) -> 0 | N49: =+_xlfn.COVARIANCE.P(OFFSET(ReturnData!$B$1:$B$1805,0,Input!O$74-1),OFFSET(ReturnData!$B$1:$B$1805,0,Solver!$C49-1)) -> 0 | O49: =+_xlfn.COVARIANCE.P(OFFSET(ReturnData!$B$1:$B$1805,0,Input!P$74-1),OFFSET(ReturnData!$B$1:$B$1805,0,Solver!$C49-1)) -> 0 | P49: =+_xlfn.COVARIANCE.P(OFFSET(ReturnData!$B$1:$B$1805,0,Input!Q$74-1),OFFSET(ReturnData!$B$1:$B$1805,0,Solver!$C49-1)) -> 0 | Q49: =+_xlfn.COVARIANCE.P(OFFSET(ReturnData!$B$1:$B$1805,0,Input!R$74-1),OFFSET(ReturnData!$B$1:$B$1805,0,Solver!$C49-1)) -> 0 | R49: =+_xlfn.COVARIANCE.P(OFFSET(ReturnData!$B$1:$B$1805,0,Input!S$74-1),OFFSET(ReturnData!$B$1:$B$1805,0,Solver!$C49-1)) -> 0 | S49: =+_xlfn.COVARIANCE.P(OFFSET(ReturnData!$B$1:$B$1805,0,Input!T$74-1),OFFSET(ReturnData!$B$1:$B$1805,0,Solver!$C49-1)) -> 0 | T49: =+_xlfn.COVARIANCE.P(OFFSET(ReturnData!$B$1:$B$1805,0,Input!U$74-1),OFFSET(ReturnData!$B$1:$B$1805,0,Solver!$C49-1)) -> 0 | U49: =+_xlfn.COVARIANCE.P(OFFSET(ReturnData!$B$1:$B$1805,0,Input!V$74-1),OFFSET(ReturnData!$B$1:$B$1805,0,Solver!$C49-1)) -> 0 | V49: =+_xlfn.COVARIANCE.P(OFFSET(ReturnData!$B$1:$B$1805,0,Input!W$74-1),OFFSET(ReturnData!$B$1:$B$1805,0,Solver!$C49-1)) -> 0 | W49: =+_xlfn.COVARIANCE.P(OFFSET(ReturnData!$B$1:$B$1805,0,Input!X$74-1),OFFSET(ReturnData!$B$1:$B$1805,0,Solver!$C49-1)) -> 0 | X49: =+_xlfn.COVARIANCE.P(OFFSET(ReturnData!$B$1:$B$1805,0,Input!Y$74-1),OFFSET(ReturnData!$B$1:$B$1805,0,Solver!$C49-1)) -> 0 | Y49: =+_xlfn.COVARIANCE.P(OFFSET(ReturnData!$B$1:$B$1805,0,Input!Z$74-1),OFFSET(ReturnData!$B$1:$B$1805,0,Solver!$C49-1)) -> 0
B50: empty | C50: 19 | D50: =+_xlfn.COVARIANCE.P(OFFSET(ReturnData!$B$1:$B$1805,0,Input!E$74-1),OFFSET(ReturnData!$B$1:$B$1805,0,Solver!$C50-1)) -> 0 | E50: =+_xlfn.COVARIANCE.P(OFFSET(ReturnData!$B$1:$B$1805,0,Input!F$74-1),OFFSET(ReturnData!$B$1:$B$1805,0,Solver!$C50-1)) -> 0 | F50: =+_xlfn.COVARIANCE.P(OFFSET(ReturnData!$B$1:$B$1805,0,Input!G$74-1),OFFSET(ReturnData!$B$1:$B$1805,0,Solver!$C50-1)) -> 0 | G50: =+_xlfn.COVARIANCE.P(OFFSET(ReturnData!$B$1:$B$1805,0,Input!H$74-1),OFFSET(ReturnData!$B$1:$B$1805,0,Solver!$C50-1)) -> 0 | H50: =+_xlfn.COVARIANCE.P(OFFSET(ReturnData!$B$1:$B$1805,0,Input!I$74-1),OFFSET(ReturnData!$B$1:$B$1805,0,Solver!$C50-1)) -> 0 | I50: =+_xlfn.COVARIANCE.P(OFFSET(ReturnData!$B$1:$B$1805,0,Input!J$74-1),OFFSET(ReturnData!$B$1:$B$1805,0,Solver!$C50-1)) -> 0 | J50: =+_xlfn.COVARIANCE.P(OFFSET(ReturnData!$B$1:$B$1805,0,Input!K$74-1),OFFSET(ReturnData!$B$1:$B$1805,0,Solver!$C50-1)) -> 0 | K50: =+_xlfn.COVARIANCE.P(OFFSET(ReturnData!$B$1:$B$1805,0,Input!L$74-1),OFFSET(ReturnData!$B$1:$B$1805,0,Solver!$C50-1)) -> 0 | L50: =+_xlfn.COVARIANCE.P(OFFSET(ReturnData!$B$1:$B$1805,0,Input!M$74-1),OFFSET(ReturnData!$B$1:$B$1805,0,Solver!$C50-1)) -> 0 | M50: =+_xlfn.COVARIANCE.P(OFFSET(ReturnData!$B$1:$B$1805,0,Input!N$74-1),OFFSET(ReturnData!$B$1:$B$1805,0,Solver!$C50-1)) -> 0 | N50: =+_xlfn.COVARIANCE.P(OFFSET(ReturnData!$B$1:$B$1805,0,Input!O$74-1),OFFSET(ReturnData!$B$1:$B$1805,0,Solver!$C50-1)) -> 0 | O50: =+_xlfn.COVARIANCE.P(OFFSET(ReturnData!$B$1:$B$1805,0,Input!P$74-1),OFFSET(ReturnData!$B$1:$B$1805,0,Solver!$C50-1)) -> 0 | P50: =+_xlfn.COVARIANCE.P(OFFSET(ReturnData!$B$1:$B$1805,0,Input!Q$74-1),OFFSET(ReturnData!$B$1:$B$1805,0,Solver!$C50-1)) -> 0 | Q50: =+_xlfn.COVARIANCE.P(OFFSET(ReturnData!$B$1:$B$1805,0,Input!R$74-1),OFFSET(ReturnData!$B$1:$B$1805,0,Solver!$C50-1)) -> 0 | R50: =+_xlfn.COVARIANCE.P(OFFSET(ReturnData!$B$1:$B$1805,0,Input!S$74-1),OFFSET(ReturnData!$B$1:$B$1805,0,Solver!$C50-1)) -> 0 | S50: =+_xlfn.COVARIANCE.P(OFFSET(ReturnData!$B$1:$B$1805,0,Input!T$74-1),OFFSET(ReturnData!$B$1:$B$1805,0,Solver!$C50-1)) -> 0 | T50: =+_xlfn.COVARIANCE.P(OFFSET(ReturnData!$B$1:$B$1805,0,Input!U$74-1),OFFSET(ReturnData!$B$1:$B$1805,0,Solver!$C50-1)) -> 0 | U50: =+_xlfn.COVARIANCE.P(OFFSET(ReturnData!$B$1:$B$1805,0,Input!V$74-1),OFFSET(ReturnData!$B$1:$B$1805,0,Solver!$C50-1)) -> 0 | V50: =+_xlfn.COVARIANCE.P(OFFSET(ReturnData!$B$1:$B$1805,0,Input!W$74-1),OFFSET(ReturnData!$B$1:$B$1805,0,Solver!$C50-1)) -> 0 | W50: =+_xlfn.COVARIANCE.P(OFFSET(ReturnData!$B$1:$B$1805,0,Input!X$74-1),OFFSET(ReturnData!$B$1:$B$1805,0,Solver!$C50-1)) -> 0 | X50: =+_xlfn.COVARIANCE.P(OFFSET(ReturnData!$B$1:$B$1805,0,Input!Y$74-1),OFFSET(ReturnData!$B$1:$B$1805,0,Solver!$C50-1)) -> 0 | Y50: =+_xlfn.COVARIANCE.P(OFFSET(ReturnData!$B$1:$B$1805,0,Input!Z$74-1),OFFSET(ReturnData!$B$1:$B$1805,0,Solver!$C50-1)) -> 0
B51: empty | C51: 20 | D51: =+_xlfn.COVARIANCE.P(OFFSET(ReturnData!$B$1:$B$1805,0,Input!E$74-1),OFFSET(ReturnData!$B$1:$B$1805,0,Solver!$C51-1)) -> 0 | E51: =+_xlfn.COVARIANCE.P(OFFSET(ReturnData!$B$1:$B$1805,0,Input!F$74-1),OFFSET(ReturnData!$B$1:$B$1805,0,Solver!$C51-1)) -> 0 | F51: =+_xlfn.COVARIANCE.P(OFFSET(ReturnData!$B$1:$B$1805,0,Input!G$74-1),OFFSET(ReturnData!$B$1:$B$1805,0,Solver!$C51-1)) -> 0 | G51: =+_xlfn.COVARIANCE.P(OFFSET(ReturnData!$B$1:$B$1805,0,Input!H$74-1),OFFSET(ReturnData!$B$1:$B$1805,0,Solver!$C51-1)) -> 0 | H51: =+_xlfn.COVARIANCE.P(OFFSET(ReturnData!$B$1:$B$1805,0,Input!I$74-1),OFFSET(ReturnData!$B$1:$B$1805,0,Solver!$C51-1)) -> 0 | I51: =+_xlfn.COVARIANCE.P(OFFSET(ReturnData!$B$1:$B$1805,0,Input!J$74-1),OFFSET(ReturnData!$B$1:$B$1805,0,Solver!$C51-1)) -> 0 | J51: =+_xlfn.COVARIANCE.P(OFFSET(ReturnData!$B$1:$B$1805,0,Input!K$74-1),OFFSET(ReturnData!$B$1:$B$1805,0,Solver!$C51-1)) -> 0 | K51: =+_xlfn.COVARIANCE.P(OFFSET(ReturnData!$B$1:$B$1805,0,Input!L$74-1),OFFSET(ReturnData!$B$1:$B$1805,0,Solver!$C51-1)) -> 0 | L51: =+_xlfn.COVARIANCE.P(OFFSET(ReturnData!$B$1:$B$1805,0,Input!M$74-1),OFFSET(ReturnData!$B$1:$B$1805,0,Solver!$C51-1)) -> 0 | M51: =+_xlfn.COVARIANCE.P(OFFSET(ReturnData!$B$1:$B$1805,0,Input!N$74-1),OFFSET(ReturnData!$B$1:$B$1805,0,Solver!$C51-1)) -> 0 | N51: =+_xlfn.COVARIANCE.P(OFFSET(ReturnData!$B$1:$B$1805,0,Input!O$74-1),OFFSET(ReturnData!$B$1:$B$1805,0,Solver!$C51-1)) -> 0 | O51: =+_xlfn.COVARIANCE.P(OFFSET(ReturnData!$B$1:$B$1805,0,Input!P$74-1),OFFSET(ReturnData!$B$1:$B$1805,0,Solver!$C51-1)) -> 0 | P51: =+_xlfn.COVARIANCE.P(OFFSET(ReturnData!$B$1:$B$1805,0,Input!Q$74-1),OFFSET(ReturnData!$B$1:$B$1805,0,Solver!$C51-1)) -> 0 | Q51: =+_xlfn.COVARIANCE.P(OFFSET(ReturnData!$B$1:$B$1805,0,Input!R$74-1),OFFSET(ReturnData!$B$1:$B$1805,0,Solver!$C51-1)) -> 0 | R51: =+_xlfn.COVARIANCE.P(OFFSET(ReturnData!$B$1:$B$1805,0,Input!S$74-1),OFFSET(ReturnData!$B$1:$B$1805,0,Solver!$C51-1)) -> 0 | S51: =+_xlfn.COVARIANCE.P(OFFSET(ReturnData!$B$1:$B$1805,0,Input!T$74-1),OFFSET(ReturnData!$B$1:$B$1805,0,Solver!$C51-1)) -> 0 | T51: =+_xlfn.COVARIANCE.P(OFFSET(ReturnData!$B$1:$B$1805,0,Input!U$74-1),OFFSET(ReturnData!$B$1:$B$1805,0,Solver!$C51-1)) -> 0 | U51: =+_xlfn.COVARIANCE.P(OFFSET(ReturnData!$B$1:$B$1805,0,Input!V$74-1),OFFSET(ReturnData!$B$1:$B$1805,0,Solver!$C51-1)) -> 0 | V51: =+_xlfn.COVARIANCE.P(OFFSET(ReturnData!$B$1:$B$1805,0,Input!W$74-1),OFFSET(ReturnData!$B$1:$B$1805,0,Solver!$C51-1)) -> 0 | W51: =+_xlfn.COVARIANCE.P(OFFSET(ReturnData!$B$1:$B$1805,0,Input!X$74-1),OFFSET(ReturnData!$B$1:$B$1805,0,Solver!$C51-1)) -> 0 | X51: =+_xlfn.COVARIANCE.P(OFFSET(ReturnData!$B$1:$B$1805,0,Input!Y$74-1),OFFSET(ReturnData!$B$1:$B$1805,0,Solver!$C51-1)) -> 0 | Y51: =+_xlfn.COVARIANCE.P(OFFSET(ReturnData!$B$1:$B$1805,0,Input!Z$74-1),OFFSET(ReturnData!$B$1:$B$1805,0,Solver!$C51-1)) -> 0
B52: empty | C52: 21 | D52: =+_xlfn.COVARIANCE.P(OFFSET(ReturnData!$B$1:$B$1805,0,Input!E$74-1),OFFSET(ReturnData!$B$1:$B$1805,0,Solver!$C52-1)) -> 0 | E52: =+_xlfn.COVARIANCE.P(OFFSET(ReturnData!$B$1:$B$1805,0,Input!F$74-1),OFFSET(ReturnData!$B$1:$B$1805,0,Solver!$C52-1)) -> 0 | F52: =+_xlfn.COVARIANCE.P(OFFSET(ReturnData!$B$1:$B$1805,0,Input!G$74-1),OFFSET(ReturnData!$B$1:$B$1805,0,Solver!$C52-1)) -> 0 | G52: =+_xlfn.COVARIANCE.P(OFFSET(ReturnData!$B$1:$B$1805,0,Input!H$74-1),OFFSET(ReturnData!$B$1:$B$1805,0,Solver!$C52-1)) -> 0 | H52: =+_xlfn.COVARIANCE.P(OFFSET(ReturnData!$B$1:$B$1805,0,Input!I$74-1),OFFSET(ReturnData!$B$1:$B$1805,0,Solver!$C52-1)) -> 0 | I52: =+_xlfn.COVARIANCE.P(OFFSET(ReturnData!$B$1:$B$1805,0,Input!J$74-1),OFFSET(ReturnData!$B$1:$B$1805,0,Solver!$C52-1)) -> 0 | J52: =+_xlfn.COVARIANCE.P(OFFSET(ReturnData!$B$1:$B$1805,0,Input!K$74-1),OFFSET(ReturnData!$B$1:$B$1805,0,Solver!$C52-1)) -> 0 | K52: =+_xlfn.COVARIANCE.P(OFFSET(ReturnData!$B$1:$B$1805,0,Input!L$74-1),OFFSET(ReturnData!$B$1:$B$1805,0,Solver!$C52-1)) -> 0 | L52: =+_xlfn.COVARIANCE.P(OFFSET(ReturnData!$B$1:$B$1805,0,Input!M$74-1),OFFSET(ReturnData!$B$1:$B$1805,0,Solver!$C52-1)) -> 0 | M52: =+_xlfn.COVARIANCE.P(OFFSET(ReturnData!$B$1:$B$1805,0,Input!N$74-1),OFFSET(ReturnData!$B$1:$B$1805,0,Solver!$C52-1)) -> 0 | N52: =+_xlfn.COVARIANCE.P(OFFSET(ReturnData!$B$1:$B$1805,0,Input!O$74-1),OFFSET(ReturnData!$B$1:$B$1805,0,Solver!$C52-1)) -> 0 | O52: =+_xlfn.COVARIANCE.P(OFFSET(ReturnData!$B$1:$B$1805,0,Input!P$74-1),OFFSET(ReturnData!$B$1:$B$1805,0,Solver!$C52-1)) -> 0 | P52: =+_xlfn.COVARIANCE.P(OFFSET(ReturnData!$B$1:$B$1805,0,Input!Q$74-1),OFFSET(ReturnData!$B$1:$B$1805,0,Solver!$C52-1)) -> 0 | Q52: =+_xlfn.COVARIANCE.P(OFFSET(ReturnData!$B$1:$B$1805,0,Input!R$74-1),OFFSET(ReturnData!$B$1:$B$1805,0,Solver!$C52-1)) -> 0 | R52: =+_xlfn.COVARIANCE.P(OFFSET(ReturnData!$B$1:$B$1805,0,Input!S$74-1),OFFSET(ReturnData!$B$1:$B$1805,0,Solver!$C52-1)) -> 0 | S52: =+_xlfn.COVARIANCE.P(OFFSET(ReturnData!$B$1:$B$1805,0,Input!T$74-1),OFFSET(ReturnData!$B$1:$B$1805,0,Solver!$C52-1)) -> 0 | T52: =+_xlfn.COVARIANCE.P(OFFSET(ReturnData!$B$1:$B$1805,0,Input!U$74-1),OFFSET(ReturnData!$B$1:$B$1805,0,Solver!$C52-1)) -> 0 | U52: =+_xlfn.COVARIANCE.P(OFFSET(ReturnData!$B$1:$B$1805,0,Input!V$74-1),OFFSET(ReturnData!$B$1:$B$1805,0,Solver!$C52-1)) -> 0 | V52: =+_xlfn.COVARIANCE.P(OFFSET(ReturnData!$B$1:$B$1805,0,Input!W$74-1),OFFSET(ReturnData!$B$1:$B$1805,0,Solver!$C52-1)) -> 0 | W52: =+_xlfn.COVARIANCE.P(OFFSET(ReturnData!$B$1:$B$1805,0,Input!X$74-1),OFFSET(ReturnData!$B$1:$B$1805,0,Solver!$C52-1)) -> 0 | X52: =+_xlfn.COVARIANCE.P(OFFSET(ReturnData!$B$1:$B$1805,0,Input!Y$74-1),OFFSET(ReturnData!$B$1:$B$1805,0,Solver!$C52-1)) -> 0 | Y52: =+_xlfn.COVARIANCE.P(OFFSET(ReturnData!$B$1:$B$1805,0,Input!Z$74-1),OFFSET(ReturnData!$B$1:$B$1805,0,Solver!$C52-1)) -> 0
B53: empty | C53: 22 | D53: =+_xlfn.COVARIANCE.P(OFFSET(ReturnData!$B$1:$B$1805,0,Input!E$74-1),OFFSET(ReturnData!$B$1:$B$1805,0,Solver!$C53-1)) -> 0 | E53: =+_xlfn.COVARIANCE.P(OFFSET(ReturnData!$B$1:$B$1805,0,Input!F$74-1),OFFSET(ReturnData!$B$1:$B$1805,0,Solver!$C53-1)) -> 0 | F53: =+_xlfn.COVARIANCE.P(OFFSET(ReturnData!$B$1:$B$1805,0,Input!G$74-1),OFFSET(ReturnData!$B$1:$B$1805,0,Solver!$C53-1)) -> 0 | G53: =+_xlfn.COVARIANCE.P(OFFSET(ReturnData!$B$1:$B$1805,0,Input!H$74-1),OFFSET(ReturnData!$B$1:$B$1805,0,Solver!$C53-1)) -> 0 | H53: =+_xlfn.COVARIANCE.P(OFFSET(ReturnData!$B$1:$B$1805,0,Input!I$74-1),OFFSET(ReturnData!$B$1:$B$1805,0,Solver!$C53-1)) -> 0 | I53: =+_xlfn.COVARIANCE.P(OFFSET(ReturnData!$B$1:$B$1805,0,Input!J$74-1),OFFSET(ReturnData!$B$1:$B$1805,0,Solver!$C53-1)) -> 0 | J53: =+_xlfn.COVARIANCE.P(OFFSET(ReturnData!$B$1:$B$1805,0,Input!K$74-1),OFFSET(ReturnData!$B$1:$B$1805,0,Solver!$C53-1)) -> 0 | K53: =+_xlfn.COVARIANCE.P(OFFSET(ReturnData!$B$1:$B$1805,0,Input!L$74-1),OFFSET(ReturnData!$B$1:$B$1805,0,Solver!$C53-1)) -> 0 | L53: =+_xlfn.COVARIANCE.P(OFFSET(ReturnData!$B$1:$B$1805,0,Input!M$74-1),OFFSET(ReturnData!$B$1:$B$1805,0,Solver!$C53-1)) -> 0 | M53: =+_xlfn.COVARIANCE.P(OFFSET(ReturnData!$B$1:$B$1805,0,Input!N$74-1),OFFSET(ReturnData!$B$1:$B$1805,0,Solver!$C53-1)) -> 0 | N53: =+_xlfn.COVARIANCE.P(OFFSET(ReturnData!$B$1:$B$1805,0,Input!O$74-1),OFFSET(ReturnData!$B$1:$B$1805,0,Solver!$C53-1)) -> 0 | O53: =+_xlfn.COVARIANCE.P(OFFSET(ReturnData!$B$1:$B$1805,0,Input!P$74-1),OFFSET(ReturnData!$B$1:$B$1805,0,Solver!$C53-1)) -> 0 | P53: =+_xlfn.COVARIANCE.P(OFFSET(ReturnData!$B$1:$B$1805,0,Input!Q$74-1),OFFSET(ReturnData!$B$1:$B$1805,0,Solver!$C53-1)) -> 0 | Q53: =+_xlfn.COVARIANCE.P(OFFSET(ReturnData!$B$1:$B$1805,0,Input!R$74-1),OFFSET(ReturnData!$B$1:$B$1805,0,Solver!$C53-1)) -> 0 | R53: =+_xlfn.COVARIANCE.P(OFFSET(ReturnData!$B$1:$B$1805,0,Input!S$74-1),OFFSET(ReturnData!$B$1:$B$1805,0,Solver!$C53-1)) -> 0 | S53: =+_xlfn.COVARIANCE.P(OFFSET(ReturnData!$B$1:$B$1805,0,Input!T$74-1),OFFSET(ReturnData!$B$1:$B$1805,0,Solver!$C53-1)) -> 0 | T53: =+_xlfn.COVARIANCE.P(OFFSET(ReturnData!$B$1:$B$1805,0,Input!U$74-1),OFFSET(ReturnData!$B$1:$B$1805,0,Solver!$C53-1)) -> 0 | U53: =+_xlfn.COVARIANCE.P(OFFSET(ReturnData!$B$1:$B$1805,0,Input!V$74-1),OFFSET(ReturnData!$B$1:$B$1805,0,Solver!$C53-1)) -> 0 | V53: =+_xlfn.COVARIANCE.P(OFFSET(ReturnData!$B$1:$B$1805,0,Input!W$74-1),OFFSET(ReturnData!$B$1:$B$1805,0,Solver!$C53-1)) -> 0 | W53: =+_xlfn.COVARIANCE.P(OFFSET(ReturnData!$B$1:$B$1805,0,Input!X$74-1),OFFSET(ReturnData!$B$1:$B$1805,0,Solver!$C53-1)) -> 0 | X53: =+_xlfn.COVARIANCE.P(OFFSET(ReturnData!$B$1:$B$1805,0,Input!Y$74-1),OFFSET(ReturnData!$B$1:$B$1805,0,Solver!$C53-1)) -> 0 | Y53: =+_xlfn.COVARIANCE.P(OFFSET(ReturnData!$B$1:$B$1805,0,Input!Z$74-1),OFFSET(ReturnData!$B$1:$B$1805,0,Solver!$C53-1)) -> 0
B55: Weights | D55: -9.439140556e-06 | E55: -9.565934344e-06 | F55: -9.395438627e-06 | G55: -9.257278458e-06 | H55: -9.015420777e-06 | I55: -8.720063981e-06 | J55: -8.589555979e-06 | K55: -8.573117132e-06 | L55: -9.280563423e-06 | M55: 6.518564142e-05 | N55: 1.00000997 | O55: 0 | P55: 0 | Q55: 0 | R55: 0 | S55: 0 | T55: 6.680681466e-06 | U55: 0 | V55: 0 | W55: 0 | X55: 0 | Y55: 0 | Z55: =SUM(D55:Y55) -> 1
B56: Variances | D56: =+D55*SUMPRODUCT(TRANSPOSE(Weights),D32:D53) -> -8.896036878e-11 | E56: =+E55*SUMPRODUCT(TRANSPOSE(Weights),E32:E53) -> -1.309320843e-10 | F56: =+F55*SUMPRODUCT(TRANSPOSE(Weights),F32:F53) -> -2.056865716e-10 | G56: =+G55*SUMPRODUCT(TRANSPOSE(Weights),G32:G53) -> -2.918346958e-10 | H56: =+H55*SUMPRODUCT(TRANSPOSE(Weights),H32:H53) -> -4.131976058e-10 | I56: =+I55*SUMPRODUCT(TRANSPOSE(Weights),I32:I53) -> -3.066729168e-10 | J56: =+J55*SUMPRODUCT(TRANSPOSE(Weights),J32:J53) -> -2.784736348e-10 | K56: =+K55*SUMPRODUCT(TRANSPOSE(Weights),K32:K53) -> -1.445525931e-10 | L56: =+L55*SUMPRODUCT(TRANSPOSE(Weights),L32:L53) -> -2.505267392e-10 | M56: =+M55*SUMPRODUCT(TRANSPOSE(Weights),M32:M53) -> 5.07607499e-09 | N56: =+N55*SUMPRODUCT(TRANSPOSE(Weights),N32:N53) -> 0.0001028609716 | O56: =+O55*SUMPRODUCT(TRANSPOSE(Weights),O32:O53) -> 0 | P56: =+P55*SUMPRODUCT(TRANSPOSE(Weights),P32:P53) -> 0 | Q56: =+Q55*SUMPRODUCT(TRANSPOSE(Weights),Q32:Q53) -> 0 | R56: =+R55*SUMPRODUCT(TRANSPOSE(Weights),R32:R53) -> 0 | S56: =+S55*SUMPRODUCT(TRANSPOSE(Weights),S32:S53) -> 0 | T56: =+T55*SUMPRODUCT(TRANSPOSE(Weights),T32:T53) -> -4.744931382e-11 | U56: =+U55*SUMPRODUCT(TRANSPOSE(Weights),U32:U53) -> 0 | V56: =+V55*SUMPRODUCT(TRANSPOSE(Weights),V32:V53) -> 0 | W56: =+W55*SUMPRODUCT(TRANSPOSE(Weights),W32:W53) -> 0 | X56: =+X55*SUMPRODUCT(TRANSPOSE(Weights),X32:X53) -> 0 | Y56: =+Y55*SUMPRODUCT(TRANSPOSE(Weights),Y32:Y53) -> 0 | Z56: =SUM(D56:Y56)^0.5*SQRT(252) -> 0.1610021743 | AH56: TRUE
B57: CAGR | D57: =+CAGR -> 0.1404507115 | E57: 0.1086989463 | F57: 0.15139458 | G57: 0.1859927115 | H57: 0.2465588424 | I57: 0.3205222555 | J57: 0.3532041368 | K57: 0.3573207443 | L57: 0.1801616919 | M57: 0.5258186493 | N57: 0.1740492531 | O57: 0.09633164984 | P57: 0.05100898288 | Q57: 0.01129978077 | R57: 0.06092548108 | S57: 0.4460142171 | T57: 0.2035549632 | U57: 0 | V57: 0 | W57: 0 | X57: 0 | Y57: 0 | Z57: =+SUMPRODUCT(D57:Y57,Weights) -> 0.1740683274 | AH57: FALSE
B58: CheckExclude | D58: =+TRANSPOSE(SolExclude)*Weights -> 0 | E58: 0 | F58: 0 | G58: 0 | H58: 0 | I58: 0 | J58: -8.589555979e-06 | K58: 0 | L58: 0 | M58: 0 | N58: 1.00000997 | O58: 0 | P58: 0 | Q58: 0 | R58: 0 | S58: 0 | T58: 0 | U58: 0 | V58: 0 | W58: 0 | X58: 0 | Y58: 0 | Z58: =SUM(D58:Y58) -> 1.000001381
B61: Solver Scenarios: | D61: Target | E61: Constraint Max | F61: Const Max Value | G61: Const Min | H61: Const Min Value | I61: Min Weight | J61: Max Weight | K61: Max Portfolio Weight | L61: CAGR:
B62: Custom Selection | D62: =+J9 -> 0 | E62: =+J10 -> 0 | F62: =+J11 -> 0 | G62: =+J12 -> 0 | H62: =+J13 -> 0 | I62: =+J14 -> 0 | J62: =+J15 -> 0 | K62: =+J16 -> 0
B63: Maximum Sharpe | D63: =-SolSharpe -> -1.081155134 | E63: 0 | F63: 0 | G63: 0 | H63: 0 | I63: 0 | J63: 1 | K63: 1
B64: Minimum Volatility | D64: =+SolVolatility -> 0.1610021743 | E64: 0 | F64: 0 | G64: 0 | H64: 0 | I64: 0 | J64: 1 | K64: 1
B65: Max CAGR, Vol <25% | D65: =-SolCAGR -> -0.1740683274 | E65: 0 | F65: 0 | G65: =+SolVolatility -> 0.1610021743 | H65: 0.25 | I65: 0 | J65: 1 | K65: 1
B66: Max CAGR, Vol <20% | D66: -0.1740683274 | E66: 0 | F66: 0 | G66: =+SolVolatility -> 0.1610021743 | H66: 0.2 | I66: 0 | J66: 1 | K66: 1
B67: Max CAGR, Vol <15% | D67: -0.1740683274 | E67: 0 | F67: 0 | G67: =+SolVolatility -> 0.1610021743 | H67: 0.15 | I67: 0 | J67: 1 | K67: 1
B68: Max CAGR, Vol <10% | D68: -0.1740683274 | E68: 0 | F68: 0 | G68: =+SolVolatility -> 0.1610021743 | H68: 0.1 | I68: 0 | J68: 1 | K68: 1
B69: Max CAGR, Vol <7% | D69: -0.1740683274 | E69: 0 | F69: 0 | G69: =+SolVolatility -> 0.1610021743 | H69: 0.07 | I69: 0 | J69: 1 | K69: 1
B70: Max CAGR, Sharpe >1.5 | D70: -0.1740683274 | E70: =+SolSharpe -> 1.081155134 | F70: 1.5 | G70: 0 | H70: 0 | I70: 0 | J70: 1 | K70: 1
B71: Min DrawDown | D71: =-SolMaxDD -> 0.05496910376 | E71: 0 | F71: 0 | G71: 0 | H71: 0 | I71: 0 | J71: 1 | K71: 1
B72: Max CAGR, MaxDD <15% | D72: =-SolCAGR -> -0.1740683274 | E72: 0 | F72: 0 | G72: =-SolMaxDD -> 0.05496910376 | H72: 0.15 | I72: 0 | J72: 1 | K72: 1
B73: Max CAGR, MaxDD <10% | D73: =-SolCAGR -> -0.1740683274 | E73: 0 | F73: 0 | G73: =-SolMaxDD -> 0.05496910376 | H73: 0.1 | I73: 0 | J73: 1 | K73: 1
B74: Max CAGR, MaxDD <7% | D74: =-SolCAGR -> -0.1740683274 | E74: 0 | F74: 0 | G74: =-SolMaxDD -> 0.05496910376 | H74: 0.07 | I74: 0 | J74: 1 | K74: 1
B75: Lev 2: Maximum Sharpe | D75: =-SolSharpe -> -1.081155134 | E75: 0 | F75: 0 | G75: 0 | H75: 0 | I75: 0 | J75: 2 | K75: 2
B76: Lev 2: Minimum Volatility | D76: =+SolVolatility -> 0.1610021743 | E76: 0 | F76: 0 | G76: 0 | H76: 0 | I76: 0 | J76: 2 | K76: 2
B77: Lev 2: Max CAGR, Vol <15% | D77: =-SolCAGR -> -0.1740683274 | E77: 0 | F77: 0 | G77: =+SolVolatility -> 0.1610021743 | H77: 0.15 | I77: 0 | J77: 2 | K77: 2
B78: Lev 2: Max CAGR, MaxDD <15% | D78: =-SolCAGR -> -0.1740683274 | E78: 0 | F78: 0 | G78: =-SolMaxDD -> 0.05496910376 | H78: 0.15 | I78: 0 | J78: 2 | K78: 2
B79: Lev 2: Minimum DrawDown | D79: =-SolMaxDD -> 0.05496910376 | E79: 0 | F79: 0 | G79: 0 | H79: 0 | I79: 0 | J79: 2 | K79: 2
B80: none
B81: none
B82: none
B83: none
B84: none
B85: none
B86: none
B87: none
B88: none
B89: For Efficient Frontier: | L89: CAGR:
B90: Strategies: MaxCAGR, Vola <0.07 | C90: 0.07 | D90: =-SolCAGR -> -0.1740683274 | E90: 0 | F90: 0 | G90: =+SolVolatility -> 0.1610021743 | H90: =+C90 -> 0.07 | I90: 0 | J90: 1 | K90: 1 | L90: 0.197
B91: Strategies: MaxCAGR, Vola <0.1 | C91: 0.1 | D91: -0.1740683274 | E91: 0 | F91: 0 | G91: 0.1610021743 | H91: =+C91 -> 0.1 | I91: 0 | J91: 1 | K91: 1 | L91: 0.273
B92: Strategies: MaxCAGR, Vola <0.15 | C92: 0.15 | D92: -0.1740683274 | E92: 0 | F92: 0 | G92: 0.1610021743 | H92: 0.15 | I92: 0 | J92: 1 | K92: 1 | L92: 0.391
B93: Strategies: MaxCAGR, Vola <0.2 | C93: 0.2 | D93: -0.1740683274 | E93: 0 | F93: 0 | G93: 0.1610021743 | H93: 0.2 | I93: 0 | J93: 1 | K93: 1 | L93: 0.465
B94: Strategies: MaxCAGR, Vola <0.25 | C94: 0.25 | D94: -0.1740683274 | E94: 0 | F94: 0 | G94: 0.1610021743 | H94: 0.25 | I94: 0 | J94: 1 | K94: 1 | L94: 0.515
B95: Strategies: MaxCAGR, Vola <0.3 | C95: 0.271 | D95: -0.1740683274 | E95: 0 | F95: 0 | G95: 0.1610021743 | H95: =+C95 -> 0.271 | I95: 0 | J95: 1 | K95: 1 | L95: 0.53
B96: Strategies: MaxCAGR, Vola <0.37 | D96: -0.1740683274 | E96: 0 | F96: 0 | G96: 0.1610021743 | H96: 0 | I96: 0 | J96: 1 | K96: 1
B97: Proxies: MaxCAGR, Vola <0.015 | C97: 0.01 | D97: -0.1740683274 | E97: 0 | F97: 0 | G97: 0.1610021743 | H97: =+C97 -> 0.01 | I97: 0 | J97: 1 | K97: 1 | L97: 0.019
B98: Proxies: MaxCAGR, Vola <0.05 | C98: 0.05 | D98: -0.1740683274 | E98: 0 | F98: 0 | G98: 0.1610021743 | H98: 0.05 | I98: 0 | J98: 1 | K98: 1 | L98: 0.0495
B99: Proxies: MaxCAGR, Vola <0.1 | C99: 0.1 | D99: -0.1740683274 | E99: 0 | F99: 0 | G99: 0.1610021743 | H99: 0.1 | I99: 0 | J99: 1 | K99: 1 | L99: 0.098
B100: Proxies: MaxCAGR, Vola <0.15 | C100: 0.161 | D100: -0.1740683274 | E100: 0 | F100: 0 | G100: 0.1610021743 | H100: 0.161 | I100: 0 | J100: 1 | K100: 1 | L100: 0.174
B101: Proxies: MaxCAGR, Vola <0.2 | C101: 0.175 | D101: -0.1740683274 | E101: 0 | F101: 0 | G101: 0.1610021743 | H101: 0.175 | I101: 0 | J101: 1 | K101: 1 | L101: 0.174
B102: Proxies: MaxCAGR, Vola <0.23 | C102: 0.036 | D102: -0.1740683274 | E102: 0 | F102: 0 | G102: 0.1610021743 | H102: =+C102 -> 0.036 | I102: 0 | J102: 1 | K102: 1
O106: Saved Solver model - do not change
O108: =MIN($K$9) -> -0.1740683274
O109: =COUNT($D$55:$Y$55) -> 22
O110: =$K$10>=$K$11 -> FALSE
O111: =$K$12<=$K$13 -> TRUE
O112: =SolCheckExclude=0 -> FALSE
O113: =SolSumWeights=$K$16 -> TRUE
O114: =Weights<=$K$15 -> TRUE
O115: =Weights>=$K$14 -> FALSE
O116: ={1000,32767,0.00001,0.01,FALSE,FALSE,FALSE,1,1,1,0.0001,TRUE} -> 1000
O117: ={1000,0,1,100,0,FALSE,TRUE,0.075,0,0,FALSE,30} -> 1000

Sheet Output (hidden)

Sheet >> Data Tables Do not Change

Sheet PortfolioTemplates
A1: Name | B1: Description | C1: =StratNames -> BRS | D1: BUGST | E1: BUGLEV | F1: WTOP4 | G1: GSRlv | H1: GMRS | I1: GMRSE | J1: MYRS | K1: UIS | L1: UIS-SPXL-TMF | M1: SPY | N1: TLT | O1: AGG | P1: SHY | Q1: GLD | R1: NASDAQ100 | S1: GLD-USD | T1: empty | U1: empty | V1: empty | W1: empty | X1: empty | Y1: Total
A2: Use Manual Input (Column D) | B2: Please select your custom weightings in the list below | C2: =+TRANSPOSE(Input) -> 0.6 | D2: 0 | E2: 0 | F2: 0 | G2: 0.2 | H2: 0 | I2: 0 | J2: 0 | K2: 0.2 | L2: 0 | M2: 0 | N2: 0 | O2: 0 | P2: 0 | Q2: 0 | R2: 0 | S2: 0 | T2: 0 | U2: 0 | V2: 0 | W2: 0 | X2: 0 | Y2: =SUM(C2:X2) -> 1
A3: Use Solver Solution | B3: Select this option to do your own solver solution | C3: =+Weights -> -9.439140556e-06 | D3: -9.565934344e-06 | E3: -9.395438627e-06 | F3: -9.257278458e-06 | G3: -9.015420777e-06 | H3: -8.720063981e-06 | I3: -8.589555979e-06 | J3: -8.573117132e-06 | K3: -9.280563423e-06 | L3: 6.518564142e-05 | M3: 1.00000997 | N3: 0 | O3: 0 | P3: 0 | Q3: 0 | R3: 0 | S3: 6.680681466e-06 | T3: 0 | U3: 0 | V3: 0 | W3: 0 | X3: 0 | Y3: =SUM(C3:X3) -> 1
A4: Maximum Sharpe | C4: 0.3169768395 | D4: 0.04366131852 | E4: 0.06963104459 | F4: 0 | G4: 0.04891009849 | H4: 0 | I4: 0 | J4: 0.09051976604 | K4: 0.06463159526 | L4: 0.01033078581 | M4: 0 | N4: 0 | O4: 0 | P4: 0 | Q4: 0 | R4: 0.1050059083 | S4: 0.2503326435 | T4: 0 | U4: 0 | V4: 0 | W4: 0 | X4: 0 | Y4: =SUM(C4:X4) -> 1
A5: Minimum Volatility | C5: 0.4202254205 | D5: 0.4130087046 | E5: 0 | F5: 0 | G5: 0 | H5: 0 | I5: 0 | J5: 0 | K5: 0.03115153531 | L5: 0 | M5: 0 | N5: 0 | O5: 0 | P5: 0 | Q5: 0 | R5: 0 | S5: 0.1356143396 | T5: 0 | U5: 0 | V5: 0 | W5: 0 | X5: 0 | Y5: 1
A6: Max CAGR, Vol <25% | C6: 0 | D6: 0 | E6: 0 | F6: 0 | G6: 0 | H6: 0 | I6: 0 | J6: 0 | K6: 0 | L6: 0.8601289378 | M6: 0 | N6: 0 | O6: 0 | P6: 0 | Q6: 0 | R6: 0.1398710622 | S6: 0 | T6: 0 | U6: 0 | V6: 0 | W6: 0 | X6: 0 | Y6: 1
A7: Max CAGR, Vol <20% | C7: 0 | D7: 0 | E7: 0 | F7: 0 | G7: 0 | H7: 0 | I7: 0 | J7: 0.144080242 | K7: 0 | L7: 0.4655050322 | M7: 0 | N7: 0 | O7: 0 | P7: 0 | Q7: 0 | R7: 0.3682018152 | S7: 0.02221291057 | T7: 0 | U7: 0 | V7: 0 | W7: 0 | X7: 0 | Y7: 1
A8: Max CAGR, Vol <15% | C8: 0 | D8: 0 | E8: 0 | F8: 0 | G8: 0 | H8: 0 | I8: 0 | J8: 0.1499946738 | K8: 0 | L8: 0.3023468881 | M8: 0 | N8: 0 | O8: 0 | P8: 0 | Q8: 0 | R8: 0.2767671354 | S8: 0.2708913027 | T8: 0 | U8: 0 | V8: 0 | W8: 0 | X8: 0 | Y8: 1
A9: Max CAGR, Vol <10% | C9: 0.09136223624 | D9: 0.04473418285 | E9: 0.07373357986 | F9: 0.01638210223 | G9: 0.06998700901 | H9: 0 | I9: 0 | J9: 0.1459232698 | K9: 0.06437884274 | L9: 0.02680163705 | M9: 0 | N9: 0 | O9: 0 | P9: 0 | Q9: 0 | R9: 0.2100329213 | S9: 0.2566642189 | T9: 0 | U9: 0 | V9: 0 | W9: 0 | X9: 0 | Y9: 1
A10: Max CAGR, Vol <7% | C10: 0.3656945927 | D10: 0 | E10: 0.06010893565 | F10: 0 | G10: 0.005316408697 | H10: -1e-05 | I10: 0 | J10: 0.05120126198 | K10: 0.1577614078 | L10: 0 | M10: 0 | N10: 0 | O10: 0 | P10: 0 | Q10: 0 | R10: 0.06329693312 | S10: 0.29663046 | T10: 0 | U10: 0 | V10: 0 | W10: 0 | X10: 0 | Y10: 1
A11: Max CAGR, Sharpe >1.5 | C11: 0 | D11: 0 | E11: 0 | F11: 0 | G11: 0 | H11: 0 | I11: 0 | J11: 0 | K11: 0 | L11: 1 | M11: 0 | N11: 0 | O11: 0 | P11: 0 | Q11: 0 | R11: 0 | S11: 0 | T11: 0 | U11: 0 | V11: 0 | W11: 0 | X11: 0 | Y11: 1
A12: Min DrawDown | C12: 0.2997866447 | D12: 0.08398078774 | E12: 0.06095983831 | F12: 0.07140257945 | G12: 0.06148800849 | H12: 3.800332611e-05 | I12: 0 | J12: 0.009115983548 | K12: 0.03248293983 | L12: 0.006883838045 | M12: 0 | N12: 0 | O12: 0 | P12: 0 | Q12: 0 | R12: 0.03893039835 | S12: 0.3349309782 | T12: 0 | U12: 0 | V12: 0 | W12: 0 | X12: 0 | Y12: 1
A13: Max CAGR, MaxDD <15% | C13: 0 | D13: 0 | E13: 0 | F13: 0 | G13: 0 | H13: 0 | I13: 0 | J13: 0 | K13: 0 | L13: 0.2916622543 | M13: 0 | N13: 0 | O13: 0 | P13: 0 | Q13: 0 | R13: 0.6348751656 | S13: 0.07346258017 | T13: 0 | U13: 0 | V13: 0 | W13: 0 | X13: 0 | Y13: 1
A14: Max CAGR, MaxDD <10% | C14: 0 | D14: 0 | E14: 0 | F14: 0 | G14: 0 | H14: 0 | I14: 0 | J14: 0.02504826522 | K14: 0 | L14: 0.1694766817 | M14: 0 | N14: 0 | O14: 0 | P14: 0 | Q14: 0 | R14: 0.5227193525 | S14: 0.2827557006 | T14: 0 | U14: 0 | V14: 0 | W14: 0 | X14: 0 | Y14: 1
A15: Max CAGR, MaxDD <7% | C15: 0.005279859559 | D15: 0.02615738972 | E15: 0.07812732352 | F15: 0.08813438573 | G15: 0.1245985536 | H15: 0.02443918201 | I15: 0 | J15: 0.1243575135 | K15: 0.0784199771 | L15: 0.01605115901 | M15: 0 | N15: 0 | O15: 0 | P15: 0 | Q15: 0 | R15: 0.2231959916 | S15: 0.2112386647 | T15: 0 | U15: 0 | V15: 0 | W15: 0 | X15: 0 | Y15: 1
A16: Lev 2: Maximum Sharpe | C16: 0.5089576731 | D16: 0.1230323163 | E16: 0.152319275 | F16: 0.05886270277 | G16: 0.120001488 | H16: 0 | I16: 0 | J16: 0.1954717837 | K16: 0.1293458747 | L16: 0.05073955169 | M16: 0 | N16: 0 | O16: 0 | P16: 0 | Q16: 0 | R16: 0.2623871002 | S16: 0.3988822345 | T16: 0 | U16: 0 | V16: 0 | W16: 0 | X16: 0 | Y16: 2
A17: Lev 2: Minimum Volatility | C17: 0.8410026985 | D17: 0.8233172719 | E17: 0 | F17: 0 | G17: 0 | H17: 0 | I17: 0 | J17: 0 | K17: 0.06366771735 | L17: 0 | M17: 0 | N17: 0 | O17: 0 | P17: 0 | Q17: 0 | R17: 0 | S17: 0.2720123122 | T17: 0 | U17: 0 | V17: 0 | W17: 0 | X17: 0 | Y17: 2
A18: Lev 2: Max CAGR, Vol <15% | C18: 0.5218456473 | D18: 0.1428456364 | E18: 0.174546229 | F18: 0 | G18: 0.1097798893 | H18: 0 | I18: 0 | J18: 0.1155326054 | K18: 0.2039657537 | L18: 0 | M18: 0 | N18: 0 | O18: 0 | P18: 0 | Q18: 0 | R18: 0.2102163931 | S18: 0.5212678458 | T18: 0 | U18: 0 | V18: 0 | W18: 0 | X18: 0 | Y18: 2
A19: Lev 2: Max CAGR, MaxDD <15% | C19: 1e-05 | D19: 0.1663524552 | E19: 0.1697894575 | F19: 0.1838421892 | G19: 0.2177961444 | H19: 0.1876620348 | I19: 0 | J19: 0.2743551449 | K19: 0.1720572202 | L19: 0 | M19: 0 | N19: 0 | O19: 0 | P19: 0 | Q19: 0 | R19: 0.312568449 | S19: 0.3155669047 | T19: 0 | U19: 0 | V19: 0 | W19: 0 | X19: 0 | Y19: 2
A20: Lev 2: Minimum DrawDown | C20: 0.538354054 | D20: 0.1664519779 | E20: 0.1140725144 | F20: 0.1519168341 | G20: 0.1338262928 | H20: 0 | I20: 0 | J20: 0.06205858305 | K20: 0.07007894685 | L20: 6.370940885e-07 | M20: 0 | N20: 0 | O20: 0 | P20: 0 | Q20: 0 | R20: 0.1045856885 | S20: 0.6586544713 | T20: 0 | U20: 0 | V20: 0 | W20: 0 | X20: 0 | Y20: 2

Sheet ReturnData
A1: Date | B1: BRS | C1: BUGST | D1: BUGLEV | E1: WTOP4 | F1: GSRlv | G1: GMRS | H1: GMRSE | I1: MYRS | J1: UIS | K1: UIS-SPXL-TMF | L1: SPY | M1: TLT | N1: AGG | O1: SHY | P1: GLD | Q1: NASDAQ100 | R1: GLD-USD | S1: empty | T1: empty | U1: empty | V1: empty | W1: empty
A2: 2009-05-04 | B2: -0.001131241164 | C2: 0.006426425999 | D2: 0.007592045544 | E2: 0 | F2: 0.03967692403 | G2: 0.06909594246 | H2: 0.06909592037 | I2: 0 | J2: 0.0340197883 | K2: 0.09976904336 | L2: 0.03401978426 | M2: 0.003295228821 | N2: 0.0007927188203 | O2: -0.0002386050514 | P2: 0.01943648141 | Q2: 0 | R2: 0.006228836379 | S2: 0 | T2: 0 | U2: 0 | V2: 0 | W2: 0
A3: 2009-05-05 | B3: 0.007141846609 | C3: -2.488304212e-05 | D3: 0.0008016451044 | E3: 0 | F3: -0.001526821699 | G3: -0.009003239695 | H3: -0.009003255904 | I3: 0 | J3: -0.003411079838 | K3: -0.01081402053 | L3: -0.003411074523 | M3: -0.001231685964 | N3: 0.002079200653 | O3: -0.0002387375273 | P3: -0.004399808263 | Q3: 0 | R3: -0.003597094458 | S3: 0 | T3: 0 | U3: 0 | V3: 0 | W3: 0
A4: 2009-05-06 | B4: 0.004157248692 | C4: 0.005803197437 | D4: 0.007643810358 | E4: 0 | F4: 0.02546585342 | G4: 0.01719666536 | H4: 0.01719668758 | I4: 0 | J4: 0.01733466697 | K4: 0.04737308975 | L4: 0.01733466479 | M4: -0.002363533335 | N4: 0.002272543905 | O4: 0.0005969044975 | P4: 0.01461757507 | Q4: 0 | R4: 0.001948019229 | S4: 0 | T4: 0 | U4: 0 | V4: 0 | W4: 0
A5: 2009-05-07 | B5: -0.01034487812 | C5: 0.001768843165 | D5: 0.003191705115 | E5: 0 | F5: -0.04342623971 | G5: -0.02488043575 | H5: -0.02488041752 | I5: 0 | J5: -0.01389189343 | K5: -0.04088128536 | L5: -0.0138918916 | M5: -0.02441288601 | N5: -0.004436171669 | O5: -0.001431673411 | P5: -0.001116808118 | Q5: 0 | R5: 0.006989671137 | S5: 0 | T5: 0 | U5: 0 | V5: 0 | W5: 0
A6: 2009-05-08 | B6: 0.007952533169 | C6: -0.0002396093271 | D6: -0.001530906499 | E6: 0 | F6: 0.04321129474 | G6: 0.03336608014 | H6: 0.03336603772 | I6: 0 | J6: 0.02333263706 | K6: 0.07103950535 | L6: 0.02333263256 | M6: 0.002428510075 | N6: 0.001881403755 | O6: 0.0007169071259 | P6: 0.00603757813 | Q6: 0 | R6: -0.003279102642 | S6: 0 | T6: 0 | U6: 0 | V6: 0 | W6: 0
A7: 2009-05-11 | B7: 0.01229789526 | C7: 0.0002916784399 | D7: 0.001430466525 | E7: 0 | F7: -0.007422171346 | G7: -0.02342514338 | H7: -0.02342509875 | I7: 0 | J7: -0.01871376363 | K7: -0.05616677538 | L7: -0.01871376006 | M7: 0.0142194925 | N7: 0.0006918298592 | O7: 0.001671446401 | P7: -0.003222949437 | Q7: 0 | R7: -0.01332754477 | S7: 0 | T7: 0 | U7: 0 | V7: 0 | W7: 0
A8: 2009-05-12 | B8: 0.001207092043 | C8: 0.002657310332 | D8: 0.002500428379 | E8: 0 | F8: -0.009313075198 | G8: 0.00713127185 | H8: 0.007131245982 | I8: 0 | J8: -0.002959190931 | K8: -0.008373828949 | L8: -0.002959193525 | M8: 0.003634838304 | N8: 0.005530836752 | O8: -0.0001192185449 | P8: 0.01126095415 | Q8: 0 | R8: -0.003254224623 | S8: 0 | T8: 0 | U8: 0 | V8: 0 | W8: 0
A9: 2009-05-13 | B9: -0.01001882029 | C9: -0.000176302475 | D9: -0.001115757415 | E9: 0 | F9: -0.05302957446 | G9: -0.03669131737 | H9: -0.03669133616 | I9: 0 | J9: -0.025173145 | K9: -0.07689987187 | L9: -0.02517314417 | M9: 0.01086508709 | N9: 0.0008840413421 | O9: 0.0004768178787 | P9: 0.004299878863 | Q9: 0 | R9: -0.009243232948 | S9: 0 | T9: 0 | U9: 0 | V9: 0 | W9: 0
A10: 2009-05-14 | B10: 0.003157884313 | C10: -0.00340495983 | D10: -0.005943161858 | E10: 0 | F10: 0.02254936033 | G10: 0.01436684442 | H10: 0.01436687307 | I10: 0 | J10: 0.008570163805 | K10: 0.01927502561 | L10: 0.008570162564 | M10: 0.003889829978 | N10: 0.0005887881091 | O10: 0.0003574272647 | P10: -0.0006586563029 | Q10: 0 | R10: 0.003922347943 | S10: 0 | T10: 0 | U10: 0 | V10: 0 | W10: 0
A11: 2009-05-15 | B11: -0.008657150368 | C11: 0.00593845025 | D11: 0.0095335227 | E11: 0 | F11: -0.006648422977 | G11: -0.009222658021 | H11: -0.009222656206 | I11: 0 | J11: -0.008161933304 | K11: -0.02435862344 | L11: -0.008161934087 | M11: -0.000305892863 | N11: 0.002255815419 | O11: -0.0001191207901 | P11: 0.005712446509 | Q11: 0 | R11: -0.002668568058 | S11: 0 | T11: 0 | U11: 0 | V11: 0 | W11: 0
A12: 2009-05-18 | B12: 0.007480098204 | C12: -0.00340927043 | D12: -0.003626470091 | E12: 0 | F12: 0.04578439914 | G12: 0.05551860263 | H12: 0.05551859011 | I12: 0 | J12: 0.02840721669 | K12: 0.08771341472 | L12: 0.02840721772 | M12: -0.01550391428 | N12: -0.002935730285 | O12: -0.000952878823 | P12: -0.01299838297 | Q12: 0 | R12: 0.004685993929 | S12: 0 | T12: 0 | U12: 0 | V12: 0 | W12: 0
A13: 2009-05-19 | B13: 0.008867863161 | C13: 0.003850078655 | D13: 0.005676838677 | E13: 0 | F13: 0.01577945143 | G13: 0.01133862699 | H13: 0.01133861951 | I13: 0 | J13: -0.001205754913 | K13: -0.0009059350948 | L13: -0.001205751568 | M13: -0.00528381741 | N13: 0.0008833472068 | O13: 0.0005961047156 | P13: 0.006640084035 | Q13: 0 | R13: 0.001032013528 | S13: 0 | T13: 0 | U13: 0 | V13: 0 | W13: 0
A14: 2009-05-20 | B14: 0.005671250934 | C14: 0.002446251507 | D14: 0.001723831386 | E14: 0 | F14: -0.009125178292 | G14: 0.003114236007 | H14: 0.003114216456 | I14: 0 | J14: -0.006694476697 | K14: -0.01723104722 | L14: -0.006694477728 | M14: 0.010519669 | N14: 0.003039779754 | O14: 0.001310777292 | P14: 0.0141820692 | Q14: 0 | R14: -0.005699073368 | S14: 0 | T14: 0 | U14: 0 | V14: 0 | W14: 0
A15: 2009-05-21 | B15: -0.008506411778 | C15: 0.005021148541 | D15: 0.005275115934 | E15: 0 | F15: -0.01310849836 | G15: -0.01862771278 | H15: -0.01862768482 | I15: 0 | J15: -0.01436308344 | K15: -0.04644787218 | L15: -0.01436308226 | M15: -0.02514939508 | N15: -0.003128358722 | O15: -0.001309061404 | P15: 0.01734415176 | Q15: 0 | R15: 0.005405117889 | S15: 0 | T15: 0 | U15: 0 | V15: 0 | W15: 0
A16: 2009-05-22 | B16: 0.009770304416 | C16: 0.0009367771227 | D16: 0.001056750225 | E16: 0 | F16: 0.008178589277 | G16: 0.004428949276 | H16: 0.004428947648 | I16: 0 | J16: -0.002129837042 | K16: -0.007741826771 | L16: -0.002129837751 | M16: -0.01110174715 | N16: -0.002647878206 | O16: 0.0002383677062 | P16: 0.003196632993 | Q16: 0 | R16: 0.004959612284 | S16: 0 | T16: 0 | U16: 0 | V16: 0 | W16: 0
A17: 2009-05-26 | B17: -0.004657120194 | C17: -0.001283255364 | D17: -0.001642417131 | E17: 0 | F17: 0.01849868286 | G17: 0.01196854996 | H17: 0.01196853167 | I17: 0 | J17: 0.02561229485 | K17: 0.08322554496 | L17: 0.0256122911 | M17: -0.01507533948 | N17: -0.002261510094 | O17: -0.00131046492 | P17: -0.004142325987 | Q17: 0 | R17: 0.000780135644 | S17: 0 | T17: 0 | U17: 0 | V17: 0 | W17: 0
A18: 2009-05-27 | B18: -0.002691192466 | C18: 0.0004321522754 | D18: 0.001425816985 | E18: 0 | F18: -0.005923582073 | G18: -0.01151574144 | H18: -0.01151572696 | I18: 0 | J18: -0.01785328307 | K18: -0.05762297272 | L18: -0.01785328277 | M18: -0.0176943633 | N18: -0.005518845127 | O18: -0.0002386236085 | P18: -0.00330636725 | Q18: 0 | R18: 0.0004342354198 | S18: 0 | T18: 0 | U18: 0 | V18: 0 | W18: 0
A19: 2009-05-28 | B19: 0.006911290148 | C19: 0.001866646019 | D19: 0.001590860929 | E19: 0 | F19: 0.01513463673 | G19: 0.03085646567 | H19: 0.03085645602 | I19: 0 | J19: 0.01394000547 | K19: 0.04012733335 | L19: 0.01394000562 | M19: 0.01447679469 | N19: 0.0003963195588 | O19: -0.0001192584771 | P19: 0.008453729538 | Q19: 0 | R19: 0.02118415951 | S19: 0 | T19: 0 | U19: 0 | V19: 0 | W19: 0
A20: 2009-05-29 | B20: 0.007244343178 | C20: 0.00590865019 | D20: 0.006509635951 | E20: 0 | F20: 0.01257716047 | G20: 0.01527181359 | H20: 0.01527183355 | I20: 0 | J20: 0.01770788795 | K20: 0.05113223527 | L20: 0.01770788695 | M20: 0.02581694372 | N20: 0.01069838407 | O20: 0.001431926931 | P20: 0.02079795248 | Q20: 0 | R20: -0.005921710269 | S20: 0 | T20: 0 | U20: 0 | V20: 0 | W20: 0
A21: 2009-06-01 | B21: 0.004638107569 | C21: -0.001720688385 | D21: -0.002182878154 | E21: 0 | F21: 0.05457131559 | G21: 0.04211787485 | H21: 0.04211785225 | I21: 0 | J21: 0.008076690555 | K21: 0.02431164368 | L21: 0.02420833779 | M21: -0.02956380347 | N21: -0.01240636899 | O21: -0.0008234715005 | P21: -0.004885592668 | Q21: 0 | R21: -0.003339129552 | S21: 0 | T21: 0 | U21: 0 | V21: 0 | W21: 0
A22: 2009-06-02 | B22: -0.0005089003291 | C22: 0.004208022481 | D22: 0.006121731252 | E22: 0 | F22: -0.01030909851 | G22: -0.01443416991 | H22: -0.01443417639 | I22: 0 | J22: 0.002153923749 | K22: 0.01129409078 | L22: 0.0008441712299 | M22: 0.005379351828 | N22: 0.006868430175 | O22: -0.0003583305339 | P22: 0.00658098799 | Q22: 0 | R22: -0.005671712065 | S22: 0 | T22: 0 | U22: 0 | V22: 0 | W22: 0
A23: 2009-06-03 | B23: -0.002516202325 | C23: -0.009925397857 | D23: -0.01013332176 | E23: 0 | F23: -0.05052143762 | G23: -0.03544227321 | H23: -0.03544224149 | I23: 0 | J23: -0.006265274087 | K23: -0.02397996198 | L23: -0.01265152135 | M23: 0.009390698483 | N23: 0.002768160595 | O23: 0.001792257153 | P23: -0.02023658136 | Q23: 0 | R23: -0.003014924534 | S23: 0 | T23: 0 | U23: 0 | V23: 0 | W23: 0
A24: 2009-06-04 | B24: -0.002390502302 | C24: 0.003923442766 | D24: 0.001949256712 | E24: 0 | F24: 0.03416275086 | G24: 0.01852415942 | H24: 0.01852415338 | I24: 0 | J24: 0.0005505931758 | K24: -0.001421336718 | L24: 0.009396652044 | M24: -0.0206620869 | N24: -0.008281617461 | O24: -0.0009541218597 | P24: 0.01927760749 | Q24: 0 | R24: 0.009012810403 | S24: 0 | T24: 0 | U24: 0 | V24: 0 | W24: 0
A25: 2009-06-05 | B25: 0.0006246613653 | C25: -0.003038551855 | D25: -0.003971377071 | E25: 0 | F25: 0.002873760476 | G25: 0.002087046595 | H25: 0.002087040545 | I25: 0 | J25: -0.002044815366 | K25: -0.004634691432 | L25: 0.0002116246125 | M25: -0.007621800449 | N25: -0.005169472556 | O25: -0.006566427631 | P25: -0.02618730044 | Q25: 0 | R25: -0.00308658134 | S25: 0 | T25: 0 | U25: 0 | V25: 0 | W25: 0
A26: 2009-06-08 | B26: -0.0004598808793 | C26: -0.003559014379 | D26: -0.004956715225 | E26: 0 | F26: -0.02281578723 | G26: -0.01547160191 | H26: -0.01547158312 | I26: 0 | J26: -0.003676593268 | K26: -0.009807497114 | L26: -0.004124795093 | M26: -0.002560071147 | N26: -0.002698071067 | O26: -0.002643922117 | P26: -0.001600693646 | Q26: 0 | R26: 0.002956224541 | S26: 0 | T26: 0 | U26: 0 | V26: 0 | W26: 0
A27: 2009-06-09 | B27: 0.004816847886 | C27: 0.002235015347 | D27: 0.00378970898 | E27: 0 | F27: 0.02346368248 | G27: 0.001813280501 | H27: 0.001813274554 | I27: 0 | J27: 0.003603821802 | K27: 0.01240606935 | L27: 0.005097655217 | M27: -0.0001116191636 | N27: 0.004508991476 | O27: 0.00228946115 | P27: 0.002885891468 | Q27: 0 | R27: -0.008946156796 | S27: 0 | T27: 0 | U27: 0 | V27: 0 | W27: 0
A28: 2009-06-10 | B28: 0.0003567747615 | C28: -0.002046242686 | D28: -0.002265172525 | E28: 0 | F28: 0.00367688258 | G28: 0.01266962626 | H28: 0.01266961688 | I28: 0 | J28: -0.006307367592 | K28: -0.02070001631 | L28: -0.002535906588 | M28: -0.01573656307 | N28: -0.002793011935 | O28: -0.0001202400354 | P28: 0.0003197165018 | Q28: 0 | R28: 0.005142452573 | S28: 0 | T28: 0 | U28: 0 | V28: 0 | W28: 0
A29: 2009-06-11 | B29: 0.002000408742 | C29: 0.001687588127 | D29: 0.002281699174 | E29: 0 | F29: 0.03216069376 | G29: 0.02144775392 | H29: 0.02144774876 | I29: 0 | J29: 0.0063347689 | K29: 0.02013265799 | L29: 0.004449143645 | M29: 0.01111233167 | N29: 0.003501031127 | O29: 0.0001202544948 | P29: -0.001704709123 | Q29: 0 | R29: -0.007985957151 | S29: 0 | T29: 0 | U29: 0 | V29: 0 | W29: 0
A30: 2009-06-12 | B30: 0.003685315668 | C30: 0.0003154022422 | D30: 0.0008873984523 | E30: 0 | F30: -0.01584016481 | G30: -0.0160396359 | H30: -0.01603964636 | I30: 0 | J30: 0.004513350267 | K30: 0.01084517149 | L30: 0.002742057707 | M30: 0.008971663788 | N30: 0.004884348221 | O30: 0.001081945084 | P30: -0.0163286985 | Q30: 0 | R30: -0.003064589745 | S30: 0 | T30: 0 | U30: 0 | V30: 0 | W30: 0
A31: 2009-06-15 | B31: -0.009168444708 | C31: -0.003649673379 | D31: -0.003714985627 | E31: 0 | F31: -0.05081175617 | G31: -0.0358625414 | H31: -0.03586255615 | I31: 0 | J31: -0.01380865135 | K31: -0.04624686141 | L31: -0.02292806267 | M31: 0.009002964194 | N31: 0.003769527665 | O31: 0.0007206099088 | P31: -0.01160898365 | Q31: 0 | R31: 0.004207455053 | S31: 0 | T31: 0 | U31: 0 | V31: 0 | W31: 0
A32: 2009-06-16 | B32: 0.001553912617 | C32: -0.001431539842 | D32: -0.001297485895 | E32: 0 | F32: -0.03307667731 | G32: -0.01506298718 | H32: -0.01506293235 | I32: 0 | J32: -0.004514122161 | K32: -0.01253843396 | L32: -0.01356299361 | M32: 0.0174047382 | N32: 0.001383521053 | O32: 0.001079997488 | P32: 0.009110889333 | Q32: 0 | R32: 0.003595595579 | S32: 0 | T32: 0 | U32: 0 | V32: 0 | W32: 0
A33: 2009-06-17 | B33: -0.004786750311 | C33: 0.0006522186694 | D33: -0.000282306622 | E33: 0 | F33: -0.01958736901 | G33: -0.01123595852 | H33: -0.01123598 | I33: 0 | J33: -0.00237016933 | K33: -0.008097750968 | L33: -0.0009820712062 | M33: -0.005630188703 | N33: 0.001973722774 | O33: 0.001078933347 | P33: 0.004568671816 | Q33: 0 | R33: -0.004563140759 | S33: 0 | T33: 0 | U33: 0 | V33: 0 | W33: 0
A34: 2009-06-18 | B34: 0.002398730749 | C34: -0.0004257025339 | D34: -0.0008082462966 | E34: 0 | F34: -0.002726753488 | G34: -0.002840909977 | H34: -0.002840935016 | I34: 0 | J34: 0.0006348803654 | K34: 0.000854836567 | L34: 0.007318383836 | M34: -0.01513500845 | N34: -0.006500499679 | O34: -0.00167644362 | P34: -0.008012961733 | Q34: 0 | R34: -0.0009598817732 | S34: 0 | T34: 0 | U34: 0 | V34: 0 | W34: 0
A35: 2009-06-19 | B35: 0.003841781011 | C35: -0.001472142037 | D35: -0.0007301021027 | E35: 0 | F35: 0.01340099211 | G35: 0.005064880422 | H35: 0.005064899234 | I35: 0 | J35: 0.006622451922 | K35: 0.0177557621 | L35: 0.003685898645 | M35: 0.0137092863 | N35: 0.003668040407 | O35: 0.0005996784426 | P35: 0.003165604157 | Q35: 0 | R35: -0.001683693021 | S35: 0 | T35: 0 | U35: 0 | V35: 0 | W35: 0
A36: 2009-06-22 | B36: -0.005744494254 | C36: -0.004096194555 | D36: -0.003571759104 | E36: 0 | F36: -0.06944090946 | G36: -0.03622046922 | H36: -0.0362204508 | I36: 0 | J36: -0.01827608367 | K36: -0.05258429463 | L36: -0.0299869888 | M36: 0.009706612005 | N36: 0.001481635284 | O36: 0.001318645815 | P36: -0.01479870479 | Q36: 0 | R36: -0.00386059498 | S36: 0 | T36: 0 | U36: 0 | V36: 0 | W36: 0
A37: 2009-06-23 | B37: -0.0001127639943 | C37: -0.002812453297 | D37: -0.002583218614 | E37: 0 | F37: 0.01815604401 | G37: 0.006490221957 | H37: 0.006490291835 | I37: 0 | J37: 0.004118734959 | K37: 0.01232336191 | L37: 0.0007840526744 | M37: 0.01177356827 | N37: 0.003254780065 | O37: 0 | P37: 0.004197006801 | Q37: 0 | R37: -0.01195096793 | S37: 0 | T37: 0 | U37: 0 | V37: 0 | W37: 0
A38: 2009-06-24 | B38: 0.002146115654 | C38: 0.004167622832 | D38: 0.003651216344 | E38: 0 | F38: 0.02136565322 | G38: 0.02193129476 | H38: 0.02193128939 | I38: 0 | J38: 0.002914574661 | K38: 0.004321584294 | L38: 0.008617835496 | M38: -0.0100351797 | N38: -0.002654389862 | O38: -0.0001197488255 | P38: 0.005829289613 | Q38: 0 | R38: 0.01269403673 | S38: 0 | T38: 0 | U38: 0 | V38: 0 | W38: 0
A39: 2009-06-25 | B39: 0.001153489936 | C39: 0.00498330502 | D39: 0.006441960047 | E39: 0 | F39: 0.03688220222 | G39: 0.02978865192 | H39: 0.02978863732 | I39: 0 | J39: 0.02071779975 | K39: 0.06627507254 | L39: 0.02174877093 | M39: 0.01833276362 | N39: 0.004632842652 | O39: 0.001915756737 | P39: 0.00940405717 | Q39: 0 | R39: 0.003395233902 | S39: 0 | T39: 0 | U39: 0 | V39: 0 | W39: 0
A40: 2009-06-26 | B40: 0.004648227347 | C40: -5.476763895e-05 | D40: 2.179252419e-05 | E40: 0 | F40: 0.01907114739 | G40: 0.005287656002 | H40: 0.005287653868 | I40: 0 | J40: -0.001311506985 | K40: -0.002987471482 | L40: -0.002606494639 | M40: 0.001694338725 | N40: 0.00294351193 | O40: 0.0004780234078 | P40: -0.0002166287556 | Q40: 0 | R40: -0.005728542427 | S40: 0 | T40: 0 | U40: 0 | V40: 0 | W40: 0
A41: 2009-06-29 | B41: 0.00358326156 | C41: 0.001521740191 | D41: 0.001927180674 | E41: 0 | F41: 0.006629431923 | G41: 0.007425810744 | H41: 0.007425795503 | I41: 0 | J41: 0.006983094967 | K41: 0.02018267879 | L41: 0.009364125452 | M41: 0.001480145891 | N41: -0.0008804966659 | O41: 0 | P41: -0.002708852501 | Q41: 0 | R41: -0.001595902569 | S41: 0 | T41: 0 | U41: 0 | V41: 0 | W41: 0
A42: 2009-06-30 | B42: 0.001099546401 | C42: -0.0009600699072 | D42: 0.0003003423455 | E42: 0 | F42: -0.01133785759 | G42: -0.01013522749 | H42: -0.01013517181 | I42: 0 | J42: -0.006167853666 | K42: -0.01575094016 | L42: -0.008090619455 | M42: -0.001689051912 | N42: 0.0001958729951 | O42: -0.0001194770558 | P42: -0.009343774344 | Q42: 0 | R42: -0.002572694203 | S42: 0 | T42: 0 | U42: 0 | V42: 0 | W42: 0
A43: 2009-07-01 | B43: -0.005490039719 | C43: 0.004229212683 | D43: 0.00407141018 | E43: 0 | F43: 0.02466025727 | G43: 0.005367872717 | H43: 0.009786985275 | I43: 0 | J43: 0.001686171308 | K43: 0.002555233183 | L43: 0.004132738832 | M43: -0.001983683718 | N43: -0.000373258084 | O43: 0.0009808907343 | P43: 0.01327044308 | Q43: 0 | R43: 0.004296874534 | S43: 0 | T43: 0 | U43: 0 | V43: 0 | W43: 0
A44: 2009-07-02 | B44: -0.005317993062 | C44: -0.003237582377 | D44: -0.00336904022 | E44: 0 | F44: -0.02639404606 | G44: -0.03643215437 | H44: -0.02936151393 | I44: 0 | J44: -0.01548411862 | K44: -0.04554820099 | L44: -0.02729345252 | M44: 0.00233844872 | N44: 0.00235831551 | O44: 0.001075474168 | P44: -0.01233898704 | Q44: 0 | R44: -0.002990216302 | S44: 0 | T44: 0 | U44: 0 | V44: 0 | W44: 0
A45: 2009-07-06 | B45: -0.00490119972 | C45: -0.001035722321 | D45: -0.001614485446 | E45: 0 | F45: -0.005585671048 | G45: -0.004889170425 | H45: -0.004698964027 | I45: 0 | J45: -0.0008406232732 | K45: -0.006679343149 | L45: -0.0001112805068 | M45: -0.001908801772 | N45: -0.0007842516601 | O45: 0.0003582025092 | P45: -0.005369841096 | Q45: 0 | R45: -0.003152541694 | S45: 0 | T45: 0 | U45: 0 | V45: 0 | W45: 0
A46: 2009-07-07 | B46: 0.000916428405 | C46: -0.0002878237094 | D46: -3.888090663e-05 | E46: 0 | F46: -0.02636264693 | G46: -0.02423842048 | H46: -0.03688405804 | I46: 0 | J46: -0.00880987835 | K46: -0.02535017768 | L46: -0.01937645448 | M46: 0.006693556493 | N46: 0.003237532278 | O46: -0.0001193538986 | P46: -0.0005509365238 | Q46: 0 | R46: 0.001737348347 | S46: 0 | T46: 0 | U46: 0 | V46: 0 | W46: 0
A47: 2009-07-08 | B47: 0.002645465484 | C47: -0.004730322519 | D47: -0.004411903421 | E47: 0 | F47: -0.01645344246 | G47: -0.005371011544 | H47: -0.01102941036 | I47: 0 | J47: 0.007202267295 | K47: 0.02714206051 | L47: -0.0006813314833 | M47: 0.0184696582 | N47: 0.005476209257 | O47: 0.001551459545 | P47: -0.01587478796 | Q47: 0 | R47: -0.008938180928 | S47: 0 | T47: 0 | U47: 0 | V47: 0 | W47: 0
A48: 2009-07-09 | B48: 0.00437775738 | C48: -0.002204598026 | D48: -0.003509755104 | E48: 0 | F48: 0.01150978401 | G48: 0.01619987561 | H48: 0.01301119176 | I48: 0 | J48: -0.003832950547 | K48: -0.01857779935 | L48: 0.001931805593 | M48: -0.01191712499 | N48: -0.002820471813 | O48: -0.0004766577561 | P48: 0.002688529271 | Q48: 0 | R48: -0.004400065179 | S48: 0 | T48: 0 | U48: 0 | V48: 0 | W48: 0
A49: 2009-07-10 | B49: -0.003482265294 | C49: 0.001939492162 | D49: 0.00275605393 | E49: 0 | F49: -0.003637387339 | G49: -0.006310238932 | H49: -0.008868516432 | I49: 0 | J49: 0.002412201813 | K49: 0.01301443431 | L49: -0.002381757014 | M49: 0.009229208769 | N49: 0.003413625277 | O49: 0.0009537701342 | P49: 0.0007820355093 | Q49: 0 | R49: 0.003611581221 | S49: 0 | T49: 0 | U49: 0 | V49: 0 | W49: 0
A50: 2009-07-13 | B50: 0.00193206196 | C50: 0.001560406029 | D50: 0.0009978419973 | E50: 0 | F50: 0.01704335934 | G50: 0.007018702058 | H50: 0.01666155086 | I50: 0 | J50: 0.01188315081 | K50: 0.02825480172 | L50: 0.02432923178 | M50: -0.005611555866 | N50: -0.0004859559744 | O50: -0.0005954694318 | P50: 0.006809555552 | Q50: 0 | R50: 0.002743408975 | S50: 0 | T50: 0 | U50: 0 | V50: 0 | W50: 0
A51: 2009-07-14 | B51: 5.90307029e-05 | C51: 0.002083979527 | D51: 0.002071259343 | E51: 0 | F51: 0.01445758495 | G51: 0.03153004456 | H51: 0.0003034221474 | I51: 0 | J51: -0.003439660905 | K51: -0.01222746835 | L51: 0.005660404546 | M51: -0.01661620898 | N51: -0.003014738428 | O51: -0.0007151093977 | P51: 0.006874331813 | Q51: 0 | R51: 0.007384411925 | S51: 0 | T51: 0 | U51: 0 | V51: 0 | W51: 0
A52: 2009-07-15 | B52: 0.005382838812 | C52: 0.005241422064 | D52: 0.004928895718 | E52: 0 | F52: 0.03631398697 | G52: 0.04504504201 | H52: 0.05855584266 | I52: 0 | J52: 0.007090347931 | K52: 0.01759642149 | L52: 0.02924623799 | M52: -0.02571729794 | N52: -0.006535288213 | O52: -0.002385178045 | P52: 0.01574716476 | Q52: 0 | R52: 0.003413352968 | S52: 0 | T52: 0 | U52: 0 | V52: 0 | W52: 0
A53: 2009-07-16 | B53: 0.004896539317 | C53: 0.0006014986835 | D53: 0.001769430981 | E53: 0 | F53: 0.01971651736 | G53: 0.005234045083 | H53: 0.01232446386 | I53: 0 | J53: 0.003229866154 | K53: 0.03217566867 | L53: -0.001608422259 | M53: 0.01079840292 | N53: 0.003141862887 | O53: 0.001554056124 | P53: -0.002818679593 | Q53: 0 | R53: -0.003194802268 | S53: 0 | T53: 0 | U53: 0 | V53: 0 | W53: 0
A54: 2009-07-17 | B54: 0.002297437564 | C54: 0.0004008344664 | D54: 0.0002326350279 | E54: 0 | F54: -0.004859624007 | G54: -0.0003063354945 | H54: 0.004246941246 | I54: 0 | J54: 0.0005874345884 | K54: -0.01667368626 | L54: 0.01095475028 | M54: -0.01543110105 | N54: 0 | O54: -0.0003580593192 | P54: -0.0005436290321 | Q54: 0 | R54: 0.0008260853644 | S54: 0 | T54: 0 | U54: 0 | V54: 0 | W54: 0
A55: 2009-07-20 | B55: 0.007750521211 | C55: 0.00582695826 | D55: 0.007284460388 | E55: 0 | F55: 0.022409468 | G55: 0.03094368052 | H55: 0.03411328668 | I55: 0 | J55: 0.008550258913 | K55: 0.02521442939 | L55: 0.01062359933 | M55: 0.005260891907 | N55: 0.001174547256 | O55: -0.0001194251589 | P55: 0.0146850756 | Q55: 0 | R55: 0.005516209408 | S55: 0 | T55: 0 | U55: 0 | V55: 0 | W55: 0
A56: 2009-07-21 | B56: 0.003448988068 | C56: 0.0007312904455 | D56: 0.001204942322 | E56: 0 | F56: 0.003855645211 | G56: 0.0005942646552 | H56: -0.002998928803 | I56: 0 | J56: 0.01053160867 | K56: 0.0326546118 | L56: 0.004625273115 | M56: 0.01995204256 | N56: 0.006941035042 | O56: 0.001194155602 | P56: -0.001608083208 | Q56: 0 | R56: -9.19417275e-05 | S56: 0 | T56: 0 | U56: 0 | V56: 0 | W56: 0
A57: 2009-07-22 | B57: -0.0002776112546 | C57: 0.0009328680472 | D57: 0.0005102493939 | E57: 0 | F57: -0.0003682143153 | G57: -0.005048933832 | H57: 0.003828265416 | I57: 0 | J57: -0.003620337579 | K57: -0.01002467454 | L57: -0.0002092317164 | M57: -0.008979195781 | N57: -0.00339803665 | O57: -0.0004770247784 | P57: 0.003328734135 | Q57: 0 | R57: 0.001462485949 | S57: 0 | T57: 0 | U57: 0 | V57: 0 | W57: 0
A58: 2009-07-23 | B58: 0.001716845284 | C58: 0.0004318259971 | D58: -0.0008042275559 | E58: 0 | F58: 0.02219304693 | G58: 0.02447758636 | H58: 0.02669570106 | I58: 0 | J58: 0.006445984991 | K58: 0.02071521543 | L58: 0.02208268645 | M58: -0.01833671023 | N58: -0.002532908751 | O58: -0.00178999472 | P58: -0.001926369822 | Q58: 0 | R58: -0.0006204087875 | S58: 0 | T58: 0 | U58: 0 | V58: 0 | W58: 0
A59: 2009-07-24 | B59: 0.003819622102 | C59: 0.0001724302225 | D59: 0.0004208558515 | E59: 0 | F59: 0.004781928922 | G59: -0.003787922108 | H59: -0.002653171535 | I59: 0 | J59: 0.004374545525 | K59: 0.01322069279 | L59: 0.004095776271 | M59: 0.004834565414 | N59: 0 | O59: 0.0005976761754 | P59: 0.001608428016 | Q59: 0 | R59: 0.000542374398 | S59: 0 | T59: 0 | U59: 0 | V59: 0 | W59: 0
A60: 2009-07-27 | B60: 0.0003391799748 | C60: 0.003220232845 | D60: 0.00279951972 | E60: 0 | F60: -0.0005989490836 | G60: 0.01433172453 | H60: 0.005852658061 | I60: 0 | J60: -0.002493460433 | K60: -0.004848869837 | L60: 0.00295738081 | M60: -0.01148163082 | N60: -0.003027610321 | O60: -0.0007168156763 | P60: 0.00321159391 | Q60: 0 | R60: 0.001534330468 | S60: 0 | T60: 0 | U60: 0 | V60: 0 | W60: 0
A61: 2009-07-28 | B61: 0.001619104197 | C61: -0.006546827766 | D61: -0.007343632578 | E61: 0 | F61: 0.003046195083 | G61: 0.007497069335 | H61: -0.008463364528 | I61: 0 | J61: 0.0003832512381 | K61: 0.005668530353 | L61: -0.004677158129 | M61: 0.008849502968 | N61: 0.001861233775 | O61: -0.0005978356674 | P61: -0.01707393039 | Q61: 0 | R61: -0.009918965023 | S61: 0 | T61: 0 | U61: 0 | V61: 0 | W61: 0
A62: 2009-07-29 | B62: 0.002412264918 | C62: -0.002663118612 | D62: -0.003204706816 | E62: 0 | F62: -0.007167103256 | G62: -0.02032053008 | H62: -0.02213928241 | I62: 0 | J62: 0.0005416339675 | K62: -0.006551520531 | L62: -0.002451710711 | M62: 0.005482456739 | N62: 0.001760050459 | O62: -0.0005981052155 | P62: -0.009879535231 | Q62: 0 | R62: -0.00154055885 | S62: 0 | T62: 0 | U62: 0 | V62: 0 | W62: 0
A63: 2009-07-30 | B63: 0.007498776534 | C63: 0.004003109075 | D63: 0.005075497588 | E63: 0 | F63: 0.02034443015 | G63: 0.03038273521 | H63: 0.02454995061 | I63: 0 | J63: 0.01186009231 | K63: 0.03795999217 | L63: 0.01044543566 | M63: 0.01417670527 | N63: 0.001268962508 | O63: 0.0001197253644 | P63: 0.004605329099 | Q63: 0 | R63: 0.002472829111 | S63: 0 | T63: 0 | U63: 0 | V63: 0 | W63: 0
A64: 2009-07-31 | B64: 0.007070626273 | C64: 0.006777461827 | D64: 0.008570720383 | E64: 0 | F64: 0.01369685895 | G64: 0.01190811254 | H64: 0.003194877527 | I64: 0 | J64: 0.008275448797 | K64: 0.02282499733 | L64: 0.001418863818 | M64: 0.01946234014 | N64: 0.005069179207 | O64: 0.001675639749 | P64: 0.01888228491 | Q64: 0 | R64: 0.004958181516 | S64: 0 | T64: 0 | U64: 0 | V64: 0 | W64: 0
A65: 2009-08-03 | B65: 0.007898075001 | C65: 0.002909012198 | D65: 0.001932087156 | E65: 0 | F65: 0.006451663826 | G65: 0.02437662506 | H65: 0.02437663862 | I65: 0 | J65: 0.007001024337 | K65: 0.0193753651 | L65: 0.01649635537 | M65: -0.0151547503 | N65: -0.002101832566 | O65: -0.001411898535 | P65: 0.005570487532 | Q65: 0 | R65: -0.005039038837 | S65: 0 | T65: 0 | U65: 0 | V65: 0 | W65: 0
A66: 2009-08-04 | B66: -0.004643534678 | C66: 0.004758925709 | D66: 0.00422230651 | E66: -0.01351170088 | F66: 0.0002057952252 | G66: -0.002188222869 | H66: -0.00218824562 | I66: 0 | J66: -0.0005039911451 | K66: 0.0001789136395 | L66: 0.002588552657 | M66: -0.007951833222 | N66: -0.003022962151 | O66: -0.0008387146853 | P66: 0.008628922703 | Q66: 0.0050498 | R66: 0.005653701764 | S66: 0 | T66: 0 | U66: 0 | V66: 0 | W66: 0
A67: 2009-08-05 | B67: 0.001755548733 | C67: 0.0004468139286 | D67: 0.0006862960434 | E67: -0.006666727259 | F67: -0.004536192113 | G67: -0.0161732364 | H67: -0.01617322706 | I67: 0 | J67: -0.006394189753 | K67: -0.0218020971 | L67: -0.002879768547 | M67: -0.01494797511 | N67: -0.0008802453808 | O67: -0.0003597436819 | P67: 0.001056178707 | Q67: -0.01343416018 | R67: -0.0006140812005 | S67: 0 | T67: 0 | U67: 0 | V67: 0 | W67: 0
A68: 2009-08-06 | B68: -0.00482606593 | C68: -0.0006734740354 | D68: -0.0007920459891 | E68: -0.00355269818 | F68: -0.007698347677 | G68: 0.002507637111 | H68: 0.002507638393 | I68: 0 | J68: -0.00269951182 | K68: -0.006713900762 | L68: -0.005178812783 | M68: 0.003408804683 | N68: 0.0004894269455 | O68: 0 | P68: -0.001899145409 | Q68: -0.0162453086 | R68: 0.003243384188 | S68: 0 | T68: 0 | U68: 0 | V68: 0 | W68: 0
A69: 2009-08-07 | B69: 0.01605698729 | C69: 0.001091930353 | D69: 0.0005811097979 | E69: 0.002631654577 | F69: 0.003631577007 | G69: 0.005280677997 | H69: 0.005280696697 | I69: 0 | J69: 0.006885698497 | K69: 0.02046828909 | L69: 0.01311440154 | M69: -0.008328793534 | N69: -0.005968701925 | O69: -0.001679454204 | P69: -0.008985179894 | Q69: 0.005082220348 | R69: 0.004788436713 | S69: 0 | T69: 0 | U69: 0 | V69: 0 | W69: 0
A70: 2009-08-10 | B70: -0.003967875716 | C70: -0.003207544332 | D70: -0.002969209732 | E70: -0.008720667897 | F70: -0.003912943417 | G70: -0.01050584309 | H70: -0.01050588512 | I70: 0 | J70: 0.002091084015 | K70: 0.005024638913 | L70: -0.002075094058 | M70: 0.0124876224 | N70: 0.00777636798 | O70: 0.00156209055 | P70: -0.008746666667 | Q70: -0.008516446191 | R70: -0.003565622901 | S70: 0 | T70: 0 | U70: 0 | V70: 0 | W70: 0
A71: 2009-08-11 | B71: -0.0004615372581 | C71: -0.0061498383 | D71: -0.005452196438 | E71: -0.003900376582 | F71: -0.001746271107 | G71: -0.00670584483 | H71: -0.006705813113 | I71: 0 | J71: -0.005525864794 | K71: -0.01543857201 | L71: -0.01247641991 | M71: 0.01156950356 | N71: 0.003516321242 | O71: 0.001079837197 | P71: -0.001506499516 | Q71: -0.003698583928 | R71: -0.001730336782 | S71: 0 | T71: 0 | U71: 0 | V71: 0 | W71: 0
A72: 2009-08-12 | B72: 0.001166498426 | C72: 0.006996530209 | D72: 0.006759589446 | E72: 0.004721255438 | F72: 0.005297139369 | G72: 0.02025318535 | H72: 0.02025318331 | I72: 0 | J72: 0.00443369652 | K72: 0.0121954305 | L72: 0.01072896381 | M72: -0.01068188567 | N72: -0.0004866163572 | O72: 0.0003595155099 | P72: 0.001724280615 | Q72: 0.009584982227 | R72: -0.002735888115 | S72: 0 | T72: 0 | U72: 0 | V72: 0 | W72: 0
A73: 2009-08-13 | B73: -0.002416342586 | C73: 0.0001511166529 | D73: 0.0006642890232 | E73: 0.01502796694 | F73: -0.001225020115 | G73: 0.0206782697 | H73: 0.02067824344 | I73: 0 | J73: 0.00953262458 | K73: 0.02946313623 | L73: 0.007638855638 | M73: 0.01417815543 | N73: 0.00253183362 | O73: 0.001677240949 | P73: 0.00828406697 | Q73: -7.629878481e-05 | R73: 0.0005489795514 | S73: 0 | T73: 0 | U73: 0 | V73: 0 | W73: 0
A74: 2009-08-14 | B74: 0.0002167625064 | C74: 0.0004650782504 | D74: 0.0007395392656 | E74: -0.004331019511 | F74: -0.001683229441 | G74: -0.01836844932 | H74: -0.018368456 | I74: 0 | J74: -0.004318945478 | K74: -0.01549454354 | L74: -0.007679421548 | M74: 0.003871385135 | N74: 0.001748420361 | O74: 0.0007175941977 | P74: -0.007682468975 | Q74: -0.01591932987 | R74: 0.0008197258322 | S74: 0 | T74: 0 | U74: 0 | V74: 0 | W74: 0
A75: 2009-08-17 | B75: -0.0183624715 | C75: -0.009547904095 | D75: -0.008893140268 | E75: -0.02680053147 | F75: -0.008546630614 | G75: -0.02751789383 | H75: -0.0275178664 | I75: 0 | J75: -0.01305200486 | K75: -0.04232110919 | L75: -0.02460565406 | M75: 0.01478312296 | N75: 0.004169497191 | O75: 0.00107570731 | P75: -0.01494622581 | Q75: -0.03051314587 | R75: -0.002226112524 | S75: 0 | T75: 0 | U75: 0 | V75: 0 | W75: 0
A76: 2009-08-18 | B76: 0.00480103819 | C76: 0.002915743989 | D76: 0.003233663634 | E76: 0.01054507571 | F76: 0.004629351096 | G76: 0.02009052852 | H76: 0.02009049331 | I76: 0 | J76: 0.003790121743 | K76: 0.01335441759 | L76: 0.007934074545 | M76: -0.005806001712 | N76: -0.003283076872 | O76: -0.0002388282134 | P76: 0.004912094696 | Q76: 0.01317580179 | R76: 0.0007977196871 | S76: 0 | T76: 0 | U76: 0 | V76: 0 | W76: 0
A77: 2009-08-19 | B77: 0.006161427103 | C77: 0.006090467863 | D77: 0.007273199108 | E77: 0.008248649429 | F77: 0.01055461937 | G77: 0.00249650752 | H77: 0.002496548636 | I77: 0 | J77: 0.00863118719 | K77: 0.02779204877 | L77: 0.008779920229 | M77: 0.008281997819 | N77: 0.002034480092 | O77: 0.0004776701916 | P77: 0.005105377039 | Q77: 0.01180375476 | R77: -0.003894194968 | S77: 0 | T77: 0 | U77: 0 | V77: 0 | W77: 0
A78: 2009-08-20 | B78: 0.003191095095 | C78: 0.004000434038 | D78: 0.004899841592 | E78: 0.01502466493 | F78: 0.005358607357 | G78: 0.002490325264 | H78: 0.002490331403 | I78: 0 | J78: 0.009679971663 | K78: 0.02849922272 | L78: 0.01030411161 | M78: 0.00821396974 | N78: 0.00164360161 | O78: -0.0002386709197 | P78: -0.002809921137 | Q78: 0.007514656949 | R78: -0.003571300599 | S78: 0 | T78: 0 | U78: 0 | V78: 0 | W78: 0
A79: 2009-08-21 | B79: 0.00596869301 | C79: 0.008738259495 | D79: 0.008028593626 | E79: -0.001314651378 | F79: 0.01222116251 | G79: 0.0008280116306 | H79: 0.0008279923039 | I79: 0 | J79: 0.007624490332 | K79: 0.0179158429 | L79: 0.01960593809 | M79: -0.02057656834 | N79: -0.005791486072 | O79: -0.001552120057 | P79: 0.01495616175 | Q79: 0.01365217791 | R79: 0.004503788703 | S79: 0 | T79: 0 | U79: 0 | V79: 0 | W79: 0
A80: 2009-08-24 | B80: -0.004902122058 | C80: -0.002379941484 | D80: -0.001945845609 | E80: 0.005970561443 | F80: -0.0004927120486 | G80: 0.01599564317 | H80: 0.01599565537 | I80: 0 | J80: 0.005185504634 | K80: 0.01434044121 | L80: -9.713676644e-05 | M80: 0.01812951822 | N80: 0.004077651214 | O80: 0.001195821572 | P80: -0.01398831791 | Q80: -0.006136470835 | R80: -0.006134131483 | S80: 0 | T80: 0 | U80: 0 | V80: 0 | W80: 0
A81: 2009-08-25 | B81: 0.002975676891 | C81: 0.0006211813247 | D81: 0.0001623718039 | E81: 0.0143395609 | F81: 0.005288731608 | G81: -0.0008143013212 | H81: -0.0008143212292 | I81: 0 | J81: 0.003032742913 | K81: 0.01224894603 | L81: 0.001942543312 | M81: 0.005656228511 | N81: 0.001643760569 | O81: 0 | P81: 0.004548473231 | Q81: 0.0096148516 | R81: 0.001878750554 | S81: 0 | T81: 0 | U81: 0 | V81: 0 | W81: 0
A82: 2009-08-26 | B82: -0.001110555959 | C82: 0.002818440636 | D82: 0.003647057168 | E82: -0.003666656634 | F82: -0.001002904374 | G82: -0.006519992701 | H82: -0.006519995931 | I82: 0 | J82: 0.001417228367 | K82: 0.004716396266 | L82: 9.689079788e-05 | M82: 0.004582799709 | N82: 0.001448034802 | O82: 0.0005970962931 | P82: 0.0003234044777 | Q82: 0.002796416187 | R82: 0.003782713992 | S82: 0 | T82: 0 | U82: 0 | V82: 0 | W82: 0
A83: 2009-08-27 | B83: 0.000143943314 | C83: 0.001489091117 | D83: 0.000983087731 | E83: -0.01236420937 | F83: 0.0008588496427 | G83: 0.01640681753 | H83: 0.01640684557 | I83: 0 | J83: 0.0004078404595 | K83: -0.0003805039542 | L83: 0.002229356487 | M83: -0.003939826432 | N83: -0.0007711021064 | O83: -0.000119385606 | P83: 0.004310820085 | Q83: -0.006096266502 | R83: -0.003938731475 | S83: 0 | T83: 0 | U83: 0 | V83: 0 | W83: 0
A84: 2009-08-28 | B84: 0.005558569044 | C84: 0.002708737885 | D84: 0.003253554784 | E84: -0.001972619814 | F84: -0.00514679843 | G84: 0.003497473115 | H84: 0.003497461343 | I84: 0 | J84: 0.001209832789 | K84: 0.004408455138 | L84: -0.0001934656255 | M84: 0.004580015053 | N84: -0.0006753596937 | O84: 0.001074423213 | P84: 0.007296930845 | Q84: -0.001208259746 | R84: 0.007781744637 | S84: 0 | T84: 0 | U84: 0 | V84: 0 | W84: 0
A85: 2009-08-31 | B85: -0.0004800754415 | C85: -0.002849800531 | D85: -0.002826413171 | E85: -0.01273811055 | F85: 0.00271100586 | G85: -0.009383332718 | H85: -0.009383331538 | I85: 0 | J85: -0.005999160811 | K85: -0.01678398683 | L85: -0.008899189076 | M85: 0.0009325139649 | N85: 0.004150982216 | O85: 0.0007154424053 | P85: -0.005006934963 | Q85: -0.01413764497 | R85: -0.005324724881 | S85: 0 | T85: 0 | U85: 0 | V85: 0 | W85: 0
A86: 2009-09-01 | B86: -0.005486436374 | C86: -0.004428504274 | D86: -0.003620160638 | E86: -0.0139516954 | F86: -0.01722255951 | G86: -0.01867394519 | H86: -0.01867395097 | I86: 0 | J86: -0.01420231429 | K86: -0.04352688446 | L86: -0.0220574102 | M86: -0.002419669634 | N86: -0.001716613493 | O86: 0.0008113639209 | P86: 0.005353318943 | Q86: -0.02269942969 | R86: 0.009004893842 | S86: 0 | T86: 0 | U86: 0 | V86: 0 | W86: 0
A87: 2009-09-02 | B87: -0.007452976349 | C87: 0.006048823756 | D87: 0.007334511286 | E87: 0.005373247186 | F87: -0.003045972579 | G87: -0.001103048215 | H87: -0.001103046751 | I87: 0 | J87: 0.003642073172 | K87: 0.01376472685 | L87: -0.003792387868 | M87: 0.01457424056 | N87: 0.005313445131 | O87: 0.001073008873 | P87: 0.02438764591 | Q87: -0.004293198152 | R87: 0.01464109113 | S87: 0 | T87: 0 | U87: 0 | V87: 0 | W87: 0
A88: 2009-09-03 | B88: 0.00284438207 | C88: 0.006617182032 | D88: 0.007378459086 | E88: 0.001140874704 | F88: 0.004364821775 | G88: 0.01380450807 | H88: 0.01380453196 | I88: 0 | J88: 0.002393463564 | K88: 0.003022043017 | L88: 0.008314995003 | M88: -0.006156356817 | N88: -0.001825817464 | O88: -0.0009527466851 | P88: 0.0132030042 | Q88: 0.006688449625 | R88: 0.00976399732 | S88: 0 | T88: 0 | U88: 0 | V88: 0 | W88: 0
A89: 2009-09-04 | B89: 0.01312846412 | C89: 0.004122104412 | D89: 0.00447636024 | E89: 0.004540684057 | F89: 0.01555762247 | G89: 0.01879083151 | H89: 0.01879080947 | I89: 0 | J89: 0.001414427326 | K89: 0.001914907415 | L89: 0.01400889271 | M89: -0.01703490811 | N89: -0.001925529972 | O89: -0.0004768151345 | P89: 0.0007182433893 | Q89: 0.02947274962 | R89: -0.001341922039 | S89: 0 | T89: 0 | U89: 0 | V89: 0 | W89: 0
A90: 2009-09-08 | B90: 0.005914187196 | C90: 0.004081169679 | D90: 0.004606872606 | E90: 0.008327285385 | F90: 0.01150205425 | G90: 0.02993850547 | H90: 0.02993846541 | I90: 0 | J90: 0.002386425246 | K90: 0.007975513471 | L90: 0.008622433995 | M90: -0.007037055497 | N90: -0.001446907278 | O90: 0.0001192825413 | P90: -0.001025315298 | Q90: 0.01109351643 | R90: -0.008596369879 | S90: 0 | T90: 0 | U90: 0 | V90: 0 | W90: 0
A91: 2009-09-09 | B91: 0.0008472079542 | C91: 0.002464897371 | D91: 0.003097700826 | E91: 0.004970057893 | F91: 0.006822009591 | G91: 0.002854914944 | H91: 0.002854957285 | I91: 0 | J91: 0.004187986531 | K91: 0.01315965038 | L91: 0.007674383138 | M91: -0.001163535602 | N91: 0.001932040274 | O91: 0.0001192683147 | P91: -0.003592302166 | Q91: 0.03607451748 | R91: -0.004897766864 | S91: 0 | T91: 0 | U91: 0 | V91: 0 | W91: 0
A92: 2009-09-10 | B92: 0.01346345698 | C92: 0.005368995799 | D92: 0.006369053914 | E92: 0.01338823111 | F92: 0.01209443829 | G92: 0.01345757 | H92: 0.01345754821 | I92: 0 | J92: 0.01343927042 | K92: 0.04313875188 | L92: 0.01021881222 | M92: 0.01842632191 | N92: 0.005109896578 | O92: 0.0005961078666 | P92: 0.006386433737 | Q92: 0.01788770591 | R92: 0.003467283174 | S92: 0 | T92: 0 | U92: 0 | V92: 0 | W92: 0
A93: 2009-09-11 | B93: 0.001740467294 | C93: 0.005117340471 | D93: 0.005704447885 | E93: 0.002034286612 | F93: -0.001872547521 | G93: -0.004085799992 | H93: -0.004085771068 | I93: 0 | J93: 0.002057441706 | K93: 0.00682009143 | L93: -0.0001908993767 | M93: 0.00551106395 | N93: -9.595173356e-05 | O93: -0.0003574741394 | P93: 0.01105426851 | Q93: -0.01799130475 | R93: 0.007296197678 | S93: 0 | T93: 0 | U93: 0 | V93: 0 | W93: 0
A94: 2009-09-14 | B94: 0.003588166401 | C94: -0.0002719474465 | D94: -0.0009082361904 | E94: -0.00286199435 | F94: 0.003686201686 | G94: -0.006153880954 | H94: -0.006153909879 | I94: 0 | J94: -0.0009862743698 | K94: -0.0009498203876 | L94: 0.004867829104 | M94: -0.009927612686 | N94: -0.001438995379 | O94: -0.0005960533041 | P94: -0.008301275646 | Q94: 0.01227523146 | R94: -0.006898127295 | S94: 0 | T94: 0 | U94: 0 | V94: 0 | W94: 0
A95: 2009-09-15 | B95: 0.01692011647 | C95: 0.005888602913 | D95: 0.006397026103 | E95: -0.002374128876 | F95: -0.001873171908 | G95: 0.001032010225 | H95: 0.001032002497 | I95: 0 | J95: 0.0005335987672 | K95: 0.002013831813 | L95: 0.004179352403 | M95: -0.005118005924 | N95: -0.001537098408 | O95: 0.0004771120227 | P95: 0.009595784091 | Q95: 0.009525901497 | R95: 0.004241595625 | S95: 0 | T95: 0 | U95: 0 | V95: 0 | W95: 0
A96: 2009-09-16 | B96: 0.00372448711 | C96: 0.008558863543 | D96: 0.009434487539 | E96: 0.01234944746 | F96: 0.00642204553 | G96: 0.03685567086 | H96: 0.036855712 | I96: 0 | J96: 0.009929140289 | K96: 0.03293055884 | L96: 0.01513430093 | M96: 0.001784762813 | N96: 0.0007697673573 | O96: -0.001311401099 | P96: 0.01021235571 | Q96: 0.0209858175 | R96: 0.006131203512 | S96: 0 | T96: 0 | U96: 0 | V96: 0 | W96: 0
A97: 2009-09-17 | B97: -0.004337507123 | C97: 0.00118993467 | D97: 0.001217240964 | E97: -0.0001381964625 | F97: -0.002638307221 | G97: -0.009445720906 | H97: -0.009445731789 | I97: 0 | J97: 0.003949790265 | K97: 0.01054167744 | L97: -0.001490827115 | M97: 0.01257602705 | N97: 0.00471107322 | O97: 0.001432519588 | P97: -0.005705214465 | Q97: -0.008124309486 | R97: -0.004135465705 | S97: 0 | T97: 0 | U97: 0 | V97: 0 | W97: 0
A98: 2009-09-18 | B98: 0.002588625839 | C98: -0.00559433931 | D98: -0.006513497276 | E98: -8.370801728e-05 | F98: 0.002845247028 | G98: -0.003262165702 | H98: -0.003262159436 | I98: 0 | J98: -0.003083305089 | K98: -0.008491846364 | L98: 0.0006375542672 | M98: -0.008900858633 | N98: -0.002488069013 | O98: -0.000953642773 | P98: -0.00674449393 | Q98: 0.003296133837 | R98: -0.004571334968 | S98: 0 | T98: 0 | U98: 0 | V98: 0 | W98: 0
A99: 2009-09-21 | B99: -0.003412384552 | C99: 0.0009743095575 | D99: 0.000524281927 | E99: -0.001875609843 | F99: -0.001769600545 | G99: -0.009566970858 | H99: -0.009566986498 | I99: 0 | J99: -0.0006578624859 | K99: -0.003409637819 | L99: -0.002530022383 | M99: 0.002297423887 | N99: -0.0007673967387 | O99: 0.000357930807 | P99: -0.00314175541 | Q99: -0.004794705424 | R99: -0.0007130027935 | S99: 0 | T99: 0 | U99: 0 | V99: 0 | W99: 0
A100: 2009-09-22 | B100: 0.005410556354 | C100: 0.004345258658 | D100: 0.005380634643 | E100: 0.00838608688 | F100: 0.006367706434 | G100: 0.02058976813 | H100: 0.02058976162 | I100: 0 | J100: 0.004369397523 | K100: 0.01551696932 | L100: 0.005824358242 | M100: 0.002083736535 | N100: -0.0006721144187 | O100: -0.0002385059655 | P100: 0.01331839149 | Q100: 0.006238988877 | R100: 0.005079279939 | S100: 0 | T100: 0 | U100: 0 | V100: 0 | W100: 0
A101: 2009-09-23 | B101: 0.001552801874 | C101: -0.004220934343 | D101: -0.004180137267 | E101: -0.008584610099 | F101: -0.00644563607 | G101: -0.005230479257 | H101: -0.005230457915 | I101: 0 | J101: -0.003916362939 | K101: -0.01941949155 | L101: -0.008312308551 | M101: 0.003015188552 | N101: 0.002497857715 | O101: 0.001550915163 | P101: -0.008427771816 | Q101: -0.01606029453 | R101: -0.004571929726 | S101: 0 | T101: 0 | U101: 0 | V101: 0 | W101: 0
A102: 2009-09-24 | B102: -0.008645654152 | C102: -0.00704440203 | D102: -0.007917844808 | E102: -0.001985156256 | F102: -0.007281680498 | G102: -0.01452173866 | H102: -0.01452174527 | I102: 0 | J102: -0.005578813296 | K102: -0.01446066805 | L102: -0.01101901416 | M102: 0.002902449593 | N102: 0.001245851842 | O102: 0.0002382809118 | P102: -0.01295152255 | Q102: -0.02327606296 | R102: -0.005790904471 | S102: 0 | T102: 0 | U102: 0 | V102: 0 | W102: 0
A103: 2009-09-25 | B103: 0.002769426198 | C103: -0.004196153733 | D103: -0.004279446871 | E103: -0.001455900762 | F103: -0.005220757306 | G103: 0.006097531579 | H103: 0.006097514898 | I103: 0 | J103: 0.001779282383 | K103: 0.006074875655 | L103: -0.005332870172 | M103: 0.01271320783 | N103: 0.00296705047 | O103: -0.0003572487767 | P103: -0.00563816487 | Q103: -0.004093546389 | R103: -0.004675768636 | S103: 0 | T103: 0 | U103: 0 | V103: 0 | W103: 0
A104: 2009-09-28 | B104: 0.007321923379 | C104: 0.005677759936 | D104: 0.006571921345 | E104: 0.01287485259 | F104: 0.01524242611 | G104: 0.01338388752 | H104: 0.01338389622 | I104: 0 | J104: 0.01426737964 | K104: 0.04304580881 | L104: 0.01790332763 | M104: 0.00877723559 | N104: -9.544570779e-05 | O104: -0.0001191671382 | P104: 0.0005154948454 | Q104: 0.01894240561 | R104: 0.002571518468 | S104: 0 | T104: 0 | U104: 0 | V104: 0 | W104: 0
A105: 2009-09-29 | B105: -0.001332757118 | C105: 0.0006350210697 | D105: 0.0005559111901 | E105: -0.009781796908 | F105: -0.004876768903 | G105: 0.00199349401 | H105: 0.001993479181 | I105: 0 | J105: -0.002177936005 | K105: -0.00334455183 | L105: -0.003009774717 | M105: -0.000910525944 | N105: -0.0004771468042 | O105: -0.0001191688426 | P105: 0.003915476437 | Q105: -0.009061380686 | R105: 0.004058671612 | S105: 0 | T105: 0 | U105: 0 | V105: 0 | W105: 0
A106: 2009-09-30 | B106: 0.0009644055716 | C106: 0.003571781612 | D106: 0.004665166058 | E106: 0.001070718622 | F106: -5.222368939e-05 | G106: 0.007958174098 | H106: 0.007958195102 | I106: 0 | J106: -0.002694900742 | K106: -0.008825407378 | L106: -0.003867962435 | M106: -0.000911355757 | N106: 0.001814136868 | O106: 0.001072497415 | P106: 0.01457454583 | Q106: -0.003048602712 | R106: 0.008560620283 | S106: 0 | T106: 0 | U106: 0 | V106: 0 | W106: 0
A107: 2009-10-01 | B107: -0.01849033775 | C107: -0.008964977072 | D107: -0.009439727935 | E107: -0.004630931377 | F107: -0.02727895009 | G107: -0.03256843136 | H107: -0.03256846219 | I107: 0 | J107: -0.005558723054 | K107: -0.01767870306 | L107: -0.02481291521 | M107: 0.01369547013 | N107: 0.002314056784 | O107: 0.001001038934 | P107: -0.00971167445 | Q107: -0.0506181564 | R107: -0.002977543213 | S107: 0 | T107: 0 | U107: 0 | V107: 0 | W107: 0
A108: 2009-10-02 | B108: -0.001299398132 | C108: -0.0006199183272 | D108: -0.0008595677368 | E108: -0.009899318848 | F108: -0.01226059563 | G108: -0.01530219335 | H108: -0.01530216791 | I108: 0 | J108: -0.005813019312 | K108: -0.01735601941 | L108: -0.004661579908 | M108: -0.006920714483 | N108: -0.001908004325 | O108: 0.0003571706333 | P108: 0.004903503983 | Q108: 0.002160908025 | R108: 0.002409598212 | S108: 0 | T108: 0 | U108: 0 | V108: 0 | W108: 0
A109: 2009-10-05 | B109: 0.007890132037 | C109: 0.009676920672 | D109: 0.01020548086 | E109: 0.01682782677 | F109: 0.01026912062 | G109: 0.0209789508 | H109: 0.02097894128 | I109: 0 | J109: 0.007379482771 | K109: 0.01918233163 | L109: 0.01492827151 | M109: 0.0001009373423 | N109: 0.0006690919797 | O109: 0 | P109: 0.01474023539 | Q109: 0.0322812211 | R109: 0.006284971579 | S109: 0 | T109: 0 | U109: 0 | V109: 0 | W109: 0
A110: 2009-10-06 | B110: 0.004847026904 | C110: 0.01201018591 | D110: 0.009052734642 | E110: 0.00480413473 | F110: 0.01813543704 | G110: 0.01522078173 | H110: 0.01522078627 | I110: 0 | J110: 0.002082009962 | K110: 0.004116489629 | L110: 0.01432422864 | M110: -0.009896945188 | N110: -0.001432814794 | O110: -0.0005950427518 | P110: 0.02464434983 | Q110: 0.01483631947 | R110: 0.0153394534 | S110: 0 | T110: 0 | U110: 0 | V110: 0 | W110: 0
A111: 2009-10-07 | B111: -0.001159795134 | C111: 0.002168252725 | D111: 0.006745764074 | E111: 0.01167282498 | F111: 0.001695723804 | G111: 0.01274355207 | H111: 0.0127435631 | I111: 0 | J111: 0.007233790825 | K111: 0.02294113406 | L111: 0.002748561358 | M111: 0.01172992949 | N111: 0.004017577839 | O111: 0.001310008232 | P111: 0.0007821861633 | Q111: 0.002813543749 | R111: 0.001368168629 | S111: 0 | T111: 0 | U111: 0 | V111: 0 | W111: 0
A112: 2009-10-08 | B112: 0.004843959121 | C112: 0.0056876272 | D112: 0.002271014865 | E112: 0.007597460642 | F112: 0.009749086001 | G112: 0.02862078123 | H112: 0.02862077222 | I112: 0 | J112: -0.001443930014 | K112: -0.005283822674 | L112: 0.007655926544 | M112: -0.01048494205 | N112: -0.0006669130779 | O112: -0.0009515060612 | P112: 0.01250486506 | Q112: 0.0205027432 | R112: 0.005615432216 | S112: 0 | T112: 0 | U112: 0 | V112: 0 | W112: 0
A113: 2009-10-09 | B113: 0.002874800593 | C113: -0.0004084291199 | D113: -0.007770371115 | E113: -0.0134002784 | F113: 0.007117374796 | G113: -0.00191886935 | H113: -0.001918850841 | I113: 0 | J113: -0.008328805365 | K113: -0.02700258052 | L113: 0.006097002574 | M113: -0.02292409368 | N113: -0.006959634908 | O113: -0.001428599723 | P113: -0.007719056423 | Q113: 0.01396883562 | R113: -0.003247737408 | S113: 0 | T113: 0 | U113: 0 | V113: 0 | W113: 0
A114: 2009-10-12 | B114: 0.004522388839 | C114: 0.003586257058 | D114: 0.004675973037 | E114: 0.009646702392 | F114: 0.002380421933 | G114: -0.0007209430742 | H114: -0.0007209621544 | I114: 0 | J114: 0.002763999038 | K114: 0.01320298718 | L114: 0.003915708864 | M114: 0.00156414971 | N114: 0.002304129206 | O114: 0.001192246665 | P114: 0.007001186581 | Q114: 0.003277677322 | R114: 0.002381462931 | S114: 0 | T114: 0 | U114: 0 | V114: 0 | W114: 0
A115: 2009-10-13 | B115: -0.0001307232653 | C115: 0.0037690706 | D115: 0.006345486984 | E115: 0.004699725346 | F115: 0.002491861906 | G115: -0.001443047308 | H115: -0.001443033578 | I115: 0 | J115: 0.001502809611 | K115: 0.003232336505 | L115: -0.002043107796 | M115: 0.005205617204 | N115: 0.002490437458 | O115: 0.0005953261267 | P115: 0.006759405306 | Q115: -0.01172351811 | R115: 0.002723005794 | S115: 0 | T115: 0 | U115: 0 | V115: 0 | W115: 0
A116: 2009-10-14 | B116: 0.005512321248 | C116: 0.005131247312 | D116: 0.0007143117585 | E116: 0.007712236918 | F116: 0.0180396813 | G116: 0.03082850223 | H116: 0.03082847317 | I116: 0 | J116: 0.001491027628 | K116: 0.002822318179 | L116: 0.0172156982 | M116: -0.01481097954 | N116: -0.002388686055 | O116: -0.001309060417 | P116: -0.0007673316561 | Q116: 0.02291403699 | R116: -0.004419877709 | S116: 0 | T116: 0 | U116: 0 | V116: 0 | W116: 0
A117: 2009-10-15 | B117: 0.002737143457 | C117: -0.002964477965 | D117: -0.003955791319 | E117: -0.00146345651 | F117: -0.001466913749 | G117: 0.004439312141 | H117: 0.00443933199 | I117: 0 | J117: -0.0003423250621 | K117: -0.00268288363 | L117: 0.00365932737 | M117: -0.004625759071 | N117: -0.001532450565 | O117: -0.0005957517994 | P117: -0.01267036859 | Q117: -0.01425896418 | R117: -0.008628102959 | S117: 0 | T117: 0 | U117: 0 | V117: 0 | W117: 0
A118: 2009-10-16 | B118: 0.0009866233863 | C118: -0.001835699097 | D118: 0.0006191218444 | E118: -0.0006992379745 | F118: -0.01096998023 | G118: -0.01395679772 | H118: -0.01395681147 | I118: 0 | J118: 3.148228868e-05 | K118: 0.002750613269 | L118: -0.007474250433 | M118: 0.008132616952 | N118: -9.595196879e-05 | O118: 0.0005961069312 | P118: 0.003111014942 | Q118: -0.04142819945 | R118: 0.003208906919 | S118: 0 | T118: 0 | U118: 0 | V118: 0 | W118: 0
A119: 2009-10-19 | B119: 0.002159224683 | C119: 0.006660689203 | D119: 0.01019468065 | E119: 0.01201150383 | F119: 0.0112316471 | G119: 0.01698515523 | H119: 0.01698518781 | I119: 0 | J119: 0.008067564752 | K119: 0.02452407803 | L119: 0.008265238643 | M119: 0.007857516673 | N119: 0.002014581832 | O119: 0 | P119: 0.01017641985 | Q119: 0.01169824891 | R119: 0.005335281582 | S119: 0 | T119: 0 | U119: 0 | V119: 0 | W119: 0
A120: 2009-10-20 | B120: -0.0004378412682 | C120: -0.003319352638 | D120: -0.001569522665 | E120: -0.0002094926305 | F120: -0.00151266742 | G120: -0.004871220296 | H120: -0.004871243482 | I120: 0 | J120: -0.0001020070222 | K120: -0.002008890464 | L120: -0.005282825652 | M120: 0.005405451439 | N120: 0.002393488722 | O120: 0.0004766538726 | P120: -0.007771322812 | Q120: -0.004866163115 | R120: -0.004459571607 | S120: 0 | T120: 0 | U120: 0 | V120: 0 | W120: 0
A121: 2009-10-21 | B121: -0.003777862531 | C121: -0.002954017122 | D121: -0.005893519507 | E121: -0.01154652302 | F121: -0.009513204028 | G121: -0.0004662283071 | H121: -0.0004662136365 | I121: 0 | J121: -0.007522639732 | K121: -0.02378965126 | L121: -0.008973497118 | M121: -0.005996709452 | N121: -0.000668580767 | O121: -0.0004764267819 | P121: 0.003190891572 | Q121: -0.02018209901 | R121: -0.001290647719 | S121: 0 | T121: 0 | U121: 0 | V121: 0 | W121: 0
A122: 2009-10-22 | B122: 0.006366784068 | C122: 0.001685745805 | D122: -0.0003221994771 | E122: 0.00644439958 | F122: 0.01113480916 | G122: 0.008162283352 | H122: 0.008162272525 | I122: 0 | J122: 0.002815937518 | K122: 0.008420706754 | L122: 0.01016351966 | M122: -0.004888713189 | N122: -0.001529159157 | O122: 0.0001191853153 | P122: 0.00163853494 | Q122: 0.004553753748 | R122: 4.025564544e-05 | S122: 0 | T122: 0 | U122: 0 | V122: 0 | W122: 0
A123: 2009-10-23 | B123: -0.0001146912445 | C123: -0.005102708578 | D123: -0.008273016541 | E123: -0.01247159909 | F123: -0.008847989224 | G123: -0.01040945936 | H123: -0.01040943825 | I123: 0 | J123: -0.009540577315 | K123: -0.03269305286 | L123: -0.01143327164 | M123: -0.007525883613 | N123: -0.00124442487 | O123: -0.001668046053 | P123: -0.004137798386 | Q123: -0.005282808285 | R123: -0.001031401548 | S123: 0 | T123: 0 | U123: 0 | V123: 0 | W123: 0
A124: 2009-10-26 | B124: -0.004951579075 | C124: -0.01120180121 | D124: -0.01643408608 | E124: -0.02741388603 | F124: -0.006294896727 | G124: -0.01005141987 | H124: -0.01005144654 | I124: 0 | J124: -0.01185858018 | K124: -0.03659421306 | L124: -0.0108252939 | M124: -0.01295414322 | N124: -0.002683515463 | O124: -0.001074156994 | P124: -0.01575028536 | Q124: -0.003773927364 | R124: -0.006765919561 | S124: 0 | T124: 0 | U124: 0 | V124: 0 | W124: 0
A125: 2009-10-27 | B125: -0.002751268816 | C125: -0.000968129574 | D125: 0.00434976945 | E125: 0.002270505464 | F125: -0.01104070648 | G125: -0.01322310028 | H125: -0.0132230835 | I125: 0 | J125: 0.004260557351 | K125: 0.0122063079 | L125: -0.004583348808 | M125: 0.01365768395 | N125: 0.003940064079 | O125: 0.002031125508 | P125: -9.820341549e-05 | Q125: -0.05621609055 | R125: 0.003213879862 | S125: 0 | T125: 0 | U125: 0 | V125: 0 | W125: 0
A126: 2009-10-28 | B126: -0.01951945782 | C126: -0.01352602844 | D126: -0.0130834071 | E126: -0.02060359369 | F126: -0.02699025835 | G126: -0.03876531579 | H126: -0.03876530449 | I126: 0 | J126: -0.007326345356 | K126: -0.02486293471 | L126: -0.01888737597 | M126: 0.004736813227 | N126: 0.001435832137 | O126: 0.001430726587 | P126: -0.0109965147 | Q126: -0.03666059896 | R126: -0.005523119144 | S126: 0 | T126: 0 | U126: 0 | V126: 0 | W126: 0
A127: 2009-10-29 | B127: 0.008705988928 | C127: 0.01678787735 | D127: 0.01468346143 | E127: 0.01834117963 | F127: 0.02388108971 | G127: 0.02414739983 | H127: 0.02414737505 | I127: 0 | J127: 0.005430502864 | K127: 0.01426437487 | L127: 0.02145386545 | M127: -0.01089568194 | N127: -0.002007252836 | O127: -0.0008334272496 | P127: 0.01945794641 | Q127: 0.03770950838 | R127: 0.009472315067 | S127: 0 | T127: 0 | U127: 0 | V127: 0 | W127: 0
A128: 2009-10-30 | B128: -0.004848432231 | C128: -0.008419187424 | D128: -0.004563855395 | E128: -0.01589495855 | F128: -0.02435770473 | G128: -0.03767620954 | H128: -0.03767619255 | I128: 0 | J128: -0.007784376864 | K128: -0.02379005282 | L128: -0.02897332102 | M128: 0.01451111219 | N128: 0.003830993303 | O128: 0.001191590987 | P128: -0.001558116631 | Q128: -0.03944568948 | R128: 0.003452915063 | S128: 0 | T128: 0 | U128: 0 | V128: 0 | W128: 0
A129: 2009-11-02 | B129: 0.005477171427 | C129: 0.00403815205 | D129: 0.002800781476 | E129: 0.005480218658 | F129: 0.01108617204 | G129: 0.01160902962 | H129: 0.01160902414 | I129: 0 | J129: 0.002635221538 | K129: 0.006624784891 | L129: 0.007338769468 | M129: -0.004420097806 | N129: -0.001588683254 | O129: 0.0001193177866 | P129: 0.01384958562 | Q129: 0.01420396071 | R129: 0.01206731981 | S129: 0 | T129: 0 | U129: 0 | V129: 0 | W129: 0
A130: 2009-11-03 | B130: 0.0008086221905 | C130: 0.006504710309 | D130: 0.002761180622 | E130: -0.004423109073 | F130: -0.002902866564 | G130: 0.01698419633 | H130: 0.01698419485 | I130: 0 | J130: -0.0020628675 | K130: -0.007513638587 | L130: 0.003163353643 | M130: -0.009994787422 | N130: -0.001342018174 | O130: -0.0001192038098 | P130: 0.02414624408 | Q130: -0.01047726708 | R130: 0.01993654002 | S130: 0 | T130: 0 | U130: 0 | V130: 0 | W130: 0
A131: 2009-11-04 | B131: -0.0002259204406 | C131: 0.005624944231 | D131: 0.006180265565 | E131: 0.001903749559 | F131: 0.002611744827 | G131: 0.0162490971 | H131: 0.01624909552 | I131: 0 | J131: -0.002037707158 | K131: -0.006737444981 | L131: 0.00258000098 | M131: -0.009139222184 | N131: -0.001631778424 | O131: -0.0001193177747 | P131: 0.00601163823 | Q131: 0.007530767838 | R131: 0.005698791776 | S131: 0 | T131: 0 | U131: 0 | V131: 0 | W131: 0
A132: 2009-11-05 | B132: 0.001514731383 | C132: 0.00454379495 | D132: 0.005494028155 | E132: 0.01062790062 | F132: 0.006204296834 | G132: 0.02798139409 | H132: 0.02798139222 | I132: 0 | J132: 0.01119841514 | K132: 0.03425959955 | L132: 0.01839497486 | M132: 0 | N132: 0.002595870365 | O132: 0.000954444103 | P132: -0.001120401515 | Q132: 0.01446832326 | R132: -0.0008067565569 | S132: 0 | T132: 0 | U132: 0 | V132: 0 | W132: 0
A133: 2009-11-06 | B133: 0.001296430418 | C133: 0.001749713211 | D133: 0.002163879318 | E133: -0.00170035718 | F133: -0.001770126882 | G133: -0.003240474975 | H133: -0.003240487039 | I133: 0 | J133: 0.001980096357 | K133: 0.007196590327 | L133: 0.002620475114 | M133: 0.0009652915446 | N133: 0.0008630998213 | O133: 0.000715110015 | P133: 0.004206365558 | Q133: 0.0003818707539 | R133: 0.0008141245367 | S133: 0 | T133: 0 | U133: 0 | V133: 0 | W133: 0
A134: 2009-11-09 | B134: 0.01168118911 | C134: 0.008449013905 | D134: 0.00965784279 | E134: 0.02214906535 | F134: 0.0185028879 | G134: 0.03554396811 | H134: 0.03554399389 | I134: 0 | J134: 0.01442867571 | K134: 0.04564072621 | L134: 0.02277609791 | M134: 0.001178622088 | N134: 0.001341375228 | O134: 0 | P134: 0.007074392628 | Q134: -0.0110931561 | R134: 0.005426750736 | S134: 0 | T134: 0 | U134: 0 | V134: 0 | W134: 0
A135: 2009-11-10 | B135: 0.001736648901 | C135: 0.002405251088 | D135: 0.002271359773 | E135: -0.002950294853 | F135: 0.003839288086 | G135: -0.0004185909071 | H135: -0.000418585749 | I135: 0 | J135: -0.0005811302352 | K135: -0.003248695421 | L135: 0.0001825018301 | M135: -0.001819406728 | N135: 0.0002870475632 | O135: -0.0002381664663 | P135: 0.001848571923 | Q135: -0.006008421652 | R135: 0.001021934975 | S135: 0 | T135: 0 | U135: 0 | V135: 0 | W135: 0
A136: 2009-11-11 | B136: 0.002913088086 | C136: 0.006187337925 | D136: 0.00688148846 | E136: -0.0009400776841 | F136: 0.0009484434819 | G136: -0.001674998003 | H136: -0.001675003332 | I136: 0 | J136: 0.0047562497 | K136: 0.0141845558 | L136: 0.005109998387 | M136: 0.004181483694 | N136: 0.0003826317787 | O136: 0.001072153848 | P136: 0.01116338233 | Q136: -0.003948918497 | R136: 0.008941486384 | S136: 0 | T136: 0 | U136: 0 | V136: 0 | W136: 0
A137: 2009-11-12 | B137: -0.004543042944 | C137: -0.007147977401 | D137: -0.007834013618 | E137: -0.01348422448 | F137: -0.007124234379 | G137: -0.02579696851 | H137: -0.02579697294 | I137: 0 | J137: -0.00698753851 | K137: -0.02123087114 | L137: -0.01016797561 | M137: -0.001815146165 | N137: 0.002008022575 | O137: -0.0001190337904 | P137: -0.01268247286 | Q137: -0.003215871696 | R137: -0.008320734507 | S137: 0 | T137: 0 | U137: 0 | V137: 0 | W137: 0
A138: 2009-11-13 | B138: 0.003805002456 | C138: 0.005652792823 | D138: 0.005481669498 | E138: 0.01380111155 | F138: 0.008653286884 | G138: 0.01700756072 | H138: 0.01700754047 | I138: 0 | J138: 0.0051006118 | K138: 0.01626030884 | L138: 0.00541138442 | M138: 0.004599433344 | N138: 0.001049729925 | O138: 0.0002380834813 | P138: 0.01413916472 | Q138: -0.0001773751439 | R138: 0.008585184278 | S138: 0 | T138: 0 | U138: 0 | V138: 0 | W138: 0
A139: 2009-11-16 | B139: 0.001632110499 | C139: 0.00915591377 | D139: 0.01027017586 | E139: 0.01993911176 | F139: 0.006739000143 | G139: 0.02032174823 | H139: 0.02032174645 | I139: 0 | J139: 0.01343632512 | K139: 0.04346840599 | L139: 0.01450462227 | M139: 0.01171207632 | N139: 0.002383215695 | O139: 0.0005949115522 | P139: 0.01722251717 | Q139: 0.01050928274 | R139: 0.01164452731 | S139: 0 | T139: 0 | U139: 0 | V139: 0 | W139: 0
A140: 2009-11-17 | B140: 0.0007320701059 | C140: 0.001743593821 | D140: 0.002176257736 | E140: -0.0005830992891 | F140: -1.606110887e-05 | G140: 0.00912859426 | H140: 0.009128610388 | I140: 0 | J140: 0.002772308327 | K140: 0.006688146824 | L140: 0.001168933348 | M140: 0.00536731864 | N140: 0.0008558898562 | O140: 0.0002378852904 | P140: 0.00304581214 | Q140: 0.01076245383 | R140: 0.002857497068 | S140: 0 | T140: 0 | U140: 0 | V140: 0 | W140: 0
A141: 2009-11-18 | B141: 0.002905702045 | C141: 0.0001789058882 | D141: -2.083550521e-08 | E141: -0.006822612419 | F141: 0.002479296423 | G141: -0.01418584279 | H141: -0.01418582616 | I141: 0 | J141: -0.002632485703 | K141: -0.01054868028 | L141: -0.0006286947152 | M141: -0.005862007843 | N141: -0.002090471288 | O141: 0 | P141: 0.002500660869 | Q141: -0.006637680187 | R141: 0.002227014682 | S141: 0 | T141: 0 | U141: 0 | V141: 0 | W141: 0
A142: 2009-11-19 | B142: -0.005272609136 | C142: -0.003615462765 | D142: -0.00392133941 | E142: -0.01132220849 | F142: -0.008486248262 | G142: -0.01084462566 | H142: -0.01084464402 | I142: 0 | J142: -0.007374751449 | K142: -0.02577373039 | L142: -0.0130313461 | M142: 0.00179001788 | N142: 0.001047419521 | O142: 0.0003566622917 | P142: 0.0004454610245 | Q142: -0.009442602249 | R142: -0.0008336882925 | S142: 0 | T142: 0 | U142: 0 | V142: 0 | W142: 0
A143: 2009-11-20 | B143: -0.001083078219 | C143: 0.001429633653 | D143: 0.001281087181 | E143: 0.001153629097 | F143: -0.002222627932 | G143: -0.009698471948 | H143: -0.009698466575 | I143: 0 | J143: -0.002264362418 | K143: -0.005266490161 | L143: -0.003551259007 | M143: -0.0002101852 | N143: 0.0003804958876 | O143: 0.0002377439201 | P143: 0.005699011424 | Q143: -0.004434807106 | R143: 0.00429293915 | S143: 0 | T143: 0 | U143: 0 | V143: 0 | W143: 0
A144: 2009-11-23 | B144: 0.003954742794 | C144: 0.007189315201 | D144: 0.007285954623 | E144: 0.005830357462 | F144: 0.009487861085 | G144: 0.01575468941 | H144: 0.01575468263 | I144: 0 | J144: 0.007312609408 | K144: 0.02063796947 | L144: 0.0127021807 | M144: -0.001261595795 | N144: -0.0001901412158 | O144: -0.0001188374955 | P144: 0.01195324045 | Q144: 0.0004484928937 | R144: 0.009607773554 | S144: 0 | T144: 0 | U144: 0 | V144: 0 | W144: 0
A145: 2009-11-24 | B145: 0.0001743983359 | C145: 0.002702067131 | D145: 0.00303092147 | E145: 0.005643766591 | F145: 0.00124281159 | G145: 0.003563233383 | H145: 0.003563215416 | I145: 0 | J145: 0.003363910369 | K145: 0.009388694441 | L145: 0.001534006141 | M145: 0.006315779105 | N145: 0.002948150358 | O145: 0.0008318371192 | P145: 0.003849873096 | Q145: -0.0006454201685 | R145: 0.001342240423 | S145: 0 | T145: 0 | U145: 0 | V145: 0 | W145: 0
A146: 2009-11-25 | B146: 0.002753767389 | C146: 0.006715708411 | D146: 0.007055760594 | E146: 0.008456231648 | F146: 0.003732697646 | G146: 0.01670840819 | H146: 0.01670845166 | I146: 0 | J146: 0.003931676239 | K146: 0.01276659673 | L146: 0.003513823479 | M146: 0.004602531212 | N146: 0.0009482174304 | O146: 0.0004749617004 | P146: 0.016473459 | Q146: 0.005578674406 | R146: 0.008655469847 | S146: 0 | T146: 0 | U146: 0 | V146: 0 | W146: 0
A147: 2009-11-27 | B147: -0.005028780572 | C147: -0.01058852405 | D147: -0.0104094286 | E147: -0.01370608003 | F147: -0.01081306233 | G147: -0.001232555842 | H147: -0.001232572673 | I147: 0 | J147: -0.008569701179 | K147: -0.02699187867 | L147: -0.01625065063 | M147: 0.003748442187 | N147: 0.0008526226306 | O147: 0.0007120547061 | P147: -0.01337682181 | Q147: -0.007660027755 | R147: -0.01253630428 | S147: 0 | T147: 0 | U147: 0 | V147: 0 | W147: 0
A148: 2009-11-30 | B148: 0.003186587905 | C148: 0.002067916062 | D148: 0.002057554012 | E148: 0.002455970427 | F148: 0.0002912867742 | G148: -0.01542576455 | H148: -0.01542575534 | I148: 0 | J148: 0.002991523339 | K148: 0.009605907338 | L148: 0.00337685987 | M148: 0.002385855044 | N148: 0.001703746955 | O148: 0.0001186120021 | P148: 0.005040857032 | Q148: 0.01099858583 | R148: 0.002810092147 | S148: 0 | T148: 0 | U148: 0 | V148: 0 | W148: 0
A149: 2009-12-01 | B149: 0.005823786635 | C149: 0.008205321192 | D149: 0.007866113206 | E149: 0.005576754842 | F149: 0.01594142305 | G149: 0.02506793026 | H149: 0.02506790961 | I149: 0 | J149: 0.0006154191474 | K149: -0.002548809305 | L149: 0.01237038315 | M149: -0.01113954427 | N149: -0.00243656623 | O149: 0.0002506323416 | P149: 0.01504667948 | Q149: 0.01869618444 | R149: 0.005263296782 | S149: 0 | T149: 0 | U149: 0 | V149: 0 | W149: 0
A150: 2009-12-02 | B150: 0.002164312021 | C150: 0.006344186288 | D150: 0.005784728528 | E150: -0.0006593684041 | F150: 0.002150864556 | G150: 0.008762971808 | H150: 0.008762995326 | I150: 0 | J150: 0.0001877591475 | K150: 0.006184948819 | L150: -0.0004492555291 | M150: 0.0008399163299 | N150: -0.001900822579 | O150: -0.0008356159595 | P150: 0.01533483597 | Q150: 0.00763729904 | R150: 0.01186515116 | S150: 0 | T150: 0 | U150: 0 | V150: 0 | W150: 0
A151: 2009-12-03 | B151: -0.002743944039 | C151: -0.004348432968 | D151: -0.005336509108 | E151: -0.002785990385 | F151: -0.004073848085 | G151: -0.008888853741 | H151: -0.008888869147 | I151: 0 | J151: -0.00908841036 | K151: -0.03086284925 | L151: -0.007820254318 | M151: -0.01038503479 | N151: 9.524328181e-05 | O151: -0.0005973181024 | P151: -0.004027546568 | Q151: -0.007948558532 | R151: -0.004298945021 | S151: 0 | T151: 0 | U151: 0 | V151: 0 | W151: 0
A152: 2009-12-04 | B152: 0.004926649678 | C152: -0.01040401474 | D152: -0.01180007487 | E152: -0.004155825884 | F152: 0.002402187146 | G152: -0.006318805049 | H152: -0.006318809495 | I152: 0 | J152: -0.00234509521 | K152: -0.008395031467 | L152: 0.00570759864 | M152: -0.01059996101 | N152: -0.001999426834 | O152: -0.002510443926 | P152: -0.04170174495 | Q152: 0.01139582967 | R152: -0.01234841737 | S152: 0 | T152: 0 | U152: 0 | V152: 0 | W152: 0
A153: 2009-12-07 | B153: 0.001191394381 | C153: -0.00175249016 | D153: -0.001198731991 | E153: -0.006053740059 | F153: -0.0026017723 | G153: -0.003487152231 | H153: -0.003487160098 | I153: 0 | J153: -0.0001518690258 | K153: 0.001181868578 | L153: -0.001531442594 | M153: 0.001285648578 | N153: 0.0009540094999 | O153: 0.002157237112 | P153: -0.005626364835 | Q153: -0.0008941859284 | R153: -0.003319604942 | S153: 0 | T153: 0 | U153: 0 | V153: 0 | W153: 0
A154: 2009-12-08 | B154: -0.0008130002175 | C154: -0.01015477028 | D154: -0.01071088662 | E154: -0.006812929824 | F154: -0.01181199659 | G154: -0.01420342836 | H154: -0.01420341039 | I154: 0 | J154: -0.004920202237 | K154: -0.01420714326 | L154: -0.01109704109 | M154: 0.001497962515 | N154: 0.001334344904 | O154: 0.0009566406139 | P154: -0.01909648997 | Q154: -0.0004365080641 | R154: -0.002980868584 | S154: 0 | T154: 0 | U154: 0 | V154: 0 | W154: 0
A155: 2009-12-09 | B155: -0.000171393162 | C155: 0.001756117926 | D155: 0.001244072909 | E155: 0.0005663227564 | F155: 0.0009725593641 | G155: 0.002296942799 | H155: 0.002296941673 | I155: 0 | J155: -0.0003732811372 | K155: -0.001755344494 | L155: 0.003740497999 | M155: -0.004594027512 | N155: -0.001047025752 | O155: -0.0007168164499 | P155: -0.0009914466244 | Q155: -0.003636832666 | R155: -0.002467861485 | S155: 0 | T155: 0 | U155: 0 | V155: 0 | W155: 0
A156: 2009-12-10 | B156: 0.003058727218 | C156: -0.0001021627219 | D156: -0.000671860138 | E156: 0.004845461727 | F156: 0.006616090906 | G156: 0.007916689227 | H156: 0.007916693391 | I156: 0 | J156: -0.002778961591 | K156: -0.009340699838 | L156: 0.00563536572 | M156: -0.01148437136 | N156: -0.0007622141851 | O156: -0.0003586653222 | P156: -0.0001804041927 | Q156: 0.008237814834 | R156: -0.0005792419284 | S156: 0 | T156: 0 | U156: 0 | V156: 0 | W156: 0
A157: 2009-12-11 | B157: 0.004787033991 | C157: -0.001412746342 | D157: -0.001226253241 | E157: 0.002145237413 | F157: 0.00273484842 | G157: 0.005374091122 | H157: 0.005374080162 | I157: 0 | J157: 0.002125437275 | K157: 0.006935514245 | L157: 0.004248021372 | M157: -0.0001086019886 | N157: -0.002383903704 | O157: -0.001076468939 | P157: -0.01353546291 | Q157: -0.007195528437 | R157: -0.0009679900874 | S157: 0 | T157: 0 | U157: 0 | V157: 0 | W157: 0
A158: 2009-12-14 | B158: 0.006267887329 | C158: 0.00451193521 | D158: 0.005157999683 | E158: 0.006464664614 | F158: 0.004061172631 | G158: 0.006990133309 | H158: 0.006990124905 | I158: 0 | J158: 0.004095641874 | K158: 0.01398652974 | L158: 0.006840094885 | M158: 0.001194485775 | N158: 0.0005734723896 | O158: -0.001077541968 | P158: 0.008415642151 | Q158: -0.001945923097 | R158: 0.003157862531 | S158: 0 | T158: 0 | U158: 0 | V158: 0 | W158: 0
A159: 2009-12-15 | B159: -0.0005042753115 | C159: -0.00230254582 | D159: -0.002646650444 | E159: -0.002133386452 | F159: -0.00546456507 | G159: -0.01061659284 | H159: -0.0106165686 | I159: 0 | J159: -0.004550632325 | K159: -0.01400098418 | L159: -0.004648291367 | M159: -0.004446816672 | N159: -0.002770349444 | O159: -0.0002396830376 | P159: -0.0002721244607 | Q159: -0.001625823427 | R159: 0.006476905031 | S159: 0 | T159: 0 | U159: 0 | V159: 0 | W159: 0
A160: 2009-12-16 | B160: 0.004856957414 | C160: 0.004947123224 | D160: 0.005531529169 | E160: -0.002882412761 | F160: 0.003318718215 | G160: 0.001238179673 | H160: 0.001238168376 | I160: 0 | J160: 0.0002056613528 | K160: 0.001208013902 | L160: 0.001526694334 | M160: -0.0011983897 | N160: 0.001820117881 | O160: 0.0007193086174 | P160: 0.01252152266 | Q160: -0.001694714655 | R160: 0.006927670873 | S160: 0 | T160: 0 | U160: 0 | V160: 0 | W160: 0
A161: 2009-12-17 | B161: -0.00757311225 | C161: -0.01325276073 | D161: -0.01266938503 | E161: -0.003343608628 | F161: -0.014027303 | G161: -0.03586155676 | H161: -0.03586156316 | I161: 0 | J161: 0.001774011854 | K161: 0.005762297385 | L161: -0.01201574954 | M161: 0.01647035409 | N161: 0.001625534563 | O161: 0.001916806577 | P161: -0.03808585135 | Q161: -0.004711821724 | R161: -0.01068743964 | S161: 0 | T161: 0 | U161: 0 | V161: 0 | W161: 0
A162: 2009-12-18 | B162: -1.842933411e-05 | C162: 0.004322502227 | D162: 0.004005537294 | E162: 0.001228642572 | F162: 0.00298362267 | G162: -0.005985419097 | H162: -0.005985422052 | I162: 0 | J162: 0.0007702375454 | K162: -0.0005783402812 | L162: 0.005657458374 | M162: -0.004292322945 | N162: 0 | O162: -0.0007174164359 | P162: 0.01499907826 | Q162: -0.002491880676 | R162: 0.008625394919 | S162: 0 | T162: 0 | U162: 0 | V162: 0 | W162: 0
A163: 2009-12-21 | B163: 0.00686599449 | C163: -0.001097751951 | D163: -0.001556744986 | E163: -0.002546102776 | F163: 0.003605173553 | G163: -0.003080777319 | H163: -0.003080778563 | I163: 0 | J163: -0.003494181851 | K163: -0.007145353146 | L163: 0.0101624443 | M163: -0.01778210615 | N163: -0.00420049731 | O163: -0.001555547216 | P163: -0.01835704502 | Q163: 0.0140866642 | R163: -0.006583705247 | S163: 0 | T163: 0 | U163: 0 | V163: 0 | W163: 0
A164: 2009-12-22 | B164: -0.0003859992369 | C164: -0.002306344392 | D164: -0.003050305506 | E164: -0.004464971993 | F164: 0.006026888233 | G164: 0.01262234938 | H164: 0.01262237813 | I164: 0 | J164: -0.0008332532517 | K164: -0.002211258913 | L164: 0.003592935089 | M164: -0.005595806247 | N164: -0.002875998747 | O164: -0.001198545239 | P164: -0.007293118484 | Q164: -0.000266960957 | R164: -0.003112880472 | S164: 0 | T164: 0 | U164: 0 | V164: 0 | W164: 0
A165: 2009-12-23 | B165: 0.006423458679 | C165: 0.002260875742 | D165: 0.002219557848 | E165: 0.002275250946 | F165: 0.002682539651 | G165: 0.008166824496 | H165: 0.00816679968 | I165: 0 | J165: 0.001130858977 | K165: 0.005604012561 | L165: 0.001968975821 | M165: 0.0002207269852 | N165: 0.0003845802263 | O165: 0 | P165: 0.003579212651 | Q165: 0.01939414281 | R165: -0.0008564995949 | S165: 0 | T165: 0 | U165: 0 | V165: 0 | W165: 0
A166: 2009-12-24 | B166: 0.003846000839 | C166: 0.005138643178 | D166: 0.004628048578 | E166: 0.003044866637 | F166: 0.003640183968 | G166: 0.01065868722 | H166: 0.01065869789 | I166: 0 | J166: -0.002499933153 | K166: -0.005688618084 | L166: 0.004734305752 | M166: -0.01036958331 | N166: -0.001729934175 | O166: -0.001199883824 | P166: 0.01698731064 | Q166: 0.0006541951435 | R166: 0.007082314021 | S166: 0 | T166: 0 | U166: 0 | V166: 0 | W166: 0
A167: 2009-12-28 | B167: -0.001255904943 | C167: 0.00125383032 | D167: 0.001089405353 | E167: 0.004954575193 | F167: 0.004493887105 | G167: 0.001265597157 | H167: 0.001265595337 | I167: 0 | J167: -0.0002044366336 | K167: 6.945833112e-05 | L167: 0.00213370016 | M167: -0.002786754757 | N167: -0.006065325699 | O167: -0.001441555411 | P167: 0.001753432985 | Q167: -0.0005648230796 | R167: -0.001365951112 | S167: 0 | T167: 0 | U167: 0 | V167: 0 | W167: 0
A168: 2009-12-29 | B168: -0.001376997534 | C168: -0.003308341226 | D168: -0.002835241942 | E168: 0.002725256318 | F168: -0.0007923699156 | G168: 0.001391413473 | H168: 0.001391377748 | I168: 0 | J168: 0.002379674892 | K168: 0.006058698388 | L168: -0.001419481996 | M168: 0.006596304642 | N168: 0.001185165563 | O168: 0.0006623577879 | P168: -0.009949350255 | Q168: 0.001751351297 | R168: -0.003487933892 | S168: 0 | T168: 0 | U168: 0 | V168: 0 | W168: 0
A169: 2009-12-30 | B169: 0.001552923224 | C169: -0.002001006928 | D169: -0.001918194997 | E169: 0.003034852248 | F169: -0.003649893759 | G169: 0.004210517633 | H169: 0.004210523868 | I169: 0 | J169: 0.002943274179 | K169: 0.006394912572 | L169: -0.0003553724124 | M169: 0.006575236286 | N169: 0.002522823048 | O169: -0.0003610446547 | P169: -0.005024667302 | Q169: 0.001771734526 | R169: -0.001395620901 | S169: 0 | T169: 0 | U169: 0 | V169: 0 | W169: 0
A170: 2009-12-31 | B170: -0.002998311946 | C170: -0.0001441556776 | D170: -0.000585498476 | E170: -0.007224416092 | F170: -0.005043236445 | G170: 0.001886795202 | H170: 0.001886792575 | I170: 0 | J170: -0.007287535779 | K170: -0.02390015642 | L170: -0.009598243001 | M170: -0.004760859289 | N170: -0.001258202451 | O170: -0.001203933497 | P170: 0.003553708033 | Q170: -0.0114937028 | R170: 0.002218963235 | S170: 0 | T170: 0 | U170: 0 | V170: 0 | W170: 0
A171: 2010-01-04 | B171: 0.01212744811 | C171: 0.01033080407 | D171: 0.01147532652 | E171: 0.02548908002 | F171: 0.01199905657 | G171: 0.03264278108 | H171: 0.03264277401 | I171: 0 | J171: 0.01160485299 | K171: 0.03624457526 | L171: 0.01695979059 | M171: -0.0008899972588 | N171: 0.001162860259 | O171: 0.001325950671 | P171: 0.0232038491 | Q171: 0.0103019264 | R171: 0.00190179135 | S171: 0 | T171: 0 | U171: 0 | V171: 0 | W171: 0
A172: 2010-01-05 | B172: 0.009285095659 | C172: 0.002503180653 | D172: 0.003547560016 | E172: 0.004150264446 | F172: -0.001600650119 | G172: 0.002026384078 | H172: 0.002026392213 | I172: 0 | J172: 0.003776277649 | K172: 0.01262804607 | L172: 0.002647093507 | M172: 0.006458105697 | N172: 0.004549432266 | O172: 0.001203788536 | P172: -0.0009108014323 | Q172: 0.009477455275 | R172: 0.004111452916 | S172: 0 | T172: 0 | U172: 0 | V172: 0 | W172: 0
A173: 2010-01-06 | B173: 0.0004738504826 | C173: 0.005189384746 | D173: 0.005095430699 | E173: 0.0151588591 | F173: 0.001473598704 | G173: 0.002224494684 | H173: 0.002224482291 | I173: 0 | J173: -0.003482029221 | K173: -0.01028167456 | L173: 0.000704062126 | M173: -0.01338642951 | N173: -0.000578130422 | O173: 0.0001202615485 | P173: 0.01649959024 | Q173: -0.01596375151 | R173: 0.002879189984 | S173: 0 | T173: 0 | U173: 0 | V173: 0 | W173: 0
A174: 2010-01-07 | B174: 0.003062834886 | C174: -0.001745764523 | D174: -0.001085024727 | E174: 0.02073977928 | F174: 0.001821902526 | G174: -0.00221955729 | H174: -0.002219544952 | I174: 0 | J174: 0.003474404141 | K174: 0.008471834308 | L174: 0.004221290214 | M174: 0.00168200991 | N174: -0.001156987416 | O174: -0.0002404069037 | P174: -0.006187803673 | Q174: -0.01275528447 | R174: 0.004129185791 | S174: 0 | T174: 0 | U174: 0 | V174: 0 | W174: 0
A175: 2010-01-08 | B175: 0.001626941487 | C175: 0.002093569659 | D175: 0.003518792563 | E175: 0.01383151499 | F175: 0.002703925527 | G175: 0.007482281675 | H175: 0.007482269308 | I175: 0 | J175: 0.002219233492 | K175: 0.006168004185 | L175: 0.003327766715 | M175: -0.0004477882627 | N175: 0.0005792042414 | O175: 0.000961933674 | P175: 0.004963030139 | Q175: 0.01248642471 | R175: -0.00462731589 | S175: 0 | T175: 0 | U175: 0 | V175: 0 | W175: 0
A176: 2010-01-11 | B176: 0.002719561002 | C176: 0.004892909031 | D176: 0.005008145162 | E176: 0.002612079525 | F176: 0.007629081376 | G176: -0.005820977064 | H176: -0.005820976619 | I176: 0 | J176: -0.0006193453699 | K176: -0.000866459562 | L176: 0.001396551205 | M176: -0.005487706521 | N176: -0.0007717752279 | O176: 0.0004805419984 | P176: 0.01328899129 | Q176: -0.009912749222 | R176: -0.004392933924 | S176: 0 | T176: 0 | U176: 0 | V176: 0 | W176: 0
A177: 2010-01-12 | B177: -0.004592524822 | C177: -0.006438296114 | D177: -0.006573935654 | E177: -0.0048637778 | F177: -0.01007162997 | G177: -0.01554613047 | H177: -0.01554612496 | I177: 0 | J177: -0.001620650777 | K177: -0.006932978767 | L177: -0.009326237274 | M177: 0.01711707327 | N177: 0.006371852482 | O177: 0.0008405445801 | P177: -0.02091271637 | Q177: -0.01522734498 | R177: -0.007803463784 | S177: 0 | T177: 0 | U177: 0 | V177: 0 | W177: 0
A178: 2010-01-13 | B178: -0.002802870383 | C178: 0.002558085161 | D178: 0.002145555879 | E178: 0.001040011757 | F178: 0.01063631217 | G178: 0.002871266741 | H178: 0.002871258988 | I178: 0 | J178: 0.002487594514 | K178: 0.007380230797 | L178: 0.008446233823 | M178: -0.01162536507 | N178: -0.004220979227 | O178: -0.0008398386583 | P178: 0.009503149778 | Q178: 0.001822607563 | R178: 0.002318633756 | S178: 0 | T178: 0 | U178: 0 | V178: 0 | W178: 0
A179: 2010-01-14 | B179: 0.004371091436 | C179: 0.0006559045271 | D179: 0.001982542345 | E179: 0.005301843353 | F179: 0.005922439577 | G179: -0.01370147768 | H179: -0.01370146636 | I179: 0 | J179: 0.006011352119 | K179: 0.01714178486 | L179: 0.002704572828 | M179: 0.01400246811 | N179: 0.002601125903 | O179: 0.000960647282 | P179: 0.004393024884 | Q179: 0.009548599825 | R179: 0.00407882625 | S179: 0 | T179: 0 | U179: 0 | V179: 0 | W179: 0
A180: 2010-01-15 | B180: -0.004324917127 | C180: -0.004436383707 | D180: -0.004947859528 | E180: 0.003610426098 | F180: -0.008606395718 | G180: -0.01555048829 | H180: -0.01555048053 | I180: 0 | J180: -0.006087795244 | K180: -0.01893380426 | L180: -0.01122423115 | M180: 0.006186527269 | N180: 0.001921750533 | O180: 0.0008397254478 | P180: -0.01044361341 | Q180: -0.008854479249 | R180: 0.004291118057 | S180: 0 | T180: 0 | U180: 0 | V180: 0 | W180: 0
A181: 2010-01-19 | B181: 0.005532627056 | C181: 0.003980853066 | D181: 0.005524405292 | E181: 0.007796871544 | F181: 0.0148902271 | G181: 0.01748107462 | H181: 0.0174810758 | I181: 0 | J181: 0.007911105025 | K181: 0.02417686901 | L181: 0.01249558336 | M181: -0.002854659174 | N181: -0.00163036343 | O181: 0.000239674089 | P181: 0.005953418673 | Q181: 0.01299831663 | R181: 0.009773220871 | S181: 0 | T181: 0 | U181: 0 | V181: 0 | W181: 0
A182: 2010-01-20 | B182: -0.006871028936 | C182: -0.006277511593 | D182: -0.007571377506 | E182: -0.008553259333 | F182: -0.009899015439 | G182: -0.02980753629 | H182: -0.02980754258 | I182: 0 | J182: -0.004171033041 | K182: -0.01337062457 | L182: -0.01016859692 | M182: 0.01012990684 | N182: 0.002593698983 | O182: 0 | P182: -0.02313481949 | Q182: -0.01252463634 | R182: 0.007267328868 | S182: 0 | T182: 0 | U182: 0 | V182: 0 | W182: 0
A183: 2010-01-21 | B183: -0.01741255178 | C183: -0.006348454443 | D183: -0.008326470708 | E183: -0.02239903607 | F183: -0.01811176742 | G183: -0.04096433095 | H183: -0.04096434052 | I183: 0 | J183: -0.01209377667 | K183: -0.03147770203 | L183: -0.01922910022 | M183: 0.004578221928 | N183: 0.0002874253904 | O183: 0.0008388322842 | P183: -0.01441159327 | Q183: -0.001538550969 | R183: -0.00508812571 | S183: 0 | T183: 0 | U183: 0 | V183: 0 | W183: 0
A184: 2010-01-22 | B184: -0.01887033423 | C184: -0.004504295867 | D184: -0.007485243779 | E184: -0.01357963806 | F184: -0.01730886962 | G184: -0.01379306093 | H184: -0.01379307572 | I184: 0 | J184: -0.01602709266 | K184: -0.04801121214 | L184: -0.02229182979 | M184: -0.001736151254 | N184: 0.0005746970696 | O184: 0.0008381168178 | P184: -0.001862764221 | Q184: -0.0425092967 | R184: -0.004510865312 | S184: 0 | T184: 0 | U184: 0 | V184: 0 | W184: 0
A185: 2010-01-25 | B185: 0.005686877903 | C185: 0.001725124045 | D185: 0.00147604198 | E185: 0.01017082563 | F185: 0.003261523217 | G185: -0.0009023745288 | H185: -0.0009023264205 | I185: 0 | J185: 0.002130708277 | K185: 0.004439233493 | L185: 0.005127712635 | M185: -0.004565190549 | N185: -9.57603045e-05 | O185: -0.0008374149662 | P185: 0.00289264725 | Q185: -0.008463918288 | R185: -0.001075128339 | S185: 0 | T185: 0 | U185: 0 | V185: 0 | W185: 0
A186: 2010-01-26 | B186: 0.00119993711 | C186: -0.0007543565097 | D186: -0.0002500370559 | E186: -0.0127521849 | F186: -0.0004884929964 | G186: -0.009482990841 | H186: -0.009483005958 | I186: 0 | J186: -0.002802914702 | K186: -0.008651663335 | L186: -0.004190572437 | M186: 0.0003275700416 | N186: 0.001244670767 | O186: 0.0001197575809 | P186: 0.0007442779844 | Q186: -9.626741649e-05 | R186: 0.006311490576 | S186: 0 | T186: 0 | U186: 0 | V186: 0 | W186: 0
A187: 2010-01-27 | B187: 0.0008927387189 | C187: -0.002006488542 | D187: -0.002722924143 | E187: -0.02054357212 | F187: -0.001706647821 | G187: -0.01002958396 | H187: -0.01002961341 | I187: 0 | J187: 0.003123334057 | K187: 0.01019923 | L187: 0.004757146051 | M187: -0.00054582455 | N187: -0.0007649858596 | O187: -0.0003591428167 | P187: -0.009576041457 | Q187: 0.01031576697 | R187: 0.001898890803 | S187: 0 | T187: 0 | U187: 0 | V187: 0 | W187: 0
A188: 2010-01-28 | B188: -0.001717085573 | C188: -0.002628586137 | D188: -0.003598047284 | E188: -0.01764588234 | F188: -0.004361764761 | G188: 0.002763025956 | H188: 0.002763058318 | I188: 0 | J188: -0.008118295591 | K188: -0.02740752279 | L188: -0.01147229399 | M188: -0.0005460427051 | N188: -0.000861214961 | O188: 0.0004790581077 | P188: -0.0004693138127 | Q188: -0.004571608662 | R188: 0.003272790743 | S188: 0 | T188: 0 | U188: 0 | V188: 0 | W188: 0
A189: 2010-01-29 | B189: -0.003710901755 | C189: -0.003777324732 | D189: -0.003965171416 | E189: 0.007413494336 | F189: -0.007992678205 | G189: -0.02135477215 | H189: -0.02135477527 | I189: 0 | J189: -0.004802765676 | K189: -0.01519425834 | L189: -0.01086856993 | M189: 0.008742162943 | N189: 0.002298613934 | O189: 0.0009576450282 | P189: -0.004883583634 | Q189: -0.0148939966 | R189: 0.008127297827 | S189: 0 | T189: 0 | U189: 0 | V189: 0 | W189: 0
A190: 2010-02-01 | B190: 0.0003007742393 | C190: 0.007121776987 | D190: 0.00936167876 | E190: 0.01149974592 | F190: 0.004508236517 | G190: 0.01490191184 | H190: 0.01490191083 | I190: 0 | J190: 0.0155507849 | K190: 0.0474047709 | L190: 0.01555078312 | M190: -0.009077533267 | N190: -0.001370724462 | O190: -0.000430983732 | P190: 0.02255567216 | Q190: 0.01555204754 | R190: 0.002989148816 | S190: 0 | T190: 0 | U190: 0 | V190: 0 | W190: 0
A191: 2010-02-02 | B191: 0.001612689421 | C191: 0.003939909559 | D191: 0.006250720769 | E191: 0.00781675192 | F191: 0.01653326429 | G191: 0.0140649836 | H191: 0.01406496852 | I191: 0 | J191: 0.01210342685 | K191: 0.03829586277 | L191: 0.01210342702 | M191: 0.00285246523 | N191: 0.001151876797 | O191: 0.0001197775933 | P191: 0.007198883382 | Q191: 0.04467395534 | R191: 0.001131106424 | S191: 0 | T191: 0 | U191: 0 | V191: 0 | W191: 0
A192: 2010-02-03 | B192: -0.00103840257 | C192: -0.002070614469 | D192: -0.0042887975 | E192: -0.02155063197 | F192: -0.008863054155 | G192: -0.004648694352 | H192: -0.00464868449 | I192: 0 | J192: -0.004982748418 | K192: -0.01498995591 | L192: -0.00498274703 | M192: -0.01159616776 | N192: -0.001821692244 | O192: -0.000718529868 | P192: -0.00394025485 | Q192: -0.01256550157 | R192: 0.002589322568 | S192: 0 | T192: 0 | U192: 0 | V192: 0 | W192: 0
A193: 2010-02-04 | B193: -0.008526008641 | C193: -0.01456524435 | D193: -0.02014373735 | E193: -0.02952035312 | F193: -0.0244381658 | G193: -0.03276930233 | H193: -0.03276930771 | I193: 0 | J193: -0.03086587126 | K193: -0.09291159904 | L193: -0.03086587074 | M193: 0.01582734521 | N193: 0.002401302378 | O193: 0.001438018562 | P193: -0.03983435253 | Q193: -0.05390934497 | R193: -0.002153303211 | S193: 0 | T193: 0 | U193: 0 | V193: 0 | W193: 0
A194: 2010-02-05 | B194: -0.004121823651 | C194: -0.0009303810049 | D194: -0.0009886295803 | E194: -0.002317198254 | F194: -0.00759480673 | G194: 0.002770502092 | H194: 0.002770516917 | I194: 0 | J194: 0.00206689492 | K194: 0.004856265214 | L194: 0.002066897012 | M194: 0.002179170054 | N194: 0.000383296682 | O194: 0.001555544123 | P194: 0.002970173336 | Q194: 0.02862858362 | R194: 0.007771301284 | S194: 0 | T194: 0 | U194: 0 | V194: 0 | W194: 0
A195: 2010-02-08 | B195: 0.002282976998 | C195: -0.0005967715816 | D195: -0.002302404123 | E195: -0.003358982118 | F195: -0.001196680253 | G195: -0.007262377331 | H195: -0.007262389136 | I195: 0 | J195: -0.007219237986 | K195: -0.02262723067 | L195: -0.007219239563 | M195: 0.0013045876 | N195: 0.001915680516 | O195: -0.0007168121974 | P195: -0.006113861292 | Q195: 8.921499287e-05 | R195: -0.002386492932 | S195: 0 | T195: 0 | U195: 0 | V195: 0 | W195: 0
A196: 2010-02-09 | B196: 0.0002596632338 | C196: 0.003059319054 | D196: 0.004266118218 | E196: 0.008523704232 | F196: 0.01003249298 | G196: 0.01264310959 | H196: 0.01264310477 | I196: 0 | J196: 0.01256021834 | K196: 0.03798585722 | L196: 0.01256021928 | M196: -0.009989123729 | N196: -0.00181638772 | O196: -0.0009565053699 | P196: 0.01316804101 | Q196: 0.03854162215 | R196: -0.006229288671 | S196: 0 | T196: 0 | U196: 0 | V196: 0 | W196: 0
A197: 2010-02-10 | B197: -0.008364111637 | C197: 0.0006367769716 | D197: -0.0005573365303 | E197: -0.001026255063 | F197: -0.004191026174 | G197: -0.0002355680881 | H197: -0.0002355641256 | I197: 0 | J197: -0.001958575763 | K197: -0.006279339117 | L197: -0.001958577043 | M197: -0.009541605655 | N197: -0.002298690119 | O197: -0.001077025953 | P197: -0.002751171511 | Q197: -0.007337777377 | R197: 0.002215424579 | S197: 0 | T197: 0 | U197: 0 | V197: 0 | W197: 0
A198: 2010-02-11 | B198: -0.001753844397 | C198: 0.007330371726 | D198: 0.009288998621 | E198: 0.01633803684 | F198: 0.01078931248 | G198: 0.01382344879 | H198: 0.01382345071 | I198: 0 | J198: 0.0104662658 | K198: 0.03334061294 | L198: 0.01046626451 | M198: -0.005425721801 | N198: -0.001631927736 | O198: 0.0003593998666 | P198: 0.01912094694 | Q198: 0.02238212922 | R198: 0.01234171459 | S198: 0 | T198: 0 | U198: 0 | V198: 0 | W198: 0
A199: 2010-02-12 | B199: 0.001420768235 | C199: 3.194258852e-05 | D199: 3.947092115e-05 | E199: 0.00373209998 | F199: -0.0005435256644 | G199: 0.006275166817 | H199: 0.00627516698 | I199: 0 | J199: -0.0008323018845 | K199: 0.0002106466635 | L199: -0.0008322989104 | M199: 0.004119373897 | N199: 0.0001922715733 | O199: 0.0008383190829 | P199: -0.0008400634978 | Q199: 0.04248596892 | R199: 0.00736863009 | S199: 0 | T199: 0 | U199: 0 | V199: 0 | W199: 0
A200: 2010-02-16 | B200: 0.006685483789 | C200: 0.008450490245 | D200: 0.01273098294 | E200: 0.02162853141 | F200: 0.01459852395 | G200: 0.01701445524 | H200: 0.01701443863 | I200: 0 | J200: 0.01573488843 | K200: 0.04764894035 | L200: 0.01573488889 | M200: 0.001884886737 | N200: 0.002499543337 | O200: 0.0001196772656 | P200: 0.02410315747 | Q200: 8.139349784e-05 | R200: -0.005209044191 | S200: 0 | T200: 0 | U200: 0 | V200: 0 | W200: 0
... 1606 more rows

Sheet ReturnWeighted
A1: =+Dates -> Date | B1: =+StratNames -> BRS | C1: BUGST | D1: BUGLEV | E1: WTOP4 | F1: GSRlv | G1: GMRS | H1: GMRSE | I1: MYRS | J1: UIS | K1: UIS-SPXL-TMF | L1: SPY | M1: TLT | N1: AGG | O1: SHY | P1: GLD | Q1: NASDAQ100 | R1: GLD-USD | S1: empty | T1: empty | U1: empty | V1: empty | W1: empty | X1: Custom
A2: 2009-05-04 | B2: =+Returns*TRANSPOSE(StratWeights) -> -0.0003585772491 | C2: 0.0002805862325 | D2: 0.0005286420618 | E2: 0 | F2: 0.001940602262 | G2: 0 | H2: 0 | I2: 0 | J2: 0.002198753188 | K2: 0.001030692617 | L2: 0 | M2: 0 | N2: 0 | O2: 0 | P2: 0 | Q2: 0 | R2: 0.001559281077 | S2: 0 | T2: 0 | U2: 0 | V2: 0 | W2: 0 | X2: =SUM(B2:W2) -> 0.007179980189
A3: 2009-05-05 | B3: 0.002263799967 | C3: -1.086426428e-06 | D3: 5.581938601e-05 | E3: 0 | F3: -7.467699969e-05 | G3: 0 | H3: 0 | I3: 0 | J3: -0.0002204635315 | K3: -0.0001117173298 | L3: 0 | M3: 0 | N3: 0 | O3: 0 | P3: 0 | Q3: 0 | R3: -0.0009004701645 | S3: 0 | T3: 0 | U3: 0 | V3: 0 | W3: 0 | X3: =SUM(B3:W3) -> 0.001011204901
A4: 2009-05-06 | B4: 0.001317751551 | C4: 0.0002533752517 | D4: 0.0005322464999 | E4: 0 | F4: 0.001245537399 | G4: 0 | H4: 0 | I4: 0 | J4: 0.001120367179 | K4: 0.0004894012433 | L4: 0 | M4: 0 | N4: 0 | O4: 0 | P4: 0 | Q4: 0 | R4: 0.000487652803 | S4: 0 | T4: 0 | U4: 0 | V4: 0 | W4: 0 | X4: 0.005446331928
A5: 2009-05-07 | B5: -0.00327908677 | C5: 7.723002485e-05 | D5: 0.0002222417612 | E5: 0 | F5: -0.002123981661 | G5: 0 | H5: 0 | I5: 0 | J5: -0.0008978552335 | K5: -0.0004223358027 | L5: 0 | M5: 0 | N5: 0 | O5: 0 | P5: 0 | Q5: 0 | R5: 0.001749742853 | S5: 0 | T5: 0 | U5: 0 | V5: 0 | W5: 0 | X5: -0.004674044829
A6: 2009-05-08 | B6: 0.00252076883 | C6: -1.046165915e-05 | D6: -0.0001065986187 | E6: 0 | F6: 0.002113468682 | G6: 0 | H6: 0 | I6: 0 | J6: 0.001508025555 | K6: 0.0007338939138 | L6: 0 | M6: 0 | N6: 0 | O6: 0 | P6: 0 | Q6: 0 | R6: -0.0008208664326 | S6: 0 | T6: 0 | U6: 0 | V6: 0 | W6: 0 | X6: 0.005938230271
A7: 2009-05-11 | B7: 0.003898147973 | C7: 1.273506527e-05 | D7: 9.96048784e-05 | E7: 0 | F7: -0.0003630191316 | G7: 0 | H7: 0 | I7: 0 | J7: -0.001209500397 | K7: -0.0005802469261 | L7: 0 | M7: 0 | N7: 0 | O7: 0 | P7: 0 | Q7: 0 | R7: -0.003336319512 | S7: 0 | T7: 0 | U7: 0 | V7: 0 | W7: 0 | X7: -0.00147859805
A8: 2009-05-12 | B8: 0.0003826202209 | C8: 0.0001160216728 | D8: 0.0001741074399 | E8: 0 | F8: -0.0004555034252 | G8: 0 | H8: 0 | I8: 0 | J8: -0.0001912572306 | K8: -8.650823328e-05 | L8: 0 | M8: 0 | N8: 0 | O8: 0 | P8: 0 | Q8: 0 | R8: -0.0008146386523 | S8: 0 | T8: 0 | U8: 0 | V8: 0 | W8: 0 | X8: -0.0008751582076
A9: 2009-05-13 | B9: -0.003175733993 | C9: -7.697598516e-06 | D9: -7.769135429e-05 | E9: 0 | F9: -0.00259368171 | G9: 0 | H9: 0 | I9: 0 | J9: -0.001626980519 | K9: -0.0007944361051 | L9: 0 | M9: 0 | N9: 0 | O9: 0 | P9: 0 | Q9: 0 | R9: -0.002313882938 | S9: 0 | T9: 0 | U9: 0 | V9: 0 | W9: 0 | X9: -0.01059010422
A10: 2009-05-14 | B10: 0.001000976189 | C10: -0.0001486650357 | D10: -0.0004138285683 | E10: 0 | F10: 0.001102891435 | G10: 0 | H10: 0 | I10: 0 | J10: 0.0005539033584 | K10: 0.000199126161 | L10: 0 | M10: 0 | N10: 0 | O10: 0 | P10: 0 | Q10: 0 | R10: 0.0009818917293 | S10: 0 | T10: 0 | U10: 0 | V10: 0 | W10: 0 | X10: 0.003276295269
A11: 2009-05-15 | B11: -0.002744116163 | C11: 0.0002592805679 | D11: 0.0006638291442 | E11: 0 | F11: -0.0003251750226 | G11: 0 | H11: 0 | I11: 0 | J11: -0.0005275187698 | K11: -0.0002516437213 | L11: 0 | M11: 0 | N11: 0 | O11: 0 | P11: 0 | Q11: 0 | R11: -0.0006680296962 | S11: 0 | T11: 0 | U11: 0 | V11: 0 | W11: 0 | X11: -0.003593373661
A12: 2009-05-18 | B12: 0.002371017888 | C12: -0.0001488532422 | D12: -0.0002525149006 | E12: 0 | F12: 0.002239319471 | G12: 0 | H12: 0 | I12: 0 | J12: 0.001836003731 | K12: 0.0009061485001 | L12: 0 | M12: 0 | N12: 0 | O12: 0 | P12: 0 | Q12: 0 | R12: 0.001173057248 | S12: 0 | T12: 0 | U12: 0 | V12: 0 | W12: 0 | X12: 0.008124178695
A13: 2009-05-19 | B13: 0.002810907238 | C13: 0.0001680995105 | D13: 0.0003952842071 | E13: 0 | F13: 0.0007717745236 | G13: 0 | H13: 0 | I13: 0 | J13: -7.792986352e-05 | K13: -9.359021422e-06 | L13: 0 | M13: 0 | N13: 0 | O13: 0 | P13: 0 | Q13: 0 | R13: 0.0002583466746 | S13: 0 | T13: 0 | U13: 0 | V13: 0 | W13: 0 | X13: 0.004317123269
A14: 2009-05-20 | B14: 0.001797655197 | C14: 0.0001068065662 | D14: 0.0001200321801 | E14: 0 | F14: -0.000446313369 | G14: 0 | H14: 0 | I14: 0 | J14: -0.0004326747083 | K14: -0.0001780102581 | L14: 0 | M14: 0 | N14: 0 | O14: 0 | P14: 0 | Q14: 0 | R14: -0.001426664102 | S14: 0 | T14: 0 | U14: 0 | V14: 0 | W14: 0 | X14: -0.0004591684935
A15: 2009-05-21 | B15: -0.002696335521 | C15: 0.0002192299658 | D15: 0.0003673118328 | E15: 0 | F15: -0.0006411379458 | G15: 0 | H15: 0 | I15: 0 | J15: -0.0009283089953 | K15: -0.0004798430188 | L15: 0 | M15: 0 | N15: 0 | O15: 0 | P15: 0 | Q15: 0 | R15: 0.001353077449 | S15: 0 | T15: 0 | U15: 0 | V15: 0 | W15: 0 | X15: -0.002806006233
A16: 2009-05-22 | B16: 0.003096960215 | C16: 4.090092434e-05 | D16: 7.358262207e-05 | E16: 0 | F16: 0.0004000156071 | G16: 0 | H16: 0 | I16: 0 | J16: -0.0001376547657 | K16: -7.997915415e-05 | L16: 0 | M16: 0 | N16: 0 | O16: 0 | P16: 0 | Q16: 0 | R16: 0.001241552854 | S16: 0 | T16: 0 | U16: 0 | V16: 0 | W16: 0 | X16: 0.004635378303
A17: 2009-05-26 | B17: -0.00147619924 | C17: -5.602862118e-05 | D17: -0.0001143632205 | E17: 0 | F17: 0.0009047724004 | G17: 0 | H17: 0 | I17: 0 | J17: 0.001655363475 | K17: 0.0008597852789 | L17: 0 | M17: 0 | N17: 0 | O17: 0 | P17: 0 | Q17: 0 | R17: 0.0001952934181 | S17: 0 | T17: 0 | U17: 0 | V17: 0 | W17: 0 | X17: 0.00196862349
A18: 2009-05-27 | B18: -0.0008530456825 | C18: 1.886833815e-05 | D18: 9.928112603e-05 | E18: 0 | F18: -0.0002897229826 | G18: 0 | H18: 0 | I18: 0 | J18: -0.001153886165 | K18: -0.0005952905889 | L18: 0 | M18: 0 | N18: 0 | O18: 0 | P18: 0 | Q18: 0 | R18: 0.0001087033005 | S18: 0 | T18: 0 | U18: 0 | V18: 0 | W18: 0 | X18: -0.002665092654
A19: 2009-05-28 | B19: 0.002190718908 | C19: 8.150022641e-05 | D19: 0.0001107733083 | E19: 0 | F19: 0.0007402365731 | G19: 0 | H19: 0 | I19: 0 | J19: 0.0009009647913 | K19: 0.000414546886 | L19: 0 | M19: 0 | N19: 0 | O19: 0 | P19: 0 | Q19: 0 | R19: 0.00530308665 | S19: 0 | T19: 0 | U19: 0 | V19: 0 | W19: 0 | X19: 0.009741827343
A20: 2009-05-29 | B20: 0.002296289005 | C20: 0.000257979458 | D20: 0.0004532727511 | E20: 0 | F20: 0.0006151501572 | G20: 0 | H20: 0 | I20: 0 | J20: 0.001144489047 | K20: 0.0005282361706 | L20: 0 | M20: 0 | N20: 0 | O20: 0 | P20: 0 | Q20: 0 | R20: -0.001482397386 | S20: 0 | T20: 0 | U20: 0 | V20: 0 | W20: 0 | X20: 0.003813019203
A21: 2009-06-01 | B21: 0.001470172679 | C21: -7.512752367e-05 | D21: -0.0001519960861 | E21: 0 | F21: 0.00266908842 | G21: 0 | H21: 0 | I21: 0 | J21: 0.000522009395 | K21: 0.0002511583835 | L21: 0 | M21: 0 | N21: 0 | O21: 0 | P21: 0 | Q21: 0 | R21: -0.0008358931276 | S21: 0 | T21: 0 | U21: 0 | V21: 0 | W21: 0 | X21: 0.00384941214
A22: 2009-06-02 | B22: -0.0001613096179 | C22: 0.0001837278099 | D22: 0.0004262625418 | E22: 0 | F22: -0.0005042190232 | G22: 0 | H22: 0 | I22: 0 | J22: 0.0001392115279 | K22: 0.0001166768327 | L22: 0 | M22: 0 | N22: 0 | O22: 0 | P22: 0 | Q22: 0 | R22: -0.001419814674 | S22: 0 | T22: 0 | U22: 0 | V22: 0 | W22: 0 | X22: -0.001219464603
A23: 2009-06-03 | B23: -0.0007975778607 | C23: -0.0004333559573 | D23: -0.000705593779 | E23: 0 | F23: -0.00247100849 | G23: 0 | H23: 0 | I23: 0 | J23: -0.000404934659 | K23: -0.0002477318509 | L23: 0 | M23: 0 | N23: 0 | O23: 0 | P23: 0 | Q23: 0 | R23: -0.0007547340284 | S23: 0 | T23: 0 | U23: 0 | V23: 0 | W23: 0 | X23: -0.005814936625
A24: 2009-06-04 | B24: -0.0007577338646 | C24: 0.0001713026843 | D24: 0.000135728781 | E24: 0 | F24: 0.001670903509 | G24: 0 | H24: 0 | I24: 0 | J24: 3.558571529e-05 | K24: -1.46835252e-05 | L24: 0 | M24: 0 | N24: 0 | O24: 0 | P24: 0 | Q24: 0 | R24: 0.002256200654 | S24: 0 | T24: 0 | U24: 0 | V24: 0 | W24: 0 | X24: 0.003497303954
A25: 2009-06-05 | B25: 0.0001980031854 | C25: -0.0001326671804 | D25: -0.0002765311339 | E25: 0 | F25: 0.0001405559079 | G25: 0 | H25: 0 | I25: 0 | J25: -0.0001321596791 | K25: -4.788000448e-05 | L25: 0 | M25: 0 | N25: 0 | O25: 0 | P25: 0 | Q25: 0 | R25: -0.0007726720661 | S25: 0 | T25: 0 | U25: 0 | V25: 0 | W25: 0 | X25: -0.001023350971
A26: 2009-06-08 | B26: -0.0001457715877 | C26: -0.0001553912604 | D26: -0.0003451412588 | E26: 0 | F26: -0.0011159224 | G26: 0 | H26: 0 | I26: 0 | J26: -0.000237624088 | K26: -0.000101319152 | L26: 0 | M26: 0 | N26: 0 | O26: 0 | P26: 0 | Q26: 0 | R26: 0.000740039504 | S26: 0 | T26: 0 | U26: 0 | V26: 0 | W26: 0 | X26: -0.001361130243
A27: 2009-06-09 | B27: 0.00152682922 | C27: 9.758371698e-05 | D27: 0.000263881395 | E27: 0 | F27: 0.001147611021 | G27: 0 | H27: 0 | I27: 0 | J27: 0.0002329207521 | K27: 0.0001281644451 | L27: 0 | M27: 0 | N27: 0 | O27: 0 | P27: 0 | Q27: 0 | R27: -0.00223951508 | S27: 0 | T27: 0 | U27: 0 | V27: 0 | W27: 0 | X27: 0.00115747547
A28: 2009-06-10 | B28: 0.0001130893363 | C28: -8.934165371e-05 | D28: -0.0001577263291 | E28: 0 | F28: 0.0001798366891 | G28: 0 | H28: 0 | I28: 0 | J28: -0.0004076552294 | K28: -0.0002138474347 | L28: 0 | M28: 0 | N28: 0 | O28: 0 | P28: 0 | Q28: 0 | R28: 0.001287323747 | S28: 0 | T28: 0 | U28: 0 | V28: 0 | W28: 0 | X28: 0.0007116791252
A29: 2009-06-11 | B29: 0.0006340832409 | C29: 7.368232273e-05 | D29: 0.0001588770969 | E29: 0 | F29: 0.0015729827 | G29: 0 | H29: 0 | I29: 0 | J29: 0.0004094262196 | K29: 0.0002079861774 | L29: 0 | M29: 0 | N29: 0 | O29: 0 | P29: 0 | Q29: 0 | R29: -0.001999145764 | S29: 0 | T29: 0 | U29: 0 | V29: 0 | W29: 0 | X29: 0.001057891993
A30: 2009-06-12 | B30: 0.001168159713 | C30: 1.377087776e-05 | D30: 6.17904812e-05 | E30: 0 | F30: -0.0007747440211 | G30: 0 | H30: 0 | I30: 0 | J30: 0.0002917050277 | K30: 0.0001120391438 | L30: 0 | M30: 0 | N30: 0 | O30: 0 | P30: 0 | Q30: 0 | R30: -0.000767166852 | S30: 0 | T30: 0 | U30: 0 | V30: 0 | W30: 0 | X30: 0.0001055543703
A31: 2009-06-15 | B31: -0.002906184627 | C31: -0.0001593495519 | D31: -0.0002586783298 | E31: 0 | F31: -0.002485207999 | G31: 0 | H31: 0 | I31: 0 | J31: -0.0008924751649 | K31: -0.0004777664196 | L31: 0 | M31: 0 | N31: 0 | O31: 0 | P31: 0 | Q31: 0 | R31: 0.001053263346 | S31: 0 | T31: 0 | U31: 0 | V31: 0 | W31: 0 | X31: -0.006126398746
A32: 2009-06-16 | B32: 0.0004925543102 | C32: -6.250291702e-05 | D32: -9.034529819e-05 | E32: 0 | F32: -0.001617783545 | G32: 0 | H32: 0 | I32: 0 | J32: -0.0002917549164 | K32: -0.0001295318757 | L32: 0 | M32: 0 | N32: 0 | O32: 0 | P32: 0 | Q32: 0 | R32: 0.0009000949463 | S32: 0 | T32: 0 | U32: 0 | V32: 0 | W32: 0 | X32: -0.0007992692957
A33: 2009-06-17 | B33: -0.001517288985 | C33: 2.847672707e-05 | D33: -1.965730498e-05 | E33: 0 | F33: -0.0009580201473 | G33: 0 | H33: 0 | I33: 0 | J33: -0.0001531878248 | K33: -8.365613079e-05 | L33: 0 | M33: 0 | N33: 0 | O33: 0 | P33: 0 | Q33: 0 | R33: -0.001142303089 | S33: 0 | T33: 0 | U33: 0 | V33: 0 | W33: 0 | X33: -0.003845636755
A34: 2009-06-18 | B34: 0.0007603420917 | C34: -1.858673393e-05 | D34: -5.627903392e-05 | E34: 0 | F34: -0.0001333657816 | G34: 0 | H34: 0 | I34: 0 | J34: 4.103333081e-05 | K34: 8.831133476e-06 | L34: 0 | M34: 0 | N34: 0 | O34: 0 | P34: 0 | Q34: 0 | R34: -0.0002402897417 | S34: 0 | T34: 0 | U34: 0 | V34: 0 | W34: 0 | X34: 0.0003616852647
A35: 2009-06-19 | B35: 0.001217755603 | C35: -6.427566237e-05 | D35: -5.083777207e-05 | E35: 0 | F35: 0.0006554438441 | G35: 0 | H35: 0 | I35: 0 | J35: 0.0004280196322 | K35: 0.0001834309751 | L35: 0 | M35: 0 | N35: 0 | O35: 0 | P35: 0 | Q35: 0 | R35: -0.0004214833248 | S35: 0 | T35: 0 | U35: 0 | V35: 0 | W35: 0 | X35: 0.001948053295
A36: 2009-06-22 | B36: -0.001820871633 | C36: -0.0001788452552 | D36: -0.0002487053174 | E36: 0 | F36: -0.003396361721 | G36: 0 | H36: 0 | I36: 0 | J36: -0.001181212443 | K36: -0.0005432370848 | L36: 0 | M36: 0 | N36: 0 | O36: 0 | P36: 0 | Q36: 0 | R36: -0.0009664329468 | S36: 0 | T36: 0 | U36: 0 | V36: 0 | W36: 0 | X36: -0.008335666401
A37: 2009-06-23 | B37: -3.574357453e-05 | C37: -0.0001227954192 | D37: -0.0001798722105 | E37: 0 | F37: 0.0008880139006 | G37: 0 | H37: 0 | I37: 0 | J37: 0.0002662004108 | K37: 0.0001273100123 | L37: 0 | M37: 0 | N37: 0 | O37: 0 | P37: 0 | Q37: 0 | R37: -0.002991717395 | S37: 0 | T37: 0 | U37: 0 | V37: 0 | W37: 0 | X37: -0.002048604275
A38: 2009-06-24 | B38: 0.0006802689573 | C38: 0.0001819639079 | D38: 0.0002542380081 | E38: 0 | F38: 0.001044996203 | G38: 0 | H38: 0 | I38: 0 | J38: 0.0001883736098 | K38: 4.46453617e-05 | L38: 0 | M38: 0 | N38: 0 | O38: 0 | P38: 0 | Q38: 0 | R38: 0.00317773177 | S38: 0 | T38: 0 | U38: 0 | V38: 0 | W38: 0 | X38: 0.005572217818
A39: 2009-06-25 | B39: 0.0003656295944 | C39: 0.0002175776678 | D39: 0.0004485604073 | E39: 0 | F39: 0.001803912143 | G39: 0 | H39: 0 | I39: 0 | J39: 0.001339024448 | K39: 0.0006846735789 | L39: 0 | M39: 0 | N39: 0 | O39: 0 | P39: 0 | Q39: 0 | R39: 0.0008499378779 | S39: 0 | T39: 0 | U39: 0 | V39: 0 | W39: 0 | X39: 0.005709315717
A40: 2009-06-26 | B40: 0.001473380414 | C40: -2.391227329e-06 | D40: 1.517436224e-06 | E40: 0 | F40: 0.0009327716973 | G40: 0 | H40: 0 | I40: 0 | J40: -8.476478861e-05 | K40: -3.0862928e-05 | L40: 0 | M40: 0 | N40: 0 | O40: 0 | P40: 0 | Q40: 0 | R40: -0.001434041169 | S40: 0 | T40: 0 | U40: 0 | V40: 0 | W40: 0 | X40: 0.0008556094343
A41: 2009-06-29 | B41: 0.001135810925 | C41: 6.644118319e-05 | D41: 0.0001341916035 | E41: 0 | F41: 0.0003242461683 | G41: 0 | H41: 0 | I41: 0 | J41: 0.0004513285676 | K41: 0.0002085029317 | L41: 0 | M41: 0 | N41: 0 | O41: 0 | P41: 0 | Q41: 0 | R41: -0.0003995065089 | S41: 0 | T41: 0 | U41: 0 | V41: 0 | W41: 0 | X41: 0.00192101487
A42: 2009-06-30 | B42: 0.0003485307431 | C42: -4.191791803e-05 | D42: 2.091315125e-05 | E42: 0 | F42: -0.0005545357312 | G42: 0 | H42: 0 | I42: 0 | J42: -0.0003986382217 | K42: -0.0001627195891 | L42: 0 | M42: 0 | N42: 0 | O42: 0 | P42: 0 | Q42: 0 | R42: -0.0006440293407 | S42: 0 | T42: 0 | U42: 0 | V42: 0 | W42: 0 | X42: -0.001432396906
A43: 2009-07-01 | B43: -0.001740215439 | C43: 0.0001846530021 | D43: 0.0002834965438 | E43: 0 | F43: 0.001206135612 | G43: 0 | H43: 0 | I43: 0 | J43: 0.0001089799415 | K43: 2.639756671e-05 | L43: 0 | M43: 0 | N43: 0 | O43: 0 | P43: 0 | Q43: 0 | R43: 0.001075647961 | S43: 0 | T43: 0 | U43: 0 | V43: 0 | W43: 0 | X43: 0.001145095188
A44: 2009-07-02 | B44: -0.001685680633 | C44: -0.0001413571154 | D44: -0.0002345897898 | E44: 0 | F44: -0.001290935393 | G44: 0 | H44: 0 | I44: 0 | J44: -0.001000763287 | K44: -0.0004705487084 | L44: 0 | M44: 0 | N44: 0 | O44: 0 | P44: 0 | Q44: 0 | R44: -0.0007485487516 | S44: 0 | T44: 0 | U44: 0 | V44: 0 | W44: 0 | X44: -0.005572423678
A45: 2009-07-06 | B45: -0.001553566797 | C45: -4.522100215e-05 | D45: -0.0001124183081 | E45: 0 | F45: -0.0002731957211 | G45: 0 | H45: 0 | I45: 0 | J45: -5.433082316e-05 | K45: -6.900286342e-05 | L45: 0 | M45: 0 | N45: 0 | O45: 0 | P45: 0 | Q45: 0 | R45: -0.0007891840958 | S45: 0 | T45: 0 | U45: 0 | V45: 0 | W45: 0 | X45: -0.002896919611
A46: 2009-07-07 | B46: 0.0002904865795 | C46: -1.256676265e-05 | D46: -2.707318143e-06 | E46: 0 | F46: -0.001289399658 | G46: 0 | H46: 0 | I46: 0 | J46: -0.0005693964918 | K46: -0.0002618872559 | L46: 0 | M46: 0 | N46: 0 | O46: 0 | P46: 0 | Q46: 0 | R46: 0.0004349150044 | S46: 0 | T46: 0 | U46: 0 | V46: 0 | W46: 0 | X46: -0.001410555902
A47: 2009-07-08 | B47: 0.0008385512882 | C47: -0.0002065321182 | D47: -0.0003072054439 | E47: 0 | F47: -0.0008047394912 | G47: 0 | H47: 0 | I47: 0 | J47: 0.0004654940247 | K47: 0.0002803988135 | L47: 0 | M47: 0 | N47: 0 | O47: 0 | P47: 0 | Q47: 0 | R47: -0.00223751846 | S47: 0 | T47: 0 | U47: 0 | V47: 0 | W47: 0 | X47: -0.001971551386
A48: 2009-07-09 | B48: 0.001387647699 | C48: -9.625565664e-05 | D48: -0.0002443879142 | E48: 0 | F48: 0.0005629446696 | G48: 0 | H48: 0 | I48: 0 | J48: -0.0002477297084 | K48: -0.0001919232659 | L48: 0 | M48: 0 | N48: 0 | O48: 0 | P48: 0 | Q48: 0 | R48: -0.001101479948 | S48: 0 | T48: 0 | U48: 0 | V48: 0 | W48: 0 | X48: 6.881587529e-05
A49: 2009-07-10 | B49: -0.001103797447 | C49: 8.468078505e-05 | D49: 0.0001919069141 | E49: 0 | F49: -0.000177904973 | G49: 0 | H49: 0 | I49: 0 | J49: 0.0001559044513 | K49: 0.0001344493333 | L49: 0 | M49: 0 | N49: 0 | O49: 0 | P49: 0 | Q49: 0 | R49: 0.0009040966743 | S49: 0 | T49: 0 | U49: 0 | V49: 0 | W49: 0 | X49: 0.0001893357378
A50: 2009-07-13 | B50: 0.0006124188939 | C50: 6.812938467e-05 | D50: 6.948078061e-05 | E50: 0 | F50: 0.0008335923837 | G50: 0 | H50: 0 | I50: 0 | J50: 0.0007680269937 | K50: 0.0002918943046 | L50: 0 | M50: 0 | N50: 0 | O50: 0 | P50: 0 | Q50: 0 | R50: 0.0006867648209 | S50: 0 | T50: 0 | U50: 0 | V50: 0 | W50: 0 | X50: 0.003330307562
A51: 2009-07-14 | B51: 1.871136564e-05 | C51: 9.098929392e-05 | D51: 0.0001442239516 | E51: 0 | F51: 0.0007071219038 | G51: 0 | H51: 0 | I51: 0 | J51: -0.0002223107714 | K51: -0.0001263193565 | L51: 0 | M51: 0 | N51: 0 | O51: 0 | P51: 0 | Q51: 0 | R51: 0.001848559358 | S51: 0 | T51: 0 | U51: 0 | V51: 0 | W51: 0 | X51: 0.002460975745
A52: 2009-07-15 | B52: 0.001706235234 | C52: 0.0002288473982 | D52: 0.0003432041575 | E52: 0 | F52: 0.001776120679 | G52: 0 | H52: 0 | I52: 0 | J52: 0.0004582604977 | K52: 0.0001817848614 | L52: 0 | M52: 0 | N52: 0 | O52: 0 | P52: 0 | Q52: 0 | R52: 0.0008544736716 | S52: 0 | T52: 0 | U52: 0 | V52: 0 | W52: 0 | X52: 0.0055489265
A53: 2009-07-16 | B53: 0.001552089557 | C53: 2.626222561e-05 | D53: 0.0001232073275 | E53: 0 | F53: 0.0009643368057 | G53: 0 | H53: 0 | I53: 0 | J53: 0.000208751402 | K53: 0.0003323999413 | L53: 0 | M53: 0 | N53: 0 | O53: 0 | P53: 0 | Q53: 0 | R53: -0.0007997632971 | S53: 0 | T53: 0 | U53: 0 | V53: 0 | W53: 0 | X53: 0.002407283963
A54: 2009-07-17 | B54: 0.000728234498 | C54: 1.750096131e-05 | D54: 1.619862e-05 | E54: 0 | F54: -0.0002376846888 | G54: 0 | H54: 0 | I54: 0 | J54: 3.796683456e-05 | K54: -0.0001722522814 | L54: 0 | M54: 0 | N54: 0 | O54: 0 | P54: 0 | Q54: 0 | R54: 0.000206796133 | S54: 0 | T54: 0 | U54: 0 | V54: 0 | W54: 0 | X54: 0.0005967600767
A55: 2009-07-20 | B55: 0.002456735718 | C55: 0.0002544126806 | D55: 0.0005072245861 | E55: 0 | F55: 0.001096049287 | G55: 0 | H55: 0 | I55: 0 | J55: 0.0005526168734 | K55: 0.0002604848693 | L55: 0 | M55: 0 | N55: 0 | O55: 0 | P55: 0 | Q55: 0 | R55: 0.001380887283 | S55: 0 | T55: 0 | U55: 0 | V55: 0 | W55: 0 | X55: 0.006508411298
A56: 2009-07-21 | B56: 0.001093249338 | C56: 3.192910508e-05 | D56: 8.390139256e-05 | E56: 0 | F56: 0.000188579987 | G56: 0 | H56: 0 | I56: 0 | J56: 0.000680674669 | K56: 0.0003373478002 | L56: 0 | M56: 0 | N56: 0 | O56: 0 | P56: 0 | Q56: 0 | R56: -2.301601569e-05 | S56: 0 | T56: 0 | U56: 0 | V56: 0 | W56: 0 | X56: 0.002392666276
A57: 2009-07-22 | B57: -8.799633809e-05 | C57: 4.073024895e-05 | D57: 3.55291983e-05 | E57: 0 | F57: -1.800939843e-05 | G57: 0 | H57: 0 | I57: 0 | J57: -0.0002339881931 | K57: -0.0001035627655 | L57: 0 | M57: 0 | N57: 0 | O57: 0 | P57: 0 | Q57: 0 | R57: 0.0003661079736 | S57: 0 | T57: 0 | U57: 0 | V57: 0 | W57: 0 | X57: -1.189274275e-06
A58: 2009-07-23 | B58: 0.0005442001921 | C58: 1.885409241e-05 | D58: -5.599920481e-05 | E58: 0 | F58: 0.001085464111 | G58: 0 | H58: 0 | I58: 0 | J58: 0.000416614293 | K58: 0.0002140044536 | L58: 0 | M58: 0 | N58: 0 | O58: 0 | P58: 0 | Q58: 0 | R58: -0.0001553085718 | S58: 0 | T58: 0 | U58: 0 | V58: 0 | W58: 0 | X58: 0.002067829366
A59: 2009-07-24 | B59: 0.001210731742 | C59: 7.528530867e-06 | D59: 2.930463256e-05 | E59: 0 | F59: 0.0002338846145 | G59: 0 | H59: 0 | I59: 0 | J59: 0.0002827338558 | K59: 0.0001365801455 | L59: 0 | M59: 0 | N59: 0 | O59: 0 | P59: 0 | Q59: 0 | R59: 0.0001357740168 | S59: 0 | T59: 0 | U59: 0 | V59: 0 | W59: 0 | X59: 0.002036537538
A60: 2009-07-27 | B60: 0.0001075121965 | C60: 0.000140599612 | D60: 0.0001949334825 | E60: 0 | F60: -2.929465867e-05 | G60: 0 | H60: 0 | I60: 0 | J60: -0.0001611563255 | K60: -5.00926357e-05 | L60: 0 | M60: 0 | N60: 0 | O60: 0 | P60: 0 | Q60: 0 | R60: 0.000384093002 | S60: 0 | T60: 0 | U60: 0 | V60: 0 | W60: 0 | X60: 0.000586594673
A61: 2009-07-28 | B61: 0.0005132185313 | C61: -0.0002858431324 | D61: -0.0005113448075 | E61: 0 | F61: 0.0001489897015 | G61: 0 | H61: 0 | I61: 0 | J61: 2.47701389e-05 | K61: 5.856037293e-05 | L61: 0 | M61: 0 | N61: 0 | O61: 0 | P61: 0 | Q61: 0 | R61: -0.002483040735 | S61: 0 | T61: 0 | U61: 0 | V61: 0 | W61: 0 | X61: -0.00253468993
A62: 2009-07-29 | B62: 0.0007646321098 | C62: -0.00011627527 | D62: -0.0002231470832 | E62: 0 | F62: -0.0003505437262 | G62: 0 | H62: 0 | I62: 0 | J62: 3.500666736e-05 | K62: -6.768235534e-05 | L62: 0 | M62: 0 | N62: 0 | O62: 0 | P62: 0 | Q62: 0 | R62: -0.0003856521693 | S62: 0 | T62: 0 | U62: 0 | V62: 0 | W62: 0 | X62: -0.0003436618268
A63: 2009-07-30 | B63: 0.002376938486 | C63: 0.0001747810204 | D63: 0.0003534121989 | E63: 0 | F63: 0.0009950480825 | G63: 0 | H63: 0 | I63: 0 | J63: 0.0007665366857 | K63: 0.0003921565485 | L63: 0 | M63: 0 | N63: 0 | O63: 0 | P63: 0 | Q63: 0 | R63: 0.0006190298481 | S63: 0 | T63: 0 | U63: 0 | V63: 0 | W63: 0 | X63: 0.00567790287
A64: 2009-07-31 | B64: 0.00224122477 | C64: 0.0002959129196 | D64: 0.0005967882132 | E64: 0 | F64: 0.0006699147205 | G64: 0 | H64: 0 | I64: 0 | J64: 0.0005348554572 | K64: 0.0002358001585 | L64: 0 | M64: 0 | N64: 0 | O64: 0 | P64: 0 | Q64: 0 | R64: 0.001241194686 | S64: 0 | T64: 0 | U64: 0 | V64: 0 | W64: 0 | X64: 0.005815690924
A65: 2009-08-03 | B65: 0.002503506852 | C65: 0.0001270113081 | D65: 0.0001345332469 | E65: 0 | F65: 0.0003155515132 | G65: 0 | H65: 0 | I65: 0 | J65: 0.0004524873714 | K65: 0.0002001627468 | L65: 0 | M65: 0 | N65: 0 | O65: 0 | P65: 0 | Q65: 0 | R65: -0.001261435913 | S65: 0 | T65: 0 | U65: 0 | V65: 0 | W65: 0 | X65: 0.002471817126
A66: 2009-08-04 | B66: -0.001471892946 | C66: 0.0002077809712 | D66: 0.0002940036129 | E66: 0 | F66: 1.006546473e-05 | G66: 0 | H66: 0 | I66: 0 | J66: -3.25737517e-05 | K66: 1.848318488e-06 | L66: 0 | M66: 0 | N66: 0 | O66: 0 | P66: 0 | Q66: 0.0005302588356 | R66: 0.001415306108 | S66: 0 | T66: 0 | U66: 0 | V66: 0 | W66: 0 | X66: 0.0009547966127
A67: 2009-08-05 | B67: 0.0005564682891 | C67: 1.950848526e-05 | D67: 4.77875104e-05 | E67: 0 | F67: -0.000221865603 | G67: 0 | H67: 0 | I67: 0 | J67: -0.0004132666841 | K67: -0.0002252327953 | L67: 0 | M67: 0 | N67: 0 | O67: 0 | P67: 0 | Q67: -0.001410666191 | R67: -0.0001537245702 | S67: 0 | T67: 0 | U67: 0 | V67: 0 | W67: 0 | X67: =SUM(B67:W67) -> -0.001800991559
A68: 2009-08-06 | B68: -0.001529751126 | C68: -2.940476437e-05 | D68: -5.515098958e-05 | E68: 0 | F68: -0.0003765269431 | G68: 0 | H68: 0 | I68: 0 | J68: -0.0001744737554 | K68: -6.935987072e-05 | L68: 0 | M68: 0 | N68: 0 | O68: 0 | P68: 0 | Q68: -0.001705853384 | R68: 0.0008119249377 | S68: 0 | T68: 0 | U68: 0 | V68: 0 | W68: 0 | X68: -0.003128595896
A69: 2009-08-07 | B69: 0.005089693085 | C69: 4.767511893e-05 | D69: 4.046328225e-05 | E69: 0 | F69: 0.0001776207891 | G69: 0 | H69: 0 | I69: 0 | J69: 0.0004450336783 | K69: 0.0002114535105 | L69: 0 | M69: 0 | N69: 0 | O69: 0 | P69: 0 | Q69: 0.0005336631637 | R69: 0.001198702021 | S69: 0 | T69: 0 | U69: 0 | V69: 0 | W69: 0 | X69: 0.007744304648
A70: 2009-08-10 | B70: -0.001257724704 | C70: -0.0001400456147 | D70: -0.0002067491753 | E70: 0 | F70: -0.0001913824479 | G70: 0 | H70: 0 | I70: 0 | J70: 0.0001351500957 | K70: 5.190846838e-05 | L70: 0 | M70: 0 | N70: 0 | O70: 0 | P70: 0 | Q70: -0.0008942771675 | R70: -0.0008925918064 | S70: 0 | T70: 0 | U70: 0 | V70: 0 | W70: 0 | X70: -0.003395712352
A71: 2009-08-11 | B71: -0.0001462966214 | C71: -0.0002685100489 | D71: -0.0003796421333 | E71: 0 | F71: -8.541029182e-05 | G71: 0 | H71: 0 | I71: 0 | J71: -0.0003571454568 | K71: -0.0001594925806 | L71: 0 | M71: 0 | N71: 0 | O71: 0 | P71: 0 | Q71: -0.0003883731646 | R71: -0.0004331597807 | S71: 0 | T71: 0 | U71: 0 | V71: 0 | W71: 0 | X71: -0.002218030078
A72: 2009-08-12 | B72: 0.0003697529843 | C72: 0.000305477734 | D72: 0.0004706772742 | E72: 0 | F72: 0.0002590836082 | G72: 0 | H72: 0 | I72: 0 | J72: 0.000286556879 | K72: 0.0001259883804 | L72: 0 | M72: 0 | N72: 0 | O72: 0 | P72: 0 | Q72: 0.001006479764 | R72: -0.0006848821041 | S72: 0 | T72: 0 | U72: 0 | V72: 0 | W72: 0 | X72: 0.00213913452
A73: 2009-08-13 | B73: -0.0007659246362 | C73: 6.597952316e-06 | D73: 4.62551386e-05 | E73: 0 | F73: -5.991585449e-05 | G73: 0 | H73: 0 | I73: 0 | J73: 0.0006161087336 | K73: 0.0003043773497 | L73: 0 | M73: 0 | N73: 0 | O73: 0 | P73: 0 | Q73: -8.011823199e-06 | R73: 0.0001374275023 | S73: 0 | T73: 0 | U73: 0 | V73: 0 | W73: 0 | X73: 0.0002769143627
A74: 2009-08-14 | B74: 6.870869421e-05 | C74: 2.030592963e-05 | D74: 5.149489158e-05 | E74: 0 | F74: -8.232691774e-05 | G74: 0 | H74: 0 | I74: 0 | J74: -0.0002791403361 | K74: -0.0001600708106 | L74: 0 | M74: 0 | N74: 0 | O74: 0 | P74: 0 | Q74: -0.001671623692 | R74: 0.0002052041345 | S74: 0 | T74: 0 | U74: 0 | V74: 0 | W74: 0 | X74: -0.001847448106
A75: 2009-08-17 | B75: -0.005820478183 | C75: -0.0004168740819 | D75: -0.0006192386466 | E75: 0 | F75: -0.0004180165451 | G75: 0 | H75: 0 | I75: 0 | J75: -0.0008435718955 | K75: -0.0004372103143 | L75: 0 | M75: 0 | N75: 0 | O75: 0 | P75: 0 | Q75: -0.003204060596 | R75: -0.0005572686328 | S75: 0 | T75: 0 | U75: 0 | V75: 0 | W75: 0 | X75: -0.0123167189
A76: 2009-08-18 | B76: 0.001521817912 | C76: 0.000127305227 | D76: 0.0002251633767 | E76: 0 | F76: 0.0002264220181 | G76: 0 | H76: 0 | I76: 0 | J76: 0.0002449616145 | K76: 0.0001379616278 | L76: 0 | M76: 0 | N76: 0 | O76: 0 | P76: 0 | Q76: 0.001383537034 | R76: 0.000199695278 | S76: 0 | T76: 0 | U76: 0 | V76: 0 | W76: 0 | X76: 0.004066864088
A77: 2009-08-19 | B77: 0.00195302969 | C77: 0.0002659178573 | D77: 0.0005064404514 | E77: 0 | F77: 0.000516227473 | G77: 0 | H77: 0 | I77: 0 | J77: 0.0005578473971 | K77: 0.0002871137031 | L77: 0 | M77: 0 | N77: 0 | O77: 0 | P77: 0 | Q77: 0.001239463989 | R77: -0.0009748441205 | S77: 0 | T77: 0 | U77: 0 | V77: 0 | W77: 0 | X77: 0.004351196441
A78: 2009-08-20 | B78: 0.001011503238 | C78: 0.0001746642248 | D78: 0.0003411810883 | E78: 0 | F78: 0.0002620900136 | G78: 0 | H78: 0 | I78: 0 | J78: 0.0006256320107 | K78: 0.0002944193656 | L78: 0 | M78: 0 | N78: 0 | O78: 0 | P78: 0 | Q78: 0.0007890833782 | R78: -0.0008940131198 | S78: 0 | T78: 0 | U78: 0 | V78: 0 | W78: 0 | X78: 0.002604560199
A79: 2009-08-21 | B79: 0.001891937446 | C79: 0.0003815239312 | D79: 0.0005590393608 | E79: 0 | F79: 0.0005977382621 | G79: 0 | H79: 0 | I79: 0 | J79: 0.0004927829732 | K79: 0.0001850847356 | L79: 0 | M79: 0 | N79: 0 | O79: 0 | P79: 0 | Q79: 0.001433559341 | R79: 0.001127445332 | S79: 0 | T79: 0 | U79: 0 | V79: 0 | W79: 0 | X79: 0.006669111382
A80: 2009-08-24 | B80: -0.001553859157 | C80: -0.0001039113832 | D80: -0.0001354912624 | E80: 0 | F80: -2.409859482e-05 | G80: 0 | H80: 0 | I80: 0 | J80: 0.0003351474367 | K80: 0.0001481480265 | L80: 0 | M80: 0 | N80: 0 | O80: 0 | P80: 0 | Q80: -0.0006443656936 | R80: -0.00153557335 | S80: 0 | T80: 0 | U80: 0 | V80: 0 | W80: 0 | X80: -0.003514003977
A81: 2009-08-25 | B81: 0.0009432206564 | C81: 2.712159568e-05 | D81: 1.130611831e-05 | E81: 0 | F81: 0.0002586723838 | G81: 0 | H81: 0 | I81: 0 | J81: 0.0001960110124 | K81: 0.0001265412378 | L81: 0 | M81: 0 | N81: 0 | O81: 0 | P81: 0 | Q81: 0.001009616225 | R81: 0.0004703125927 | S81: 0 | T81: 0 | U81: 0 | V81: 0 | W81: 0 | X81: 0.003042801822
A82: 2009-08-26 | B82: -0.000352020518 | C82: 0.0001230568343 | D82: 0.0002539484003 | E82: 0 | F82: -4.90521517e-05 | G82: 0 | H82: 0 | I82: 0 | J82: 9.159773021e-05 | K82: 4.872407961e-05 | L82: 0 | M82: 0 | N82: 0 | O82: 0 | P82: 0 | Q82: 0.0002936402216 | R82: 0.0009469367931 | S82: 0 | T82: 0 | U82: 0 | V82: 0 | W82: 0 | X82: 0.001356831389
A83: 2009-08-27 | B83: 4.562669674e-05 | C83: 6.501568158e-05 | D83: 6.845342564e-05 | E83: 0 | F83: 4.200642062e-05 | G83: 0 | H83: 0 | I83: 0 | J83: 2.635937951e-05 | K83: -3.930904851e-06 | L83: 0 | M83: 0 | N83: 0 | O83: 0 | P83: 0 | Q83: -0.0006401440011 | R83: -0.0009859930622 | S83: 0 | T83: 0 | U83: 0 | V83: 0 | W83: 0 | X83: -0.001382606364
A84: 2009-08-28 | B84: 0.001761937648 | C84: 0.0001182670676 | D84: 0.0002265484182 | E84: 0 | F84: -0.0002517304181 | G84: 0 | H84: 0 | I84: 0 | J84: 7.819342313e-05 | K84: 4.554280578e-05 | L84: 0 | M84: 0 | N84: 0 | O84: 0 | P84: 0 | Q84: -0.000126874412 | R84: 0.001948024706 | S84: 0 | T84: 0 | U84: 0 | V84: 0 | W84: 0 | X84: 0.003799909239
A85: 2009-08-31 | B85: -0.0001521727962 | C85: -0.0001244260487 | D85: -0.0001968061015 | E85: 0 | F85: 0.0001325955636 | G85: 0 | H85: 0 | I85: 0 | J85: -0.0003877353334 | K85: -0.000173391773 | L85: 0 | M85: 0 | N85: 0 | O85: 0 | P85: 0 | Q85: -0.001484536251 | R85: -0.001332952455 | S85: 0 | T85: 0 | U85: 0 | V85: 0 | W85: 0 | X85: -0.003719425196
A86: 2009-09-01 | B86: -0.001739073262 | C86: -0.0001933543357 | D86: -0.0002520755668 | E86: 0 | F86: -0.0008423570821 | G86: 0 | H86: 0 | I86: 0 | J86: -0.0009179182286 | K86: -0.0004496669204 | L86: 0 | M86: 0 | N86: 0 | O86: 0 | P86: 0 | Q86: -0.002383574232 | R86: 0.00225421888 | S86: 0 | T86: 0 | U86: 0 | V86: 0 | W86: 0 | X86: -0.004523800748
A87: 2009-09-02 | B87: -0.002362420888 | C87: 0.0002640996207 | D87: 0.0005107096824 | E87: 0 | F87: -0.0001489788188 | G87: 0 | H87: 0 | I87: 0 | J87: 0.0002353929991 | K87: 0.0001422004448 | L87: 0 | M87: 0 | N87: 0 | O87: 0 | P87: 0 | Q87: -0.0004508111713 | R87: 0.003665143045 | S87: 0 | T87: 0 | U87: 0 | V87: 0 | W87: 0 | X87: 0.001855334914
A88: 2009-09-03 | B88: 0.0009016032391 | C88: 0.0002889148924 | D88: 0.0005137698136 | E88: 0 | F88: 0.0002134838629 | G88: 0 | H88: 0 | I88: 0 | J88: 0.0001546933683 | K88: 3.122007912e-05 | L88: 0 | M88: 0 | N88: 0 | O88: 0 | P88: 0 | Q88: 0.0007023267277 | R88: 0.00244424726 | S88: 0 | T88: 0 | U88: 0 | V88: 0 | W88: 0 | X88: 0.005250259243
A89: 2009-09-04 | B89: 0.004161419065 | C89: 0.0001799765137 | D89: 0.0003116936395 | E89: 0 | F89: 0.0007609248472 | G89: 0 | H89: 0 | I89: 0 | J89: 9.141669446e-05 | K89: 1.978249835e-05 | L89: 0 | M89: 0 | N89: 0 | O89: 0 | P89: 0 | Q89: 0.003094812843 | R89: -0.0003359268913 | S89: 0 | T89: 0 | U89: 0 | V89: 0 | W89: 0 | X89: 0.008284099209
A90: 2009-09-08 | B90: 0.001874660366 | C90: 0.0001781892493 | D90: 0.0003207813519 | E90: 0 | F90: 0.0005625666061 | G90: 0 | H90: 0 | I90: 0 | J90: 0.0001542384706 | K90: 8.239332139e-05 | L90: 0 | M90: 0 | N90: 0 | O90: 0 | P90: 0 | Q90: 0.001164884769 | R90: -0.002151951996 | S90: 0 | T90: 0 | U90: 0 | V90: 0 | W90: 0 | X90: 0.002185762137
A91: 2009-09-09 | B91: 0.0002685452997 | C91: 0.0001076206692 | D91: 0.0002156961443 | E91: 0 | F91: 0.000333665161 | G91: 0 | H91: 0 | I91: 0 | J91: 0.0002706762504 | K91: 0.0001359495294 | L91: 0 | M91: 0 | N91: 0 | O91: 0 | P91: 0 | Q91: 0.003788037473 | R91: -0.001226070926 | S91: 0 | T91: 0 | U91: 0 | V91: 0 | W91: 0 | X91: 0.003894119601
A92: 2009-09-10 | B92: 0.004267604041 | C92: 0.0002344174357 | D92: 0.0004434838771 | E92: 0 | F92: 0.0005915401677 | G92: 0 | H92: 0 | I92: 0 | J92: 0.0008686014865 | K92: 0.0004456572057 | L92: 0 | M92: 0 | N92: 0 | O92: 0 | P92: 0 | Q92: 0.001878314806 | R92: 0.0008679741626 | S92: 0 | T92: 0 | U92: 0 | V92: 0 | W92: 0 | X92: 0.009597593183
A93: 2009-09-11 | B93: 0.0005516878222 | C93: 0.0002234298323 | D93: 0.000397206665 | E93: 0 | F93: -9.158648367e-05 | G93: 0 | H93: 0 | I93: 0 | J93: 0.0001329757396 | K93: 7.045690377e-05 | L93: 0 | M93: 0 | N93: 0 | O93: 0 | P93: 0 | Q93: -0.001889193296 | R93: 0.001826476452 | S93: 0 | T93: 0 | U93: 0 | V93: 0 | W93: 0 | X93: 0.001221453635
A94: 2009-09-14 | B94: 0.001137365646 | C94: -1.187358408e-05 | D94: -6.324143467e-05 | E94: 0 | F94: 0.0001802924875 | G94: 0 | H94: 0 | I94: 0 | J94: -6.374448588e-05 | K94: -9.812390982e-06 | L94: 0 | M94: 0 | N94: 0 | O94: 0 | P94: 0 | Q94: 0.001288971828 | R94: -0.001726826441 | S94: 0 | T94: 0 | U94: 0 | V94: 0 | W94: 0 | X94: 0.000731131625
A95: 2009-09-15 | B95: 0.005363285043 | C95: 0.0002571041675 | D95: 0.0004454316098 | E95: 0 | F95: -9.161702249e-05 | G95: 0 | H95: 0 | I95: 0 | J95: 3.448733955e-05 | K95: 2.080446511e-05 | L95: 0 | M95: 0 | N95: 0 | O95: 0 | P95: 0 | Q95: 0.001000275939 | R95: 0.001061809845 | S95: 0 | T95: 0 | U95: 0 | V95: 0 | W95: 0 | X95: 0.008091581386
A96: 2009-09-16 | B96: 0.001180576153 | C96: 0.0003736912674 | D96: 0.0006569332225 | E96: 0 | F96: 0.0003141028794 | G96: 0 | H96: 0 | I96: 0 | J96: 0.0006417361764 | K96: 0.00034019855 | L96: 0 | M96: 0 | N96: 0 | O96: 0 | P96: 0 | Q96: 0.002203634828 | R96: 0.001534840383 | S96: 0 | T96: 0 | U96: 0 | V96: 0 | W96: 0 | X96: 0.007245713459
A97: 2009-09-17 | B97: -0.001374889299 | C97: 5.195411667e-05 | D97: 8.475775983e-05 | E97: 0 | F97: -0.000129039866 | G97: 0 | H97: 0 | I97: 0 | J97: 0.0002552812457 | K97: 0.0001089038117 | L97: 0 | M97: 0 | N97: 0 | O97: 0 | P97: 0 | Q97: -0.0008531004966 | R97: -0.001035242062 | S97: 0 | T97: 0 | U97: 0 | V97: 0 | W97: 0 | X97: -0.00289137479
A98: 2009-09-18 | B98: 0.0008205344372 | C98: -0.0002442562306 | D98: -0.0004535416193 | E98: 0 | F98: 0.0001391613124 | G98: 0 | H98: 0 | I98: 0 | J98: -0.0001992789265 | K98: -8.772744591e-05 | L98: 0 | M98: 0 | N98: 0 | O98: 0 | P98: 0 | Q98: 0.0003461135273 | R98: -0.001144354367 | S98: 0 | T98: 0 | U98: 0 | V98: 0 | W98: 0 | X98: -0.0008233493122
A99: 2009-09-21 | B99: -0.001081646871 | C99: 4.253963993e-05 | D99: 3.650629824e-05 | E99: 0 | F99: -8.655133697e-05 | G99: 0 | H99: 0 | I99: 0 | J99: -4.251870192e-05 | K99: -3.5224238e-05 | L99: 0 | M99: 0 | N99: 0 | O99: 0 | P99: 0 | Q99: -0.0005034723979 | R99: -0.0001784878741 | S99: 0 | T99: 0 | U99: 0 | V99: 0 | W99: 0 | X99: -0.001848855481
A100: 2009-09-22 | B100: 0.001715021053 | C100: 0.0001897197223 | D100: 0.0003746592108 | E100: 0 | F100: 0.0003114451489 | G100: 0 | H100: 0 | I100: 0 | J100: 0.0002824011322 | K100: 0.0001603024864 | L100: 0 | M100: 0 | N100: 0 | O100: 0 | P100: 0 | Q100: 0.0006551306937 | R100: 0.001271509574 | S100: 0 | T100: 0 | U100: 0 | V100: 0 | W100: 0 | X100: 0.004960189022
A101: 2009-09-23 | B101: 0.0004922022305 | C101: -0.0001842915588 | D101: -0.0002910673245 | E101: 0 | F101: -0.000315256695 | G101: 0 | H101: 0 | I101: 0 | J101: -0.0002531207843 | K101: -0.0002006186077 | L101: 0 | M101: 0 | N101: 0 | O101: 0 | P101: 0 | Q101: -0.001686425814 | R101: -0.001144503254 | S101: 0 | T101: 0 | U101: 0 | V101: 0 | W101: 0 | X101: -0.003583081808
A102: 2009-09-24 | B102: -0.002740472129 | C102: -0.0003075678808 | D102: -0.0005513278049 | E102: 0 | F102: -0.0003561477103 | G102: 0 | H102: 0 | I102: 0 | J102: -0.0003605676029 | K102: -0.0001493900642 | L102: 0 | M102: 0 | N102: 0 | O102: 0 | P102: 0 | Q102: -0.002444124132 | R102: -0.001449652424 | S102: 0 | T102: 0 | U102: 0 | V102: 0 | W102: 0 | X102: -0.008359249748
A103: 2009-09-25 | B103: 0.0008778439635 | C103: -0.0001832096047 | D103: -0.0002979823559 | E103: 0 | F103: -0.000255347754 | G103: 0 | H103: 0 | I103: 0 | J103: 0.0001149978588 | K103: 6.275823922e-05 | L103: 0 | M103: 0 | N103: 0 | O103: 0 | P103: 0 | Q103: -0.0004298465566 | R103: -0.001170497523 | S103: 0 | T103: 0 | U103: 0 | V103: 0 | W103: 0 | X103: -0.001281283733
A104: 2009-09-28 | B104: 0.002320880132 | C104: 0.0002478984851 | D104: 0.0004576097482 | E104: 0 | F104: 0.0007455085621 | G104: 0 | H104: 0 | I104: 0 | J104: 0.0009221235061 | K104: 0.0004446970308 | L104: 0 | M104: 0 | N104: 0 | O104: 0 | P104: 0 | Q104: 0.001989064506 | R104: 0.000643735016 | S104: 0 | T104: 0 | U104: 0 | V104: 0 | W104: 0 | X104: 0.007771516986
A105: 2009-09-29 | B105: -0.000422453139 | C105: 2.772585719e-05 | D105: 3.870867686e-05 | E105: 0 | F105: -0.0002385232474 | G105: 0 | H105: 0 | I105: 0 | J105: -0.0001407634784 | K105: -3.455184859e-05 | L105: 0 | M105: 0 | N105: 0 | O105: 0 | P105: 0 | Q105: -0.0009514985091 | R105: 0.001016017994 | S105: 0 | T105: 0 | U105: 0 | V105: 0 | W105: 0 | X105: -0.0007053376947
A106: 2009-09-30 | B106: 0.0003056942301 | C106: 0.0001559486946 | D106: 0.0003248403858 | E106: 0 | F106: -2.554265792e-06 | G106: 0 | H106: 0 | I106: 0 | J106: -0.000174175734 | K106: -9.117339331e-05 | L106: 0 | M106: 0 | N106: 0 | O106: 0 | P106: 0 | Q106: -0.0003201212967 | R106: 0.002143002705 | S106: 0 | T106: 0 | U106: 0 | V106: 0 | W106: 0 | X106: 0.002341461326
A107: 2009-10-01 | B107: -0.005861008822 | C107: -0.0003914227195 | D107: -0.0006572981167 | E107: 0 | F107: -0.001334216136 | G107: 0 | H107: 0 | I107: 0 | J107: -0.0003592691385 | K107: -0.0001826348947 | L107: 0 | M107: 0 | N107: 0 | O107: 0 | P107: 0 | Q107: -0.005315205487 | R107: -0.0007453762636 | S107: 0 | T107: 0 | U107: 0 | V107: 0 | W107: 0 | X107: -0.01484643158
A108: 2009-10-02 | B108: -0.0004118791132 | C108: -2.706645154e-05 | D108: -5.985259941e-05 | E108: 0 | F108: -0.00059966694 | G108: 0 | H108: 0 | I108: 0 | J108: -0.0003757047114 | K108: -0.000179301319 | L108: 0 | M108: 0 | N108: 0 | O108: 0 | P108: 0 | Q108: 0.0002269081098 | R108: 0.0006032010901 | S108: 0 | T108: 0 | U108: 0 | V108: 0 | W108: 0 | X108: -0.0008233619346
A109: 2009-10-05 | B109: 0.002500989116 | C109: 0.0004225071158 | D109: 0.0007106182925 | E109: 0 | F109: 0.0005022637009 | G109: 0 | H109: 0 | I109: 0 | J109: 0.0004769477437 | K109: 0.0001981685594 | L109: 0 | M109: 0 | N109: 0 | O109: 0 | P109: 0 | Q109: 0.003389718941 | R109: 0.00157333355 | S109: 0 | T109: 0 | U109: 0 | V109: 0 | W109: 0 | X109: 0.00977454702
A110: 2009-10-06 | B110: 0.001536395269 | C110: 0.0005243805525 | D110: 0.0006303513695 | E110: 0 | F110: 0.0008870060119 | G110: 0 | H110: 0 | I110: 0 | J110: 0.0001345636252 | K110: 4.252657264e-05 | L110: 0 | M110: 0 | N110: 0 | O110: 0 | P110: 0 | Q110: 0.001557901201 | R110: 0.00383996592 | S110: 0 | T110: 0 | U110: 0 | V110: 0 | W110: 0 | X110: 0.009153090522
A111: 2009-10-07 | B111: -0.000367628196 | C111: 9.466877287e-05 | D111: 0.000469714599 | E111: 0 | F111: 8.293801827e-05 | G111: 0 | H111: 0 | I111: 0 | J111: 0.0004675314408 | K111: 0.0002369999422 | L111: 0 | M111: 0 | N111: 0 | O111: 0 | P111: 0 | Q111: 0.0002954387169 | R111: 0.0003424972696 | S111: 0 | T111: 0 | U111: 0 | V111: 0 | W111: 0 | X111: 0.001622160564
A112: 2009-10-08 | B112: 0.001535422853 | C112: 0.0002483293028 | D112: 0.0001581331374 | E112: 0 | F112: 0.0004768287565 | G112: 0 | H112: 0 | I112: 0 | J112: -9.332350027e-05 | K112: -5.45860403e-05 | L112: 0 | M112: 0 | N112: 0 | O112: 0 | P112: 0 | Q112: 0.002152909172 | R112: 0.001405725991 | S112: 0 | T112: 0 | U112: 0 | V112: 0 | W112: 0 | X112: 0.005829439672
A113: 2009-10-09 | B113: 0.0009112452062 | C113: -1.78325539e-05 | D113: -0.0005410590576 | E113: 0 | F113: 0.0003481115023 | G113: 0 | H113: 0 | I113: 0 | J113: -0.0005383039773 | K113: -0.0002789578756 | L113: 0 | M113: 0 | N113: 0 | O113: 0 | P113: 0 | Q113: 0.001466810272 | R113: -0.0008130146908 | S113: 0 | T113: 0 | U113: 0 | V113: 0 | W113: 0 | X113: 0.0005369988253
A114: 2009-10-12 | B114: 0.001433492521 | C114: 0.0001565807117 | D114: 0.000325592887 | E114: 0 | F114: 0.0001164266712 | G114: 0 | H114: 0 | I114: 0 | J114: 0.0001786416671 | K114: 0.0001363972326 | L114: 0 | M114: 0 | N114: 0 | O114: 0 | P114: 0 | Q114: 0.0003441754842 | R114: 0.0005961579108 | S114: 0 | T114: 0 | U114: 0 | V114: 0 | W114: 0 | X114: 0.003287465086
A115: 2009-10-13 | B115: -4.14362475e-05 | C115: 0.000164562592 | D115: 0.0004418428871 | E115: 0 | F115: 0.0001218772112 | G115: 0 | H115: 0 | I115: 0 | J115: 9.712898251e-05 | K115: 3.339257609e-05 | L115: 0 | M115: 0 | N115: 0 | O115: 0 | P115: 0 | Q115: -0.001231038668 | R115: 0.0006816572386 | S115: 0 | T115: 0 | U115: 0 | V115: 0 | W115: 0 | X115: 0.0002679865725
A116: 2009-10-14 | B116: 0.001747278168 | C116: 0.0002240370233 | D116: 4.973827391e-05 | E116: 0 | F116: 0.0008823225889 | G116: 0 | H116: 0 | I116: 0 | J116: 9.636749417e-05 | K116: 2.91567646e-05 | L116: 0 | M116: 0 | N116: 0 | O116: 0 | P116: 0 | Q116: 0.002406109266 | R116: -0.001106439671 | S116: 0 | T116: 0 | U116: 0 | V116: 0 | W116: 0 | X116: 0.004328569908
A117: 2009-10-15 | B117: 0.0008676110823 | C117: -0.0001294330167 | D117: -0.0002754458817 | E117: 0 | F117: -7.174689595e-05 | G117: 0 | H117: 0 | I117: 0 | J117: -2.212501486e-05 | K117: -2.771629613e-05 | L117: 0 | M117: 0 | N117: 0 | O117: 0 | P117: 0 | Q117: -0.001497275484 | R117: -0.002159895822 | S117: 0 | T117: 0 | U117: 0 | V117: 0 | W117: 0 | X117: -0.00331602733
A118: 2009-10-16 | B118: 0.0003127367628 | C118: -8.014904298e-05 | D118: 4.311010075e-05 | E118: 0 | F118: -0.0005365428136 | G118: 0 | H118: 0 | I118: 0 | J118: 2.03475054e-06 | K118: 2.841599652e-05 | L118: 0 | M118: 0 | N118: 0 | O118: 0 | P118: 0 | Q118: -0.004350205711 | R118: 0.0008032941517 | S118: 0 | T118: 0 | U118: 0 | V118: 0 | W118: 0 | X118: -0.003777305805
A119: 2009-10-19 | B119: 0.0006844242159 | C119: 0.0002908144729 | D119: 0.0007098662632 | E119: 0 | F119: 0.000549340966 | G119: 0 | H119: 0 | I119: 0 | J119: 0.0005214195798 | K119: 0.0002533529973 | L119: 0 | M119: 0 | N119: 0 | O119: 0 | P119: 0 | Q119: 0.001228385252 | R119: 0.001335595142 | S119: 0 | T119: 0 | U119: 0 | V119: 0 | W119: 0 | X119: 0.005573198889
A120: 2009-10-20 | B120: -0.0001387855414 | C120: -0.0001449273128 | D120: -0.0001092875027 | E120: 0 | F120: -7.398471248e-05 | G120: 0 | H120: 0 | I120: 0 | J120: -6.592876574e-06 | K120: -2.07534171e-05 | L120: 0 | M120: 0 | N120: 0 | O120: 0 | P120: 0 | Q120: -0.0005109758776 | R120: -0.001116376349 | S120: 0 | T120: 0 | U120: 0 | V120: 0 | W120: 0 | X120: -0.00212168359
A121: 2009-10-21 | B121: -0.001197494925 | C121: -0.0001289762825 | D121: -0.0004103719196 | E121: 0 | F121: -0.000465291746 | G121: 0 | H121: 0 | I121: 0 | J121: -0.0004862002064 | K121: -0.0002457657917 | L121: 0 | M121: 0 | N121: 0 | O121: 0 | P121: 0 | Q121: -0.002119239638 | R121: -0.0003230912553 | S121: 0 | T121: 0 | U121: 0 | V121: 0 | W121: 0 | X121: -0.005376431764
A122: 2009-10-22 | B122: 0.002018123092 | C122: 7.360188454e-05 | D122: -2.243508616e-05 | E122: 0 | F122: 0.0005446046129 | G122: 0 | H122: 0 | I122: 0 | J122: 0.0001819985339 | K122: 8.699251784e-05 | L122: 0 | M122: 0 | N122: 0 | O122: 0 | P122: 0 | Q122: 0.0004781710483 | R122: 1.007730214e-05 | S122: 0 | T122: 0 | U122: 0 | V122: 0 | W122: 0 | X122: 0.003371133905
A123: 2009-10-23 | B123: -3.635446822e-05 | C123: -0.0002227909846 | D123: -0.0005760587837 | E123: 0 | F123: -0.0004327560244 | G123: 0 | H123: 0 | I123: 0 | J123: -0.0006166227315 | K123: -0.0003377449266 | L123: 0 | M123: 0 | N123: 0 | O123: 0 | P123: 0 | Q123: -0.0005547260822 | R123: -0.0002581934761 | S123: 0 | T123: 0 | U123: 0 | V123: 0 | W123: 0 | X123: -0.003035247477
A124: 2009-10-26 | B124: -0.001569535886 | C124: -0.0004890854106 | D124: -0.00114432258 | E124: 0 | F124: -0.0003078840189 | G124: 0 | H124: 0 | I124: 0 | J124: -0.0007664389544 | K124: -0.000378046977 | L124: 0 | M124: 0 | N124: 0 | O124: 0 | P124: 0 | Q124: -0.0003962846705 | R124: -0.001693730529 | S124: 0 | T124: 0 | U124: 0 | V124: 0 | W124: 0 | X124: -0.006745329027
A125: 2009-10-27 | B125: -0.0008720884941 | C125: -4.22698137e-05 | D125: 0.0003028789905 | E125: 0 | F125: -0.0005400020414 | G125: 0 | H125: 0 | I125: 0 | J125: 0.0002753666183 | K125: 0.0001261007525 | L125: 0 | M125: 0 | N125: 0 | O125: 0 | P125: 0 | Q125: -0.005903021647 | R125: 0.0008045390417 | S125: 0 | T125: 0 | U125: 0 | V125: 0 | W125: 0 | X125: -0.005848496593
A126: 2009-10-28 | B126: -0.006187216051 | C126: -0.0005905642359 | D126: -0.0009110113028 | E126: 0 | F126: -0.001320096194 | G126: 0 | H126: 0 | I126: 0 | J126: -0.0004735133877 | K126: -0.0002568536531 | L126: 0 | M126: 0 | N126: 0 | O126: 0 | P126: 0 | Q126: -0.003849579491 | R126: -0.001382617016 | S126: 0 | T126: 0 | U126: 0 | V126: 0 | W126: 0 | X126: -0.01497145133
A127: 2009-10-29 | B127: 0.002759596855 | C127: 0.0007329808601 | D127: 0.001022424758 | E127: 0 | F127: 0.00116802645 | G127: 0 | H127: 0 | I127: 0 | J127: 0.0003509820631 | K127: 0.0001473622015 | L127: 0 | M127: 0 | N127: 0 | O127: 0 | P127: 0 | Q127: 0.003959721177 | R127: 0.002371229671 | S127: 0 | T127: 0 | U127: 0 | V127: 0 | W127: 0 | X127: 0.01251232404
A128: 2009-10-30 | B128: -0.001536840725 | C128: -0.0003675928238 | D128: -0.0003177860185 | E128: 0 | F128: -0.001191337738 | G128: 0 | H128: 0 | I128: 0 | J128: -0.0005031166948 | K128: -0.0002457699401 | L128: 0 | M128: 0 | N128: 0 | O128: 0 | P128: 0 | Q128: -0.004142030451 | R128: 0.0008643773554 | S128: 0 | T128: 0 | U128: 0 | V128: 0 | W128: 0 | X128: -0.007440097036
A129: 2009-11-02 | B129: 0.001736136489 | C129: 0.0001763110429 | D129: 0.0001950213399 | E129: 0 | F129: 0.0005422257661 | G129: 0 | H129: 0 | I129: 0 | J129: 0.0001703185719 | K129: 6.843923375e-05 | L129: 0 | M129: 0 | N129: 0 | O129: 0 | P129: 0 | Q129: 0.001491499796 | R129: 0.003020844069 | S129: 0 | T129: 0 | U129: 0 | V129: 0 | W129: 0 | X129: 0.007400796308
A130: 2009-11-03 | B130: 0.0002563145063 | C130: 0.0002840042287 | D130: 0.000192263891 | E130: 0 | F130: -0.0001419794896 | G130: 0 | H130: 0 | I130: 0 | J130: -0.0001333264173 | K130: -7.76217909e-05 | L130: 0 | M130: 0 | N130: 0 | O130: 0 | P130: 0 | Q130: -0.001100174946 | R130: 0.004990766766 | S130: 0 | T130: 0 | U130: 0 | V130: 0 | W130: 0 | X130: 0.004270246748
A131: 2009-11-04 | B131: -7.161154725e-05 | C131: 0.0002455924817 | D131: 0.0004303383471 | E131: 0 | F131: 0.0001277406967 | G131: 0 | H131: 0 | I131: 0 | J131: -0.0001317002643 | K131: -6.9603101e-05 | L131: 0 | M131: 0 | N131: 0 | O131: 0 | P131: 0 | Q131: 0.0007907751167 | R131: 0.00142659361 | S131: 0 | T131: 0 | U131: 0 | V131: 0 | W131: 0 | X131: =SUM(B131:W131) -> 0.00274812534
A132: 2009-11-05 | B132: 0.0004801347664 | C132: 0.0001983880786 | D132: 0.0003825549195 | E132: 0 | F132: 0.0003034527692 | G132: 0 | H132: 0 | I132: 0 | J132: 0.0007237714347 | K132: 0.0003539285849 | L132: 0 | M132: 0 | N132: 0 | O132: 0 | P132: 0 | Q132: 0.001519259425 | R132: -0.0002019575015 | S132: 0 | T132: 0 | U132: 0 | V132: 0 | W132: 0 | X132: 0.003759532477
A133: 2009-11-06 | B133: 0.0004109384164 | C133: 7.639478584e-05 | D133: 0.0001506731773 | E133: 0 | F133: -8.657708014e-05 | G133: 0 | H133: 0 | I133: 0 | J133: 0.0001279767863 | K133: 7.434643322e-05 | L133: 0 | M133: 0 | N133: 0 | O133: 0 | P133: 0 | Q133: 4.009868535e-05 | R133: 0.0002038019474 | S133: 0 | T133: 0 | U133: 0 | V133: 0 | W133: 0 | X133: 0.0009976531517
A134: 2009-11-09 | B134: 0.003702666407 | C134: 0.0003688950873 | D134: 0.000672485682 | E134: 0 | F134: 0.0009049780696 | G134: 0 | H134: 0 | I134: 0 | J134: 0.0009325483287 | K134: 0.0004715045667 | L134: 0 | M134: 0 | N134: 0 | O134: 0 | P134: 0 | Q134: -0.001164846932 | R134: 0.001358492857 | S134: 0 | T134: 0 | U134: 0 | V134: 0 | W134: 0 | X134: 0.007246724067
A135: 2009-11-10 | B135: 0.0005504774801 | C135: 0.0001050164339 | D135: 0.0001581571536 | E135: 0 | F135: 0.0001877799584 | G135: 0 | H135: 0 | I135: 0 | J135: -3.755937416e-05 | K135: -3.356157656e-05 | L135: 0 | M135: 0 | N135: 0 | O135: 0 | P135: 0 | Q135: -0.0006309197728 | R135: 0.0002558236839 | S135: 0 | T135: 0 | U135: 0 | V135: 0 | W135: 0 | X135: 0.0005552139863
A136: 2009-11-11 | B136: 0.0009233814548 | C136: 0.0002701473319 | D136: 0.0004791652298 | E136: 0 | F136: 4.638846411e-05 | G136: 0 | H136: 0 | I136: 0 | J136: 0.0003074040056 | K136: 0.0001465376077 | L136: 0 | M136: 0 | N136: 0 | O136: 0 | P136: 0 | Q136: -0.0004146597734 | R136: 0.002238345923 | S136: 0 | T136: 0 | U136: 0 | V136: 0 | W136: 0 | X136: 0.003996710244
A137: 2009-11-12 | B137: -0.001440039394 | C137: -0.0003120901181 | D137: -0.0005454905516 | E137: 0 | F137: -0.0003484470051 | G137: 0 | H137: 0 | I137: 0 | J137: -0.0004516157608 | K137: -0.0002193315823 | L137: 0 | M137: 0 | N137: 0 | O137: 0 | P137: 0 | Q137: -0.0003376855283 | R137: -0.002082951465 | S137: 0 | T137: 0 | U137: 0 | V137: 0 | W137: 0 | X137: -0.005737651405
A138: 2009-11-13 | B138: 0.001206097653 | C138: 0.000246808388 | D138: 0.0003816943733 | E138: 0 | F138: 0.0004232331138 | G138: 0 | H138: 0 | I138: 0 | J138: 0.0003296606774 | K138: 0.0001679817678 | L138: 0 | M138: 0 | N138: 0 | O138: 0 | P138: 0 | Q138: -1.862543809e-05 | R138: 0.002149151875 | S138: 0 | T138: 0 | U138: 0 | V138: 0 | W138: 0 | X138: 0.00488600241
A139: 2009-11-16 | B139: 0.0005173412279 | C139: 0.0003997592675 | D139: 0.0007151230731 | E139: 0 | F139: 0.0003296051607 | G139: 0 | H139: 0 | I139: 0 | J139: 0.000868411127 | K139: 0.0004490627917 | L139: 0 | M139: 0 | N139: 0 | O139: 0 | P139: 0 | Q139: 0.001103536779 | R139: 0.002915005305 | S139: 0 | T139: 0 | U139: 0 | V139: 0 | W139: 0 | X139: 0.007297844732
A140: 2009-11-17 | B140: 0.0002320492685 | C140: 7.61276052e-05 | D140: 0.0001515350994 | E140: 0 | F140: -7.855504166e-07 | G140: 0 | H140: 0 | I140: 0 | J140: 0.0001791787097 | K140: 6.909381231e-05 | L140: 0 | M140: 0 | N140: 0 | O140: 0 | P140: 0 | Q140: 0.00113012124 | R140: 0.0007153247948 | S140: 0 | T140: 0 | U140: 0 | V140: 0 | W140: 0 | X140: 0.002552644979
A141: 2009-11-18 | B141: 0.0009210402509 | C141: 7.811266971e-06 | D141: -1.450797992e-09 | E141: 0 | F141: 0.0001212626322 | G141: 0 | H141: 0 | I141: 0 | J141: -0.0001701417504 | K141: -0.0001089761566 | L141: 0 | M141: 0 | N141: 0 | O141: 0 | P141: 0 | Q141: -0.0006969956368 | R141: 0.0005574944725 | S141: 0 | T141: 0 | U141: 0 | V141: 0 | W141: 0 | X141: 0.000631493628
A142: 2009-11-19 | B142: -0.00167129498 | C142: -0.0001578558714 | D142: -0.0002730469593 | E142: 0 | F142: -0.0004150632383 | G142: 0 | H142: 0 | I142: 0 | J142: -0.0004766419508 | K142: -0.0002662628881 | L142: 0 | M142: 0 | N142: 0 | O142: 0 | P142: 0 | Q142: -0.0009915290255 | R142: -0.0002086993941 | S142: 0 | T142: 0 | U142: 0 | V142: 0 | W142: 0 | X142: -0.004460394308
A143: 2009-11-20 | B143: -0.000343310711 | C143: 6.241969029e-05 | D143: 8.920343859e-05 | E143: 0 | F143: -0.0001087089511 | G143: 0 | H143: 0 | I143: 0 | J143: -0.0001463493553 | K143: -5.440698183e-05 | L143: 0 | M143: 0 | N143: 0 | O143: 0 | P143: 0 | Q143: -0.0004656809482 | R143: 0.001074662806 | S143: 0 | T143: 0 | U143: 0 | V143: 0 | W143: 0 | X143: 0.0001078289873
A144: 2009-11-23 | B144: 0.001253561872 | C144: 0.000313894981 | D144: 0.0005073286312 | E144: 0 | F144: 0.0004640522201 | G144: 0 | H144: 0 | I144: 0 | J144: 0.0004726256115 | K144: 0.0002132064421 | L144: 0 | M144: 0 | N144: 0 | O144: 0 | P144: 0 | Q144: 4.709440365e-05 | R144: 0.002405139352 | S144: 0 | T144: 0 | U144: 0 | V144: 0 | W144: 0 | X144: 0.005676903513
A145: 2009-11-24 | B145: 5.528023334e-05 | C145: 0.0001179758137 | D145: 0.000211046228 | E145: 0 | F145: 6.078603725e-05 | G145: 0 | H145: 0 | I145: 0 | J145: 0.0002174148935 | K145: 9.69925913e-05 | L145: 0 | M145: 0 | N145: 0 | O145: 0 | P145: 0 | Q145: -6.777293101e-05 | R145: 0.0003360065934 | S145: 0 | T145: 0 | U145: 0 | V145: 0 | W145: 0 | X145: 0.001027729459
A146: 2009-11-25 | B146: 0.0008728804839 | C146: 0.000293216684 | D146: 0.0004912999806 | E146: 0 | F146: 0.0001825666095 | G146: 0 | H146: 0 | I146: 0 | J146: 0.0002541105074 | K146: 0.0001318889763 | L146: 0 | M146: 0 | N146: 0 | O146: 0 | P146: 0 | Q146: 0.000585793773 | R146: 0.002166746647 | S146: 0 | T146: 0 | U146: 0 | V146: 0 | W146: 0 | X146: 0.004978503662
A147: 2009-11-27 | B147: -0.001594006972 | C147: -0.0004623089215 | D147: -0.0007248193867 | E147: 0 | F147: -0.0005288679434 | G147: 0 | H147: 0 | I147: 0 | J147: -0.0005538734581 | K147: -0.0002788473171 | L147: 0 | M147: 0 | N147: 0 | O147: 0 | P147: 0 | Q147: -0.0008043481717 | R147: -0.00313824619 | S147: 0 | T147: 0 | U147: 0 | V147: 0 | W147: 0 | X147: -0.00808531836
A148: 2009-11-30 | B148: 0.001010074563 | C148: 9.028794188e-05 | D148: 0.0001432696352 | E148: 0 | F148: 1.424686482e-05 | G148: 0 | H148: 0 | I148: 0 | J148: 0.0001933469257 | K148: 9.923657121e-05 | L148: 0 | M148: 0 | N148: 0 | O148: 0 | P148: 0 | Q148: 0.001154916495 | R148: 0.0007034577957 | S148: 0 | T148: 0 | U148: 0 | V148: 0 | W148: 0 | X148: 0.003408836792
A149: 2009-12-01 | B149: 0.001846005482 | C149: 0.0003582551421 | D149: 0.0005477256794 | E149: 0 | F149: 0.0007796965713 | G149: 0 | H149: 0 | I149: 0 | J149: 3.977552125e-05 | K149: -2.6331203e-05 | L149: 0 | M149: 0 | N149: 0 | O149: 0 | P149: 0 | Q149: 0.001963209828 | R149: 0.001317574997 | S149: 0 | T149: 0 | U149: 0 | V149: 0 | W149: 0 | X149: 0.006825912018
A150: 2009-12-02 | B150: 0.0006860367843 | C150: 0.0002769955383 | D150: 0.0004027966901 | E150: 0 | F150: 0.0001051989973 | G150: 0 | H150: 0 | I150: 0 | J150: 1.213517323e-05 | K150: 6.389538149e-05 | L150: 0 | M150: 0 | N150: 0 | O150: 0 | P150: 0 | Q150: 0.0008019615224 | R150: 0.002970234655 | S150: 0 | T150: 0 | U150: 0 | V150: 0 | W150: 0 | X150: 0.005319254742
A151: 2009-12-03 | B151: -0.0008697667092 | C151: -0.0001898583169 | D151: -0.0003715867037 | E151: 0 | F151: -0.0001992523111 | G151: 0 | H151: 0 | I151: 0 | J151: -0.0005873984599 | K151: -0.0003188374851 | L151: 0 | M151: 0 | N151: 0 | O151: 0 | P151: 0 | Q151: -0.0008346456081 | R151: -0.001076166271 | S151: 0 | T151: 0 | U151: 0 | V151: 0 | W151: 0 | X151: -0.004447511865
A152: 2009-12-04 | B152: 0.001561633844 | C152: -0.0004542530015 | D152: -0.0008216515397 | E152: 0 | F152: 0.0001174912099 | G152: 0 | H152: 0 | I152: 0 | J152: -0.0001515672444 | K152: -8.672727195e-05 | L152: 0 | M152: 0 | N152: 0 | O152: 0 | P152: 0 | Q152: 0.001196629445 | R152: -0.003091211964 | S152: 0 | T152: 0 | U152: 0 | V152: 0 | W152: 0 | X152: -0.001729656522
A153: 2009-12-07 | B153: 0.0003776444256 | C153: -7.65160311e-05 | D153: -8.346896073e-05 | E153: 0 | F153: -0.0001272529395 | G153: 0 | H153: 0 | I153: 0 | J153: -9.815537405e-06 | K153: 1.220963113e-05 | L153: 0 | M153: 0 | N153: 0 | O153: 0 | P153: 0 | Q153: -9.389480556e-05 | R153: -0.0008310054804 | S153: 0 | T153: 0 | U153: 0 | V153: 0 | W153: 0 | X153: -0.0008320996979
A154: 2009-12-08 | B154: -0.0002577022395 | C154: -0.0004433706599 | D154: -0.0007458102238 | E154: 0 | F154: -0.0005777259165 | G154: 0 | H154: 0 | I154: 0 | J154: -0.0003180005196 | K154: -0.000146770954 | L154: 0 | M154: 0 | N154: 0 | O154: 0 | P154: 0 | Q154: -4.583592573e-05 | R154: -0.0007462087126 | S154: 0 | T154: 0 | U154: 0 | V154: 0 | W154: 0 | X154: -0.003281425152
A155: 2009-12-09 | B155: -5.43276628e-05 | C155: 7.667442414e-05 | D155: 8.66260962e-05 | E155: 0 | F155: 4.756797429e-05 | G155: 0 | H155: 0 | I155: 0 | J155: -2.412575538e-05 | K155: -1.813408799e-05 | L155: 0 | M155: 0 | N155: 0 | O155: 0 | P155: 0 | Q155: -0.0003818889173 | R155: -0.0006177862893 | S155: 0 | T155: 0 | U155: 0 | V155: 0 | W155: 0 | X155: -0.0008853942181
A156: 2009-12-10 | B156: 0.0009695456866 | C156: -4.460559141e-06 | D156: -4.678232323e-05 | E156: 0 | F156: 0.0003235936578 | G156: 0 | H156: 0 | I156: 0 | J156: -0.0001796087208 | K156: -9.649676933e-05 | L156: 0 | M156: 0 | N156: 0 | O156: 0 | P156: 0 | Q156: 0.0008650192287 | R156: -0.0001450031632 | S156: 0 | T156: 0 | U156: 0 | V156: 0 | W156: 0 | X156: 0.001685807037
A157: 2009-12-11 | B157: 0.001517378905 | C157: -6.168236804e-05 | D157: -8.53852941e-05 | E157: 0 | F157: 0.0001337617056 | G157: 0 | H157: 0 | I157: 0 | J157: 0.0001373704017 | K157: 7.164931215e-05 | L157: 0 | M157: 0 | N157: 0 | O157: 0 | P157: 0 | Q157: -0.0007555729989 | R157: -0.0002423195175 | S157: 0 | T157: 0 | U157: 0 | V157: 0 | W157: 0 | X157: 0.0007152001462
A158: 2009-12-14 | B158: 0.001986775116 | C158: 0.0001969970404 | D158: 0.0003591569059 | E158: 0 | F158: 0.0001986323534 | G158: 0 | H158: 0 | I158: 0 | J158: 0.0002647078679 | K158: 0.0001444918429 | L158: 0 | M158: 0 | N158: 0 | O158: 0 | P158: 0 | Q158: -0.0002043334222 | R158: 0.0007905160751 | S158: 0 | T158: 0 | U158: 0 | V158: 0 | W158: 0 | X158: 0.003736943779
A159: 2009-12-15 | B159: -0.0001598435945 | C159: -0.0001005321865 | D159: -0.0001842890351 | E159: 0 | F159: -0.0002672724158 | G159: 0 | H159: 0 | I159: 0 | J159: -0.0002941146266 | K159: -0.0001446411687 | L159: 0 | M159: 0 | N159: 0 | O159: 0 | P159: 0 | Q159: -0.0001707210657 | R159: 0.001621380758 | S159: 0 | T159: 0 | U159: 0 | V159: 0 | W159: 0 | X159: 0.0002999666654
A160: 2009-12-16 | B160: 0.001539543011 | C160: 0.0002159979229 | D160: 0.0003851661542 | E160: 0 | F160: 0.0001623188348 | G160: 0 | H160: 0 | I160: 0 | J160: 1.329222131e-05 | K160: 1.247973287e-05 | L160: 0 | M160: 0 | N160: 0 | O160: 0 | P160: 0 | Q160: -0.0001779550515 | R160: 0.001734222163 | S160: 0 | T160: 0 | U160: 0 | V160: 0 | W160: 0 | X160: 0.003885064988
A161: 2009-12-17 | B161: -0.002400501186 | C161: -0.0005786330078 | D161: -0.0008821825142 | E161: 0 | F161: -0.0006860767711 | G161: 0 | H161: 0 | I161: 0 | J161: 0.0001146572161 | K161: 5.952906005e-05 | L161: 0 | M161: 0 | N161: 0 | O161: 0 | P161: 0 | Q161: -0.0004947691197 | R161: -0.002675415017 | S161: 0 | T161: 0 | U161: 0 | V161: 0 | W161: 0 | X161: -0.00754339134
A162: 2009-12-18 | B162: -5.841672082e-06 | C162: 0.0001887261465 | D162: 0.000278909746 | E162: 0 | F162: 0.0001459292787 | G162: 0 | H162: 0 | I162: 0 | J162: 4.978168129e-05 | K162: -5.97470957e-06 | L162: 0 | M162: 0 | N162: 0 | O162: 0 | P162: 0 | Q162: -0.0002616621936 | R162: 0.002159217911 | S162: 0 | T162: 0 | U162: 0 | V162: 0 | W162: 0 | X162: 0.002549086188
A163: 2009-12-21 | B163: 0.002176361234 | C163: -4.792929761e-05 | D163: -0.0001083977795 | E163: 0 | F163: 0.0001763293936 | G163: 0 | H163: 0 | I163: 0 | J163: -0.0002258345471 | K163: -7.381711289e-05 | L163: 0 | M163: 0 | N163: 0 | O163: 0 | P163: 0 | Q163: 0.001479182969 | R163: -0.001648116338 | S163: 0 | T163: 0 | U163: 0 | V163: 0 | W163: 0 | X163: 0.001727778521
A164: 2009-12-22 | B164: -0.0001223528182 | C164: -0.0001006980371 | D164: -0.0002123959587 | E164: 0 | F164: 0.0002947756971 | G164: 0 | H164: 0 | I164: 0 | J164: -5.385448691e-05 | K164: -2.28440422e-05 | L164: 0 | M164: 0 | N164: 0 | O164: 0 | P164: 0 | Q164: -2.803247777e-05 | R164: -0.0007792555973 | S164: 0 | T164: 0 | U164: 0 | V164: 0 | W164: 0 | X164: -0.001024657721
A165: 2009-12-23 | B165: 0.002036087631 | C165: 9.871281593e-05 | D165: 0.0001545501315 | E165: 0 | F165: 0.0001312032785 | G165: 0 | H165: 0 | I165: 0 | J165: 7.308921971e-05 | K165: 5.789385344e-05 | L165: 0 | M165: 0 | N165: 0 | O165: 0 | P165: 0 | Q165: 0.002036499581 | R165: -0.0002144098077 | S165: 0 | T165: 0 | U165: 0 | V165: 0 | W165: 0 | X165: 0.004373626704
A166: 2009-12-24 | B166: 0.001219093191 | C166: 0.0002243599366 | D166: 0.0003222558569 | E166: 0 | F166: 0.0001780417564 | G166: 0 | H166: 0 | I166: 0 | J166: -0.0001615746677 | K166: -5.876789497e-05 | L166: 0 | M166: 0 | N166: 0 | O166: 0 | P166: 0 | Q166: 6.869435523e-05 | R166: 0.001772934391 | S166: 0 | T166: 0 | U166: 0 | V166: 0 | W166: 0 | X166: 0.003565036924
A167: 2009-12-28 | B167: -0.0003980927797 | C167: 5.474388499e-05 | D167: 7.585643273e-05 | E167: 0 | F167: 0.0002197964609 | G167: 0 | H167: 0 | I167: 0 | J167: -1.321306576e-05 | K167: 7.175591414e-07 | L167: 0 | M167: 0 | N167: 0 | O167: 0 | P167: 0 | Q167: -5.930976049e-05 | R167: -0.0003419421527 | S167: 0 | T167: 0 | U167: 0 | V167: 0 | W167: 0 | X167: -0.0004614434209
A168: 2009-12-29 | B168: -0.0004364763264 | C168: -0.0001444465401 | D168: -0.0001974208581 | E168: 0 | F168: -3.875489061e-05 | G168: 0 | H168: 0 | I168: 0 | J168: 0.0001538021845 | K168: 6.259111533e-05 | L168: 0 | M168: 0 | N168: 0 | O168: 0 | P168: 0 | Q168: 0.0001839022336 | R168: -0.0008731437115 | S168: 0 | T168: 0 | U168: 0 | V168: 0 | W168: 0 | X168: -0.001289946793
A169: 2009-12-30 | B169: 0.0004922406956 | C169: -8.736660084e-05 | D169: -0.0001335659214 | E169: 0 | F169: -0.0001785166632 | G169: 0 | H169: 0 | I169: 0 | J169: 0.0001902285055 | K169: 6.606447205e-05 | L169: 0 | M169: 0 | N169: 0 | O169: 0 | P169: 0 | Q169: 0.0001860425931 | R169: -0.0003493694695 | S169: 0 | T169: 0 | U169: 0 | V169: 0 | W169: 0 | X169: 0.0001857576112
A170: 2009-12-31 | B170: -0.0009503954445 | C170: -6.294026956e-06 | D170: -4.076887049e-05 | E170: 0 | F170: -0.0002466651912 | G170: 0 | H170: 0 | I170: 0 | J170: -0.0004710050629 | K170: -0.0002469073968 | L170: 0 | M170: 0 | N170: 0 | O170: 0 | P170: 0 | Q170: -0.001206906701 | R170: 0.0005554789324 | S170: 0 | T170: 0 | U170: 0 | V170: 0 | W170: 0 | X170: -0.002613463762
A171: 2010-01-04 | B171: 0.003844120173 | C171: 0.0004510565271 | D171: 0.0007990389726 | E171: 0 | F171: 0.0005868750388 | G171: 0 | H171: 0 | I171: 0 | J171: 0.0007500401612 | K171: 0.0003744349438 | L171: 0 | M171: 0 | N171: 0 | O171: 0 | P171: 0 | Q171: 0.001081763138 | R171: 0.0004760804561 | S171: 0 | T171: 0 | U171: 0 | V171: 0 | W171: 0 | X171: 0.008363409411
A172: 2010-01-05 | B172: 0.002943160277 | C172: 0.0001092921678 | D172: 0.0002470203096 | E172: 0 | F172: -7.828795499e-05 | G172: 0 | H172: 0 | I172: 0 | J172: 0.0002440668486 | K172: 0.0001304576392 | L172: 0 | M172: 0 | N172: 0 | O172: 0 | P172: 0 | Q172: 0.0009951887992 | R172: 0.001029230877 | S172: 0 | T172: 0 | U172: 0 | V172: 0 | W172: 0 | X172: 0.005620128963
A173: 2010-01-06 | B173: 0.0001501996284 | C173: 0.0002265753803 | D173: 0.0003548001622 | E173: 0 | F173: 7.207385775e-05 | G173: 0 | H173: 0 | I173: 0 | J173: -0.0002250491033 | K173: -0.0001062177777 | L173: 0 | M173: 0 | N173: 0 | O173: 0 | P173: 0 | Q173: -0.001676288227 | R173: 0.0007207552397 | S173: 0 | T173: 0 | U173: 0 | V173: 0 | W173: 0 | X173: -0.0004831508392
A174: 2010-01-07 | B174: 0.0009708477223 | C174: -7.622238091e-05 | D174: -7.555140514e-05 | E174: 0 | F174: 8.910943197e-05 | G174: 0 | H174: 0 | I174: 0 | J174: 0.0002245562822 | K174: 8.752070565e-05 | L174: 0 | M174: 0 | N174: 0 | O174: 0 | P174: 0 | Q174: -0.001339380231 | R174: 0.001033669994 | S174: 0 | T174: 0 | U174: 0 | V174: 0 | W174: 0 | X174: 0.0009145501193
A175: 2010-01-08 | B175: 0.0005157027705 | C175: 9.140801173e-05 | D175: 0.0002450172019 | E175: 0 | F175: 0.0001322492638 | G175: 0 | H175: 0 | I175: 0 | J175: 0.0001434326008 | K175: 6.372033011e-05 | L175: 0 | M175: 0 | N175: 0 | O175: 0 | P175: 0 | Q175: 0.001311148368 | R175: -0.001158368219 | S175: 0 | T175: 0 | U175: 0 | V175: 0 | W175: 0 | X175: 0.001344310328
A176: 2010-01-11 | B176: 0.0008620378513 | C176: 0.0002136308597 | D176: 0.0003487223791 | E176: 0 | F176: 0.0003731391215 | G176: 0 | H176: 0 | I176: 0 | J176: -4.002927927e-05 | K176: -8.951208148e-06 | L176: 0 | M176: 0 | N176: 0 | O176: 0 | P176: 0 | Q176: -0.001040897235 | R176: -0.001099694762 | S176: 0 | T176: 0 | U176: 0 | V176: 0 | W176: 0 | X176: -0.0003920422733
A177: 2010-01-12 | B177: -0.001455724004 | C177: -0.0002811044974 | D177: -0.0004577500067 | E177: 0 | F177: -0.000492604414 | G177: 0 | H177: 0 | I177: 0 | J177: -0.0001047452451 | K177: -7.162311866e-05 | L177: 0 | M177: 0 | N177: 0 | O177: 0 | P177: 0 | Q177: -0.00159896119 | R177: -0.001953461717 | S177: 0 | T177: 0 | U177: 0 | V177: 0 | W177: 0 | X177: -0.006415974193
